Workbook

Sheet Anl C-03 Zusammenfassung
A1: VOEK 573-25 Los 2 | L1: Anlage C-03
A3: Flächenaufmaß Glasreinigung
A5: Reinigungsobjekt: | C5: BPol Blumberg
A6: Straße: | C6: Bundespolizeiallee1 | R6: einseitig
A7: PLZ und Ort: | C7: 16356 Ahrensfelde | R7: beidseitig
A8: WE - Nr.: | C8: 141115 | I8: Stand: | R8: raumseitig
A9: Gebäude Nr. | R9: 2x raumseitig
A10: Anzahl Etagen | R10: 3x raumseitig
A11: Gebäudeart SAP | R11: witterungsseitig
A12: Kontrakt-Nr.: | I12: Druckdatum: | J12: 2025-02-05 | R12: außen
A13: Raum. Nr. | B13: Etage | C13: Raumart / Nutzung | D13: Glascode | E13: Reinigung einseitig beidseitig oder mehrseitig (Info) | F13: Turnus | G13: Breite, m | H13: Höhe, m | I13: Einzelmaß, m² | J13: Anzahl / Einzelmaß | K13: Reinigungs-fläche einseitig | L13: zu reinigende Gesamtfläche | R13: raum- & witterungsseitig
A14: Gebäude 2 | K14: =I14*J14 -> 0 | L14: =IF(E14="einseitig",K14*1,IF(E14="beidseitig",K14*2,IF(E14="raumseitig",K14*1,IF(E14="2x raumseitig",K14*2,IF(E14="3x raumseitig",K14*3,IF(E14="witterungsseitig",K14*1,IF(E14="außen",K14*1,IF(E14="raum- & witterungsseitig",K14*2,IF(E14="vierseitig",K14*4,IF(E14="allseitig",K14*2,IF(E14="ganzflächig",K14*2,0))))))))))) -> 0 | R14: vierseitig
A15: ='Anl C-03 Geb 2'!A14 -> 1 | B15: ='Anl C-03 Geb 2'!B14 -> EG | C15: ='Anl C-03 Geb 2'!C14 -> Wachraum | D15: ='Anl C-03 Geb 2'!D14 -> VF | E15: ='Anl C-03 Geb 2'!E14 -> beidseitig | F15: ='Anl C-03 Geb 2'!F14 -> J2 | G15: ='Anl C-03 Geb 2'!G14 -> 7.69 | H15: ='Anl C-03 Geb 2'!H14 -> 1.43 | I15: ='Anl C-03 Geb 2'!I14 -> 11 | J15: ='Anl C-03 Geb 2'!J14 -> 1 | K15: =I15*J15 -> 11 | L15: =IF(E15="einseitig",K15*1,IF(E15="beidseitig",K15*2,IF(E15="raumseitig",K15*1,IF(E15="2x raumseitig",K15*2,IF(E15="3x raumseitig",K15*3,IF(E15="witterungsseitig",K15*1,IF(E15="außen",K15*1,IF(E15="raum- & witterungsseitig",K15*2,IF(E15="vierseitig",K15*4,IF(E15="allseitig",K15*2,IF(E15="ganzflächig",K15*2,0))))))))))) -> 22 | R15: allseitig
A16: ='Anl C-03 Geb 2'!A15 -> 2 | B16: ='Anl C-03 Geb 2'!B15 -> EG | C16: ='Anl C-03 Geb 2'!C15 -> Umkleide | D16: ='Anl C-03 Geb 2'!D15 -> VF | E16: ='Anl C-03 Geb 2'!E15 -> beidseitig | F16: ='Anl C-03 Geb 2'!F15 -> J2 | G16: ='Anl C-03 Geb 2'!G15 -> 0.88 | H16: ='Anl C-03 Geb 2'!H15 -> 1.35 | I16: ='Anl C-03 Geb 2'!I15 -> 1.19 | J16: ='Anl C-03 Geb 2'!J15 -> 2 | K16: =I16*J16 -> 2.38 | L16: 4.76 | R16: ganzflächig
A17: ='Anl C-03 Geb 2'!A16 -> 3 | B17: ='Anl C-03 Geb 2'!B16 -> EG | C17: ='Anl C-03 Geb 2'!C16 -> Ruheraum/Teeküche | D17: ='Anl C-03 Geb 2'!D16 -> VF | E17: ='Anl C-03 Geb 2'!E16 -> beidseitig | F17: ='Anl C-03 Geb 2'!F16 -> J2 | G17: ='Anl C-03 Geb 2'!G16 -> 0.88 | H17: ='Anl C-03 Geb 2'!H16 -> 1.35 | I17: ='Anl C-03 Geb 2'!I16 -> 1.19 | J17: ='Anl C-03 Geb 2'!J16 -> 1 | K17: =I17*J17 -> 1.19 | L17: =IF(E17="einseitig",K17*1,IF(E17="beidseitig",K17*2,IF(E17="raumseitig",K17*1,IF(E17="2x raumseitig",K17*2,IF(E17="3x raumseitig",K17*3,IF(E17="witterungsseitig",K17*1,IF(E17="außen",K17*1,IF(E17="raum- & witterungsseitig",K17*2,IF(E17="vierseitig",K17*4,IF(E17="allseitig",K17*2,IF(E17="ganzflächig",K17*2,0))))))))))) -> 2.38
A18: ='Anl C-03 Geb 2'!A17 -> 4 | B18: ='Anl C-03 Geb 2'!B17 -> EG | C18: ='Anl C-03 Geb 2'!C17 -> Besucherraum | D18: ='Anl C-03 Geb 2'!D17 -> VF | E18: ='Anl C-03 Geb 2'!E17 -> beidseitig | F18: ='Anl C-03 Geb 2'!F17 -> J2 | G18: ='Anl C-03 Geb 2'!G17 -> 0.88 | H18: ='Anl C-03 Geb 2'!H17 -> 0.6 | I18: ='Anl C-03 Geb 2'!I17 -> 0.53 | J18: ='Anl C-03 Geb 2'!J17 -> 3 | K18: 1.59 | L18: 3.18
A19: ='Anl C-03 Geb 2'!A18 -> 5 | B19: ='Anl C-03 Geb 2'!B18 -> EG | C19: ='Anl C-03 Geb 2'!C18 -> HA Heizung | D19: ='Anl C-03 Geb 2'!D18 -> 0 | E19: ='Anl C-03 Geb 2'!E18 -> 0 | F19: ='Anl C-03 Geb 2'!F18 -> 0 | G19: ='Anl C-03 Geb 2'!G18 -> 0 | H19: ='Anl C-03 Geb 2'!H18 -> 0 | I19: ='Anl C-03 Geb 2'!I18 -> 0 | J19: ='Anl C-03 Geb 2'!J18 -> 0 | K19: 0 | L19: 0
A20: ='Anl C-03 Geb 2'!A19 -> 6 | B20: ='Anl C-03 Geb 2'!B19 -> EG | C20: ='Anl C-03 Geb 2'!C19 -> HA FM / Elektrik | D20: ='Anl C-03 Geb 2'!D19 -> VF | E20: ='Anl C-03 Geb 2'!E19 -> beidseitig | F20: ='Anl C-03 Geb 2'!F19 -> J2 | G20: ='Anl C-03 Geb 2'!G19 -> 0.88 | H20: ='Anl C-03 Geb 2'!H19 -> 0.6 | I20: ='Anl C-03 Geb 2'!I19 -> 0.53 | J20: ='Anl C-03 Geb 2'!J19 -> 1 | K20: 0.53 | L20: 1.06
A21: ='Anl C-03 Geb 2'!A20 -> 7 | B21: ='Anl C-03 Geb 2'!B20 -> EG | C21: ='Anl C-03 Geb 2'!C20 -> Vorraum / WC | D21: ='Anl C-03 Geb 2'!D20 -> VF | E21: ='Anl C-03 Geb 2'!E20 -> beidseitig | F21: ='Anl C-03 Geb 2'!F20 -> J2 | G21: ='Anl C-03 Geb 2'!G20 -> 0.88 | H21: ='Anl C-03 Geb 2'!H20 -> 0.6 | I21: ='Anl C-03 Geb 2'!I20 -> 0.53 | J21: ='Anl C-03 Geb 2'!J20 -> 1 | K21: 0.53 | L21: 1.06
A22: ='Anl C-03 Geb 2'!A21 -> 8 | B22: ='Anl C-03 Geb 2'!B21 -> EG | C22: ='Anl C-03 Geb 2'!C21 -> Vorraum / WC | D22: ='Anl C-03 Geb 2'!D21 -> VF | E22: ='Anl C-03 Geb 2'!E21 -> beidseitig | F22: ='Anl C-03 Geb 2'!F21 -> J2 | G22: ='Anl C-03 Geb 2'!G21 -> 0.88 | H22: ='Anl C-03 Geb 2'!H21 -> 0.6 | I22: ='Anl C-03 Geb 2'!I21 -> 0.53 | J22: ='Anl C-03 Geb 2'!J21 -> 1 | K22: 0.53 | L22: 1.06
A23: ='Anl C-03 Geb 2'!A22 -> 9 | B23: ='Anl C-03 Geb 2'!B22 -> EG | C23: ='Anl C-03 Geb 2'!C22 -> Vorraum / WC | D23: ='Anl C-03 Geb 2'!D22 -> VF | E23: ='Anl C-03 Geb 2'!E22 -> beidseitig | F23: ='Anl C-03 Geb 2'!F22 -> J2 | G23: ='Anl C-03 Geb 2'!G22 -> 0.88 | H23: ='Anl C-03 Geb 2'!H22 -> 0.6 | I23: ='Anl C-03 Geb 2'!I22 -> 0.53 | J23: ='Anl C-03 Geb 2'!J22 -> 1 | K23: 0.53 | L23: 1.06
A24: ='Anl C-03 Geb 2'!A23 -> 10 | B24: ='Anl C-03 Geb 2'!B23 -> EG | C24: ='Anl C-03 Geb 2'!C23 -> Abstellraum Reinig. | D24: ='Anl C-03 Geb 2'!D23 -> 0 | E24: ='Anl C-03 Geb 2'!E23 -> 0 | F24: ='Anl C-03 Geb 2'!F23 -> 0 | G24: ='Anl C-03 Geb 2'!G23 -> 0 | H24: ='Anl C-03 Geb 2'!H23 -> 0 | I24: ='Anl C-03 Geb 2'!I23 -> 0 | J24: ='Anl C-03 Geb 2'!J23 -> 0 | K24: 0 | L24: 0
A25: ='Anl C-03 Geb 2'!A24 -> 11 | B25: ='Anl C-03 Geb 2'!B24 -> EG | C25: ='Anl C-03 Geb 2'!C24 -> Flur | D25: ='Anl C-03 Geb 2'!D24 -> 0 | E25: ='Anl C-03 Geb 2'!E24 -> 0 | F25: ='Anl C-03 Geb 2'!F24 -> 0 | G25: ='Anl C-03 Geb 2'!G24 -> 0 | H25: ='Anl C-03 Geb 2'!H24 -> 0 | I25: ='Anl C-03 Geb 2'!I24 -> 0 | J25: ='Anl C-03 Geb 2'!J24 -> 0 | K25: 0 | L25: 0
A26: Gebäude 7 | K26: 0 | L26: 0
A27: ='Anl C-03 Geb 7'!A14 -> K 01 | B27: ='Anl C-03 Geb 7'!B14 -> KG | C27: ='Anl C-03 Geb 7'!C14 -> Treppenraum | D27: ='Anl C-03 Geb 7'!D14 -> 0 | E27: ='Anl C-03 Geb 7'!E14 -> 0 | F27: ='Anl C-03 Geb 7'!F14 -> 0 | G27: ='Anl C-03 Geb 7'!G14 -> 0 | H27: ='Anl C-03 Geb 7'!H14 -> 0 | I27: ='Anl C-03 Geb 7'!I14 -> 0 | J27: ='Anl C-03 Geb 7'!J14 -> 0 | K27: 0 | L27: 0
A28: ='Anl C-03 Geb 7'!A15 -> K 02 | B28: ='Anl C-03 Geb 7'!B15 -> KG | C28: ='Anl C-03 Geb 7'!C15 -> Schreibraum Waffenkammer | D28: ='Anl C-03 Geb 7'!D15 -> VF | E28: ='Anl C-03 Geb 7'!E15 -> beidseitig | F28: ='Anl C-03 Geb 7'!F15 -> J2 | G28: ='Anl C-03 Geb 7'!G15 -> 1.06 | H28: ='Anl C-03 Geb 7'!H15 -> 0.66 | I28: ='Anl C-03 Geb 7'!I15 -> 0.7 | J28: ='Anl C-03 Geb 7'!J15 -> 1 | K28: 0.7 | L28: 1.4
A29: ='Anl C-03 Geb 7'!A16 -> K 03 | B29: ='Anl C-03 Geb 7'!B16 -> KG | C29: ='Anl C-03 Geb 7'!C16 -> Waffenkammer | D29: ='Anl C-03 Geb 7'!D16 ->  | E29: ='Anl C-03 Geb 7'!E16 ->  | F29: ='Anl C-03 Geb 7'!F16 ->  | G29: ='Anl C-03 Geb 7'!G16 -> 0 | H29: ='Anl C-03 Geb 7'!H16 -> 0 | I29: ='Anl C-03 Geb 7'!I16 -> 0 | J29: ='Anl C-03 Geb 7'!J16 -> 0 | K29: 0 | L29: 0
A30: ='Anl C-03 Geb 7'!A17 -> K 04 | B30: ='Anl C-03 Geb 7'!B17 -> KG | C30: ='Anl C-03 Geb 7'!C17 -> Schreibraum | D30: ='Anl C-03 Geb 7'!D17 -> VF | E30: ='Anl C-03 Geb 7'!E17 -> beidseitig | F30: ='Anl C-03 Geb 7'!F17 -> J2 | G30: ='Anl C-03 Geb 7'!G17 -> 1.06 | H30: ='Anl C-03 Geb 7'!H17 -> 0.66 | I30: ='Anl C-03 Geb 7'!I17 -> 0.7 | J30: ='Anl C-03 Geb 7'!J17 -> 1 | K30: 0.7 | L30: 1.4
A31: ='Anl C-03 Geb 7'!A18 -> K 05 | B31: ='Anl C-03 Geb 7'!B18 -> KG | C31: ='Anl C-03 Geb 7'!C18 -> Waffenkammer | D31: ='Anl C-03 Geb 7'!D18 ->  | E31: ='Anl C-03 Geb 7'!E18 ->  | F31: ='Anl C-03 Geb 7'!F18 ->  | G31: ='Anl C-03 Geb 7'!G18 -> 0 | H31: ='Anl C-03 Geb 7'!H18 -> 0 | I31: ='Anl C-03 Geb 7'!I18 -> 0 | J31: ='Anl C-03 Geb 7'!J18 -> 0 | K31: 0 | L31: 0
A32: ='Anl C-03 Geb 7'!A19 -> K 06 | B32: ='Anl C-03 Geb 7'!B19 -> KG | C32: ='Anl C-03 Geb 7'!C19 -> Waffenkammer | D32: ='Anl C-03 Geb 7'!D19 ->  | E32: ='Anl C-03 Geb 7'!E19 ->  | F32: ='Anl C-03 Geb 7'!F19 ->  | G32: ='Anl C-03 Geb 7'!G19 -> 0 | H32: ='Anl C-03 Geb 7'!H19 -> 0 | I32: ='Anl C-03 Geb 7'!I19 -> 0 | J32: ='Anl C-03 Geb 7'!J19 -> 0 | K32: 0 | L32: 0
A33: ='Anl C-03 Geb 7'!A20 -> K 07 | B33: ='Anl C-03 Geb 7'!B20 -> KG | C33: ='Anl C-03 Geb 7'!C20 -> Waffenkammer | D33: ='Anl C-03 Geb 7'!D20 ->  | E33: ='Anl C-03 Geb 7'!E20 ->  | F33: ='Anl C-03 Geb 7'!F20 ->  | G33: ='Anl C-03 Geb 7'!G20 -> 0 | H33: ='Anl C-03 Geb 7'!H20 -> 0 | I33: ='Anl C-03 Geb 7'!I20 -> 0 | J33: ='Anl C-03 Geb 7'!J20 -> 0 | K33: 0 | L33: 0
A34: ='Anl C-03 Geb 7'!A21 -> K 08 | B34: ='Anl C-03 Geb 7'!B21 -> KG | C34: ='Anl C-03 Geb 7'!C21 -> Waffenkammer | D34: ='Anl C-03 Geb 7'!D21 -> VF | E34: ='Anl C-03 Geb 7'!E21 -> beidseitig | F34: ='Anl C-03 Geb 7'!F21 -> J2 | G34: ='Anl C-03 Geb 7'!G21 -> 1.06 | H34: ='Anl C-03 Geb 7'!H21 -> 0.66 | I34: ='Anl C-03 Geb 7'!I21 -> 0.7 | J34: ='Anl C-03 Geb 7'!J21 -> 1 | K34: 0.7 | L34: 1.4
A35: ='Anl C-03 Geb 7'!A22 -> K 09 | B35: ='Anl C-03 Geb 7'!B22 -> KG | C35: ='Anl C-03 Geb 7'!C22 -> Waffenkammer | D35: ='Anl C-03 Geb 7'!D22 ->  | E35: ='Anl C-03 Geb 7'!E22 ->  | F35: ='Anl C-03 Geb 7'!F22 ->  | G35: ='Anl C-03 Geb 7'!G22 -> 0 | H35: ='Anl C-03 Geb 7'!H22 -> 0 | I35: ='Anl C-03 Geb 7'!I22 -> 0 | J35: ='Anl C-03 Geb 7'!J22 -> 0 | K35: 0 | L35: 0
A36: ='Anl C-03 Geb 7'!A23 -> K 10 | B36: ='Anl C-03 Geb 7'!B23 -> KG | C36: ='Anl C-03 Geb 7'!C23 -> HA Heizung | D36: ='Anl C-03 Geb 7'!D23 -> VF | E36: ='Anl C-03 Geb 7'!E23 -> beidseitig | F36: ='Anl C-03 Geb 7'!F23 -> J2 | G36: ='Anl C-03 Geb 7'!G23 -> 1.06 | H36: ='Anl C-03 Geb 7'!H23 -> 0.66 | I36: ='Anl C-03 Geb 7'!I23 -> 0.7 | J36: ='Anl C-03 Geb 7'!J23 -> 2 | K36: 1.4 | L36: 2.8
A37: ='Anl C-03 Geb 7'!A24 -> K 11 | B37: ='Anl C-03 Geb 7'!B24 -> KG | C37: ='Anl C-03 Geb 7'!C24 -> Waffenkammer Flur | D37: ='Anl C-03 Geb 7'!D24 ->  | E37: ='Anl C-03 Geb 7'!E24 ->  | F37: ='Anl C-03 Geb 7'!F24 ->  | G37: ='Anl C-03 Geb 7'!G24 -> 0 | H37: ='Anl C-03 Geb 7'!H24 -> 0 | I37: ='Anl C-03 Geb 7'!I24 -> 0 | J37: ='Anl C-03 Geb 7'!J24 -> 0 | K37: 0 | L37: 0
A38: ='Anl C-03 Geb 7'!A25 -> K 12 | B38: ='Anl C-03 Geb 7'!B25 -> KG | C38: ='Anl C-03 Geb 7'!C25 -> Flur | D38: ='Anl C-03 Geb 7'!D25 ->  | E38: ='Anl C-03 Geb 7'!E25 ->  | F38: ='Anl C-03 Geb 7'!F25 ->  | G38: ='Anl C-03 Geb 7'!G25 -> 0 | H38: ='Anl C-03 Geb 7'!H25 -> 0 | I38: ='Anl C-03 Geb 7'!I25 -> 0 | J38: ='Anl C-03 Geb 7'!J25 -> 0 | K38: 0 | L38: 0
A39: ='Anl C-03 Geb 7'!A26 -> K 13 | B39: ='Anl C-03 Geb 7'!B26 -> KG | C39: ='Anl C-03 Geb 7'!C26 -> Lager | D39: ='Anl C-03 Geb 7'!D26 ->  | E39: ='Anl C-03 Geb 7'!E26 ->  | F39: ='Anl C-03 Geb 7'!F26 ->  | G39: ='Anl C-03 Geb 7'!G26 -> 0 | H39: ='Anl C-03 Geb 7'!H26 -> 0 | I39: ='Anl C-03 Geb 7'!I26 -> 0 | J39: ='Anl C-03 Geb 7'!J26 -> 0 | K39: 0 | L39: 0
A40: ='Anl C-03 Geb 7'!A27 -> K 14 | B40: ='Anl C-03 Geb 7'!B27 -> KG | C40: ='Anl C-03 Geb 7'!C27 -> Lager | D40: ='Anl C-03 Geb 7'!D27 ->  | E40: ='Anl C-03 Geb 7'!E27 ->  | F40: ='Anl C-03 Geb 7'!F27 ->  | G40: ='Anl C-03 Geb 7'!G27 -> 0 | H40: ='Anl C-03 Geb 7'!H27 -> 0 | I40: ='Anl C-03 Geb 7'!I27 -> 0 | J40: ='Anl C-03 Geb 7'!J27 -> 0 | K40: 0 | L40: 0
A41: ='Anl C-03 Geb 7'!A28 -> K 15 | B41: ='Anl C-03 Geb 7'!B28 -> KG | C41: ='Anl C-03 Geb 7'!C28 -> Lager | D41: ='Anl C-03 Geb 7'!D28 ->  | E41: ='Anl C-03 Geb 7'!E28 ->  | F41: ='Anl C-03 Geb 7'!F28 ->  | G41: ='Anl C-03 Geb 7'!G28 -> 0 | H41: ='Anl C-03 Geb 7'!H28 -> 0 | I41: ='Anl C-03 Geb 7'!I28 -> 0 | J41: ='Anl C-03 Geb 7'!J28 -> 0 | K41: 0 | L41: 0
A42: ='Anl C-03 Geb 7'!A29 -> K 16 | B42: ='Anl C-03 Geb 7'!B29 -> KG | C42: ='Anl C-03 Geb 7'!C29 -> Lager | D42: ='Anl C-03 Geb 7'!D29 ->  | E42: ='Anl C-03 Geb 7'!E29 ->  | F42: ='Anl C-03 Geb 7'!F29 ->  | G42: ='Anl C-03 Geb 7'!G29 -> 0 | H42: ='Anl C-03 Geb 7'!H29 -> 0 | I42: ='Anl C-03 Geb 7'!I29 -> 0 | J42: ='Anl C-03 Geb 7'!J29 -> 0 | K42: 0 | L42: 0
A43: ='Anl C-03 Geb 7'!A30 -> K 17 | B43: ='Anl C-03 Geb 7'!B30 -> KG | C43: ='Anl C-03 Geb 7'!C30 -> Lager | D43: ='Anl C-03 Geb 7'!D30 ->  | E43: ='Anl C-03 Geb 7'!E30 ->  | F43: ='Anl C-03 Geb 7'!F30 ->  | G43: ='Anl C-03 Geb 7'!G30 -> 0 | H43: ='Anl C-03 Geb 7'!H30 -> 0 | I43: ='Anl C-03 Geb 7'!I30 -> 0 | J43: ='Anl C-03 Geb 7'!J30 -> 0 | K43: 0 | L43: 0
A44: ='Anl C-03 Geb 7'!A31 -> K 18 | B44: ='Anl C-03 Geb 7'!B31 -> KG | C44: ='Anl C-03 Geb 7'!C31 -> Lager | D44: ='Anl C-03 Geb 7'!D31 ->  | E44: ='Anl C-03 Geb 7'!E31 ->  | F44: ='Anl C-03 Geb 7'!F31 ->  | G44: ='Anl C-03 Geb 7'!G31 -> 0 | H44: ='Anl C-03 Geb 7'!H31 -> 0 | I44: ='Anl C-03 Geb 7'!I31 -> 0 | J44: ='Anl C-03 Geb 7'!J31 -> 0 | K44: 0 | L44: 0
A45: ='Anl C-03 Geb 7'!A32 -> K 19 | B45: ='Anl C-03 Geb 7'!B32 -> KG | C45: ='Anl C-03 Geb 7'!C32 -> Lager | D45: ='Anl C-03 Geb 7'!D32 ->  | E45: ='Anl C-03 Geb 7'!E32 ->  | F45: ='Anl C-03 Geb 7'!F32 ->  | G45: ='Anl C-03 Geb 7'!G32 -> 0 | H45: ='Anl C-03 Geb 7'!H32 -> 0 | I45: ='Anl C-03 Geb 7'!I32 -> 0 | J45: ='Anl C-03 Geb 7'!J32 -> 0 | K45: 0 | L45: 0
A46: ='Anl C-03 Geb 7'!A33 -> K 20 | B46: ='Anl C-03 Geb 7'!B33 -> KG | C46: ='Anl C-03 Geb 7'!C33 -> Lager | D46: ='Anl C-03 Geb 7'!D33 -> VF | E46: ='Anl C-03 Geb 7'!E33 -> beidseitig | F46: ='Anl C-03 Geb 7'!F33 -> J2 | G46: ='Anl C-03 Geb 7'!G33 -> 1.06 | H46: ='Anl C-03 Geb 7'!H33 -> 0.66 | I46: ='Anl C-03 Geb 7'!I33 -> 0.7 | J46: ='Anl C-03 Geb 7'!J33 -> 1 | K46: 0.7 | L46: 1.4
A47: ='Anl C-03 Geb 7'!A34 -> K 21 | B47: ='Anl C-03 Geb 7'!B34 -> KG | C47: ='Anl C-03 Geb 7'!C34 -> Lager | D47: ='Anl C-03 Geb 7'!D34 ->  | E47: ='Anl C-03 Geb 7'!E34 ->  | F47: ='Anl C-03 Geb 7'!F34 ->  | G47: ='Anl C-03 Geb 7'!G34 -> 0 | H47: ='Anl C-03 Geb 7'!H34 -> 0 | I47: ='Anl C-03 Geb 7'!I34 -> 0 | J47: ='Anl C-03 Geb 7'!J34 -> 0 | K47: 0 | L47: 0
A48: ='Anl C-03 Geb 7'!A35 -> K 22 | B48: ='Anl C-03 Geb 7'!B35 -> KG | C48: ='Anl C-03 Geb 7'!C35 -> Lager | D48: ='Anl C-03 Geb 7'!D35 ->  | E48: ='Anl C-03 Geb 7'!E35 ->  | F48: ='Anl C-03 Geb 7'!F35 ->  | G48: ='Anl C-03 Geb 7'!G35 -> 0 | H48: ='Anl C-03 Geb 7'!H35 -> 0 | I48: ='Anl C-03 Geb 7'!I35 -> 0 | J48: ='Anl C-03 Geb 7'!J35 -> 0 | K48: 0 | L48: 0
A49: ='Anl C-03 Geb 7'!A36 -> K 23 | B49: ='Anl C-03 Geb 7'!B36 -> KG | C49: ='Anl C-03 Geb 7'!C36 -> Lager | D49: ='Anl C-03 Geb 7'!D36 ->  | E49: ='Anl C-03 Geb 7'!E36 ->  | F49: ='Anl C-03 Geb 7'!F36 ->  | G49: ='Anl C-03 Geb 7'!G36 -> 0 | H49: ='Anl C-03 Geb 7'!H36 -> 0 | I49: ='Anl C-03 Geb 7'!I36 -> 0 | J49: ='Anl C-03 Geb 7'!J36 -> 0 | K49: 0 | L49: 0
A50: ='Anl C-03 Geb 7'!A37 -> K 24 | B50: ='Anl C-03 Geb 7'!B37 -> KG | C50: ='Anl C-03 Geb 7'!C37 -> Lager | D50: ='Anl C-03 Geb 7'!D37 ->  | E50: ='Anl C-03 Geb 7'!E37 ->  | F50: ='Anl C-03 Geb 7'!F37 ->  | G50: ='Anl C-03 Geb 7'!G37 -> 0 | H50: ='Anl C-03 Geb 7'!H37 -> 0 | I50: ='Anl C-03 Geb 7'!I37 -> 0 | J50: ='Anl C-03 Geb 7'!J37 -> 0 | K50: 0 | L50: 0
A51: ='Anl C-03 Geb 7'!A38 -> K 25 | B51: ='Anl C-03 Geb 7'!B38 -> KG | C51: ='Anl C-03 Geb 7'!C38 -> Lager | D51: ='Anl C-03 Geb 7'!D38 ->  | E51: ='Anl C-03 Geb 7'!E38 ->  | F51: ='Anl C-03 Geb 7'!F38 ->  | G51: ='Anl C-03 Geb 7'!G38 -> 0 | H51: ='Anl C-03 Geb 7'!H38 -> 0 | I51: ='Anl C-03 Geb 7'!I38 -> 0 | J51: ='Anl C-03 Geb 7'!J38 -> 0 | K51: 0 | L51: 0
A52: ='Anl C-03 Geb 7'!A39 -> K 26 | B52: ='Anl C-03 Geb 7'!B39 -> KG | C52: ='Anl C-03 Geb 7'!C39 -> Abstellraum Fahrräder | D52: ='Anl C-03 Geb 7'!D39 ->  | E52: ='Anl C-03 Geb 7'!E39 ->  | F52: ='Anl C-03 Geb 7'!F39 ->  | G52: ='Anl C-03 Geb 7'!G39 -> 0 | H52: ='Anl C-03 Geb 7'!H39 -> 0 | I52: ='Anl C-03 Geb 7'!I39 -> 0 | J52: ='Anl C-03 Geb 7'!J39 -> 0 | K52: 0 | L52: 0
A53: ='Anl C-03 Geb 7'!A40 -> K 27 | B53: ='Anl C-03 Geb 7'!B40 -> KG | C53: ='Anl C-03 Geb 7'!C40 -> HA I + K | D53: ='Anl C-03 Geb 7'!D40 -> VF | E53: ='Anl C-03 Geb 7'!E40 -> beidseitig | F53: ='Anl C-03 Geb 7'!F40 -> J2 | G53: ='Anl C-03 Geb 7'!G40 -> 1.06 | H53: ='Anl C-03 Geb 7'!H40 -> 0.66 | I53: ='Anl C-03 Geb 7'!I40 -> 0.7 | J53: ='Anl C-03 Geb 7'!J40 -> 1 | K53: 0.7 | L53: 1.4
A54: ='Anl C-03 Geb 7'!A41 -> K 28 | B54: ='Anl C-03 Geb 7'!B41 -> KG | C54: ='Anl C-03 Geb 7'!C41 -> Vorraum | D54: ='Anl C-03 Geb 7'!D41 ->  | E54: ='Anl C-03 Geb 7'!E41 ->  | F54: ='Anl C-03 Geb 7'!F41 ->  | G54: ='Anl C-03 Geb 7'!G41 -> 0 | H54: ='Anl C-03 Geb 7'!H41 -> 0 | I54: ='Anl C-03 Geb 7'!I41 -> 0 | J54: ='Anl C-03 Geb 7'!J41 -> 0 | K54: 0 | L54: 0
A55: ='Anl C-03 Geb 7'!A42 -> K 29 | B55: ='Anl C-03 Geb 7'!B42 -> KG | C55: ='Anl C-03 Geb 7'!C42 -> HA Elektro | D55: ='Anl C-03 Geb 7'!D42 ->  | E55: ='Anl C-03 Geb 7'!E42 ->  | F55: ='Anl C-03 Geb 7'!F42 ->  | G55: ='Anl C-03 Geb 7'!G42 -> 0 | H55: ='Anl C-03 Geb 7'!H42 -> 0 | I55: ='Anl C-03 Geb 7'!I42 -> 0 | J55: ='Anl C-03 Geb 7'!J42 -> 0 | K55: 0 | L55: 0
A56: ='Anl C-03 Geb 7'!A43 -> K 30 | B56: ='Anl C-03 Geb 7'!B43 -> KG | C56: ='Anl C-03 Geb 7'!C43 -> Lager | D56: ='Anl C-03 Geb 7'!D43 -> VF | E56: ='Anl C-03 Geb 7'!E43 -> beidseitig | F56: ='Anl C-03 Geb 7'!F43 -> J2 | G56: ='Anl C-03 Geb 7'!G43 -> 1.66 | H56: ='Anl C-03 Geb 7'!H43 -> 1.37 | I56: ='Anl C-03 Geb 7'!I43 -> 2.27 | J56: ='Anl C-03 Geb 7'!J43 -> 2 | K56: 4.54 | L56: 9.08
A57: ='Anl C-03 Geb 7'!A44 -> K 31 | B57: ='Anl C-03 Geb 7'!B44 -> KG | C57: ='Anl C-03 Geb 7'!C44 -> Lager | D57: ='Anl C-03 Geb 7'!D44 -> VF | E57: ='Anl C-03 Geb 7'!E44 -> beidseitig | F57: ='Anl C-03 Geb 7'!F44 -> J2 | G57: ='Anl C-03 Geb 7'!G44 -> 1.66 | H57: ='Anl C-03 Geb 7'!H44 -> 1.37 | I57: ='Anl C-03 Geb 7'!I44 -> 2.27 | J57: ='Anl C-03 Geb 7'!J44 -> 1 | K57: 2.27 | L57: 4.54
A58: ='Anl C-03 Geb 7'!A45 -> K 32 | B58: ='Anl C-03 Geb 7'!B45 -> KG | C58: ='Anl C-03 Geb 7'!C45 -> Lager | D58: ='Anl C-03 Geb 7'!D45 -> VF | E58: ='Anl C-03 Geb 7'!E45 -> beidseitig | F58: ='Anl C-03 Geb 7'!F45 -> J2 | G58: ='Anl C-03 Geb 7'!G45 -> 1.66 | H58: ='Anl C-03 Geb 7'!H45 -> 1.37 | I58: ='Anl C-03 Geb 7'!I45 -> 2.27 | J58: ='Anl C-03 Geb 7'!J45 -> 2 | K58: 4.54 | L58: 9.08
A59: ='Anl C-03 Geb 7'!A46 -> K 33 | B59: ='Anl C-03 Geb 7'!B46 -> KG | C59: ='Anl C-03 Geb 7'!C46 -> Lager | D59: ='Anl C-03 Geb 7'!D46 ->  | E59: ='Anl C-03 Geb 7'!E46 ->  | F59: ='Anl C-03 Geb 7'!F46 ->  | G59: ='Anl C-03 Geb 7'!G46 -> 0 | H59: ='Anl C-03 Geb 7'!H46 -> 0 | I59: ='Anl C-03 Geb 7'!I46 -> 0 | J59: ='Anl C-03 Geb 7'!J46 -> 0 | K59: 0 | L59: 0
A60: ='Anl C-03 Geb 7'!A47 -> K 34 | B60: ='Anl C-03 Geb 7'!B47 -> KG | C60: ='Anl C-03 Geb 7'!C47 -> Lager | D60: ='Anl C-03 Geb 7'!D47 -> VF | E60: ='Anl C-03 Geb 7'!E47 -> beidseitig | F60: ='Anl C-03 Geb 7'!F47 -> J2 | G60: ='Anl C-03 Geb 7'!G47 -> 1.66 | H60: ='Anl C-03 Geb 7'!H47 -> 1.37 | I60: ='Anl C-03 Geb 7'!I47 -> 2.27 | J60: ='Anl C-03 Geb 7'!J47 -> 2 | K60: 4.54 | L60: 9.08
A61: ='Anl C-03 Geb 7'!A48 -> K 35 | B61: ='Anl C-03 Geb 7'!B48 -> KG | C61: ='Anl C-03 Geb 7'!C48 -> Lager | D61: ='Anl C-03 Geb 7'!D48 -> VF | E61: ='Anl C-03 Geb 7'!E48 -> beidseitig | F61: ='Anl C-03 Geb 7'!F48 -> J2 | G61: ='Anl C-03 Geb 7'!G48 -> 1.66 | H61: ='Anl C-03 Geb 7'!H48 -> 1.37 | I61: ='Anl C-03 Geb 7'!I48 -> 2.27 | J61: ='Anl C-03 Geb 7'!J48 -> 2 | K61: 4.54 | L61: 9.08
A62: ='Anl C-03 Geb 7'!A49 -> K 36 | B62: ='Anl C-03 Geb 7'!B49 -> KG | C62: ='Anl C-03 Geb 7'!C49 -> Flur | D62: ='Anl C-03 Geb 7'!D49 ->  | E62: ='Anl C-03 Geb 7'!E49 ->  | F62: ='Anl C-03 Geb 7'!F49 ->  | G62: ='Anl C-03 Geb 7'!G49 -> 0 | H62: ='Anl C-03 Geb 7'!H49 -> 0 | I62: ='Anl C-03 Geb 7'!I49 -> 0 | J62: ='Anl C-03 Geb 7'!J49 -> 0 | K62: 0 | L62: 0
A63: ='Anl C-03 Geb 7'!A50 -> K 37 | B63: ='Anl C-03 Geb 7'!B50 -> KG | C63: ='Anl C-03 Geb 7'!C50 -> Treppenraum | D63: ='Anl C-03 Geb 7'!D50 ->  | E63: ='Anl C-03 Geb 7'!E50 ->  | F63: ='Anl C-03 Geb 7'!F50 ->  | G63: ='Anl C-03 Geb 7'!G50 -> 0 | H63: ='Anl C-03 Geb 7'!H50 -> 0 | I63: ='Anl C-03 Geb 7'!I50 -> 0 | J63: ='Anl C-03 Geb 7'!J50 -> 0 | K63: 0 | L63: 0
A64: ='Anl C-03 Geb 7'!A51 -> K 38 | B64: ='Anl C-03 Geb 7'!B51 -> KG | C64: ='Anl C-03 Geb 7'!C51 -> Lager | D64: ='Anl C-03 Geb 7'!D51 -> VF | E64: ='Anl C-03 Geb 7'!E51 -> beidseitig | F64: ='Anl C-03 Geb 7'!F51 -> J2 | G64: ='Anl C-03 Geb 7'!G51 -> 1.66 | H64: ='Anl C-03 Geb 7'!H51 -> 1.37 | I64: ='Anl C-03 Geb 7'!I51 -> 2.27 | J64: ='Anl C-03 Geb 7'!J51 -> 1 | K64: 2.27 | L64: 4.54
A65: ='Anl C-03 Geb 7'!A52 -> K 39 | B65: ='Anl C-03 Geb 7'!B52 -> KG | C65: ='Anl C-03 Geb 7'!C52 -> Lager | D65: ='Anl C-03 Geb 7'!D52 -> VF | E65: ='Anl C-03 Geb 7'!E52 -> beidseitig | F65: ='Anl C-03 Geb 7'!F52 -> J2 | G65: ='Anl C-03 Geb 7'!G52 -> 0.92 | H65: ='Anl C-03 Geb 7'!H52 -> 1.37 | I65: ='Anl C-03 Geb 7'!I52 -> 1.26 | J65: ='Anl C-03 Geb 7'!J52 -> 1 | K65: 1.26 | L65: 2.52
A66: ='Anl C-03 Geb 7'!A53 -> K 40 | B66: ='Anl C-03 Geb 7'!B53 -> KG | C66: ='Anl C-03 Geb 7'!C53 -> Lager | D66: ='Anl C-03 Geb 7'!D53 -> VF | E66: ='Anl C-03 Geb 7'!E53 -> beidseitig | F66: ='Anl C-03 Geb 7'!F53 -> J2 | G66: ='Anl C-03 Geb 7'!G53 -> 1.66 | H66: ='Anl C-03 Geb 7'!H53 -> 1.37 | I66: ='Anl C-03 Geb 7'!I53 -> 2.27 | J66: ='Anl C-03 Geb 7'!J53 -> 1 | K66: 2.27 | L66: 4.54
A67: ='Anl C-03 Geb 7'!A54 -> K 41 | B67: ='Anl C-03 Geb 7'!B54 -> KG | C67: ='Anl C-03 Geb 7'!C54 -> Waffenreinigungsraum | D67: ='Anl C-03 Geb 7'!D54 -> VF | E67: ='Anl C-03 Geb 7'!E54 -> beidseitig | F67: ='Anl C-03 Geb 7'!F54 -> J2 | G67: ='Anl C-03 Geb 7'!G54 -> 0.92 | H67: ='Anl C-03 Geb 7'!H54 -> 1.37 | I67: ='Anl C-03 Geb 7'!I54 -> 1.26 | J67: ='Anl C-03 Geb 7'!J54 -> 1 | K67: 1.26 | L67: 2.52
A68: ='Anl C-03 Geb 7'!A55 -> K 42 | B68: ='Anl C-03 Geb 7'!B55 -> KG | C68: ='Anl C-03 Geb 7'!C55 -> Lager | D68: ='Anl C-03 Geb 7'!D55 -> VF | E68: ='Anl C-03 Geb 7'!E55 -> beidseitig | F68: ='Anl C-03 Geb 7'!F55 -> J2 | G68: ='Anl C-03 Geb 7'!G55 -> 1.66 | H68: ='Anl C-03 Geb 7'!H55 -> 1.37 | I68: ='Anl C-03 Geb 7'!I55 -> 2.27 | J68: ='Anl C-03 Geb 7'!J55 -> 1 | K68: 2.27 | L68: 4.54
A69: ='Anl C-03 Geb 7'!A56 -> K 43/ 44 | B69: ='Anl C-03 Geb 7'!B56 -> KG | C69: ='Anl C-03 Geb 7'!C56 -> Waffenreinigungsraum/ Schreibraum | D69: ='Anl C-03 Geb 7'!D56 -> VF | E69: ='Anl C-03 Geb 7'!E56 -> beidseitig | F69: ='Anl C-03 Geb 7'!F56 -> J2 | G69: ='Anl C-03 Geb 7'!G56 -> 1.66 | H69: ='Anl C-03 Geb 7'!H56 -> 1.37 | I69: ='Anl C-03 Geb 7'!I56 -> 2.27 | J69: ='Anl C-03 Geb 7'!J56 -> 1 | K69: 2.27 | L69: 4.54
A70: ='Anl C-03 Geb 7'!A57 -> K 45 | B70: ='Anl C-03 Geb 7'!B57 -> KG | C70: ='Anl C-03 Geb 7'!C57 -> Lager | D70: ='Anl C-03 Geb 7'!D57 -> VF | E70: ='Anl C-03 Geb 7'!E57 -> beidseitig | F70: ='Anl C-03 Geb 7'!F57 -> J2 | G70: ='Anl C-03 Geb 7'!G57 -> 1.66 | H70: ='Anl C-03 Geb 7'!H57 -> 1.37 | I70: ='Anl C-03 Geb 7'!I57 -> 2.27 | J70: ='Anl C-03 Geb 7'!J57 -> 1 | K70: 2.27 | L70: 4.54
A71: ='Anl C-03 Geb 7'!A58 -> K 46/ 47/ 47.1 | B71: ='Anl C-03 Geb 7'!B58 -> KG | C71: ='Anl C-03 Geb 7'!C58 -> Vorraum + Waffenkammer | D71: ='Anl C-03 Geb 7'!D58 -> VF | E71: ='Anl C-03 Geb 7'!E58 -> beidseitig | F71: ='Anl C-03 Geb 7'!F58 -> J2 | G71: ='Anl C-03 Geb 7'!G58 -> 1.66 | H71: ='Anl C-03 Geb 7'!H58 -> 1.37 | I71: ='Anl C-03 Geb 7'!I58 -> 2.27 | J71: ='Anl C-03 Geb 7'!J58 -> 2 | K71: 4.54 | L71: 9.08
A72: ='Anl C-03 Geb 7'!A59 -> K 47 | B72: ='Anl C-03 Geb 7'!B59 -> KG | C72: ='Anl C-03 Geb 7'!C59 -> Lager | D72: ='Anl C-03 Geb 7'!D59 -> VF | E72: ='Anl C-03 Geb 7'!E59 -> beidseitig | F72: ='Anl C-03 Geb 7'!F59 -> J2 | G72: ='Anl C-03 Geb 7'!G59 -> 1.66 | H72: ='Anl C-03 Geb 7'!H59 -> 0.8 | I72: ='Anl C-03 Geb 7'!I59 -> 1.33 | J72: ='Anl C-03 Geb 7'!J59 -> 2 | K72: 2.66 | L72: 5.32
A73: ='Anl C-03 Geb 7'!A60 -> K 48 | B73: ='Anl C-03 Geb 7'!B60 -> KG | C73: ='Anl C-03 Geb 7'!C60 -> Flur | D73: ='Anl C-03 Geb 7'!D60 ->  | E73: ='Anl C-03 Geb 7'!E60 ->  | F73: ='Anl C-03 Geb 7'!F60 ->  | G73: ='Anl C-03 Geb 7'!G60 -> 0 | H73: ='Anl C-03 Geb 7'!H60 -> 0 | I73: ='Anl C-03 Geb 7'!I60 -> 0 | J73: ='Anl C-03 Geb 7'!J60 -> 1 | K73: 0 | L73: 0
A74: ='Anl C-03 Geb 7'!A61 -> 0 | B74: ='Anl C-03 Geb 7'!B61 -> 0 | C74: ='Anl C-03 Geb 7'!C61 -> 0 | D74: ='Anl C-03 Geb 7'!D61 ->  | E74: ='Anl C-03 Geb 7'!E61 ->  | F74: ='Anl C-03 Geb 7'!F61 ->  | G74: ='Anl C-03 Geb 7'!G61 -> 0 | H74: ='Anl C-03 Geb 7'!H61 -> 0 | I74: ='Anl C-03 Geb 7'!I61 -> 0 | J74: ='Anl C-03 Geb 7'!J61 -> 0 | K74: 0 | L74: 0
A75: ='Anl C-03 Geb 7'!A62 -> E 01 | B75: ='Anl C-03 Geb 7'!B62 -> EG | C75: ='Anl C-03 Geb 7'!C62 -> Treppenraum | D75: ='Anl C-03 Geb 7'!D62 -> VF | E75: ='Anl C-03 Geb 7'!E62 -> beidseitig | F75: ='Anl C-03 Geb 7'!F62 -> J2 | G75: ='Anl C-03 Geb 7'!G62 -> 2.2 | H75: ='Anl C-03 Geb 7'!H62 -> 0.66 | I75: ='Anl C-03 Geb 7'!I62 -> 1.45 | J75: ='Anl C-03 Geb 7'!J62 -> 2 | K75: 2.9 | L75: 5.8
A76: ='Anl C-03 Geb 7'!A63 -> E 02 | B76: ='Anl C-03 Geb 7'!B63 -> EG | C76: ='Anl C-03 Geb 7'!C63 -> Windfang | D76: ='Anl C-03 Geb 7'!D63 ->  | E76: ='Anl C-03 Geb 7'!E63 ->  | F76: ='Anl C-03 Geb 7'!F63 ->  | G76: ='Anl C-03 Geb 7'!G63 -> 0 | H76: ='Anl C-03 Geb 7'!H63 -> 0 | I76: ='Anl C-03 Geb 7'!I63 -> 0 | J76: ='Anl C-03 Geb 7'!J63 -> 0 | K76: 0 | L76: 0
A77: ='Anl C-03 Geb 7'!A64 -> E 03 | B77: ='Anl C-03 Geb 7'!B64 -> EG | C77: ='Anl C-03 Geb 7'!C64 -> Flur | D77: ='Anl C-03 Geb 7'!D64 ->  | E77: ='Anl C-03 Geb 7'!E64 ->  | F77: ='Anl C-03 Geb 7'!F64 ->  | G77: ='Anl C-03 Geb 7'!G64 -> 0 | H77: ='Anl C-03 Geb 7'!H64 -> 0 | I77: ='Anl C-03 Geb 7'!I64 -> 0 | J77: ='Anl C-03 Geb 7'!J64 -> 0 | K77: 0 | L77: 0
A78: ='Anl C-03 Geb 7'!A65 -> E 04 | B78: ='Anl C-03 Geb 7'!B65 -> EG | C78: ='Anl C-03 Geb 7'!C65 -> Dienstzimmer | D78: ='Anl C-03 Geb 7'!D65 -> VF | E78: ='Anl C-03 Geb 7'!E65 -> beidseitig | F78: ='Anl C-03 Geb 7'!F65 -> J2 | G78: ='Anl C-03 Geb 7'!G65 -> 1.66 | H78: ='Anl C-03 Geb 7'!H65 -> 1.37 | I78: ='Anl C-03 Geb 7'!I65 -> 2.27 | J78: ='Anl C-03 Geb 7'!J65 -> 1 | K78: 2.27 | L78: 4.54
A79: ='Anl C-03 Geb 7'!A66 -> E 05 | B79: ='Anl C-03 Geb 7'!B66 -> EG | C79: ='Anl C-03 Geb 7'!C66 -> Dienstzimmer | D79: ='Anl C-03 Geb 7'!D66 -> VF | E79: ='Anl C-03 Geb 7'!E66 -> beidseitig | F79: ='Anl C-03 Geb 7'!F66 -> J2 | G79: ='Anl C-03 Geb 7'!G66 -> 1.66 | H79: ='Anl C-03 Geb 7'!H66 -> 1.37 | I79: ='Anl C-03 Geb 7'!I66 -> 2.27 | J79: ='Anl C-03 Geb 7'!J66 -> 2 | K79: 4.54 | L79: 9.08
A80: ='Anl C-03 Geb 7'!A67 -> E 06 | B80: ='Anl C-03 Geb 7'!B67 -> EG | C80: ='Anl C-03 Geb 7'!C67 -> Dienstzimmer | D80: ='Anl C-03 Geb 7'!D67 -> VF | E80: ='Anl C-03 Geb 7'!E67 -> beidseitig | F80: ='Anl C-03 Geb 7'!F67 -> J2 | G80: ='Anl C-03 Geb 7'!G67 -> 1.66 | H80: ='Anl C-03 Geb 7'!H67 -> 1.37 | I80: ='Anl C-03 Geb 7'!I67 -> 2.27 | J80: ='Anl C-03 Geb 7'!J67 -> 1 | K80: 2.27 | L80: 4.54
A81: ='Anl C-03 Geb 7'!A68 -> E 07 | B81: ='Anl C-03 Geb 7'!B68 -> EG | C81: ='Anl C-03 Geb 7'!C68 -> Vorraum WC | D81: ='Anl C-03 Geb 7'!D68 ->  | E81: ='Anl C-03 Geb 7'!E68 ->  | F81: ='Anl C-03 Geb 7'!F68 ->  | G81: ='Anl C-03 Geb 7'!G68 -> 0 | H81: ='Anl C-03 Geb 7'!H68 -> 0 | I81: ='Anl C-03 Geb 7'!I68 -> 0 | J81: ='Anl C-03 Geb 7'!J68 -> 0 | K81: 0 | L81: 0
A82: ='Anl C-03 Geb 7'!A69 -> E 08 | B82: ='Anl C-03 Geb 7'!B69 -> EG | C82: ='Anl C-03 Geb 7'!C69 -> Vervielfältigungsraum | D82: ='Anl C-03 Geb 7'!D69 -> VF | E82: ='Anl C-03 Geb 7'!E69 -> beidseitig | F82: ='Anl C-03 Geb 7'!F69 -> J2 | G82: ='Anl C-03 Geb 7'!G69 -> 1.66 | H82: ='Anl C-03 Geb 7'!H69 -> 1.37 | I82: ='Anl C-03 Geb 7'!I69 -> 2.27 | J82: ='Anl C-03 Geb 7'!J69 -> 1 | K82: 2.27 | L82: 4.54
A83: ='Anl C-03 Geb 7'!A70 -> E 09 | B83: ='Anl C-03 Geb 7'!B70 -> EG | C83: ='Anl C-03 Geb 7'!C70 -> Vorraum WC | D83: ='Anl C-03 Geb 7'!D70 ->  | E83: ='Anl C-03 Geb 7'!E70 ->  | F83: ='Anl C-03 Geb 7'!F70 ->  | G83: ='Anl C-03 Geb 7'!G70 -> 0 | H83: ='Anl C-03 Geb 7'!H70 -> 0 | I83: ='Anl C-03 Geb 7'!I70 -> 0 | J83: ='Anl C-03 Geb 7'!J70 -> 0 | K83: 0 | L83: 0
A84: ='Anl C-03 Geb 7'!A71 -> E 10 | B84: ='Anl C-03 Geb 7'!B71 -> EG | C84: ='Anl C-03 Geb 7'!C71 -> Dienstzimmer | D84: ='Anl C-03 Geb 7'!D71 -> VF | E84: ='Anl C-03 Geb 7'!E71 -> beidseitig | F84: ='Anl C-03 Geb 7'!F71 -> J2 | G84: ='Anl C-03 Geb 7'!G71 -> 1.66 | H84: ='Anl C-03 Geb 7'!H71 -> 1.37 | I84: ='Anl C-03 Geb 7'!I71 -> 2.27 | J84: ='Anl C-03 Geb 7'!J71 -> 1 | K84: 2.27 | L84: 4.54
A85: ='Anl C-03 Geb 7'!A72 -> E 11 | B85: ='Anl C-03 Geb 7'!B72 -> EG | C85: ='Anl C-03 Geb 7'!C72 -> WC | D85: ='Anl C-03 Geb 7'!D72 -> VF | E85: ='Anl C-03 Geb 7'!E72 -> beidseitig | F85: ='Anl C-03 Geb 7'!F72 -> J2 | G85: ='Anl C-03 Geb 7'!G72 -> 0.92 | H85: ='Anl C-03 Geb 7'!H72 -> 1.37 | I85: ='Anl C-03 Geb 7'!I72 -> 1.26 | J85: ='Anl C-03 Geb 7'!J72 -> 1 | K85: 1.26 | L85: 2.52
A86: ='Anl C-03 Geb 7'!A73 -> E 12 | B86: ='Anl C-03 Geb 7'!B73 -> EG | C86: ='Anl C-03 Geb 7'!C73 -> Besprechungsraum | D86: ='Anl C-03 Geb 7'!D73 -> VF | E86: ='Anl C-03 Geb 7'!E73 -> beidseitig | F86: ='Anl C-03 Geb 7'!F73 -> J2 | G86: ='Anl C-03 Geb 7'!G73 -> 1.66 | H86: ='Anl C-03 Geb 7'!H73 -> 1.37 | I86: ='Anl C-03 Geb 7'!I73 -> 2.27 | J86: ='Anl C-03 Geb 7'!J73 -> 5 | K86: 11.35 | L86: 22.7
A87: ='Anl C-03 Geb 7'!A74 -> E 13 | B87: ='Anl C-03 Geb 7'!B74 -> EG | C87: ='Anl C-03 Geb 7'!C74 -> WC | D87: ='Anl C-03 Geb 7'!D74 -> VF | E87: ='Anl C-03 Geb 7'!E74 -> beidseitig | F87: ='Anl C-03 Geb 7'!F74 -> J2 | G87: ='Anl C-03 Geb 7'!G74 -> 0.92 | H87: ='Anl C-03 Geb 7'!H74 -> 1.37 | I87: ='Anl C-03 Geb 7'!I74 -> 1.26 | J87: ='Anl C-03 Geb 7'!J74 -> 1 | K87: 1.26 | L87: 2.52
A88: ='Anl C-03 Geb 7'!A75 -> E 14/ 16 | B88: ='Anl C-03 Geb 7'!B75 -> EG | C88: ='Anl C-03 Geb 7'!C75 -> Dienstzimmer | D88: ='Anl C-03 Geb 7'!D75 -> VF | E88: ='Anl C-03 Geb 7'!E75 -> beidseitig | F88: ='Anl C-03 Geb 7'!F75 -> J2 | G88: ='Anl C-03 Geb 7'!G75 -> 1.66 | H88: ='Anl C-03 Geb 7'!H75 -> 1.37 | I88: ='Anl C-03 Geb 7'!I75 -> 2.27 | J88: ='Anl C-03 Geb 7'!J75 -> 1 | K88: 2.27 | L88: 4.54
A89: ='Anl C-03 Geb 7'!A76 -> E 15 | B89: ='Anl C-03 Geb 7'!B76 -> EG | C89: ='Anl C-03 Geb 7'!C76 -> Teeküche | D89: ='Anl C-03 Geb 7'!D76 -> VF | E89: ='Anl C-03 Geb 7'!E76 -> beidseitig | F89: ='Anl C-03 Geb 7'!F76 -> J2 | G89: ='Anl C-03 Geb 7'!G76 -> 1.66 | H89: ='Anl C-03 Geb 7'!H76 -> 1.37 | I89: ='Anl C-03 Geb 7'!I76 -> 2.27 | J89: ='Anl C-03 Geb 7'!J76 -> 1 | K89: 2.27 | L89: 4.54
A90: ='Anl C-03 Geb 7'!A77 -> E 17 | B90: ='Anl C-03 Geb 7'!B77 -> EG | C90: ='Anl C-03 Geb 7'!C77 -> Dienstzimmer | D90: ='Anl C-03 Geb 7'!D77 -> VF | E90: ='Anl C-03 Geb 7'!E77 -> beidseitig | F90: ='Anl C-03 Geb 7'!F77 -> J2 | G90: ='Anl C-03 Geb 7'!G77 -> 1.66 | H90: ='Anl C-03 Geb 7'!H77 -> 1.37 | I90: ='Anl C-03 Geb 7'!I77 -> 2.27 | J90: ='Anl C-03 Geb 7'!J77 -> 1 | K90: 2.27 | L90: 4.54
A91: ='Anl C-03 Geb 7'!A78 -> E 18/ 20 | B91: ='Anl C-03 Geb 7'!B78 -> EG | C91: ='Anl C-03 Geb 7'!C78 -> Dienstzimmer | D91: ='Anl C-03 Geb 7'!D78 -> VF | E91: ='Anl C-03 Geb 7'!E78 -> beidseitig | F91: ='Anl C-03 Geb 7'!F78 -> J2 | G91: ='Anl C-03 Geb 7'!G78 -> 1.66 | H91: ='Anl C-03 Geb 7'!H78 -> 1.37 | I91: ='Anl C-03 Geb 7'!I78 -> 2.27 | J91: ='Anl C-03 Geb 7'!J78 -> 1 | K91: 2.27 | L91: 4.54
A92: ='Anl C-03 Geb 7'!A79 -> E 19 | B92: ='Anl C-03 Geb 7'!B79 -> EG | C92: ='Anl C-03 Geb 7'!C79 -> Dienstzimmer | D92: ='Anl C-03 Geb 7'!D79 -> VF | E92: ='Anl C-03 Geb 7'!E79 -> beidseitig | F92: ='Anl C-03 Geb 7'!F79 -> J2 | G92: ='Anl C-03 Geb 7'!G79 -> 1.66 | H92: ='Anl C-03 Geb 7'!H79 -> 1.37 | I92: ='Anl C-03 Geb 7'!I79 -> 2.27 | J92: ='Anl C-03 Geb 7'!J79 -> 2 | K92: 4.54 | L92: 9.08
A93: ='Anl C-03 Geb 7'!A80 -> E 21 | B93: ='Anl C-03 Geb 7'!B80 -> EG | C93: ='Anl C-03 Geb 7'!C80 -> Dienstzimmer | D93: ='Anl C-03 Geb 7'!D80 -> VF | E93: ='Anl C-03 Geb 7'!E80 -> beidseitig | F93: ='Anl C-03 Geb 7'!F80 -> J2 | G93: ='Anl C-03 Geb 7'!G80 -> 1.66 | H93: ='Anl C-03 Geb 7'!H80 -> 1.37 | I93: ='Anl C-03 Geb 7'!I80 -> 2.27 | J93: ='Anl C-03 Geb 7'!J80 -> 2 | K93: 4.54 | L93: 9.08
A94: ='Anl C-03 Geb 7'!A81 -> E 22 | B94: ='Anl C-03 Geb 7'!B81 -> EG | C94: ='Anl C-03 Geb 7'!C81 -> Dienstzimmer | D94: ='Anl C-03 Geb 7'!D81 -> VF | E94: ='Anl C-03 Geb 7'!E81 -> beidseitig | F94: ='Anl C-03 Geb 7'!F81 -> J2 | G94: ='Anl C-03 Geb 7'!G81 -> 1.66 | H94: ='Anl C-03 Geb 7'!H81 -> 1.37 | I94: ='Anl C-03 Geb 7'!I81 -> 2.27 | J94: ='Anl C-03 Geb 7'!J81 -> 2 | K94: 4.54 | L94: 9.08
A95: ='Anl C-03 Geb 7'!A82 -> E 23 | B95: ='Anl C-03 Geb 7'!B82 -> EG | C95: ='Anl C-03 Geb 7'!C82 -> Dienstzimmer | D95: ='Anl C-03 Geb 7'!D82 -> VF | E95: ='Anl C-03 Geb 7'!E82 -> beidseitig | F95: ='Anl C-03 Geb 7'!F82 -> J2 | G95: ='Anl C-03 Geb 7'!G82 -> 1.66 | H95: ='Anl C-03 Geb 7'!H82 -> 1.37 | I95: ='Anl C-03 Geb 7'!I82 -> 2.27 | J95: ='Anl C-03 Geb 7'!J82 -> 2 | K95: 4.54 | L95: 9.08
A96: ='Anl C-03 Geb 7'!A83 -> E 24 | B96: ='Anl C-03 Geb 7'!B83 -> EG | C96: ='Anl C-03 Geb 7'!C83 -> Dienstzimmer | D96: ='Anl C-03 Geb 7'!D83 -> VF | E96: ='Anl C-03 Geb 7'!E83 -> beidseitig | F96: ='Anl C-03 Geb 7'!F83 -> J2 | G96: ='Anl C-03 Geb 7'!G83 -> 1.66 | H96: ='Anl C-03 Geb 7'!H83 -> 1.37 | I96: ='Anl C-03 Geb 7'!I83 -> 2.27 | J96: ='Anl C-03 Geb 7'!J83 -> 2 | K96: 4.54 | L96: 9.08
A97: ='Anl C-03 Geb 7'!A84 -> E 25 | B97: ='Anl C-03 Geb 7'!B84 -> EG | C97: ='Anl C-03 Geb 7'!C84 -> Flur | D97: ='Anl C-03 Geb 7'!D84 ->  | E97: ='Anl C-03 Geb 7'!E84 ->  | F97: ='Anl C-03 Geb 7'!F84 ->  | G97: ='Anl C-03 Geb 7'!G84 -> 0 | H97: ='Anl C-03 Geb 7'!H84 -> 0 | I97: ='Anl C-03 Geb 7'!I84 -> 0 | J97: ='Anl C-03 Geb 7'!J84 -> 0 | K97: 0 | L97: 0
A98: ='Anl C-03 Geb 7'!A85 -> E26 | B98: ='Anl C-03 Geb 7'!B85 -> EG | C98: ='Anl C-03 Geb 7'!C85 -> Flur | D98: ='Anl C-03 Geb 7'!D85 ->  | E98: ='Anl C-03 Geb 7'!E85 ->  | F98: ='Anl C-03 Geb 7'!F85 ->  | G98: ='Anl C-03 Geb 7'!G85 -> 0 | H98: ='Anl C-03 Geb 7'!H85 -> 0 | I98: ='Anl C-03 Geb 7'!I85 -> 0 | J98: ='Anl C-03 Geb 7'!J85 -> 0 | K98: 0 | L98: 0
A99: ='Anl C-03 Geb 7'!A86 -> E 27 | B99: ='Anl C-03 Geb 7'!B86 -> EG | C99: ='Anl C-03 Geb 7'!C86 -> Waschraum/Dusche | D99: ='Anl C-03 Geb 7'!D86 -> VF | E99: ='Anl C-03 Geb 7'!E86 -> beidseitig | F99: ='Anl C-03 Geb 7'!F86 -> J2 | G99: ='Anl C-03 Geb 7'!G86 -> 1.66 | H99: ='Anl C-03 Geb 7'!H86 -> 1.37 | I99: ='Anl C-03 Geb 7'!I86 -> 2.27 | J99: ='Anl C-03 Geb 7'!J86 -> 1 | K99: 2.27 | L99: 4.54
A100: ='Anl C-03 Geb 7'!A87 -> 0 | B100: ='Anl C-03 Geb 7'!B87 -> EG | C100: ='Anl C-03 Geb 7'!C87 -> Einzel-WC | D100: ='Anl C-03 Geb 7'!D87 ->  | E100: ='Anl C-03 Geb 7'!E87 ->  | F100: ='Anl C-03 Geb 7'!F87 ->  | G100: ='Anl C-03 Geb 7'!G87 -> 0 | H100: ='Anl C-03 Geb 7'!H87 -> 0 | I100: ='Anl C-03 Geb 7'!I87 -> 0 | J100: ='Anl C-03 Geb 7'!J87 -> 0 | K100: 0 | L100: 0
A101: ='Anl C-03 Geb 7'!A88 -> E 28 | B101: ='Anl C-03 Geb 7'!B88 -> EG | C101: ='Anl C-03 Geb 7'!C88 -> Umkleideplätze | D101: ='Anl C-03 Geb 7'!D88 -> VF | E101: ='Anl C-03 Geb 7'!E88 -> beidseitig | F101: ='Anl C-03 Geb 7'!F88 -> J2 | G101: ='Anl C-03 Geb 7'!G88 -> 1.66 | H101: ='Anl C-03 Geb 7'!H88 -> 1.37 | I101: ='Anl C-03 Geb 7'!I88 -> 2.27 | J101: ='Anl C-03 Geb 7'!J88 -> 1 | K101: 2.27 | L101: 4.54
A102: ='Anl C-03 Geb 7'!A89 -> E 29 | B102: ='Anl C-03 Geb 7'!B89 -> EG | C102: ='Anl C-03 Geb 7'!C89 -> WC | D102: ='Anl C-03 Geb 7'!D89 -> VF | E102: ='Anl C-03 Geb 7'!E89 -> beidseitig | F102: ='Anl C-03 Geb 7'!F89 -> J2 | G102: ='Anl C-03 Geb 7'!G89 -> 1.66 | H102: ='Anl C-03 Geb 7'!H89 -> 1.37 | I102: ='Anl C-03 Geb 7'!I89 -> 2.27 | J102: ='Anl C-03 Geb 7'!J89 -> 1 | K102: 2.27 | L102: 4.54
A103: ='Anl C-03 Geb 7'!A90 -> E 30 | B103: ='Anl C-03 Geb 7'!B90 -> EG | C103: ='Anl C-03 Geb 7'!C90 -> Umkleideplätze | D103: ='Anl C-03 Geb 7'!D90 -> VF | E103: ='Anl C-03 Geb 7'!E90 -> beidseitig | F103: ='Anl C-03 Geb 7'!F90 -> J2 | G103: ='Anl C-03 Geb 7'!G90 -> 1.66 | H103: ='Anl C-03 Geb 7'!H90 -> 1.37 | I103: ='Anl C-03 Geb 7'!I90 -> 2.27 | J103: ='Anl C-03 Geb 7'!J90 -> 1 | K103: 2.27 | L103: 4.54
A104: ='Anl C-03 Geb 7'!A91 -> E 31 | B104: ='Anl C-03 Geb 7'!B91 -> EG | C104: ='Anl C-03 Geb 7'!C91 -> WC | D104: ='Anl C-03 Geb 7'!D91 -> VF | E104: ='Anl C-03 Geb 7'!E91 -> beidseitig | F104: ='Anl C-03 Geb 7'!F91 -> J2 | G104: ='Anl C-03 Geb 7'!G91 -> 0.92 | H104: ='Anl C-03 Geb 7'!H91 -> 1.37 | I104: ='Anl C-03 Geb 7'!I91 -> 1.26 | J104: ='Anl C-03 Geb 7'!J91 -> 1 | K104: 1.26 | L104: 2.52
A105: ='Anl C-03 Geb 7'!A92 -> E 32 | B105: ='Anl C-03 Geb 7'!B92 -> EG | C105: ='Anl C-03 Geb 7'!C92 -> Umkleideplätze | D105: ='Anl C-03 Geb 7'!D92 -> VF | E105: ='Anl C-03 Geb 7'!E92 -> beidseitig | F105: ='Anl C-03 Geb 7'!F92 -> J2 | G105: ='Anl C-03 Geb 7'!G92 -> 1.66 | H105: ='Anl C-03 Geb 7'!H92 -> 1.37 | I105: ='Anl C-03 Geb 7'!I92 -> 2.27 | J105: ='Anl C-03 Geb 7'!J92 -> 1 | K105: 2.27 | L105: 4.54
A106: ='Anl C-03 Geb 7'!A93 -> E 33 | B106: ='Anl C-03 Geb 7'!B93 -> EG | C106: ='Anl C-03 Geb 7'!C93 -> Waschraum | D106: ='Anl C-03 Geb 7'!D93 -> VF | E106: ='Anl C-03 Geb 7'!E93 -> beidseitig | F106: ='Anl C-03 Geb 7'!F93 -> J2 | G106: ='Anl C-03 Geb 7'!G93 -> 0.92 | H106: ='Anl C-03 Geb 7'!H93 -> 1.37 | I106: ='Anl C-03 Geb 7'!I93 -> 1.26 | J106: ='Anl C-03 Geb 7'!J93 -> 1 | K106: 1.26 | L106: 2.52
A107: ='Anl C-03 Geb 7'!A94 -> E 34 | B107: ='Anl C-03 Geb 7'!B94 -> EG | C107: ='Anl C-03 Geb 7'!C94 -> Umkleideplätze | D107: ='Anl C-03 Geb 7'!D94 -> VF | E107: ='Anl C-03 Geb 7'!E94 -> beidseitig | F107: ='Anl C-03 Geb 7'!F94 -> J2 | G107: ='Anl C-03 Geb 7'!G94 -> 1.66 | H107: ='Anl C-03 Geb 7'!H94 -> 1.37 | I107: ='Anl C-03 Geb 7'!I94 -> 2.27 | J107: ='Anl C-03 Geb 7'!J94 -> 1 | K107: 2.27 | L107: 4.54
A108: ='Anl C-03 Geb 7'!A95 -> E 35 | B108: ='Anl C-03 Geb 7'!B95 -> EG | C108: ='Anl C-03 Geb 7'!C95 -> Duschraum | D108: ='Anl C-03 Geb 7'!D95 -> VF | E108: ='Anl C-03 Geb 7'!E95 -> beidseitig | F108: ='Anl C-03 Geb 7'!F95 -> J2 | G108: ='Anl C-03 Geb 7'!G95 -> 1.66 | H108: ='Anl C-03 Geb 7'!H95 -> 1.37 | I108: ='Anl C-03 Geb 7'!I95 -> 2.27 | J108: ='Anl C-03 Geb 7'!J95 -> 1 | K108: 2.27 | L108: 4.54
A109: ='Anl C-03 Geb 7'!A96 -> E 36 | B109: ='Anl C-03 Geb 7'!B96 -> EG | C109: ='Anl C-03 Geb 7'!C96 -> Umkleideplätze | D109: ='Anl C-03 Geb 7'!D96 -> VF | E109: ='Anl C-03 Geb 7'!E96 -> beidseitig | F109: ='Anl C-03 Geb 7'!F96 -> J2 | G109: ='Anl C-03 Geb 7'!G96 -> 1.66 | H109: ='Anl C-03 Geb 7'!H96 -> 1.37 | I109: ='Anl C-03 Geb 7'!I96 -> 2.27 | J109: ='Anl C-03 Geb 7'!J96 -> 2 | K109: 4.54 | L109: 9.08
A110: ='Anl C-03 Geb 7'!A97 -> E 37 | B110: ='Anl C-03 Geb 7'!B97 -> EG | C110: ='Anl C-03 Geb 7'!C97 -> Abstellraum Reinig. | D110: ='Anl C-03 Geb 7'!D97 -> VF | E110: ='Anl C-03 Geb 7'!E97 -> beidseitig | F110: ='Anl C-03 Geb 7'!F97 -> J2 | G110: ='Anl C-03 Geb 7'!G97 -> 1.66 | H110: ='Anl C-03 Geb 7'!H97 -> 1.37 | I110: ='Anl C-03 Geb 7'!I97 -> 2.27 | J110: ='Anl C-03 Geb 7'!J97 -> 1 | K110: 2.27 | L110: 4.54
A111: ='Anl C-03 Geb 7'!A98 -> E 38 | B111: ='Anl C-03 Geb 7'!B98 -> EG | C111: ='Anl C-03 Geb 7'!C98 -> Windfang | D111: ='Anl C-03 Geb 7'!D98 ->  | E111: ='Anl C-03 Geb 7'!E98 ->  | F111: ='Anl C-03 Geb 7'!F98 ->  | G111: ='Anl C-03 Geb 7'!G98 -> 0 | H111: ='Anl C-03 Geb 7'!H98 -> 0 | I111: ='Anl C-03 Geb 7'!I98 -> 0 | J111: ='Anl C-03 Geb 7'!J98 -> 0 | K111: 0 | L111: 0
A112: ='Anl C-03 Geb 7'!A99 -> E 39 | B112: ='Anl C-03 Geb 7'!B99 -> EG | C112: ='Anl C-03 Geb 7'!C99 -> Treppenraum | D112: ='Anl C-03 Geb 7'!D99 -> VF | E112: ='Anl C-03 Geb 7'!E99 -> beidseitig | F112: ='Anl C-03 Geb 7'!F99 -> J2 | G112: ='Anl C-03 Geb 7'!G99 -> 2.2 | H112: ='Anl C-03 Geb 7'!H99 -> 1.37 | I112: ='Anl C-03 Geb 7'!I99 -> 3.01 | J112: ='Anl C-03 Geb 7'!J99 -> 2 | K112: 6.02 | L112: 12.04
A113: ='Anl C-03 Geb 7'!A100 -> E 40 | B113: ='Anl C-03 Geb 7'!B100 -> EG | C113: ='Anl C-03 Geb 7'!C100 -> Umkleideplätze | D113: ='Anl C-03 Geb 7'!D100 -> VF | E113: ='Anl C-03 Geb 7'!E100 -> beidseitig | F113: ='Anl C-03 Geb 7'!F100 -> J2 | G113: ='Anl C-03 Geb 7'!G100 -> 1.66 | H113: ='Anl C-03 Geb 7'!H100 -> 1.37 | I113: ='Anl C-03 Geb 7'!I100 -> 2.27 | J113: ='Anl C-03 Geb 7'!J100 -> 2 | K113: 4.54 | L113: 9.08
A114: ='Anl C-03 Geb 7'!A101 -> 0 | B114: ='Anl C-03 Geb 7'!B101 -> EG | C114: ='Anl C-03 Geb 7'!C101 -> Nasszelle | D114: ='Anl C-03 Geb 7'!D101 -> 0 | E114: ='Anl C-03 Geb 7'!E101 ->  | F114: ='Anl C-03 Geb 7'!F101 ->  | G114: ='Anl C-03 Geb 7'!G101 -> 0 | H114: ='Anl C-03 Geb 7'!H101 -> 0 | I114: ='Anl C-03 Geb 7'!I101 -> 0 | J114: ='Anl C-03 Geb 7'!J101 -> 0 | K114: 0 | L114: 0
A115: ='Anl C-03 Geb 7'!A102 -> E 41 | B115: ='Anl C-03 Geb 7'!B102 -> EG | C115: ='Anl C-03 Geb 7'!C102 -> Unterkunft | D115: ='Anl C-03 Geb 7'!D102 -> VF | E115: ='Anl C-03 Geb 7'!E102 -> beidseitig | F115: ='Anl C-03 Geb 7'!F102 -> J2 | G115: ='Anl C-03 Geb 7'!G102 -> 1.66 | H115: ='Anl C-03 Geb 7'!H102 -> 1.37 | I115: ='Anl C-03 Geb 7'!I102 -> 2.27 | J115: ='Anl C-03 Geb 7'!J102 -> 2 | K115: 4.54 | L115: 9.08
A116: ='Anl C-03 Geb 7'!A103 -> 0 | B116: ='Anl C-03 Geb 7'!B103 -> EG | C116: ='Anl C-03 Geb 7'!C103 -> Nasszelle | D116: ='Anl C-03 Geb 7'!D103 ->  | E116: ='Anl C-03 Geb 7'!E103 ->  | F116: ='Anl C-03 Geb 7'!F103 ->  | G116: ='Anl C-03 Geb 7'!G103 -> 0 | H116: ='Anl C-03 Geb 7'!H103 -> 0 | I116: ='Anl C-03 Geb 7'!I103 -> 0 | J116: ='Anl C-03 Geb 7'!J103 -> 0 | K116: 0 | L116: =IF(E116="einseitig",K116*1,IF(E116="beidseitig",K116*2,IF(E116="raumseitig",K116*1,IF(E116="2x raumseitig",K116*2,IF(E116="3x raumseitig",K116*3,IF(E116="witterungsseitig",K116*1,IF(E116="außen",K116*1,IF(E116="raum- & witterungsseitig",K116*2,IF(E116="vierseitig",K116*4,IF(E116="allseitig",K116*2,IF(E116="ganzflächig",K116*2,0))))))))))) -> 0
A117: ='Anl C-03 Geb 7'!A104 -> E 42 | B117: ='Anl C-03 Geb 7'!B104 -> EG | C117: ='Anl C-03 Geb 7'!C104 -> Unterkunft | D117: ='Anl C-03 Geb 7'!D104 -> VF | E117: ='Anl C-03 Geb 7'!E104 -> beidseitig | F117: ='Anl C-03 Geb 7'!F104 -> J2 | G117: ='Anl C-03 Geb 7'!G104 -> 1.66 | H117: ='Anl C-03 Geb 7'!H104 -> 1.37 | I117: ='Anl C-03 Geb 7'!I104 -> 2.27 | J117: ='Anl C-03 Geb 7'!J104 -> 2 | K117: 4.54 | L117: 9.08
A118: ='Anl C-03 Geb 7'!A105 -> 0 | B118: ='Anl C-03 Geb 7'!B105 -> EG | C118: ='Anl C-03 Geb 7'!C105 -> Nasszelle | D118: ='Anl C-03 Geb 7'!D105 ->  | E118: ='Anl C-03 Geb 7'!E105 ->  | F118: ='Anl C-03 Geb 7'!F105 ->  | G118: ='Anl C-03 Geb 7'!G105 -> 0 | H118: ='Anl C-03 Geb 7'!H105 -> 0 | I118: ='Anl C-03 Geb 7'!I105 -> 0 | J118: ='Anl C-03 Geb 7'!J105 -> 0 | K118: 0 | L118: 0
A119: ='Anl C-03 Geb 7'!A106 -> E 43 | B119: ='Anl C-03 Geb 7'!B106 -> EG | C119: ='Anl C-03 Geb 7'!C106 -> Unterkunft | D119: ='Anl C-03 Geb 7'!D106 -> VF | E119: ='Anl C-03 Geb 7'!E106 -> beidseitig | F119: ='Anl C-03 Geb 7'!F106 -> J2 | G119: ='Anl C-03 Geb 7'!G106 -> 1.66 | H119: ='Anl C-03 Geb 7'!H106 -> 1.37 | I119: ='Anl C-03 Geb 7'!I106 -> 2.27 | J119: ='Anl C-03 Geb 7'!J106 -> 2 | K119: =I119*J119 -> 4.54 | L119: 9.08
A120: ='Anl C-03 Geb 7'!A107 -> 0 | B120: ='Anl C-03 Geb 7'!B107 -> EG | C120: ='Anl C-03 Geb 7'!C107 -> Nasszelle | D120: ='Anl C-03 Geb 7'!D107 ->  | E120: ='Anl C-03 Geb 7'!E107 ->  | F120: ='Anl C-03 Geb 7'!F107 ->  | G120: ='Anl C-03 Geb 7'!G107 -> 0 | H120: ='Anl C-03 Geb 7'!H107 -> 0 | I120: ='Anl C-03 Geb 7'!I107 -> 0 | J120: ='Anl C-03 Geb 7'!J107 -> 0 | K120: 0 | L120: 0
A121: ='Anl C-03 Geb 7'!A108 -> E 44 | B121: ='Anl C-03 Geb 7'!B108 -> EG | C121: ='Anl C-03 Geb 7'!C108 -> Unterkunft | D121: ='Anl C-03 Geb 7'!D108 -> VF | E121: ='Anl C-03 Geb 7'!E108 -> beidseitig | F121: ='Anl C-03 Geb 7'!F108 -> J2 | G121: ='Anl C-03 Geb 7'!G108 -> 1.66 | H121: ='Anl C-03 Geb 7'!H108 -> 1.37 | I121: ='Anl C-03 Geb 7'!I108 -> 2.27 | J121: ='Anl C-03 Geb 7'!J108 -> 2 | K121: 4.54 | L121: 9.08
A122: ='Anl C-03 Geb 7'!A109 -> 0 | B122: ='Anl C-03 Geb 7'!B109 -> EG | C122: ='Anl C-03 Geb 7'!C109 -> Nasszelle | D122: ='Anl C-03 Geb 7'!D109 ->  | E122: ='Anl C-03 Geb 7'!E109 ->  | F122: ='Anl C-03 Geb 7'!F109 ->  | G122: ='Anl C-03 Geb 7'!G109 -> 0 | H122: ='Anl C-03 Geb 7'!H109 -> 0 | I122: ='Anl C-03 Geb 7'!I109 -> 0 | J122: ='Anl C-03 Geb 7'!J109 -> 0 | K122: 0 | L122: 0
A123: ='Anl C-03 Geb 7'!A110 -> E 45 | B123: ='Anl C-03 Geb 7'!B110 -> EG | C123: ='Anl C-03 Geb 7'!C110 -> Umkleideplätze | D123: ='Anl C-03 Geb 7'!D110 -> VF | E123: ='Anl C-03 Geb 7'!E110 -> beidseitig | F123: ='Anl C-03 Geb 7'!F110 -> J2 | G123: ='Anl C-03 Geb 7'!G110 -> 1.66 | H123: ='Anl C-03 Geb 7'!H110 -> 1.37 | I123: ='Anl C-03 Geb 7'!I110 -> 2.27 | J123: ='Anl C-03 Geb 7'!J110 -> 2 | K123: 4.54 | L123: 9.08
A124: ='Anl C-03 Geb 7'!A111 -> 0 | B124: ='Anl C-03 Geb 7'!B111 -> EG | C124: ='Anl C-03 Geb 7'!C111 -> Nasszelle | D124: ='Anl C-03 Geb 7'!D111 ->  | E124: ='Anl C-03 Geb 7'!E111 ->  | F124: ='Anl C-03 Geb 7'!F111 ->  | G124: ='Anl C-03 Geb 7'!G111 -> 0 | H124: ='Anl C-03 Geb 7'!H111 -> 0 | I124: ='Anl C-03 Geb 7'!I111 -> 0 | J124: ='Anl C-03 Geb 7'!J111 -> 0 | K124: 0 | L124: 0
A125: ='Anl C-03 Geb 7'!A112 -> E 46 | B125: ='Anl C-03 Geb 7'!B112 -> EG | C125: ='Anl C-03 Geb 7'!C112 -> Flur | D125: ='Anl C-03 Geb 7'!D112 ->  | E125: ='Anl C-03 Geb 7'!E112 ->  | F125: ='Anl C-03 Geb 7'!F112 ->  | G125: ='Anl C-03 Geb 7'!G112 -> 0 | H125: ='Anl C-03 Geb 7'!H112 -> 0 | I125: ='Anl C-03 Geb 7'!I112 -> 0 | J125: ='Anl C-03 Geb 7'!J112 -> 0 | K125: 0 | L125: 0
A126: ='Anl C-03 Geb 7'!A113 -> 0 | B126: ='Anl C-03 Geb 7'!B113 -> 0 | C126: ='Anl C-03 Geb 7'!C113 -> 0 | D126: ='Anl C-03 Geb 7'!D113 ->  | E126: ='Anl C-03 Geb 7'!E113 ->  | F126: ='Anl C-03 Geb 7'!F113 ->  | G126: ='Anl C-03 Geb 7'!G113 -> 0 | H126: ='Anl C-03 Geb 7'!H113 -> 0 | I126: ='Anl C-03 Geb 7'!I113 -> 0 | J126: ='Anl C-03 Geb 7'!J113 -> 0 | K126: 0 | L126: 0
A127: ='Anl C-03 Geb 7'!A114 -> 1 01 | B127: ='Anl C-03 Geb 7'!B114 -> 1.OG | C127: ='Anl C-03 Geb 7'!C114 -> Treppenraum | D127: ='Anl C-03 Geb 7'!D114 -> VF | E127: ='Anl C-03 Geb 7'!E114 -> beidseitig | F127: ='Anl C-03 Geb 7'!F114 -> J2 | G127: ='Anl C-03 Geb 7'!G114 -> 2.2 | H127: ='Anl C-03 Geb 7'!H114 -> 0.66 | I127: ='Anl C-03 Geb 7'!I114 -> 1.45 | J127: ='Anl C-03 Geb 7'!J114 -> 2 | K127: 2.9 | L127: 5.8
A128: ='Anl C-03 Geb 7'!A115 -> 1 02 | B128: ='Anl C-03 Geb 7'!B115 -> 1.OG | C128: ='Anl C-03 Geb 7'!C115 -> Flur | D128: ='Anl C-03 Geb 7'!D115 ->  | E128: ='Anl C-03 Geb 7'!E115 ->  | F128: ='Anl C-03 Geb 7'!F115 ->  | G128: ='Anl C-03 Geb 7'!G115 -> 0 | H128: ='Anl C-03 Geb 7'!H115 -> 0 | I128: ='Anl C-03 Geb 7'!I115 -> 0 | J128: ='Anl C-03 Geb 7'!J115 -> 0 | K128: 0 | L128: 0
A129: ='Anl C-03 Geb 7'!A116 -> 1 03 | B129: ='Anl C-03 Geb 7'!B116 -> 1.OG | C129: ='Anl C-03 Geb 7'!C116 -> Waschraum | D129: ='Anl C-03 Geb 7'!D116 -> VF | E129: ='Anl C-03 Geb 7'!E116 -> beidseitig | F129: ='Anl C-03 Geb 7'!F116 -> J2 | G129: ='Anl C-03 Geb 7'!G116 -> 1.66 | H129: ='Anl C-03 Geb 7'!H116 -> 1.37 | I129: ='Anl C-03 Geb 7'!I116 -> 2.27 | J129: ='Anl C-03 Geb 7'!J116 -> 1 | K129: 2.27 | L129: 4.54
A130: ='Anl C-03 Geb 7'!A117 -> 1 04 | B130: ='Anl C-03 Geb 7'!B117 -> 1.OG | C130: ='Anl C-03 Geb 7'!C117 -> Dienstzimmer | D130: ='Anl C-03 Geb 7'!D117 -> VF | E130: ='Anl C-03 Geb 7'!E117 -> beidseitig | F130: ='Anl C-03 Geb 7'!F117 -> J2 | G130: ='Anl C-03 Geb 7'!G117 -> 1.66 | H130: ='Anl C-03 Geb 7'!H117 -> 1.37 | I130: ='Anl C-03 Geb 7'!I117 -> 2.27 | J130: ='Anl C-03 Geb 7'!J117 -> 2 | K130: 4.54 | L130: 9.08
A131: ='Anl C-03 Geb 7'!A118 -> 1 05 | B131: ='Anl C-03 Geb 7'!B118 -> 1.OG | C131: ='Anl C-03 Geb 7'!C118 -> Duschraum | D131: ='Anl C-03 Geb 7'!D118 -> VF | E131: ='Anl C-03 Geb 7'!E118 -> beidseitig | F131: ='Anl C-03 Geb 7'!F118 -> J2 | G131: ='Anl C-03 Geb 7'!G118 -> 1.66 | H131: ='Anl C-03 Geb 7'!H118 -> 1.37 | I131: ='Anl C-03 Geb 7'!I118 -> 2.27 | J131: ='Anl C-03 Geb 7'!J118 -> 1 | K131: 2.27 | L131: 4.54
A132: ='Anl C-03 Geb 7'!A119 -> 1 06 | B132: ='Anl C-03 Geb 7'!B119 -> 1.OG | C132: ='Anl C-03 Geb 7'!C119 -> Dienstzimmer | D132: ='Anl C-03 Geb 7'!D119 -> VF | E132: ='Anl C-03 Geb 7'!E119 -> beidseitig | F132: ='Anl C-03 Geb 7'!F119 -> J2 | G132: ='Anl C-03 Geb 7'!G119 -> 1.66 | H132: ='Anl C-03 Geb 7'!H119 -> 1.37 | I132: ='Anl C-03 Geb 7'!I119 -> 2.27 | J132: ='Anl C-03 Geb 7'!J119 -> 2 | K132: 4.54 | L132: 9.08
A133: ='Anl C-03 Geb 7'!A120 -> 1 07 | B133: ='Anl C-03 Geb 7'!B120 -> 1.OG | C133: ='Anl C-03 Geb 7'!C120 -> Teeküche | D133: ='Anl C-03 Geb 7'!D120 -> VF | E133: ='Anl C-03 Geb 7'!E120 -> beidseitig | F133: ='Anl C-03 Geb 7'!F120 -> J2 | G133: ='Anl C-03 Geb 7'!G120 -> 0.92 | H133: ='Anl C-03 Geb 7'!H120 -> 1.37 | I133: ='Anl C-03 Geb 7'!I120 -> 1.26 | J133: ='Anl C-03 Geb 7'!J120 -> 1 | K133: 1.26 | L133: 2.52
A134: ='Anl C-03 Geb 7'!A121 -> 1 08 | B134: ='Anl C-03 Geb 7'!B121 -> 1.OG | C134: ='Anl C-03 Geb 7'!C121 -> Schulungsraum | D134: ='Anl C-03 Geb 7'!D121 -> VF | E134: ='Anl C-03 Geb 7'!E121 -> beidseitig | F134: ='Anl C-03 Geb 7'!F121 -> J2 | G134: ='Anl C-03 Geb 7'!G121 -> 1.66 | H134: ='Anl C-03 Geb 7'!H121 -> 1.37 | I134: ='Anl C-03 Geb 7'!I121 -> 2.27 | J134: ='Anl C-03 Geb 7'!J121 -> 5 | K134: 11.35 | L134: 22.7
A135: ='Anl C-03 Geb 7'!A122 -> 1 09 | B135: ='Anl C-03 Geb 7'!B122 -> 1.OG | C135: ='Anl C-03 Geb 7'!C122 -> Vorraum WC | D135: ='Anl C-03 Geb 7'!D122 ->  | E135: ='Anl C-03 Geb 7'!E122 ->  | F135: ='Anl C-03 Geb 7'!F122 ->  | G135: ='Anl C-03 Geb 7'!G122 -> 0 | H135: ='Anl C-03 Geb 7'!H122 -> 0 | I135: ='Anl C-03 Geb 7'!I122 -> 0 | J135: ='Anl C-03 Geb 7'!J122 -> 0 | K135: 0 | L135: 0
A136: ='Anl C-03 Geb 7'!A123 -> 1 10 | B136: ='Anl C-03 Geb 7'!B123 -> 1.OG | C136: ='Anl C-03 Geb 7'!C123 -> WC | D136: ='Anl C-03 Geb 7'!D123 -> VF | E136: ='Anl C-03 Geb 7'!E123 -> beidseitig | F136: ='Anl C-03 Geb 7'!F123 -> J2 | G136: ='Anl C-03 Geb 7'!G123 -> 0.92 | H136: ='Anl C-03 Geb 7'!H123 -> 1.37 | I136: ='Anl C-03 Geb 7'!I123 -> 1.26 | J136: ='Anl C-03 Geb 7'!J123 -> 1 | K136: 1.26 | L136: 2.52
A137: ='Anl C-03 Geb 7'!A124 -> 1 11 | B137: ='Anl C-03 Geb 7'!B124 -> 1.OG | C137: ='Anl C-03 Geb 7'!C124 -> Flur | D137: ='Anl C-03 Geb 7'!D124 ->  | E137: ='Anl C-03 Geb 7'!E124 ->  | F137: ='Anl C-03 Geb 7'!F124 ->  | G137: ='Anl C-03 Geb 7'!G124 -> 0 | H137: ='Anl C-03 Geb 7'!H124 -> 0 | I137: ='Anl C-03 Geb 7'!I124 -> 0 | J137: ='Anl C-03 Geb 7'!J124 -> 0 | K137: 0 | L137: 0
A138: ='Anl C-03 Geb 7'!A125 -> 1 12 | B138: ='Anl C-03 Geb 7'!B125 -> 1.OG | C138: ='Anl C-03 Geb 7'!C125 -> Umkleideplätze | D138: ='Anl C-03 Geb 7'!D125 -> VF | E138: ='Anl C-03 Geb 7'!E125 -> beidseitig | F138: ='Anl C-03 Geb 7'!F125 -> J2 | G138: ='Anl C-03 Geb 7'!G125 -> 1.66 | H138: ='Anl C-03 Geb 7'!H125 -> 1.37 | I138: ='Anl C-03 Geb 7'!I125 -> 2.27 | J138: ='Anl C-03 Geb 7'!J125 -> 2 | K138: 4.54 | L138: 9.08
A139: ='Anl C-03 Geb 7'!A126 -> 1 13 | B139: ='Anl C-03 Geb 7'!B126 -> 1.OG | C139: ='Anl C-03 Geb 7'!C126 -> Aufenthaltsraum | D139: ='Anl C-03 Geb 7'!D126 -> VF | E139: ='Anl C-03 Geb 7'!E126 -> beidseitig | F139: ='Anl C-03 Geb 7'!F126 -> J2 | G139: ='Anl C-03 Geb 7'!G126 -> 1.66 | H139: ='Anl C-03 Geb 7'!H126 -> 1.37 | I139: ='Anl C-03 Geb 7'!I126 -> 2.27 | J139: ='Anl C-03 Geb 7'!J126 -> 2 | K139: 4.54 | L139: 9.08
A140: ='Anl C-03 Geb 7'!A127 -> 1 14 | B140: ='Anl C-03 Geb 7'!B127 -> 1.OG | C140: ='Anl C-03 Geb 7'!C127 -> Aufenthaltsraum | D140: ='Anl C-03 Geb 7'!D127 -> VF | E140: ='Anl C-03 Geb 7'!E127 -> beidseitig | F140: ='Anl C-03 Geb 7'!F127 -> J2 | G140: ='Anl C-03 Geb 7'!G127 -> 1.66 | H140: ='Anl C-03 Geb 7'!H127 -> 1.37 | I140: ='Anl C-03 Geb 7'!I127 -> 2.27 | J140: ='Anl C-03 Geb 7'!J127 -> 2 | K140: 4.54 | L140: 9.08
A141: ='Anl C-03 Geb 7'!A128 -> 1 15 | B141: ='Anl C-03 Geb 7'!B128 -> 1.OG | C141: ='Anl C-03 Geb 7'!C128 -> Umkleideplätze | D141: ='Anl C-03 Geb 7'!D128 -> VF | E141: ='Anl C-03 Geb 7'!E128 -> beidseitig | F141: ='Anl C-03 Geb 7'!F128 -> J2 | G141: ='Anl C-03 Geb 7'!G128 -> 1.66 | H141: ='Anl C-03 Geb 7'!H128 -> 1.37 | I141: ='Anl C-03 Geb 7'!I128 -> 2.27 | J141: ='Anl C-03 Geb 7'!J128 -> 2 | K141: 4.54 | L141: 9.08
A142: ='Anl C-03 Geb 7'!A129 -> 1 16 | B142: ='Anl C-03 Geb 7'!B129 -> 1.OG | C142: ='Anl C-03 Geb 7'!C129 -> Umkleideplätze | D142: ='Anl C-03 Geb 7'!D129 -> VF | E142: ='Anl C-03 Geb 7'!E129 -> beidseitig | F142: ='Anl C-03 Geb 7'!F129 -> J2 | G142: ='Anl C-03 Geb 7'!G129 -> 1.66 | H142: ='Anl C-03 Geb 7'!H129 -> 1.37 | I142: ='Anl C-03 Geb 7'!I129 -> 2.27 | J142: ='Anl C-03 Geb 7'!J129 -> 2 | K142: 4.54 | L142: 9.08
A143: ='Anl C-03 Geb 7'!A130 -> 1 17 | B143: ='Anl C-03 Geb 7'!B130 -> 1.OG | C143: ='Anl C-03 Geb 7'!C130 -> Umkleideplätze | D143: ='Anl C-03 Geb 7'!D130 -> VF | E143: ='Anl C-03 Geb 7'!E130 -> beidseitig | F143: ='Anl C-03 Geb 7'!F130 -> J2 | G143: ='Anl C-03 Geb 7'!G130 -> 1.66 | H143: ='Anl C-03 Geb 7'!H130 -> 1.37 | I143: ='Anl C-03 Geb 7'!I130 -> 2.27 | J143: ='Anl C-03 Geb 7'!J130 -> 2 | K143: 4.54 | L143: 9.08
A144: ='Anl C-03 Geb 7'!A131 -> 1 18 | B144: ='Anl C-03 Geb 7'!B131 -> 1.OG | C144: ='Anl C-03 Geb 7'!C131 -> Umkleideplätze | D144: ='Anl C-03 Geb 7'!D131 -> VF | E144: ='Anl C-03 Geb 7'!E131 -> beidseitig | F144: ='Anl C-03 Geb 7'!F131 -> J2 | G144: ='Anl C-03 Geb 7'!G131 -> 1.66 | H144: ='Anl C-03 Geb 7'!H131 -> 1.37 | I144: ='Anl C-03 Geb 7'!I131 -> 2.27 | J144: ='Anl C-03 Geb 7'!J131 -> 2 | K144: 4.54 | L144: 9.08
A145: ='Anl C-03 Geb 7'!A132 -> 1 19 | B145: ='Anl C-03 Geb 7'!B132 -> 1.OG | C145: ='Anl C-03 Geb 7'!C132 -> Dienstzimmer | D145: ='Anl C-03 Geb 7'!D132 -> VF | E145: ='Anl C-03 Geb 7'!E132 -> beidseitig | F145: ='Anl C-03 Geb 7'!F132 -> J2 | G145: ='Anl C-03 Geb 7'!G132 -> 1.66 | H145: ='Anl C-03 Geb 7'!H132 -> 1.37 | I145: ='Anl C-03 Geb 7'!I132 -> 2.27 | J145: ='Anl C-03 Geb 7'!J132 -> 2 | K145: 4.54 | L145: 9.08
A146: ='Anl C-03 Geb 7'!A133 -> 1 20 | B146: ='Anl C-03 Geb 7'!B133 -> 1.OG | C146: ='Anl C-03 Geb 7'!C133 -> Umkleideplätze | D146: ='Anl C-03 Geb 7'!D133 -> VF | E146: ='Anl C-03 Geb 7'!E133 -> beidseitig | F146: ='Anl C-03 Geb 7'!F133 -> J2 | G146: ='Anl C-03 Geb 7'!G133 -> 1.66 | H146: ='Anl C-03 Geb 7'!H133 -> 1.37 | I146: ='Anl C-03 Geb 7'!I133 -> 2.27 | J146: ='Anl C-03 Geb 7'!J133 -> 2 | K146: 4.54 | L146: 9.08
A147: ='Anl C-03 Geb 7'!A134 -> 1 21 | B147: ='Anl C-03 Geb 7'!B134 -> 1.OG | C147: ='Anl C-03 Geb 7'!C134 -> Vorraum Dusche | D147: ='Anl C-03 Geb 7'!D134 -> VF | E147: ='Anl C-03 Geb 7'!E134 -> beidseitig | F147: ='Anl C-03 Geb 7'!F134 -> J2 | G147: ='Anl C-03 Geb 7'!G134 -> 1.66 | H147: ='Anl C-03 Geb 7'!H134 -> 1.37 | I147: ='Anl C-03 Geb 7'!I134 -> 2.27 | J147: ='Anl C-03 Geb 7'!J134 -> 1 | K147: 2.27 | L147: 4.54
A148: ='Anl C-03 Geb 7'!A135 -> 1 22 | B148: ='Anl C-03 Geb 7'!B135 -> 1.OG | C148: ='Anl C-03 Geb 7'!C135 -> Umkleideplätze | D148: ='Anl C-03 Geb 7'!D135 -> VF | E148: ='Anl C-03 Geb 7'!E135 -> beidseitig | F148: ='Anl C-03 Geb 7'!F135 -> J2 | G148: ='Anl C-03 Geb 7'!G135 -> 1.66 | H148: ='Anl C-03 Geb 7'!H135 -> 1.37 | I148: ='Anl C-03 Geb 7'!I135 -> 2.27 | J148: ='Anl C-03 Geb 7'!J135 -> 2 | K148: 4.54 | L148: 9.08
A149: ='Anl C-03 Geb 7'!A136 -> 1 23 | B149: ='Anl C-03 Geb 7'!B136 -> 1.OG | C149: ='Anl C-03 Geb 7'!C136 -> Duschraum | D149: ='Anl C-03 Geb 7'!D136 ->  | E149: ='Anl C-03 Geb 7'!E136 ->  | F149: ='Anl C-03 Geb 7'!F136 ->  | G149: ='Anl C-03 Geb 7'!G136 -> 0 | H149: ='Anl C-03 Geb 7'!H136 -> 0 | I149: ='Anl C-03 Geb 7'!I136 -> 0 | J149: ='Anl C-03 Geb 7'!J136 -> 0 | K149: 0 | L149: 0
A150: ='Anl C-03 Geb 7'!A137 -> 1 24 | B150: ='Anl C-03 Geb 7'!B137 -> 1.OG | C150: ='Anl C-03 Geb 7'!C137 -> Unkleide | D150: ='Anl C-03 Geb 7'!D137 -> VF | E150: ='Anl C-03 Geb 7'!E137 -> beidseitig | F150: ='Anl C-03 Geb 7'!F137 -> J2 | G150: ='Anl C-03 Geb 7'!G137 -> 1.66 | H150: ='Anl C-03 Geb 7'!H137 -> 1.37 | I150: ='Anl C-03 Geb 7'!I137 -> 2.27 | J150: ='Anl C-03 Geb 7'!J137 -> 1 | K150: 2.27 | L150: 4.54
A151: ='Anl C-03 Geb 7'!A138 -> 1 25 | B151: ='Anl C-03 Geb 7'!B138 -> 1.OG | C151: ='Anl C-03 Geb 7'!C138 -> Waschraum | D151: ='Anl C-03 Geb 7'!D138 -> VF | E151: ='Anl C-03 Geb 7'!E138 -> beidseitig | F151: ='Anl C-03 Geb 7'!F138 -> J2 | G151: ='Anl C-03 Geb 7'!G138 -> 1.66 | H151: ='Anl C-03 Geb 7'!H138 -> 1.37 | I151: ='Anl C-03 Geb 7'!I138 -> 2.27 | J151: ='Anl C-03 Geb 7'!J138 -> 1 | K151: 2.27 | L151: 4.54
A152: ='Anl C-03 Geb 7'!A139 -> 1 26 | B152: ='Anl C-03 Geb 7'!B139 -> 1.OG | C152: ='Anl C-03 Geb 7'!C139 -> Vorraum WC | D152: ='Anl C-03 Geb 7'!D139 ->  | E152: ='Anl C-03 Geb 7'!E139 ->  | F152: ='Anl C-03 Geb 7'!F139 ->  | G152: ='Anl C-03 Geb 7'!G139 -> 0 | H152: ='Anl C-03 Geb 7'!H139 -> 0 | I152: ='Anl C-03 Geb 7'!I139 -> 0 | J152: ='Anl C-03 Geb 7'!J139 -> 0 | K152: 0 | L152: 0
A153: ='Anl C-03 Geb 7'!A140 -> 1 27 | B153: ='Anl C-03 Geb 7'!B140 -> 1.OG | C153: ='Anl C-03 Geb 7'!C140 -> WC | D153: ='Anl C-03 Geb 7'!D140 -> VF | E153: ='Anl C-03 Geb 7'!E140 -> beidseitig | F153: ='Anl C-03 Geb 7'!F140 -> J2 | G153: ='Anl C-03 Geb 7'!G140 -> 0.92 | H153: ='Anl C-03 Geb 7'!H140 -> 1.37 | I153: ='Anl C-03 Geb 7'!I140 -> 1.26 | J153: ='Anl C-03 Geb 7'!J140 -> 1 | K153: 1.26 | L153: 2.52
A154: ='Anl C-03 Geb 7'!A141 -> 1 28 | B154: ='Anl C-03 Geb 7'!B141 -> 1.OG | C154: ='Anl C-03 Geb 7'!C141 -> Abstellraum Reinig. | D154: ='Anl C-03 Geb 7'!D141 -> VF | E154: ='Anl C-03 Geb 7'!E141 -> beidseitig | F154: ='Anl C-03 Geb 7'!F141 -> J2 | G154: ='Anl C-03 Geb 7'!G141 -> 0.92 | H154: ='Anl C-03 Geb 7'!H141 -> 1.37 | I154: ='Anl C-03 Geb 7'!I141 -> 1.26 | J154: ='Anl C-03 Geb 7'!J141 -> 1 | K154: 1.26 | L154: 2.52
A155: ='Anl C-03 Geb 7'!A142 -> 1 29 | B155: ='Anl C-03 Geb 7'!B142 -> 1.OG | C155: ='Anl C-03 Geb 7'!C142 -> Dienstzimmer | D155: ='Anl C-03 Geb 7'!D142 -> VF | E155: ='Anl C-03 Geb 7'!E142 -> beidseitig | F155: ='Anl C-03 Geb 7'!F142 -> J2 | G155: ='Anl C-03 Geb 7'!G142 -> 1.66 | H155: ='Anl C-03 Geb 7'!H142 -> 1.37 | I155: ='Anl C-03 Geb 7'!I142 -> 2.27 | J155: ='Anl C-03 Geb 7'!J142 -> 2 | K155: 4.54 | L155: 9.08
A156: ='Anl C-03 Geb 7'!A143 -> 1 30 | B156: ='Anl C-03 Geb 7'!B143 -> 1.OG | C156: ='Anl C-03 Geb 7'!C143 -> Flur | D156: ='Anl C-03 Geb 7'!D143 ->  | E156: ='Anl C-03 Geb 7'!E143 ->  | F156: ='Anl C-03 Geb 7'!F143 ->  | G156: ='Anl C-03 Geb 7'!G143 -> 0 | H156: ='Anl C-03 Geb 7'!H143 -> 0 | I156: ='Anl C-03 Geb 7'!I143 -> 0 | J156: ='Anl C-03 Geb 7'!J143 -> 0 | K156: 0 | L156: 0
A157: ='Anl C-03 Geb 7'!A144 -> 1 31 | B157: ='Anl C-03 Geb 7'!B144 -> 1.OG | C157: ='Anl C-03 Geb 7'!C144 -> Treppenraum | D157: ='Anl C-03 Geb 7'!D144 -> VF | E157: ='Anl C-03 Geb 7'!E144 -> beidseitig | F157: ='Anl C-03 Geb 7'!F144 -> J2 | G157: ='Anl C-03 Geb 7'!G144 -> 2.2 | H157: ='Anl C-03 Geb 7'!H144 -> 0.66 | I157: ='Anl C-03 Geb 7'!I144 -> 1.45 | J157: ='Anl C-03 Geb 7'!J144 -> 2 | K157: 2.9 | L157: 5.8
A158: ='Anl C-03 Geb 7'!A145 -> 1 32 | B158: ='Anl C-03 Geb 7'!B145 -> 1.OG | C158: ='Anl C-03 Geb 7'!C145 -> Umkleideplätze | D158: ='Anl C-03 Geb 7'!D145 -> VF | E158: ='Anl C-03 Geb 7'!E145 -> beidseitig | F158: ='Anl C-03 Geb 7'!F145 -> J2 | G158: ='Anl C-03 Geb 7'!G145 -> 1.66 | H158: ='Anl C-03 Geb 7'!H145 -> 1.37 | I158: ='Anl C-03 Geb 7'!I145 -> 2.27 | J158: ='Anl C-03 Geb 7'!J145 -> 2 | K158: 4.54 | L158: 9.08
A159: ='Anl C-03 Geb 7'!A146 -> 0 | B159: ='Anl C-03 Geb 7'!B146 -> 1.OG | C159: ='Anl C-03 Geb 7'!C146 -> Nasszelle | D159: ='Anl C-03 Geb 7'!D146 ->  | E159: ='Anl C-03 Geb 7'!E146 ->  | F159: ='Anl C-03 Geb 7'!F146 ->  | G159: ='Anl C-03 Geb 7'!G146 -> 0 | H159: ='Anl C-03 Geb 7'!H146 -> 0 | I159: ='Anl C-03 Geb 7'!I146 -> 0 | J159: ='Anl C-03 Geb 7'!J146 -> 0 | K159: 0 | L159: 0
A160: ='Anl C-03 Geb 7'!A147 -> 1 33 | B160: ='Anl C-03 Geb 7'!B147 -> 1.OG | C160: ='Anl C-03 Geb 7'!C147 -> Umkleideplätze | D160: ='Anl C-03 Geb 7'!D147 -> VF | E160: ='Anl C-03 Geb 7'!E147 -> beidseitig | F160: ='Anl C-03 Geb 7'!F147 -> J2 | G160: ='Anl C-03 Geb 7'!G147 -> 1.66 | H160: ='Anl C-03 Geb 7'!H147 -> 1.37 | I160: ='Anl C-03 Geb 7'!I147 -> 2.27 | J160: ='Anl C-03 Geb 7'!J147 -> 2 | K160: 4.54 | L160: 9.08
A161: ='Anl C-03 Geb 7'!A148 -> 0 | B161: ='Anl C-03 Geb 7'!B148 -> 1.OG | C161: ='Anl C-03 Geb 7'!C148 -> Nasszelle | D161: ='Anl C-03 Geb 7'!D148 ->  | E161: ='Anl C-03 Geb 7'!E148 ->  | F161: ='Anl C-03 Geb 7'!F148 ->  | G161: ='Anl C-03 Geb 7'!G148 -> 0 | H161: ='Anl C-03 Geb 7'!H148 -> 0 | I161: ='Anl C-03 Geb 7'!I148 -> 0 | J161: ='Anl C-03 Geb 7'!J148 -> 0 | K161: 0 | L161: 0
A162: ='Anl C-03 Geb 7'!A149 -> 1 34 | B162: ='Anl C-03 Geb 7'!B149 -> 1.OG | C162: ='Anl C-03 Geb 7'!C149 -> Umkleideplätze | D162: ='Anl C-03 Geb 7'!D149 -> VF | E162: ='Anl C-03 Geb 7'!E149 -> beidseitig | F162: ='Anl C-03 Geb 7'!F149 -> J2 | G162: ='Anl C-03 Geb 7'!G149 -> 1.66 | H162: ='Anl C-03 Geb 7'!H149 -> 1.37 | I162: ='Anl C-03 Geb 7'!I149 -> 2.27 | J162: ='Anl C-03 Geb 7'!J149 -> 2 | K162: 4.54 | L162: 9.08
A163: ='Anl C-03 Geb 7'!A150 -> 0 | B163: ='Anl C-03 Geb 7'!B150 -> 1.OG | C163: ='Anl C-03 Geb 7'!C150 -> Nasszelle | D163: ='Anl C-03 Geb 7'!D150 ->  | E163: ='Anl C-03 Geb 7'!E150 ->  | F163: ='Anl C-03 Geb 7'!F150 ->  | G163: ='Anl C-03 Geb 7'!G150 -> 0 | H163: ='Anl C-03 Geb 7'!H150 -> 0 | I163: ='Anl C-03 Geb 7'!I150 -> 0 | J163: ='Anl C-03 Geb 7'!J150 -> 0 | K163: 0 | L163: 0
A164: ='Anl C-03 Geb 7'!A151 -> 1 35 | B164: ='Anl C-03 Geb 7'!B151 -> 1.OG | C164: ='Anl C-03 Geb 7'!C151 -> Umkleideplätze | D164: ='Anl C-03 Geb 7'!D151 -> VF | E164: ='Anl C-03 Geb 7'!E151 -> beidseitig | F164: ='Anl C-03 Geb 7'!F151 -> J2 | G164: ='Anl C-03 Geb 7'!G151 -> 1.66 | H164: ='Anl C-03 Geb 7'!H151 -> 1.37 | I164: ='Anl C-03 Geb 7'!I151 -> 2.27 | J164: ='Anl C-03 Geb 7'!J151 -> 2 | K164: 4.54 | L164: 9.08
A165: ='Anl C-03 Geb 7'!A152 -> 0 | B165: ='Anl C-03 Geb 7'!B152 -> 1.OG | C165: ='Anl C-03 Geb 7'!C152 -> Nasszelle | D165: ='Anl C-03 Geb 7'!D152 ->  | E165: ='Anl C-03 Geb 7'!E152 ->  | F165: ='Anl C-03 Geb 7'!F152 ->  | G165: ='Anl C-03 Geb 7'!G152 -> 0 | H165: ='Anl C-03 Geb 7'!H152 -> 0 | I165: ='Anl C-03 Geb 7'!I152 -> 0 | J165: ='Anl C-03 Geb 7'!J152 -> 0 | K165: 0 | L165: 0
A166: ='Anl C-03 Geb 7'!A153 -> 1 36 | B166: ='Anl C-03 Geb 7'!B153 -> 1.OG | C166: ='Anl C-03 Geb 7'!C153 -> Unterkunft | D166: ='Anl C-03 Geb 7'!D153 -> VF | E166: ='Anl C-03 Geb 7'!E153 -> beidseitig | F166: ='Anl C-03 Geb 7'!F153 -> J2 | G166: ='Anl C-03 Geb 7'!G153 -> 1.66 | H166: ='Anl C-03 Geb 7'!H153 -> 1.37 | I166: ='Anl C-03 Geb 7'!I153 -> 2.27 | J166: ='Anl C-03 Geb 7'!J153 -> 2 | K166: 4.54 | L166: 9.08
A167: ='Anl C-03 Geb 7'!A154 -> 0 | B167: ='Anl C-03 Geb 7'!B154 -> 1.OG | C167: ='Anl C-03 Geb 7'!C154 -> Nasszelle | D167: ='Anl C-03 Geb 7'!D154 ->  | E167: ='Anl C-03 Geb 7'!E154 ->  | F167: ='Anl C-03 Geb 7'!F154 ->  | G167: ='Anl C-03 Geb 7'!G154 -> 0 | H167: ='Anl C-03 Geb 7'!H154 -> 0 | I167: ='Anl C-03 Geb 7'!I154 -> 0 | J167: ='Anl C-03 Geb 7'!J154 -> 0 | K167: 0 | L167: 0
A168: ='Anl C-03 Geb 7'!A155 -> 1 37 | B168: ='Anl C-03 Geb 7'!B155 -> 1.OG | C168: ='Anl C-03 Geb 7'!C155 -> Trockenraum | D168: ='Anl C-03 Geb 7'!D155 -> VF | E168: ='Anl C-03 Geb 7'!E155 -> beidseitig | F168: ='Anl C-03 Geb 7'!F155 -> J2 | G168: ='Anl C-03 Geb 7'!G155 -> 1.66 | H168: ='Anl C-03 Geb 7'!H155 -> 1.37 | I168: ='Anl C-03 Geb 7'!I155 -> 2.27 | J168: ='Anl C-03 Geb 7'!J155 -> 2 | K168: 4.54 | L168: 9.08
A169: ='Anl C-03 Geb 7'!A156 -> 0 | B169: ='Anl C-03 Geb 7'!B156 -> 1.OG | C169: ='Anl C-03 Geb 7'!C156 -> Nasszelle | D169: ='Anl C-03 Geb 7'!D156 ->  | E169: ='Anl C-03 Geb 7'!E156 ->  | F169: ='Anl C-03 Geb 7'!F156 ->  | G169: ='Anl C-03 Geb 7'!G156 -> 0 | H169: ='Anl C-03 Geb 7'!H156 -> 0 | I169: ='Anl C-03 Geb 7'!I156 -> 0 | J169: ='Anl C-03 Geb 7'!J156 -> 0 | K169: 0 | L169: 0
A170: ='Anl C-03 Geb 7'!A157 -> 1 38 | B170: ='Anl C-03 Geb 7'!B157 -> 1.OG | C170: ='Anl C-03 Geb 7'!C157 -> Flur | D170: ='Anl C-03 Geb 7'!D157 -> VF | E170: ='Anl C-03 Geb 7'!E157 -> beidseitig | F170: ='Anl C-03 Geb 7'!F157 -> J2 | G170: ='Anl C-03 Geb 7'!G157 -> 1.66 | H170: ='Anl C-03 Geb 7'!H157 -> 1.37 | I170: ='Anl C-03 Geb 7'!I157 -> 2.27 | J170: ='Anl C-03 Geb 7'!J157 -> 1 | K170: 2.27 | L170: 4.54
A171: ='Anl C-03 Geb 7'!A158 -> 2 01 | B171: ='Anl C-03 Geb 7'!B158 -> 2.OG | C171: ='Anl C-03 Geb 7'!C158 -> Treppenraum | D171: ='Anl C-03 Geb 7'!D158 -> VF | E171: ='Anl C-03 Geb 7'!E158 -> beidseitig | F171: ='Anl C-03 Geb 7'!F158 -> J2 | G171: ='Anl C-03 Geb 7'!G158 -> 2.2 | H171: ='Anl C-03 Geb 7'!H158 -> 0.66 | I171: ='Anl C-03 Geb 7'!I158 -> 1.45 | J171: ='Anl C-03 Geb 7'!J158 -> 2 | K171: 2.9 | L171: 5.8
A172: ='Anl C-03 Geb 7'!A159 -> 2 02 | B172: ='Anl C-03 Geb 7'!B159 -> 2.OG | C172: ='Anl C-03 Geb 7'!C159 -> Flur | D172: ='Anl C-03 Geb 7'!D159 ->  | E172: ='Anl C-03 Geb 7'!E159 ->  | F172: ='Anl C-03 Geb 7'!F159 ->  | G172: ='Anl C-03 Geb 7'!G159 -> 0 | H172: ='Anl C-03 Geb 7'!H159 -> 0 | I172: ='Anl C-03 Geb 7'!I159 -> 0 | J172: ='Anl C-03 Geb 7'!J159 -> 0 | K172: 0 | L172: 0
A173: ='Anl C-03 Geb 7'!A160 -> 2 03 | B173: ='Anl C-03 Geb 7'!B160 -> 2.OG | C173: ='Anl C-03 Geb 7'!C160 -> Waschraum | D173: ='Anl C-03 Geb 7'!D160 -> VF | E173: ='Anl C-03 Geb 7'!E160 -> beidseitig | F173: ='Anl C-03 Geb 7'!F160 -> J2 | G173: ='Anl C-03 Geb 7'!G160 -> 1.66 | H173: ='Anl C-03 Geb 7'!H160 -> 1.37 | I173: ='Anl C-03 Geb 7'!I160 -> 2.27 | J173: ='Anl C-03 Geb 7'!J160 -> 1 | K173: 2.27 | L173: 4.54
A174: ='Anl C-03 Geb 7'!A161 -> 2 04 | B174: ='Anl C-03 Geb 7'!B161 -> 2.OG | C174: ='Anl C-03 Geb 7'!C161 -> Dienstzimmer | D174: ='Anl C-03 Geb 7'!D161 -> VF | E174: ='Anl C-03 Geb 7'!E161 -> beidseitig | F174: ='Anl C-03 Geb 7'!F161 -> J2 | G174: ='Anl C-03 Geb 7'!G161 -> 1.66 | H174: ='Anl C-03 Geb 7'!H161 -> 1.37 | I174: ='Anl C-03 Geb 7'!I161 -> 2.27 | J174: ='Anl C-03 Geb 7'!J161 -> 2 | K174: 4.54 | L174: 9.08
A175: ='Anl C-03 Geb 7'!A162 -> 2 05 | B175: ='Anl C-03 Geb 7'!B162 -> 2.OG | C175: ='Anl C-03 Geb 7'!C162 -> Duschraum | D175: ='Anl C-03 Geb 7'!D162 -> VF | E175: ='Anl C-03 Geb 7'!E162 -> beidseitig | F175: ='Anl C-03 Geb 7'!F162 -> J2 | G175: ='Anl C-03 Geb 7'!G162 -> 1.66 | H175: ='Anl C-03 Geb 7'!H162 -> 1.37 | I175: ='Anl C-03 Geb 7'!I162 -> 2.27 | J175: ='Anl C-03 Geb 7'!J162 -> 1 | K175: 2.27 | L175: 4.54
A176: ='Anl C-03 Geb 7'!A163 -> 2 06 | B176: ='Anl C-03 Geb 7'!B163 -> 2.OG | C176: ='Anl C-03 Geb 7'!C163 -> Dienstzimmer | D176: ='Anl C-03 Geb 7'!D163 -> VF | E176: ='Anl C-03 Geb 7'!E163 -> beidseitig | F176: ='Anl C-03 Geb 7'!F163 -> J2 | G176: ='Anl C-03 Geb 7'!G163 -> 1.66 | H176: ='Anl C-03 Geb 7'!H163 -> 1.37 | I176: ='Anl C-03 Geb 7'!I163 -> 2.27 | J176: ='Anl C-03 Geb 7'!J163 -> 2 | K176: 4.54 | L176: 9.08
A177: ='Anl C-03 Geb 7'!A164 -> 2 07 | B177: ='Anl C-03 Geb 7'!B164 -> 2.OG | C177: ='Anl C-03 Geb 7'!C164 -> Teeküche | D177: ='Anl C-03 Geb 7'!D164 -> VF | E177: ='Anl C-03 Geb 7'!E164 -> beidseitig | F177: ='Anl C-03 Geb 7'!F164 -> J2 | G177: ='Anl C-03 Geb 7'!G164 -> 0.92 | H177: ='Anl C-03 Geb 7'!H164 -> 1.37 | I177: ='Anl C-03 Geb 7'!I164 -> 1.26 | J177: ='Anl C-03 Geb 7'!J164 -> 1 | K177: 1.26 | L177: 2.52
A178: ='Anl C-03 Geb 7'!A165 -> 2 08 | B178: ='Anl C-03 Geb 7'!B165 -> 2.OG | C178: ='Anl C-03 Geb 7'!C165 -> Besprechungsraum | D178: ='Anl C-03 Geb 7'!D165 -> VF | E178: ='Anl C-03 Geb 7'!E165 -> beidseitig | F178: ='Anl C-03 Geb 7'!F165 -> J2 | G178: ='Anl C-03 Geb 7'!G165 -> 1.66 | H178: ='Anl C-03 Geb 7'!H165 -> 1.37 | I178: ='Anl C-03 Geb 7'!I165 -> 2.27 | J178: ='Anl C-03 Geb 7'!J165 -> 5 | K178: 11.35 | L178: 22.7
A179: ='Anl C-03 Geb 7'!A166 -> 2 09 | B179: ='Anl C-03 Geb 7'!B166 -> 2.OG | C179: ='Anl C-03 Geb 7'!C166 -> Vorraum WC | D179: ='Anl C-03 Geb 7'!D166 ->  | E179: ='Anl C-03 Geb 7'!E166 ->  | F179: ='Anl C-03 Geb 7'!F166 ->  | G179: ='Anl C-03 Geb 7'!G166 -> 0 | H179: ='Anl C-03 Geb 7'!H166 -> 0 | I179: ='Anl C-03 Geb 7'!I166 -> 0 | J179: ='Anl C-03 Geb 7'!J166 -> 0 | K179: 0 | L179: 0
A180: ='Anl C-03 Geb 7'!A167 -> 2 10 | B180: ='Anl C-03 Geb 7'!B167 -> 2.OG | C180: ='Anl C-03 Geb 7'!C167 -> WC | D180: ='Anl C-03 Geb 7'!D167 -> VF | E180: ='Anl C-03 Geb 7'!E167 -> beidseitig | F180: ='Anl C-03 Geb 7'!F167 -> J2 | G180: ='Anl C-03 Geb 7'!G167 -> 0.92 | H180: ='Anl C-03 Geb 7'!H167 -> 1.37 | I180: ='Anl C-03 Geb 7'!I167 -> 1.26 | J180: ='Anl C-03 Geb 7'!J167 -> 1 | K180: 1.26 | L180: =IF(E180="einseitig",K180*1,IF(E180="beidseitig",K180*2,IF(E180="raumseitig",K180*1,IF(E180="2x raumseitig",K180*2,IF(E180="3x raumseitig",K180*3,IF(E180="witterungsseitig",K180*1,IF(E180="außen",K180*1,IF(E180="raum- & witterungsseitig",K180*2,IF(E180="vierseitig",K180*4,IF(E180="allseitig",K180*2,IF(E180="ganzflächig",K180*2,0))))))))))) -> 2.52
A181: ='Anl C-03 Geb 7'!A168 -> 2 11 | B181: ='Anl C-03 Geb 7'!B168 -> 2.OG | C181: ='Anl C-03 Geb 7'!C168 -> Flur | D181: ='Anl C-03 Geb 7'!D168 ->  | E181: ='Anl C-03 Geb 7'!E168 ->  | F181: ='Anl C-03 Geb 7'!F168 ->  | G181: ='Anl C-03 Geb 7'!G168 -> 0 | H181: ='Anl C-03 Geb 7'!H168 -> 0 | I181: ='Anl C-03 Geb 7'!I168 -> 0 | J181: ='Anl C-03 Geb 7'!J168 -> 0 | K181: 0 | L181: 0
A182: ='Anl C-03 Geb 7'!A169 -> 2 12 | B182: ='Anl C-03 Geb 7'!B169 -> 2.OG | C182: ='Anl C-03 Geb 7'!C169 -> Dienstzimmer | D182: ='Anl C-03 Geb 7'!D169 -> VF | E182: ='Anl C-03 Geb 7'!E169 -> beidseitig | F182: ='Anl C-03 Geb 7'!F169 -> J2 | G182: ='Anl C-03 Geb 7'!G169 -> 1.66 | H182: ='Anl C-03 Geb 7'!H169 -> 1.37 | I182: ='Anl C-03 Geb 7'!I169 -> 2.27 | J182: ='Anl C-03 Geb 7'!J169 -> 2 | K182: 4.54 | L182: 9.08
A183: ='Anl C-03 Geb 7'!A170 -> 2 13 | B183: ='Anl C-03 Geb 7'!B170 -> 2.OG | C183: ='Anl C-03 Geb 7'!C170 -> Dienstzimmer | D183: ='Anl C-03 Geb 7'!D170 -> VF | E183: ='Anl C-03 Geb 7'!E170 -> beidseitig | F183: ='Anl C-03 Geb 7'!F170 -> J2 | G183: ='Anl C-03 Geb 7'!G170 -> 1.66 | H183: ='Anl C-03 Geb 7'!H170 -> 1.37 | I183: ='Anl C-03 Geb 7'!I170 -> 2.27 | J183: ='Anl C-03 Geb 7'!J170 -> 2 | K183: 4.54 | L183: 9.08
A184: ='Anl C-03 Geb 7'!A171 -> 2 14 | B184: ='Anl C-03 Geb 7'!B171 -> 2.OG | C184: ='Anl C-03 Geb 7'!C171 -> Dienstzimmer | D184: ='Anl C-03 Geb 7'!D171 -> VF | E184: ='Anl C-03 Geb 7'!E171 -> beidseitig | F184: ='Anl C-03 Geb 7'!F171 -> J2 | G184: ='Anl C-03 Geb 7'!G171 -> 1.66 | H184: ='Anl C-03 Geb 7'!H171 -> 1.37 | I184: ='Anl C-03 Geb 7'!I171 -> 2.27 | J184: ='Anl C-03 Geb 7'!J171 -> 2 | K184: =I184*J184 -> 4.54 | L184: 9.08
A185: ='Anl C-03 Geb 7'!A172 -> 2 15 | B185: ='Anl C-03 Geb 7'!B172 -> 2.OG | C185: ='Anl C-03 Geb 7'!C172 -> Dienstzimmer | D185: ='Anl C-03 Geb 7'!D172 -> VF | E185: ='Anl C-03 Geb 7'!E172 -> beidseitig | F185: ='Anl C-03 Geb 7'!F172 -> J2 | G185: ='Anl C-03 Geb 7'!G172 -> 1.66 | H185: ='Anl C-03 Geb 7'!H172 -> 1.37 | I185: ='Anl C-03 Geb 7'!I172 -> 2.27 | J185: ='Anl C-03 Geb 7'!J172 -> 2 | K185: 4.54 | L185: 9.08
A186: ='Anl C-03 Geb 7'!A173 -> 2 16 | B186: ='Anl C-03 Geb 7'!B173 -> 2.OG | C186: ='Anl C-03 Geb 7'!C173 -> Dienstzimmer | D186: ='Anl C-03 Geb 7'!D173 -> VF | E186: ='Anl C-03 Geb 7'!E173 -> beidseitig | F186: ='Anl C-03 Geb 7'!F173 -> J2 | G186: ='Anl C-03 Geb 7'!G173 -> 1.66 | H186: ='Anl C-03 Geb 7'!H173 -> 1.37 | I186: ='Anl C-03 Geb 7'!I173 -> 2.27 | J186: ='Anl C-03 Geb 7'!J173 -> 2 | K186: 4.54 | L186: 9.08
A187: ='Anl C-03 Geb 7'!A174 -> 2 17 | B187: ='Anl C-03 Geb 7'!B174 -> 2.OG | C187: ='Anl C-03 Geb 7'!C174 -> Dienstzimmer | D187: ='Anl C-03 Geb 7'!D174 -> VF | E187: ='Anl C-03 Geb 7'!E174 -> beidseitig | F187: ='Anl C-03 Geb 7'!F174 -> J2 | G187: ='Anl C-03 Geb 7'!G174 -> 1.66 | H187: ='Anl C-03 Geb 7'!H174 -> 1.37 | I187: ='Anl C-03 Geb 7'!I174 -> 2.27 | J187: ='Anl C-03 Geb 7'!J174 -> 2 | K187: 4.54 | L187: 9.08
A188: ='Anl C-03 Geb 7'!A175 -> 2 18 | B188: ='Anl C-03 Geb 7'!B175 -> 2.OG | C188: ='Anl C-03 Geb 7'!C175 -> Dienstzimmer | D188: ='Anl C-03 Geb 7'!D175 -> VF | E188: ='Anl C-03 Geb 7'!E175 -> beidseitig | F188: ='Anl C-03 Geb 7'!F175 -> J2 | G188: ='Anl C-03 Geb 7'!G175 -> 1.66 | H188: ='Anl C-03 Geb 7'!H175 -> 1.37 | I188: ='Anl C-03 Geb 7'!I175 -> 2.27 | J188: ='Anl C-03 Geb 7'!J175 -> 2 | K188: 4.54 | L188: 9.08
A189: ='Anl C-03 Geb 7'!A176 -> 2 19 | B189: ='Anl C-03 Geb 7'!B176 -> 2.OG | C189: ='Anl C-03 Geb 7'!C176 -> Dienstzimmer | D189: ='Anl C-03 Geb 7'!D176 -> VF | E189: ='Anl C-03 Geb 7'!E176 -> beidseitig | F189: ='Anl C-03 Geb 7'!F176 -> J2 | G189: ='Anl C-03 Geb 7'!G176 -> 1.66 | H189: ='Anl C-03 Geb 7'!H176 -> 1.37 | I189: ='Anl C-03 Geb 7'!I176 -> 2.27 | J189: ='Anl C-03 Geb 7'!J176 -> 2 | K189: 4.54 | L189: 9.08
A190: ='Anl C-03 Geb 7'!A177 -> 2 20 | B190: ='Anl C-03 Geb 7'!B177 -> 2.OG | C190: ='Anl C-03 Geb 7'!C177 -> Dienstzimmer | D190: ='Anl C-03 Geb 7'!D177 -> VF | E190: ='Anl C-03 Geb 7'!E177 -> beidseitig | F190: ='Anl C-03 Geb 7'!F177 -> J2 | G190: ='Anl C-03 Geb 7'!G177 -> 1.66 | H190: ='Anl C-03 Geb 7'!H177 -> 1.37 | I190: ='Anl C-03 Geb 7'!I177 -> 2.27 | J190: ='Anl C-03 Geb 7'!J177 -> 2 | K190: 4.54 | L190: 9.08
A191: ='Anl C-03 Geb 7'!A178 -> 2 21 | B191: ='Anl C-03 Geb 7'!B178 -> 2.OG | C191: ='Anl C-03 Geb 7'!C178 -> Vorraum Dusche | D191: ='Anl C-03 Geb 7'!D178 -> VF | E191: ='Anl C-03 Geb 7'!E178 -> beidseitig | F191: ='Anl C-03 Geb 7'!F178 -> J2 | G191: ='Anl C-03 Geb 7'!G178 -> 1.66 | H191: ='Anl C-03 Geb 7'!H178 -> 1.37 | I191: ='Anl C-03 Geb 7'!I178 -> 2.27 | J191: ='Anl C-03 Geb 7'!J178 -> 1 | K191: 2.27 | L191: 4.54
A192: ='Anl C-03 Geb 7'!A179 -> 2 22 | B192: ='Anl C-03 Geb 7'!B179 -> 2.OG | C192: ='Anl C-03 Geb 7'!C179 -> Dienstzimmer | D192: ='Anl C-03 Geb 7'!D179 -> VF | E192: ='Anl C-03 Geb 7'!E179 -> beidseitig | F192: ='Anl C-03 Geb 7'!F179 -> J2 | G192: ='Anl C-03 Geb 7'!G179 -> 1.66 | H192: ='Anl C-03 Geb 7'!H179 -> 1.37 | I192: ='Anl C-03 Geb 7'!I179 -> 2.27 | J192: ='Anl C-03 Geb 7'!J179 -> 2 | K192: 4.54 | L192: 9.08
A193: ='Anl C-03 Geb 7'!A180 -> 2 23 | B193: ='Anl C-03 Geb 7'!B180 -> 2.OG | C193: ='Anl C-03 Geb 7'!C180 -> Duschraum | D193: ='Anl C-03 Geb 7'!D180 ->  | E193: ='Anl C-03 Geb 7'!E180 ->  | F193: ='Anl C-03 Geb 7'!F180 ->  | G193: ='Anl C-03 Geb 7'!G180 -> 0 | H193: ='Anl C-03 Geb 7'!H180 -> 0 | I193: ='Anl C-03 Geb 7'!I180 -> 0 | J193: ='Anl C-03 Geb 7'!J180 -> 0 | K193: 0 | L193: 0
A194: ='Anl C-03 Geb 7'!A181 -> 2 24 | B194: ='Anl C-03 Geb 7'!B181 -> 2.OG | C194: ='Anl C-03 Geb 7'!C181 -> Dienstzimmer | D194: ='Anl C-03 Geb 7'!D181 -> VF | E194: ='Anl C-03 Geb 7'!E181 -> beidseitig | F194: ='Anl C-03 Geb 7'!F181 -> J2 | G194: ='Anl C-03 Geb 7'!G181 -> 1.66 | H194: ='Anl C-03 Geb 7'!H181 -> 1.37 | I194: ='Anl C-03 Geb 7'!I181 -> 2.27 | J194: ='Anl C-03 Geb 7'!J181 -> 2 | K194: 4.54 | L194: 9.08
A195: ='Anl C-03 Geb 7'!A182 -> 2 25 | B195: ='Anl C-03 Geb 7'!B182 -> 2.OG | C195: ='Anl C-03 Geb 7'!C182 -> Waschraum | D195: ='Anl C-03 Geb 7'!D182 -> VF | E195: ='Anl C-03 Geb 7'!E182 -> beidseitig | F195: ='Anl C-03 Geb 7'!F182 -> J2 | G195: ='Anl C-03 Geb 7'!G182 -> 1.66 | H195: ='Anl C-03 Geb 7'!H182 -> 1.37 | I195: ='Anl C-03 Geb 7'!I182 -> 2.27 | J195: ='Anl C-03 Geb 7'!J182 -> 1 | K195: 2.27 | L195: 4.54
A196: ='Anl C-03 Geb 7'!A183 -> 2 26 | B196: ='Anl C-03 Geb 7'!B183 -> 2.OG | C196: ='Anl C-03 Geb 7'!C183 -> Vorraum WC | D196: ='Anl C-03 Geb 7'!D183 ->  | E196: ='Anl C-03 Geb 7'!E183 ->  | F196: ='Anl C-03 Geb 7'!F183 ->  | G196: ='Anl C-03 Geb 7'!G183 -> 0 | H196: ='Anl C-03 Geb 7'!H183 -> 0 | I196: ='Anl C-03 Geb 7'!I183 -> 0 | J196: ='Anl C-03 Geb 7'!J183 -> 0 | K196: 0 | L196: 0
A197: ='Anl C-03 Geb 7'!A184 -> 2 27 | B197: ='Anl C-03 Geb 7'!B184 -> 2.OG | C197: ='Anl C-03 Geb 7'!C184 -> WC | D197: ='Anl C-03 Geb 7'!D184 -> VF | E197: ='Anl C-03 Geb 7'!E184 -> beidseitig | F197: ='Anl C-03 Geb 7'!F184 -> J2 | G197: ='Anl C-03 Geb 7'!G184 -> 0.92 | H197: ='Anl C-03 Geb 7'!H184 -> 1.37 | I197: ='Anl C-03 Geb 7'!I184 -> 1.26 | J197: ='Anl C-03 Geb 7'!J184 -> 1 | K197: 1.26 | L197: 2.52
A198: ='Anl C-03 Geb 7'!A185 -> 2 28 | B198: ='Anl C-03 Geb 7'!B185 -> 2.OG | C198: ='Anl C-03 Geb 7'!C185 -> Abstellraum Reinig. | D198: ='Anl C-03 Geb 7'!D185 -> VF | E198: ='Anl C-03 Geb 7'!E185 -> beidseitig | F198: ='Anl C-03 Geb 7'!F185 -> J2 | G198: ='Anl C-03 Geb 7'!G185 -> 0.92 | H198: ='Anl C-03 Geb 7'!H185 -> 1.37 | I198: ='Anl C-03 Geb 7'!I185 -> 1.26 | J198: ='Anl C-03 Geb 7'!J185 -> 1 | K198: 1.26 | L198: 2.52
A199: ='Anl C-03 Geb 7'!A186 -> 2 29 | B199: ='Anl C-03 Geb 7'!B186 -> 2.OG | C199: ='Anl C-03 Geb 7'!C186 -> Dienstzimmer | D199: ='Anl C-03 Geb 7'!D186 -> VF | E199: ='Anl C-03 Geb 7'!E186 -> beidseitig | F199: ='Anl C-03 Geb 7'!F186 -> J2 | G199: ='Anl C-03 Geb 7'!G186 -> 1.66 | H199: ='Anl C-03 Geb 7'!H186 -> 1.37 | I199: ='Anl C-03 Geb 7'!I186 -> 2.27 | J199: ='Anl C-03 Geb 7'!J186 -> 2 | K199: 4.54 | L199: 9.08
A200: ='Anl C-03 Geb 7'!A187 -> 2 30 | B200: ='Anl C-03 Geb 7'!B187 -> 2.OG | C200: ='Anl C-03 Geb 7'!C187 -> Flur | D200: ='Anl C-03 Geb 7'!D187 ->  | E200: ='Anl C-03 Geb 7'!E187 ->  | F200: ='Anl C-03 Geb 7'!F187 ->  | G200: ='Anl C-03 Geb 7'!G187 -> 0 | H200: ='Anl C-03 Geb 7'!H187 -> 0 | I200: ='Anl C-03 Geb 7'!I187 -> 0 | J200: ='Anl C-03 Geb 7'!J187 -> 0 | K200: 0 | L200: 0
A201: ='Anl C-03 Geb 7'!A188 -> 2 31 | B201: ='Anl C-03 Geb 7'!B188 -> 2.OG | C201: ='Anl C-03 Geb 7'!C188 -> Treppenraum | D201: ='Anl C-03 Geb 7'!D188 -> VF | E201: ='Anl C-03 Geb 7'!E188 -> beidseitig | F201: ='Anl C-03 Geb 7'!F188 -> J2 | G201: ='Anl C-03 Geb 7'!G188 -> 2.2 | H201: ='Anl C-03 Geb 7'!H188 -> 0.66 | I201: ='Anl C-03 Geb 7'!I188 -> 1.45 | J201: ='Anl C-03 Geb 7'!J188 -> 2 | K201: 2.9 | L201: 5.8
A202: ='Anl C-03 Geb 7'!A189 -> 2 32 | B202: ='Anl C-03 Geb 7'!B189 -> 2.OG | C202: ='Anl C-03 Geb 7'!C189 -> Umkleideplätze | D202: ='Anl C-03 Geb 7'!D189 -> VF | E202: ='Anl C-03 Geb 7'!E189 -> beidseitig | F202: ='Anl C-03 Geb 7'!F189 -> J2 | G202: ='Anl C-03 Geb 7'!G189 -> 1.66 | H202: ='Anl C-03 Geb 7'!H189 -> 1.37 | I202: ='Anl C-03 Geb 7'!I189 -> 2.27 | J202: ='Anl C-03 Geb 7'!J189 -> 2 | K202: 4.54 | L202: 9.08
... 2549 more rows

Sheet Anl C-03 Geb 2
A1: VOEK 572-25 Los 2 | L1: Anlage C-03
A3: Flächenaufmaß Glasreinigung
A5: Reinigungsobjekt: | C5: BPol Blumberg
A6: Straße: | C6: Bundespolizeiallee1 | R6: einseitig
A7: PLZ und Ort: | C7: 16356 Ahrensfelde | R7: beidseitig
A8: WE - Nr.: | C8: 141115 | I8: Stand: | J8: 2018-09-17 | R8: raumseitig
A9: Gebäude Nr. | C9: 2 | R9: 2x raumseitig
A10: Anzahl Etagen | R10: 3x raumseitig
A11: Gebäudeart SAP | R11: witterungsseitig
A12: Kontrakt-Nr.: | I12: Druckdatum: | J12: 2025-02-05 | R12: außen
A13: Raum. Nr. | B13: Etage | C13: Raumart / Nutzung | D13: Glascode | E13: Reinigung einseitig beidseitig oder mehrseitig (Info) | F13: Turnus | G13: Breite, m | H13: Höhe, m | I13: Einzelmaß, m² | J13: Anzahl / Einzelmaß | K13: Reinigungs-fläche einseitig | L13: zu reinigende Gesamtfläche | R13: raum- & witterungsseitig
A14: 1 | B14: EG | C14: Wachraum | D14: VF | E14: beidseitig | F14: J2 | G14: 7.69 | H14: 1.43 | I14: 11 | J14: 1 | K14: 11 | L14: 22 | R14: vierseitig
A15: 2 | B15: EG | C15: Umkleide | D15: VF | E15: beidseitig | F15: J2 | G15: 0.88 | H15: 1.35 | I15: 1.19 | J15: 2 | K15: 2.38 | L15: 4.76 | R15: allseitig
A16: 3 | B16: EG | C16: Ruheraum/Teeküche | D16: VF | E16: beidseitig | F16: J2 | G16: 0.88 | H16: 1.35 | I16: 1.19 | J16: 1 | K16: 1.19 | L16: 2.38 | R16: ganzflächig
A17: 4 | B17: EG | C17: Besucherraum | D17: VF | E17: beidseitig | F17: J2 | G17: 0.88 | H17: 0.6 | I17: 0.53 | J17: 3 | K17: 1.59 | L17: 3.18
A18: 5 | B18: EG | C18: HA Heizung | I18: 0 | K18: 0 | L18: 0
A19: 6 | B19: EG | C19: HA FM / Elektrik | D19: VF | E19: beidseitig | F19: J2 | G19: 0.88 | H19: 0.6 | I19: 0.53 | J19: 1 | K19: 0.53 | L19: 1.06
A20: 7 | B20: EG | C20: Vorraum / WC | D20: VF | E20: beidseitig | F20: J2 | G20: 0.88 | H20: 0.6 | I20: 0.53 | J20: 1 | K20: 0.53 | L20: 1.06
A21: 8 | B21: EG | C21: Vorraum / WC | D21: VF | E21: beidseitig | F21: J2 | G21: 0.88 | H21: 0.6 | I21: 0.53 | J21: 1 | K21: 0.53 | L21: 1.06
A22: 9 | B22: EG | C22: Vorraum / WC | D22: VF | E22: beidseitig | F22: J2 | G22: 0.88 | H22: 0.6 | I22: 0.53 | J22: 1 | K22: 0.53 | L22: 1.06
A23: 10 | B23: EG | C23: Abstellraum Reinig. | I23: 0 | K23: 0 | L23: 0
A24: 11 | B24: EG | C24: Flur | I24: 0 | K24: 0 | L24: 0
C26: Summe: | I26: =SUBTOTAL(9,I14:I24) -> 16.03 | J26: =SUBTOTAL(9,J14:J24) -> 11 | K26: =SUBTOTAL(9,K14:K24) -> 18.28 | L26: =SUBTOTAL(9,L14:L24) -> 36.56
C29: Bearbeitung durch VOEK 42 - Zusammenfassung der Aufmaßtabelle / Übertragung in das Preisblatt
F30: =SUM(F35:F628) -> 0 | G30: =SUM(G35:G628) -> 0
C34: Reinigungsbereich Glasreinigung | D34: Glascode | E34: Reinigung einseitig oder beidseitig | F34: Renigungsfläche einseitig | G34: zu reinigende Gesamtfläche | H34: Turnus | I34: Einsatztage pro Jahr
C35: Außenfenster bis 5,00 m² Fenstergröße | D35: F1 <5 | E35: einseitig | F35: =SUMPRODUCT((Reinigungsfläche)*(Glascode=D35)*(Turnus=H35)) -> 0 | G35: =SUMPRODUCT((Gesamtfläche)*(Glascode=D35)*(Turnus=H35)) -> 0 | H35: W1 | I35: =IF(H35="W1",52.14,IF(H35="M1",12,IF(H35="J0,5",0.5,IF(H35="J1",1,IF(H35="J2",2,IF(H35="J3",3,IF(H35="J4",4,IF(H35="J6",6,IF(H35="n.B.","n.B."))))))))) -> 52.14
C36: Außenfenster bis 5,00 m² Fenstergröße | D36: F1 <5 | E36: einseitig | F36: =SUMPRODUCT((Reinigungsfläche)*(Glascode=D36)*(Turnus=H36)) -> 0 | G36: 0 | H36: M1 | I36: =IF(H36="W1",52,IF(H36="M1",12,IF(H36="J0,5",0.5,IF(H36="J1",1,IF(H36="J2",2,IF(H36="J3",3,IF(H36="J4",4,IF(H36="J6",6,IF(H36="n.B.","n.B."))))))))) -> 12
C37: Außenfenster bis 5,00 m² Fenstergröße | D37: F1 <5 | E37: einseitig | F37: 0 | G37: 0 | H37: J0,5 | I37: 0.5
C38: Außenfenster bis 5,00 m² Fenstergröße | D38: F1 <5 | E38: einseitig | F38: =SUMPRODUCT((Reinigungsfläche)*(Glascode=D38)*(Turnus=H38)) -> 0 | G38: =SUMPRODUCT((Gesamtfläche)*(Glascode=D38)*(Turnus=H38)) -> 0 | H38: J1 | I38: 1
C39: Außenfenster bis 5,00 m² Fenstergröße | D39: F1 <5 | E39: einseitig | F39: 0 | G39: =SUMPRODUCT((Gesamtfläche)*(Glascode=D39)*(Turnus=H39)) -> 0 | H39: J2 | I39: 2
C40: Außenfenster bis 5,00 m² Fenstergröße | D40: F1 <5 | E40: einseitig | F40: 0 | G40: 0 | H40: J3 | I40: 3
C41: Außenfenster bis 5,00 m² Fenstergröße | D41: F1 <5 | E41: einseitig | F41: 0 | G41: 0 | H41: J4 | I41: 4
C42: Außenfenster bis 5,00 m² Fenstergröße | D42: F1 <5 | E42: einseitig | F42: 0 | G42: 0 | H42: J6 | I42: 6
C43: Außenfenster bis 5,00 m² Fenstergröße | D43: F1 <5 | E43: einseitig | F43: 0 | G43: 0 | H43: n.B. | I43: n.B.
C44: Außenfenster bis 5,00 m² Fenstergröße | D44: F2 <5 | E44: beidseitig | F44: =SUMPRODUCT((Reinigungsfläche)*(Glascode=D44)*(Turnus=H44)) -> 0 | G44: =SUMPRODUCT((Gesamtfläche)*(Glascode=D44)*(Turnus=H44)) -> 0 | H44: W1 | I44: =IF(H44="W1",52.14,IF(H44="M1",12,IF(H44="J0,5",0.5,IF(H44="J1",1,IF(H44="J2",2,IF(H44="J3",3,IF(H44="J4",4,IF(H44="J6",6,IF(H44="n.B.","n.B."))))))))) -> 52.14
C45: Außenfenster bis 5,00 m² Fenstergröße | D45: F2 <5 | E45: beidseitig | F45: 0 | G45: 0 | H45: M1 | I45: 12
C46: Außenfenster bis 5,00 m² Fenstergröße | D46: F2 <5 | E46: beidseitig | F46: 0 | G46: 0 | H46: J0,5 | I46: 0.5
C47: Außenfenster bis 5,00 m² Fenstergröße | D47: F2 <5 | E47: beidseitig | F47: 0 | G47: 0 | H47: J1 | I47: 1
C48: Außenfenster bis 5,00 m² Fenstergröße | D48: F2 <5 | E48: beidseitig | F48: 0 | G48: 0 | H48: J2 | I48: 2
C49: Außenfenster bis 5,00 m² Fenstergröße | D49: F2 <5 | E49: beidseitig | F49: 0 | G49: 0 | H49: J3 | I49: 3
C50: Außenfenster bis 5,00 m² Fenstergröße | D50: F2 <5 | E50: beidseitig | F50: 0 | G50: 0 | H50: J4 | I50: 4
C51: Außenfenster bis 5,00 m² Fenstergröße | D51: F2 <5 | E51: beidseitig | F51: 0 | G51: 0 | H51: J6 | I51: 6
C52: Außenfenster bis 5,00 m² Fenstergröße | D52: F2 <5 | E52: beidseitig | F52: 0 | G52: 0 | H52: n.B. | I52: n.B.
C53: Außenfenster bis 5,00-15,00 m² Fenstergröße | D53: F1 5-15 | E53: einseitig | F53: =SUMPRODUCT((Reinigungsfläche)*(Glascode=D53)*(Turnus=H53)) -> 0 | G53: =SUMPRODUCT((Gesamtfläche)*(Glascode=D53)*(Turnus=H53)) -> 0 | H53: W1 | I53: =IF(H53="W1",52.14,IF(H53="M1",12,IF(H53="J0,5",0.5,IF(H53="J1",1,IF(H53="J2",2,IF(H53="J3",3,IF(H53="J4",4,IF(H53="J6",6,IF(H53="n.B.","n.B."))))))))) -> 52.14
C54: Außenfenster bis 5,00-15,00 m² Fenstergröße | D54: F1 5-15 | E54: einseitig | F54: 0 | G54: 0 | H54: M1 | I54: 12
C55: Außenfenster bis 5,00-15,00 m² Fenstergröße | D55: F1 5-15 | E55: einseitig | F55: =SUMPRODUCT((Reinigungsfläche)*(Glascode=D55)*(Turnus=H55)) -> 0 | G55: =SUMPRODUCT((Gesamtfläche)*(Glascode=D55)*(Turnus=H55)) -> 0 | H55: J0,5 | I55: 0.5
C56: Außenfenster bis 5,00-15,00 m² Fenstergröße | D56: F1 5-15 | E56: einseitig | F56: 0 | G56: 0 | H56: J1 | I56: 1
C57: Außenfenster bis 5,00-15,00 m² Fenstergröße | D57: F1 5-15 | E57: einseitig | F57: 0 | G57: 0 | H57: J2 | I57: 2
C58: Außenfenster bis 5,00-15,00 m² Fenstergröße | D58: F1 5-15 | E58: einseitig | F58: 0 | G58: 0 | H58: J3 | I58: 3
C59: Außenfenster bis 5,00-15,00 m² Fenstergröße | D59: F1 5-15 | E59: einseitig | F59: 0 | G59: 0 | H59: J4 | I59: 4
C60: Außenfenster bis 5,00-15,00 m² Fenstergröße | D60: F1 5-15 | E60: einseitig | F60: 0 | G60: 0 | H60: J6 | I60: 6
C61: Außenfenster bis 5,00-15,00 m² Fenstergröße | D61: F1 5-15 | E61: einseitig | F61: 0 | G61: 0 | H61: n.B. | I61: n.B.
C62: Außenfenster bis 5,00-15,00 m² Fenstergröße | D62: F2 5-15 | E62: beidseitig | F62: =SUMPRODUCT((Reinigungsfläche)*(Glascode=D62)*(Turnus=H62)) -> 0 | G62: =SUMPRODUCT((Gesamtfläche)*(Glascode=D62)*(Turnus=H62)) -> 0 | H62: W1 | I62: =IF(H62="W1",52.14,IF(H62="M1",12,IF(H62="J0,5",0.5,IF(H62="J1",1,IF(H62="J2",2,IF(H62="J3",3,IF(H62="J4",4,IF(H62="J6",6,IF(H62="n.B.","n.B."))))))))) -> 52.14
C63: Außenfenster bis 5,00-15,00 m² Fenstergröße | D63: F2 5-15 | E63: beidseitig | F63: 0 | G63: 0 | H63: M1 | I63: 12
C64: Außenfenster bis 5,00-15,00 m² Fenstergröße | D64: F2 5-15 | E64: beidseitig | F64: 0 | G64: 0 | H64: J0,5 | I64: 0.5
C65: Außenfenster bis 5,00-15,00 m² Fenstergröße | D65: F2 5-15 | E65: beidseitig | F65: 0 | G65: 0 | H65: J1 | I65: 1
C66: Außenfenster bis 5,00-15,00 m² Fenstergröße | D66: F2 5-15 | E66: beidseitig | F66: 0 | G66: 0 | H66: J2 | I66: 2
C67: Außenfenster bis 5,00-15,00 m² Fenstergröße | D67: F2 5-15 | E67: beidseitig | F67: 0 | G67: 0 | H67: J3 | I67: 3
C68: Außenfenster bis 5,00-15,00 m² Fenstergröße | D68: F2 5-15 | E68: beidseitig | F68: 0 | G68: 0 | H68: J4 | I68: 4
C69: Außenfenster bis 5,00-15,00 m² Fenstergröße | D69: F2 5-15 | E69: beidseitig | F69: 0 | G69: 0 | H69: J6 | I69: 6
C70: Außenfenster bis 5,00-15,00 m² Fenstergröße | D70: F2 5-15 | E70: beidseitig | F70: 0 | G70: 0 | H70: n.B. | I70: n.B.
C71: Außenfenster ab 15,00 m² Fenstergröße | D71: F1 >15 | E71: einseitig | F71: =SUMPRODUCT((Reinigungsfläche)*(Glascode=D71)*(Turnus=H71)) -> 0 | G71: =SUMPRODUCT((Gesamtfläche)*(Glascode=D71)*(Turnus=H71)) -> 0 | H71: W1 | I71: =IF(H71="W1",52.14,IF(H71="M1",12,IF(H71="J0,5",0.5,IF(H71="J1",1,IF(H71="J2",2,IF(H71="J3",3,IF(H71="J4",4,IF(H71="J6",6,IF(H71="n.B.","n.B."))))))))) -> 52.14
C72: Außenfenster ab 15,00 m² Fenstergröße | D72: F1 >15 | E72: einseitig | F72: 0 | G72: 0 | H72: M1 | I72: 12
C73: Außenfenster ab 15,00 m² Fenstergröße | D73: F1 >15 | E73: einseitig | F73: 0 | G73: 0 | H73: J0,5 | I73: 0.5
C74: Außenfenster ab 15,00 m² Fenstergröße | D74: F1 >15 | E74: einseitig | F74: 0 | G74: 0 | H74: J1 | I74: 1
C75: Außenfenster ab 15,00 m² Fenstergröße | D75: F1 >15 | E75: einseitig | F75: 0 | G75: 0 | H75: J2 | I75: 2
C76: Außenfenster ab 15,00 m² Fenstergröße | D76: F1 >15 | E76: einseitig | F76: 0 | G76: 0 | H76: J3 | I76: 3
C77: Außenfenster ab 15,00 m² Fenstergröße | D77: F1 >15 | E77: einseitig | F77: 0 | G77: 0 | H77: J4 | I77: 4
C78: Außenfenster ab 15,00 m² Fenstergröße | D78: F1 >15 | E78: einseitig | F78: 0 | G78: 0 | H78: J6 | I78: 6
C79: Außenfenster ab 15,00 m² Fenstergröße | D79: F1 >15 | E79: einseitig | F79: 0 | G79: 0 | H79: n.B. | I79: n.B.
C80: Außenfenster ab 15,00 m² Fenstergröße | D80: F2 >15 | E80: beidseitig | F80: =SUMPRODUCT((Reinigungsfläche)*(Glascode=D80)*(Turnus=H80)) -> 0 | G80: =SUMPRODUCT((Gesamtfläche)*(Glascode=D80)*(Turnus=H80)) -> 0 | H80: W1 | I80: =IF(H80="W1",52.14,IF(H80="M1",12,IF(H80="J0,5",0.5,IF(H80="J1",1,IF(H80="J2",2,IF(H80="J3",3,IF(H80="J4",4,IF(H80="J6",6,IF(H80="n.B.","n.B."))))))))) -> 52.14
C81: Außenfenster ab 15,00 m² Fenstergröße | D81: F2 >15 | E81: beidseitig | F81: 0 | G81: 0 | H81: M1 | I81: 12
C82: Außenfenster ab 15,00 m² Fenstergröße | D82: F2 >15 | E82: beidseitig | F82: =SUMPRODUCT((Reinigungsfläche)*(Glascode=D82)*(Turnus=H82)) -> 0 | G82: =SUMPRODUCT((Gesamtfläche)*(Glascode=D82)*(Turnus=H82)) -> 0 | H82: J0,5 | I82: 0.5
C83: Außenfenster ab 15,00 m² Fenstergröße | D83: F2 >15 | E83: beidseitig | F83: 0 | G83: 0 | H83: J1 | I83: 1
C84: Außenfenster ab 15,00 m² Fenstergröße | D84: F2 >15 | E84: beidseitig | F84: 0 | G84: 0 | H84: J2 | I84: 2
C85: Außenfenster ab 15,00 m² Fenstergröße | D85: F2 >15 | E85: beidseitig | F85: 0 | G85: 0 | H85: J3 | I85: 3
C86: Außenfenster ab 15,00 m² Fenstergröße | D86: F2 >15 | E86: beidseitig | F86: 0 | G86: 0 | H86: J4 | I86: 4
C87: Außenfenster ab 15,00 m² Fenstergröße | D87: F2 >15 | E87: beidseitig | F87: 0 | G87: 0 | H87: J6 | I87: 6
C88: Außenfenster ab 15,00 m² Fenstergröße | D88: F2 >15 | E88: beidseitig | F88: 0 | G88: 0 | H88: n.B. | I88: n.B.
C89: Kastenfenster | D89: KF1 | E89: einseitig | F89: =SUMPRODUCT((Reinigungsfläche)*(Glascode=D89)*(Turnus=H89)) -> 0 | G89: =SUMPRODUCT((Gesamtfläche)*(Glascode=D89)*(Turnus=H89)) -> 0 | H89: W1 | I89: =IF(H89="W1",52.14,IF(H89="M1",12,IF(H89="J0,5",0.5,IF(H89="J1",1,IF(H89="J2",2,IF(H89="J3",3,IF(H89="J4",4,IF(H89="J6",6,IF(H89="n.B.","n.B."))))))))) -> 52.14
C90: Kastenfenster | D90: KF1 | E90: einseitig | F90: 0 | G90: 0 | H90: M1 | I90: 12
C91: Kastenfenster | D91: KF1 | E91: einseitig | F91: =SUMPRODUCT((Reinigungsfläche)*(Glascode=D91)*(Turnus=H91)) -> 0 | G91: =SUMPRODUCT((Gesamtfläche)*(Glascode=D91)*(Turnus=H91)) -> 0 | H91: J0,5 | I91: 0.5
C92: Kastenfenster | D92: KF1 | E92: einseitig | F92: 0 | G92: 0 | H92: J1 | I92: 1
C93: Kastenfenster | D93: KF1 | E93: einseitig | F93: 0 | G93: 0 | H93: J2 | I93: 2
C94: Kastenfenster | D94: KF1 | E94: einseitig | F94: 0 | G94: 0 | H94: J3 | I94: 3
C95: Kastenfenster | D95: KF1 | E95: einseitig | F95: 0 | G95: 0 | H95: J4 | I95: 4
C96: Kastenfenster | D96: KF1 | E96: einseitig | F96: 0 | G96: 0 | H96: J6 | I96: 6
C97: Kastenfenster | D97: KF1 | E97: einseitig | F97: 0 | G97: 0 | H97: n.B. | I97: n.B.
C98: Kastenfenster | D98: KF2a | E98: beidseitig | F98: =SUMPRODUCT((Reinigungsfläche)*(Glascode=D98)*(Turnus=H98)) -> 0 | G98: =SUMPRODUCT((Gesamtfläche)*(Glascode=D98)*(Turnus=H98)) -> 0 | H98: W1 | I98: =IF(H98="W1",52.14,IF(H98="M1",12,IF(H98="J0,5",0.5,IF(H98="J1",1,IF(H98="J2",2,IF(H98="J3",3,IF(H98="J4",4,IF(H98="J6",6,IF(H98="n.B.","n.B."))))))))) -> 52.14
C99: Kastenfenster | D99: KF2a | E99: beidseitig | F99: 0 | G99: 0 | H99: M1 | I99: 12
C100: Kastenfenster | D100: KF2a | E100: beidseitig | F100: 0 | G100: 0 | H100: J0,5 | I100: 0.5
C101: Kastenfenster | D101: KF2a | E101: beidseitig | F101: 0 | G101: 0 | H101: J1 | I101: 1
C102: Kastenfenster | D102: KF2a | E102: beidseitig | F102: 0 | G102: 0 | H102: J2 | I102: 2
C103: Kastenfenster | D103: KF2a | E103: beidseitig | F103: 0 | G103: 0 | H103: J3 | I103: 3
C104: Kastenfenster | D104: KF2a | E104: beidseitig | F104: 0 | G104: 0 | H104: J4 | I104: 4
C105: Kastenfenster | D105: KF2a | E105: beidseitig | F105: 0 | G105: 0 | H105: J6 | I105: 6
C106: Kastenfenster | D106: KF2a | E106: beidseitig | F106: 0 | G106: 0 | H106: n.B. | I106: n.B.
C107: Kastenfenster | D107: KF2b | E107: 2x raumseitig | F107: =SUMPRODUCT((Reinigungsfläche)*(Glascode=D107)*(Turnus=H107)) -> 0 | G107: =SUMPRODUCT((Gesamtfläche)*(Glascode=D107)*(Turnus=H107)) -> 0 | H107: W1 | I107: =IF(H107="W1",52.14,IF(H107="M1",12,IF(H107="J0,5",0.5,IF(H107="J1",1,IF(H107="J2",2,IF(H107="J3",3,IF(H107="J4",4,IF(H107="J6",6,IF(H107="n.B.","n.B."))))))))) -> 52.14
C108: Kastenfenster | D108: KF2b | E108: 2x raumseitig | F108: 0 | G108: 0 | H108: M1 | I108: =IF(H108="W1",52,IF(H108="M1",12,IF(H108="J0,5",0.5,IF(H108="J1",1,IF(H108="J2",2,IF(H108="J3",3,IF(H108="J4",4,IF(H108="J6",6,IF(H108="n.B.","n.B."))))))))) -> 12
C109: Kastenfenster | D109: KF2b | E109: 2x raumseitig | F109: 0 | G109: 0 | H109: J0,5 | I109: 0.5
C110: Kastenfenster | D110: KF2b | E110: 2x raumseitig | F110: 0 | G110: 0 | H110: J1 | I110: 1
C111: Kastenfenster | D111: KF2b | E111: 2x raumseitig | F111: 0 | G111: 0 | H111: J2 | I111: 2
C112: Kastenfenster | D112: KF2b | E112: 2x raumseitig | F112: 0 | G112: 0 | H112: J3 | I112: 3
C113: Kastenfenster | D113: KF2b | E113: 2x raumseitig | F113: 0 | G113: 0 | H113: J4 | I113: 4
C114: Kastenfenster | D114: KF2b | E114: 2x raumseitig | F114: 0 | G114: 0 | H114: J6 | I114: 6
C115: Kastenfenster | D115: KF2b | E115: 2x raumseitig | F115: 0 | G115: 0 | H115: n.B. | I115: n.B.
C116: Kastenfenster | D116: KF3 | E116: 3x raumseitig | F116: =SUMPRODUCT((Reinigungsfläche)*(Glascode=D116)*(Turnus=H116)) -> 0 | G116: =SUMPRODUCT((Gesamtfläche)*(Glascode=D116)*(Turnus=H116)) -> 0 | H116: W1 | I116: =IF(H116="W1",52.14,IF(H116="M1",12,IF(H116="J0,5",0.5,IF(H116="J1",1,IF(H116="J2",2,IF(H116="J3",3,IF(H116="J4",4,IF(H116="J6",6,IF(H116="n.B.","n.B."))))))))) -> 52.14
C117: Kastenfenster | D117: KF3 | E117: 3x raumseitig | F117: 0 | G117: 0 | H117: M1 | I117: 12
C118: Kastenfenster | D118: KF3 | E118: 3x raumseitig | F118: 0 | G118: 0 | H118: J0,5 | I118: 0.5
C119: Kastenfenster | D119: KF3 | E119: 3x raumseitig | F119: 0 | G119: 0 | H119: J1 | I119: 1
C120: Kastenfenster | D120: KF3 | E120: 3x raumseitig | F120: 0 | G120: 0 | H120: J2 | I120: 2
C121: Kastenfenster | D121: KF3 | E121: 3x raumseitig | F121: 0 | G121: 0 | H121: J3 | I121: 3
C122: Kastenfenster | D122: KF3 | E122: 3x raumseitig | F122: 0 | G122: 0 | H122: J4 | I122: 4
C123: Kastenfenster | D123: KF3 | E123: 3x raumseitig | F123: 0 | G123: 0 | H123: J6 | I123: 6
C124: Kastenfenster | D124: KF3 | E124: 3x raumseitig | F124: 0 | G124: 0 | H124: n.B. | I124: n.B.
C125: Kastenfenster | D125: KF4 | E125: vierseitig | F125: =SUMPRODUCT((Reinigungsfläche)*(Glascode=D125)*(Turnus=H125)) -> 0 | G125: =SUMPRODUCT((Gesamtfläche)*(Glascode=D125)*(Turnus=H125)) -> 0 | H125: W1 | I125: =IF(H125="W1",52.14,IF(H125="M1",12,IF(H125="J0,5",0.5,IF(H125="J1",1,IF(H125="J2",2,IF(H125="J3",3,IF(H125="J4",4,IF(H125="J6",6,IF(H125="n.B.","n.B."))))))))) -> 52.14
C126: Kastenfenster | D126: KF4 | E126: vierseitig | F126: 0 | G126: 0 | H126: M1 | I126: 12
C127: Kastenfenster | D127: KF4 | E127: vierseitig | F127: 0 | G127: 0 | H127: J0,5 | I127: 0.5
C128: Kastenfenster | D128: KF4 | E128: vierseitig | F128: 0 | G128: 0 | H128: J1 | I128: 1
C129: Kastenfenster | D129: KF4 | E129: vierseitig | F129: 0 | G129: 0 | H129: J2 | I129: 2
C130: Kastenfenster | D130: KF4 | E130: vierseitig | F130: 0 | G130: 0 | H130: J3 | I130: 3
C131: Kastenfenster | D131: KF4 | E131: vierseitig | F131: 0 | G131: 0 | H131: J4 | I131: 4
C132: Kastenfenster | D132: KF4 | E132: vierseitig | F132: =SUMPRODUCT((Reinigungsfläche)*(Glascode=D132)*(Turnus=H132)) -> 0 | G132: 0 | H132: J6 | I132: 6
C133: Kastenfenster | D133: KF4 | E133: vierseitig | F133: 0 | G133: =SUMPRODUCT((Gesamtfläche)*(Glascode=D133)*(Turnus=H133)) -> 0 | H133: n.B. | I133: n.B.
C134: Verbundfenster | D134: VF1 | E134: raumseitig | F134: =SUMPRODUCT((Reinigungsfläche)*(Glascode=D134)*(Turnus=H134)) -> 0 | G134: =SUMPRODUCT((Gesamtfläche)*(Glascode=D134)*(Turnus=H134)) -> 0 | H134: W1 | I134: =IF(H134="W1",52.14,IF(H134="M1",12,IF(H134="J0,5",0.5,IF(H134="J1",1,IF(H134="J2",2,IF(H134="J3",3,IF(H134="J4",4,IF(H134="J6",6,IF(H134="n.B.","n.B."))))))))) -> 52.14
C135: Verbundfenster | D135: VF1 | E135: raumseitig | F135: 0 | G135: 0 | H135: M1 | I135: 12
C136: Verbundfenster | D136: VF1 | E136: raumseitig | F136: 0 | G136: 0 | H136: J0,5 | I136: 0.5
C137: Verbundfenster | D137: VF1 | E137: raumseitig | F137: 0 | G137: 0 | H137: J1 | I137: 1
C138: Verbundfenster | D138: VF1 | E138: raumseitig | F138: 0 | G138: 0 | H138: J2 | I138: 2
C139: Verbundfenster | D139: VF1 | E139: raumseitig | F139: 0 | G139: 0 | H139: J3 | I139: 3
C140: Verbundfenster | D140: VF1 | E140: raumseitig | F140: 0 | G140: 0 | H140: J4 | I140: 4
C141: Verbundfenster | D141: VF1 | E141: raumseitig | F141: 0 | G141: 0 | H141: J6 | I141: 6
C142: Verbundfenster | D142: VF1 | E142: raumseitig | F142: 0 | G142: 0 | H142: n.B. | I142: n.B.
C143: Verbundfenster | D143: VF3 | E143: 3x raumseitig | F143: =SUMPRODUCT((Reinigungsfläche)*(Glascode=D143)*(Turnus=H143)) -> 0 | G143: =SUMPRODUCT((Gesamtfläche)*(Glascode=D143)*(Turnus=H143)) -> 0 | H143: W1 | I143: =IF(H143="W1",52.14,IF(H143="M1",12,IF(H143="J0,5",0.5,IF(H143="J1",1,IF(H143="J2",2,IF(H143="J3",3,IF(H143="J4",4,IF(H143="J6",6,IF(H143="n.B.","n.B."))))))))) -> 52.14
C144: Verbundfenster | D144: VF3 | E144: 3x raumseitig | F144: 0 | G144: 0 | H144: M1 | I144: 12
C145: Verbundfenster | D145: VF3 | E145: 3x raumseitig | F145: 0 | G145: 0 | H145: J0,5 | I145: 0.5
C146: Verbundfenster | D146: VF3 | E146: 3x raumseitig | F146: 0 | G146: 0 | H146: J1 | I146: 1
C147: Verbundfenster | D147: VF3 | E147: 3x raumseitig | F147: 0 | G147: 0 | H147: J2 | I147: 2
C148: Verbundfenster | D148: VF3 | E148: 3x raumseitig | F148: 0 | G148: 0 | H148: J3 | I148: 3
C149: Verbundfenster | D149: VF3 | E149: 3x raumseitig | F149: 0 | G149: 0 | H149: J4 | I149: 4
C150: Verbundfenster | D150: VF3 | E150: 3x raumseitig | F150: 0 | G150: 0 | H150: J6 | I150: 6
C151: Verbundfenster | D151: VF3 | E151: 3x raumseitig | F151: 0 | G151: 0 | H151: n.B. | I151: n.B.
C152: Verbundfenster | D152: VF4 | E152: beidseitig | F152: =SUMPRODUCT((Reinigungsfläche)*(Glascode=D152)*(Turnus=H152)) -> 0 | G152: =SUMPRODUCT((Gesamtfläche)*(Glascode=D152)*(Turnus=H152)) -> 0 | H152: W1 | I152: =IF(H152="W1",52.14,IF(H152="M1",12,IF(H152="J0,5",0.5,IF(H152="J1",1,IF(H152="J2",2,IF(H152="J3",3,IF(H152="J4",4,IF(H152="J6",6,IF(H152="n.B.","n.B."))))))))) -> 52.14
C153: Verbundfenster | D153: VF4 | E153: beidseitig | F153: 0 | G153: 0 | H153: M1 | I153: 12
C154: Verbundfenster | D154: VF4 | E154: beidseitig | F154: 0 | G154: 0 | H154: J0,5 | I154: 0.5
C155: Verbundfenster | D155: VF4 | E155: beidseitig | F155: 0 | G155: 0 | H155: J1 | I155: 1
C156: Verbundfenster | D156: VF4 | E156: beidseitig | F156: 0 | G156: 0 | H156: J2 | I156: 2
C157: Verbundfenster | D157: VF4 | E157: beidseitig | F157: 0 | G157: 0 | H157: J3 | I157: 3
C158: Verbundfenster | D158: VF4 | E158: beidseitig | F158: 0 | G158: 0 | H158: J4 | I158: 4
C159: Verbundfenster | D159: VF4 | E159: beidseitig | F159: 0 | G159: 0 | H159: J6 | I159: 6
C160: Verbundfenster | D160: VF4 | E160: beidseitig | F160: 0 | G160: 0 | H160: n.B. | I160: n.B.
C161: Verbundsprossenfenster | D161: VSP1 | E161: raumseitig | F161: =SUMPRODUCT((Reinigungsfläche)*(Glascode=D161)*(Turnus=H161)) -> 0 | G161: =SUMPRODUCT((Gesamtfläche)*(Glascode=D161)*(Turnus=H161)) -> 0 | H161: W1 | I161: =IF(H161="W1",52.14,IF(H161="M1",12,IF(H161="J0,5",0.5,IF(H161="J1",1,IF(H161="J2",2,IF(H161="J3",3,IF(H161="J4",4,IF(H161="J6",6,IF(H161="n.B.","n.B."))))))))) -> 52.14
C162: Verbundsprossenfenster | D162: VSP1 | E162: raumseitig | F162: 0 | G162: 0 | H162: M1 | I162: 12
C163: Verbundsprossenfenster | D163: VSP1 | E163: raumseitig | F163: 0 | G163: 0 | H163: J0,5 | I163: 0.5
C164: Verbundsprossenfenster | D164: VSP1 | E164: raumseitig | F164: 0 | G164: 0 | H164: J1 | I164: 1
C165: Verbundsprossenfenster | D165: VSP1 | E165: raumseitig | F165: 0 | G165: 0 | H165: J2 | I165: 2
C166: Verbundsprossenfenster | D166: VSP1 | E166: raumseitig | F166: 0 | G166: 0 | H166: J3 | I166: 3
C167: Verbundsprossenfenster | D167: VSP1 | E167: raumseitig | F167: 0 | G167: 0 | H167: J4 | I167: 4
C168: Verbundsprossenfenster | D168: VSP1 | E168: raumseitig | F168: 0 | G168: 0 | H168: J6 | I168: 6
C169: Verbundsprossenfenster | D169: VSP1 | E169: raumseitig | F169: 0 | G169: 0 | H169: n.B. | I169: n.B.
C170: Verbundsprossenfenster | D170: VSP2a | E170: beidseitig | F170: =SUMPRODUCT((Reinigungsfläche)*(Glascode=D170)*(Turnus=H170)) -> 0 | G170: =SUMPRODUCT((Gesamtfläche)*(Glascode=D170)*(Turnus=H170)) -> 0 | H170: W1 | I170: =IF(H170="W1",52.14,IF(H170="M1",12,IF(H170="J0,5",0.5,IF(H170="J1",1,IF(H170="J2",2,IF(H170="J3",3,IF(H170="J4",4,IF(H170="J6",6,IF(H170="n.B.","n.B."))))))))) -> 52.14
C171: Verbundsprossenfenster | D171: VSP2a | E171: beidseitig | F171: 0 | G171: 0 | H171: M1 | I171: 12
C172: Verbundsprossenfenster | D172: VSP2a | E172: beidseitig | F172: 0 | G172: 0 | H172: J0,5 | I172: 0.5
C173: Verbundsprossenfenster | D173: VSP2a | E173: beidseitig | F173: 0 | G173: 0 | H173: J1 | I173: 1
C174: Verbundsprossenfenster | D174: VSP2a | E174: beidseitig | F174: 0 | G174: 0 | H174: J2 | I174: 2
C175: Verbundsprossenfenster | D175: VSP2a | E175: beidseitig | F175: 0 | G175: 0 | H175: J3 | I175: 3
C176: Verbundsprossenfenster | D176: VSP2a | E176: beidseitig | F176: 0 | G176: 0 | H176: J4 | I176: 4
C177: Verbundsprossenfenster | D177: VSP2a | E177: beidseitig | F177: 0 | G177: 0 | H177: J6 | I177: 6
C178: Verbundsprossenfenster | D178: VSP2a | E178: beidseitig | F178: 0 | G178: 0 | H178: n.B. | I178: n.B.
C179: Verbundsprossenfenster | D179: VSP2b | E179: 2x raumseitig | F179: =SUMPRODUCT((Reinigungsfläche)*(Glascode=D179)*(Turnus=H179)) -> 0 | G179: =SUMPRODUCT((Gesamtfläche)*(Glascode=D179)*(Turnus=H179)) -> 0 | H179: W1 | I179: =IF(H179="W1",52.14,IF(H179="M1",12,IF(H179="J0,5",0.5,IF(H179="J1",1,IF(H179="J2",2,IF(H179="J3",3,IF(H179="J4",4,IF(H179="J6",6,IF(H179="n.B.","n.B."))))))))) -> 52.14
C180: Verbundsprossenfenster | D180: VSP2b | E180: 2x raumseitig | F180: 0 | G180: 0 | H180: M1 | I180: =IF(H180="W1",52,IF(H180="M1",12,IF(H180="J0,5",0.5,IF(H180="J1",1,IF(H180="J2",2,IF(H180="J3",3,IF(H180="J4",4,IF(H180="J6",6,IF(H180="n.B.","n.B."))))))))) -> 12
C181: Verbundsprossenfenster | D181: VSP2b | E181: 2x raumseitig | F181: 0 | G181: 0 | H181: J0,5 | I181: 0.5
C182: Verbundsprossenfenster | D182: VSP2b | E182: 2x raumseitig | F182: 0 | G182: 0 | H182: J1 | I182: 1
C183: Verbundsprossenfenster | D183: VSP2b | E183: 2x raumseitig | F183: 0 | G183: 0 | H183: J2 | I183: 2
C184: Verbundsprossenfenster | D184: VSP2b | E184: 2x raumseitig | F184: 0 | G184: 0 | H184: J3 | I184: 3
C185: Verbundsprossenfenster | D185: VSP2b | E185: 2x raumseitig | F185: 0 | G185: 0 | H185: J4 | I185: 4
C186: Verbundsprossenfenster | D186: VSP2b | E186: 2x raumseitig | F186: 0 | G186: 0 | H186: J6 | I186: 6
C187: Verbundsprossenfenster | D187: VSP2b | E187: 2x raumseitig | F187: 0 | G187: 0 | H187: n.B. | I187: n.B.
C188: Verbundsprossenfenster | D188: VSP3 | E188: 3x raumseitig | F188: =SUMPRODUCT((Reinigungsfläche)*(Glascode=D188)*(Turnus=H188)) -> 0 | G188: =SUMPRODUCT((Gesamtfläche)*(Glascode=D188)*(Turnus=H188)) -> 0 | H188: W1 | I188: =IF(H188="W1",52.14,IF(H188="M1",12,IF(H188="J0,5",0.5,IF(H188="J1",1,IF(H188="J2",2,IF(H188="J3",3,IF(H188="J4",4,IF(H188="J6",6,IF(H188="n.B.","n.B."))))))))) -> 52.14
C189: Verbundsprossenfenster | D189: VSP3 | E189: 3x raumseitig | F189: 0 | G189: 0 | H189: M1 | I189: 12
C190: Verbundsprossenfenster | D190: VSP3 | E190: 3x raumseitig | F190: 0 | G190: 0 | H190: J0,5 | I190: 0.5
C191: Verbundsprossenfenster | D191: VSP3 | E191: 3x raumseitig | F191: 0 | G191: 0 | H191: J1 | I191: 1
C192: Verbundsprossenfenster | D192: VSP3 | E192: 3x raumseitig | F192: 0 | G192: 0 | H192: J2 | I192: 2
C193: Verbundsprossenfenster | D193: VSP3 | E193: 3x raumseitig | F193: 0 | G193: 0 | H193: J3 | I193: 3
C194: Verbundsprossenfenster | D194: VSP3 | E194: 3x raumseitig | F194: 0 | G194: 0 | H194: J4 | I194: 4
C195: Verbundsprossenfenster | D195: VSP3 | E195: 3x raumseitig | F195: 0 | G195: 0 | H195: J6 | I195: 6
C196: Verbundsprossenfenster | D196: VSP3 | E196: 3x raumseitig | F196: 0 | G196: 0 | H196: n.B. | I196: n.B.
C197: Verbundsprossenfenster | D197: VSP4 | E197: vierseitig | F197: =SUMPRODUCT((Reinigungsfläche)*(Glascode=D197)*(Turnus=H197)) -> 0 | G197: =SUMPRODUCT((Gesamtfläche)*(Glascode=D197)*(Turnus=H197)) -> 0 | H197: W1 | I197: =IF(H197="W1",52.14,IF(H197="M1",12,IF(H197="J0,5",0.5,IF(H197="J1",1,IF(H197="J2",2,IF(H197="J3",3,IF(H197="J4",4,IF(H197="J6",6,IF(H197="n.B.","n.B."))))))))) -> 52.14
C198: Verbundsprossenfenster | D198: VSP4 | E198: vierseitig | F198: 0 | G198: 0 | H198: M1 | I198: 12
C199: Verbundsprossenfenster | D199: VSP4 | E199: vierseitig | F199: 0 | G199: 0 | H199: J0,5 | I199: 0.5
C200: Verbundsprossenfenster | D200: VSP4 | E200: vierseitig | F200: 0 | G200: 0 | H200: J1 | I200: 1
C201: Verbundsprossenfenster | D201: VSP4 | E201: vierseitig | F201: 0 | G201: 0 | H201: J2 | I201: 2
C202: Verbundsprossenfenster | D202: VSP4 | E202: vierseitig | F202: 0 | G202: 0 | H202: J3 | I202: 3
C203: Verbundsprossenfenster | D203: VSP4 | E203: vierseitig | F203: 0 | G203: 0 | H203: J4 | I203: 4
C204: Verbundsprossenfenster | D204: VSP4 | E204: vierseitig | F204: 0 | G204: 0 | H204: J6 | I204: 6
C205: Verbundsprossenfenster | D205: VSP4 | E205: vierseitig | F205: 0 | G205: 0 | H205: n.B. | I205: n.B.
C206: Panoramafenster und Fensterwände 10-20m² | D206: P1 10-20 | E206: raumseitig | F206: =SUMPRODUCT((Reinigungsfläche)*(Glascode=D206)*(Turnus=H206)) -> 0 | G206: =SUMPRODUCT((Gesamtfläche)*(Glascode=D206)*(Turnus=H206)) -> 0 | H206: W1 | I206: =IF(H206="W1",52.14,IF(H206="M1",12,IF(H206="J0,5",0.5,IF(H206="J1",1,IF(H206="J2",2,IF(H206="J3",3,IF(H206="J4",4,IF(H206="J6",6,IF(H206="n.B.","n.B."))))))))) -> 52.14
C207: Panoramafenster und Fensterwände 10-20m² | D207: P1 10-20 | E207: raumseitig | F207: 0 | G207: 0 | H207: M1 | I207: 12
C208: Panoramafenster und Fensterwände 10-20m² | D208: P1 10-20 | E208: raumseitig | F208: 0 | G208: 0 | H208: J0,5 | I208: 0.5
... 420 more rows

Sheet Anl C-03 Geb 7
A1: VOEK 573-25 Los 2 | L1: Anlage C-03
A3: Flächenaufmaß Glasreinigung
A5: Reinigungsobjekt: | C5: BPol Blumberg
A6: Straße: | C6: Bundespolizeiallee 1 | R6: einseitig
A7: PLZ und Ort: | C7: 16356 Ahrensfelde | R7: beidseitig
A8: WE - Nr.: | C8: 141115 | I8: Stand: | J8: 2018-09-17 | R8: raumseitig
A9: Gebäude Nr. | C9: 7 | R9: 2x raumseitig
A10: Anzahl Etagen | R10: 3x raumseitig
A11: Gebäudeart SAP | R11: witterungsseitig
A12: Kontrakt-Nr.: | I12: Druckdatum: | J12: 2025-02-05 | R12: außen
A13: Raum. Nr. | B13: Etage | C13: Raumart / Nutzung | D13: Glascode | E13: Reinigung einseitig beidseitig oder mehrseitig (Info) | F13: Turnus | G13: Breite, m | H13: Höhe, m | I13: Einzelmaß, m² | J13: Anzahl / Einzelmaß | K13: Reinigungs-fläche einseitig | L13: zu reinigende Gesamtfläche | R13: raum- & witterungsseitig
A14: K 01 | B14: KG | C14: Treppenraum | I14: 0 | K14: =I14*J14 -> 0 | L14: =IF(E14="einseitig",K14*1,IF(E14="beidseitig",K14*2,IF(E14="raumseitig",K14*1,IF(E14="2x raumseitig",K14*2,IF(E14="3x raumseitig",K14*3,IF(E14="witterungsseitig",K14*1,IF(E14="außen",K14*1,IF(E14="raum- & witterungsseitig",K14*2,IF(E14="vierseitig",K14*4,IF(E14="allseitig",K14*2,IF(E14="ganzflächig",K14*2,0))))))))))) -> 0 | R14: vierseitig
A15: K 02 | B15: KG | C15: Schreibraum Waffenkammer | D15: VF | E15: beidseitig | F15: J2 | G15: 1.06 | H15: 0.66 | I15: 0.7 | J15: 1 | K15: =I15*J15 -> 0.7 | L15: =IF(E15="einseitig",K15*1,IF(E15="beidseitig",K15*2,IF(E15="raumseitig",K15*1,IF(E15="2x raumseitig",K15*2,IF(E15="3x raumseitig",K15*3,IF(E15="witterungsseitig",K15*1,IF(E15="außen",K15*1,IF(E15="raum- & witterungsseitig",K15*2,IF(E15="vierseitig",K15*4,IF(E15="allseitig",K15*2,IF(E15="ganzflächig",K15*2,0))))))))))) -> 1.4 | R15: allseitig
A16: K 03 | B16: KG | C16: Waffenkammer | I16: 0 | K16: 0 | L16: 0 | R16: ganzflächig
A17: K 04 | B17: KG | C17: Schreibraum | D17: VF | E17: beidseitig | F17: J2 | G17: 1.06 | H17: 0.66 | I17: 0.7 | J17: 1 | K17: 0.7 | L17: 1.4
A18: K 05 | B18: KG | C18: Waffenkammer | I18: 0 | K18: 0 | L18: 0
A19: K 06 | B19: KG | C19: Waffenkammer | I19: 0 | K19: 0 | L19: 0
A20: K 07 | B20: KG | C20: Waffenkammer | I20: 0 | K20: 0 | L20: 0
A21: K 08 | B21: KG | C21: Waffenkammer | D21: VF | E21: beidseitig | F21: J2 | G21: 1.06 | H21: 0.66 | I21: 0.7 | J21: 1 | K21: 0.7 | L21: 1.4
A22: K 09 | B22: KG | C22: Waffenkammer | I22: 0 | K22: 0 | L22: 0
A23: K 10 | B23: KG | C23: HA Heizung | D23: VF | E23: beidseitig | F23: J2 | G23: 1.06 | H23: 0.66 | I23: 0.7 | J23: 2 | K23: 1.4 | L23: 2.8
A24: K 11 | B24: KG | C24: Waffenkammer Flur | I24: 0 | K24: 0 | L24: 0
A25: K 12 | B25: KG | C25: Flur | I25: 0 | K25: 0 | L25: 0
A26: K 13 | B26: KG | C26: Lager | I26: 0 | K26: 0 | L26: 0
A27: K 14 | B27: KG | C27: Lager | I27: 0 | K27: 0 | L27: 0
A28: K 15 | B28: KG | C28: Lager | I28: 0 | K28: 0 | L28: 0
A29: K 16 | B29: KG | C29: Lager | I29: 0 | K29: 0 | L29: 0
A30: K 17 | B30: KG | C30: Lager | I30: 0 | K30: 0 | L30: 0
A31: K 18 | B31: KG | C31: Lager | I31: 0 | K31: 0 | L31: 0
A32: K 19 | B32: KG | C32: Lager | I32: 0 | K32: 0 | L32: 0
A33: K 20 | B33: KG | C33: Lager | D33: VF | E33: beidseitig | F33: J2 | G33: 1.06 | H33: 0.66 | I33: 0.7 | J33: 1 | K33: 0.7 | L33: 1.4
A34: K 21 | B34: KG | C34: Lager | I34: 0 | K34: 0 | L34: 0
A35: K 22 | B35: KG | C35: Lager | I35: 0 | K35: 0 | L35: 0
A36: K 23 | B36: KG | C36: Lager | I36: 0 | K36: 0 | L36: 0
A37: K 24 | B37: KG | C37: Lager | I37: 0 | K37: 0 | L37: 0
A38: K 25 | B38: KG | C38: Lager | I38: 0 | K38: 0 | L38: 0
A39: K 26 | B39: KG | C39: Abstellraum Fahrräder | I39: 0 | K39: 0 | L39: 0
A40: K 27 | B40: KG | C40: HA I + K | D40: VF | E40: beidseitig | F40: J2 | G40: 1.06 | H40: 0.66 | I40: 0.7 | J40: 1 | K40: 0.7 | L40: 1.4
A41: K 28 | B41: KG | C41: Vorraum | I41: 0 | K41: 0 | L41: 0
A42: K 29 | B42: KG | C42: HA Elektro | I42: 0 | K42: 0 | L42: 0
A43: K 30 | B43: KG | C43: Lager | D43: VF | E43: beidseitig | F43: J2 | G43: 1.66 | H43: 1.37 | I43: 2.27 | J43: 2 | K43: 4.54 | L43: 9.08
A44: K 31 | B44: KG | C44: Lager | D44: VF | E44: beidseitig | F44: J2 | G44: 1.66 | H44: 1.37 | I44: 2.27 | J44: 1 | K44: 2.27 | L44: 4.54
A45: K 32 | B45: KG | C45: Lager | D45: VF | E45: beidseitig | F45: J2 | G45: 1.66 | H45: 1.37 | I45: 2.27 | J45: 2 | K45: 4.54 | L45: 9.08
A46: K 33 | B46: KG | C46: Lager | I46: 0 | K46: 0 | L46: 0
A47: K 34 | B47: KG | C47: Lager | D47: VF | E47: beidseitig | F47: J2 | G47: 1.66 | H47: 1.37 | I47: 2.27 | J47: 2 | K47: 4.54 | L47: 9.08
A48: K 35 | B48: KG | C48: Lager | D48: VF | E48: beidseitig | F48: J2 | G48: 1.66 | H48: 1.37 | I48: 2.27 | J48: 2 | K48: 4.54 | L48: 9.08
A49: K 36 | B49: KG | C49: Flur | I49: 0 | K49: 0 | L49: 0
A50: K 37 | B50: KG | C50: Treppenraum | I50: 0 | K50: 0 | L50: 0
A51: K 38 | B51: KG | C51: Lager | D51: VF | E51: beidseitig | F51: J2 | G51: 1.66 | H51: 1.37 | I51: 2.27 | J51: 1 | K51: 2.27 | L51: 4.54
A52: K 39 | B52: KG | C52: Lager | D52: VF | E52: beidseitig | F52: J2 | G52: 0.92 | H52: 1.37 | I52: 1.26 | J52: 1 | K52: 1.26 | L52: 2.52
A53: K 40 | B53: KG | C53: Lager | D53: VF | E53: beidseitig | F53: J2 | G53: 1.66 | H53: 1.37 | I53: 2.27 | J53: 1 | K53: 2.27 | L53: 4.54
A54: K 41 | B54: KG | C54: Waffenreinigungsraum | D54: VF | E54: beidseitig | F54: J2 | G54: 0.92 | H54: 1.37 | I54: 1.26 | J54: 1 | K54: 1.26 | L54: 2.52
A55: K 42 | B55: KG | C55: Lager | D55: VF | E55: beidseitig | F55: J2 | G55: 1.66 | H55: 1.37 | I55: 2.27 | J55: 1 | K55: 2.27 | L55: 4.54
A56: K 43/ 44 | B56: KG | C56: Waffenreinigungsraum/ Schreibraum | D56: VF | E56: beidseitig | F56: J2 | G56: 1.66 | H56: 1.37 | I56: 2.27 | J56: 1 | K56: 2.27 | L56: 4.54
A57: K 45 | B57: KG | C57: Lager | D57: VF | E57: beidseitig | F57: J2 | G57: 1.66 | H57: 1.37 | I57: 2.27 | J57: 1 | K57: 2.27 | L57: 4.54
A58: K 46/ 47/ 47.1 | B58: KG | C58: Vorraum + Waffenkammer | D58: VF | E58: beidseitig | F58: J2 | G58: 1.66 | H58: 1.37 | I58: 2.27 | J58: 2 | K58: 4.54 | L58: 9.08
A59: K 47 | B59: KG | C59: Lager | D59: VF | E59: beidseitig | F59: J2 | G59: 1.66 | H59: 0.8 | I59: 1.33 | J59: 2 | K59: 2.66 | L59: 5.32
A60: K 48 | B60: KG | C60: Flur | I60: 0 | J60: 1 | K60: 0 | L60: 0
I61: 0 | K61: 0 | L61: 0
A62: E 01 | B62: EG | C62: Treppenraum | D62: VF | E62: beidseitig | F62: J2 | G62: 2.2 | H62: 0.66 | I62: 1.45 | J62: 2 | K62: 2.9 | L62: 5.8
A63: E 02 | B63: EG | C63: Windfang | I63: 0 | K63: 0 | L63: 0
A64: E 03 | B64: EG | C64: Flur | I64: 0 | K64: 0 | L64: 0
A65: E 04 | B65: EG | C65: Dienstzimmer | D65: VF | E65: beidseitig | F65: J2 | G65: 1.66 | H65: 1.37 | I65: 2.27 | J65: 1 | K65: 2.27 | L65: 4.54
A66: E 05 | B66: EG | C66: Dienstzimmer | D66: VF | E66: beidseitig | F66: J2 | G66: 1.66 | H66: 1.37 | I66: 2.27 | J66: 2 | K66: 4.54 | L66: 9.08
A67: E 06 | B67: EG | C67: Dienstzimmer | D67: VF | E67: beidseitig | F67: J2 | G67: 1.66 | H67: 1.37 | I67: 2.27 | J67: 1 | K67: 2.27 | L67: 4.54
A68: E 07 | B68: EG | C68: Vorraum WC | I68: 0 | K68: 0 | L68: 0
A69: E 08 | B69: EG | C69: Vervielfältigungsraum | D69: VF | E69: beidseitig | F69: J2 | G69: 1.66 | H69: 1.37 | I69: 2.27 | J69: 1 | K69: 2.27 | L69: 4.54
A70: E 09 | B70: EG | C70: Vorraum WC | I70: 0 | K70: 0 | L70: 0
A71: E 10 | B71: EG | C71: Dienstzimmer | D71: VF | E71: beidseitig | F71: J2 | G71: 1.66 | H71: 1.37 | I71: 2.27 | J71: 1 | K71: 2.27 | L71: 4.54
A72: E 11 | B72: EG | C72: WC | D72: VF | E72: beidseitig | F72: J2 | G72: 0.92 | H72: 1.37 | I72: 1.26 | J72: 1 | K72: 1.26 | L72: 2.52
A73: E 12 | B73: EG | C73: Besprechungsraum | D73: VF | E73: beidseitig | F73: J2 | G73: 1.66 | H73: 1.37 | I73: 2.27 | J73: 5 | K73: 11.35 | L73: 22.7
A74: E 13 | B74: EG | C74: WC | D74: VF | E74: beidseitig | F74: J2 | G74: 0.92 | H74: 1.37 | I74: 1.26 | J74: 1 | K74: 1.26 | L74: 2.52
A75: E 14/ 16 | B75: EG | C75: Dienstzimmer | D75: VF | E75: beidseitig | F75: J2 | G75: 1.66 | H75: 1.37 | I75: 2.27 | J75: 1 | K75: 2.27 | L75: 4.54
A76: E 15 | B76: EG | C76: Teeküche | D76: VF | E76: beidseitig | F76: J2 | G76: 1.66 | H76: 1.37 | I76: 2.27 | J76: 1 | K76: 2.27 | L76: 4.54
A77: E 17 | B77: EG | C77: Dienstzimmer | D77: VF | E77: beidseitig | F77: J2 | G77: 1.66 | H77: 1.37 | I77: 2.27 | J77: 1 | K77: 2.27 | L77: 4.54
A78: E 18/ 20 | B78: EG | C78: Dienstzimmer | D78: VF | E78: beidseitig | F78: J2 | G78: 1.66 | H78: 1.37 | I78: 2.27 | J78: 1 | K78: 2.27 | L78: 4.54
A79: E 19 | B79: EG | C79: Dienstzimmer | D79: VF | E79: beidseitig | F79: J2 | G79: 1.66 | H79: 1.37 | I79: 2.27 | J79: 2 | K79: =I79*J79 -> 4.54 | L79: =IF(E79="einseitig",K79*1,IF(E79="beidseitig",K79*2,IF(E79="raumseitig",K79*1,IF(E79="2x raumseitig",K79*2,IF(E79="3x raumseitig",K79*3,IF(E79="witterungsseitig",K79*1,IF(E79="außen",K79*1,IF(E79="raum- & witterungsseitig",K79*2,IF(E79="vierseitig",K79*4,IF(E79="allseitig",K79*2,IF(E79="ganzflächig",K79*2,0))))))))))) -> 9.08
A80: E 21 | B80: EG | C80: Dienstzimmer | D80: VF | E80: beidseitig | F80: J2 | G80: 1.66 | H80: 1.37 | I80: 2.27 | J80: 2 | K80: 4.54 | L80: 9.08
A81: E 22 | B81: EG | C81: Dienstzimmer | D81: VF | E81: beidseitig | F81: J2 | G81: 1.66 | H81: 1.37 | I81: 2.27 | J81: 2 | K81: 4.54 | L81: 9.08
A82: E 23 | B82: EG | C82: Dienstzimmer | D82: VF | E82: beidseitig | F82: J2 | G82: 1.66 | H82: 1.37 | I82: 2.27 | J82: 2 | K82: 4.54 | L82: 9.08
A83: E 24 | B83: EG | C83: Dienstzimmer | D83: VF | E83: beidseitig | F83: J2 | G83: 1.66 | H83: 1.37 | I83: 2.27 | J83: 2 | K83: 4.54 | L83: 9.08
A84: E 25 | B84: EG | C84: Flur | I84: 0 | K84: 0 | L84: 0
A85: E26 | B85: EG | C85: Flur | I85: 0 | K85: 0 | L85: 0
A86: E 27 | B86: EG | C86: Waschraum/Dusche | D86: VF | E86: beidseitig | F86: J2 | G86: 1.66 | H86: 1.37 | I86: 2.27 | J86: 1 | K86: 2.27 | L86: 4.54
B87: EG | C87: Einzel-WC | I87: 0 | K87: 0 | L87: 0
A88: E 28 | B88: EG | C88: Umkleideplätze | D88: VF | E88: beidseitig | F88: J2 | G88: 1.66 | H88: 1.37 | I88: 2.27 | J88: 1 | K88: 2.27 | L88: 4.54
A89: E 29 | B89: EG | C89: WC | D89: VF | E89: beidseitig | F89: J2 | G89: 1.66 | H89: 1.37 | I89: 2.27 | J89: 1 | K89: 2.27 | L89: 4.54
A90: E 30 | B90: EG | C90: Umkleideplätze | D90: VF | E90: beidseitig | F90: J2 | G90: 1.66 | H90: 1.37 | I90: 2.27 | J90: 1 | K90: 2.27 | L90: 4.54
A91: E 31 | B91: EG | C91: WC | D91: VF | E91: beidseitig | F91: J2 | G91: 0.92 | H91: 1.37 | I91: 1.26 | J91: 1 | K91: 1.26 | L91: 2.52
A92: E 32 | B92: EG | C92: Umkleideplätze | D92: VF | E92: beidseitig | F92: J2 | G92: 1.66 | H92: 1.37 | I92: 2.27 | J92: 1 | K92: 2.27 | L92: 4.54
A93: E 33 | B93: EG | C93: Waschraum | D93: VF | E93: beidseitig | F93: J2 | G93: 0.92 | H93: 1.37 | I93: 1.26 | J93: 1 | K93: 1.26 | L93: 2.52
A94: E 34 | B94: EG | C94: Umkleideplätze | D94: VF | E94: beidseitig | F94: J2 | G94: 1.66 | H94: 1.37 | I94: 2.27 | J94: 1 | K94: 2.27 | L94: 4.54
A95: E 35 | B95: EG | C95: Duschraum | D95: VF | E95: beidseitig | F95: J2 | G95: 1.66 | H95: 1.37 | I95: 2.27 | J95: 1 | K95: 2.27 | L95: 4.54
A96: E 36 | B96: EG | C96: Umkleideplätze | D96: VF | E96: beidseitig | F96: J2 | G96: 1.66 | H96: 1.37 | I96: 2.27 | J96: 2 | K96: 4.54 | L96: 9.08
A97: E 37 | B97: EG | C97: Abstellraum Reinig. | D97: VF | E97: beidseitig | F97: J2 | G97: 1.66 | H97: 1.37 | I97: 2.27 | J97: 1 | K97: 2.27 | L97: 4.54
A98: E 38 | B98: EG | C98: Windfang | I98: 0 | K98: 0 | L98: 0
A99: E 39 | B99: EG | C99: Treppenraum | D99: VF | E99: beidseitig | F99: J2 | G99: 2.2 | H99: 1.37 | I99: 3.01 | J99: 2 | K99: 6.02 | L99: 12.04
A100: E 40 | B100: EG | C100: Umkleideplätze | D100: VF | E100: beidseitig | F100: J2 | G100: 1.66 | H100: 1.37 | I100: 2.27 | J100: 2 | K100: 4.54 | L100: 9.08
B101: EG | C101: Nasszelle | I101: 0 | K101: 0 | L101: 0
A102: E 41 | B102: EG | C102: Unterkunft | D102: VF | E102: beidseitig | F102: J2 | G102: 1.66 | H102: 1.37 | I102: 2.27 | J102: 2 | K102: 4.54 | L102: 9.08
B103: EG | C103: Nasszelle | I103: 0 | K103: 0 | L103: 0
A104: E 42 | B104: EG | C104: Unterkunft | D104: VF | E104: beidseitig | F104: J2 | G104: 1.66 | H104: 1.37 | I104: 2.27 | J104: 2 | K104: 4.54 | L104: 9.08
B105: EG | C105: Nasszelle | I105: 0 | K105: 0 | L105: 0
A106: E 43 | B106: EG | C106: Unterkunft | D106: VF | E106: beidseitig | F106: J2 | G106: 1.66 | H106: 1.37 | I106: 2.27 | J106: 2 | K106: 4.54 | L106: 9.08
B107: EG | C107: Nasszelle | I107: 0 | K107: 0 | L107: 0
A108: E 44 | B108: EG | C108: Unterkunft | D108: VF | E108: beidseitig | F108: J2 | G108: 1.66 | H108: 1.37 | I108: 2.27 | J108: 2 | K108: 4.54 | L108: 9.08
B109: EG | C109: Nasszelle | I109: 0 | K109: 0 | L109: 0
A110: E 45 | B110: EG | C110: Umkleideplätze | D110: VF | E110: beidseitig | F110: J2 | G110: 1.66 | H110: 1.37 | I110: 2.27 | J110: 2 | K110: 4.54 | L110: 9.08
B111: EG | C111: Nasszelle | I111: 0 | K111: 0 | L111: 0
A112: E 46 | B112: EG | C112: Flur | I112: 0 | K112: 0 | L112: 0
I113: 0 | K113: 0 | L113: 0
A114: 1 01 | B114: 1.OG | C114: Treppenraum | D114: VF | E114: beidseitig | F114: J2 | G114: 2.2 | H114: 0.66 | I114: 1.45 | J114: 2 | K114: 2.9 | L114: 5.8
A115: 1 02 | B115: 1.OG | C115: Flur | I115: 0 | K115: 0 | L115: 0
A116: 1 03 | B116: 1.OG | C116: Waschraum | D116: VF | E116: beidseitig | F116: J2 | G116: 1.66 | H116: 1.37 | I116: 2.27 | J116: 1 | K116: 2.27 | L116: 4.54
A117: 1 04 | B117: 1.OG | C117: Dienstzimmer | D117: VF | E117: beidseitig | F117: J2 | G117: 1.66 | H117: 1.37 | I117: 2.27 | J117: 2 | K117: 4.54 | L117: 9.08
A118: 1 05 | B118: 1.OG | C118: Duschraum | D118: VF | E118: beidseitig | F118: J2 | G118: 1.66 | H118: 1.37 | I118: 2.27 | J118: 1 | K118: 2.27 | L118: 4.54
A119: 1 06 | B119: 1.OG | C119: Dienstzimmer | D119: VF | E119: beidseitig | F119: J2 | G119: 1.66 | H119: 1.37 | I119: 2.27 | J119: 2 | K119: 4.54 | L119: 9.08
A120: 1 07 | B120: 1.OG | C120: Teeküche | D120: VF | E120: beidseitig | F120: J2 | G120: 0.92 | H120: 1.37 | I120: 1.26 | J120: 1 | K120: 1.26 | L120: 2.52
A121: 1 08 | B121: 1.OG | C121: Schulungsraum | D121: VF | E121: beidseitig | F121: J2 | G121: 1.66 | H121: 1.37 | I121: 2.27 | J121: 5 | K121: 11.35 | L121: 22.7
A122: 1 09 | B122: 1.OG | C122: Vorraum WC | I122: 0 | K122: 0 | L122: 0
A123: 1 10 | B123: 1.OG | C123: WC | D123: VF | E123: beidseitig | F123: J2 | G123: 0.92 | H123: 1.37 | I123: 1.26 | J123: 1 | K123: 1.26 | L123: 2.52
A124: 1 11 | B124: 1.OG | C124: Flur | I124: 0 | K124: 0 | L124: 0
A125: 1 12 | B125: 1.OG | C125: Umkleideplätze | D125: VF | E125: beidseitig | F125: J2 | G125: 1.66 | H125: 1.37 | I125: 2.27 | J125: 2 | K125: 4.54 | L125: 9.08
A126: 1 13 | B126: 1.OG | C126: Aufenthaltsraum | D126: VF | E126: beidseitig | F126: J2 | G126: 1.66 | H126: 1.37 | I126: 2.27 | J126: 2 | K126: 4.54 | L126: 9.08
A127: 1 14 | B127: 1.OG | C127: Aufenthaltsraum | D127: VF | E127: beidseitig | F127: J2 | G127: 1.66 | H127: 1.37 | I127: 2.27 | J127: 2 | K127: 4.54 | L127: 9.08
A128: 1 15 | B128: 1.OG | C128: Umkleideplätze | D128: VF | E128: beidseitig | F128: J2 | G128: 1.66 | H128: 1.37 | I128: 2.27 | J128: 2 | K128: 4.54 | L128: 9.08
A129: 1 16 | B129: 1.OG | C129: Umkleideplätze | D129: VF | E129: beidseitig | F129: J2 | G129: 1.66 | H129: 1.37 | I129: 2.27 | J129: 2 | K129: 4.54 | L129: 9.08
A130: 1 17 | B130: 1.OG | C130: Umkleideplätze | D130: VF | E130: beidseitig | F130: J2 | G130: 1.66 | H130: 1.37 | I130: 2.27 | J130: 2 | K130: 4.54 | L130: 9.08
A131: 1 18 | B131: 1.OG | C131: Umkleideplätze | D131: VF | E131: beidseitig | F131: J2 | G131: 1.66 | H131: 1.37 | I131: 2.27 | J131: 2 | K131: 4.54 | L131: 9.08
A132: 1 19 | B132: 1.OG | C132: Dienstzimmer | D132: VF | E132: beidseitig | F132: J2 | G132: 1.66 | H132: 1.37 | I132: 2.27 | J132: 2 | K132: 4.54 | L132: 9.08
A133: 1 20 | B133: 1.OG | C133: Umkleideplätze | D133: VF | E133: beidseitig | F133: J2 | G133: 1.66 | H133: 1.37 | I133: 2.27 | J133: 2 | K133: 4.54 | L133: 9.08
A134: 1 21 | B134: 1.OG | C134: Vorraum Dusche | D134: VF | E134: beidseitig | F134: J2 | G134: 1.66 | H134: 1.37 | I134: 2.27 | J134: 1 | K134: 2.27 | L134: 4.54
A135: 1 22 | B135: 1.OG | C135: Umkleideplätze | D135: VF | E135: beidseitig | F135: J2 | G135: 1.66 | H135: 1.37 | I135: 2.27 | J135: 2 | K135: 4.54 | L135: 9.08
A136: 1 23 | B136: 1.OG | C136: Duschraum | I136: 0 | K136: 0 | L136: 0
A137: 1 24 | B137: 1.OG | C137: Unkleide | D137: VF | E137: beidseitig | F137: J2 | G137: 1.66 | H137: 1.37 | I137: 2.27 | J137: 1 | K137: 2.27 | L137: 4.54
A138: 1 25 | B138: 1.OG | C138: Waschraum | D138: VF | E138: beidseitig | F138: J2 | G138: 1.66 | H138: 1.37 | I138: 2.27 | J138: 1 | K138: 2.27 | L138: 4.54
A139: 1 26 | B139: 1.OG | C139: Vorraum WC | I139: 0 | K139: 0 | L139: 0
A140: 1 27 | B140: 1.OG | C140: WC | D140: VF | E140: beidseitig | F140: J2 | G140: 0.92 | H140: 1.37 | I140: 1.26 | J140: 1 | K140: 1.26 | L140: 2.52
A141: 1 28 | B141: 1.OG | C141: Abstellraum Reinig. | D141: VF | E141: beidseitig | F141: J2 | G141: 0.92 | H141: 1.37 | I141: 1.26 | J141: 1 | K141: 1.26 | L141: 2.52
A142: 1 29 | B142: 1.OG | C142: Dienstzimmer | D142: VF | E142: beidseitig | F142: J2 | G142: 1.66 | H142: 1.37 | I142: 2.27 | J142: 2 | K142: 4.54 | L142: 9.08
A143: 1 30 | B143: 1.OG | C143: Flur | I143: 0 | K143: 0 | L143: =IF(E143="einseitig",K143*1,IF(E143="beidseitig",K143*2,IF(E143="raumseitig",K143*1,IF(E143="2x raumseitig",K143*2,IF(E143="3x raumseitig",K143*3,IF(E143="witterungsseitig",K143*1,IF(E143="außen",K143*1,IF(E143="raum- & witterungsseitig",K143*2,IF(E143="vierseitig",K143*4,IF(E143="allseitig",K143*2,IF(E143="ganzflächig",K143*2,0))))))))))) -> 0
A144: 1 31 | B144: 1.OG | C144: Treppenraum | D144: VF | E144: beidseitig | F144: J2 | G144: 2.2 | H144: 0.66 | I144: 1.45 | J144: 2 | K144: 2.9 | L144: 5.8
A145: 1 32 | B145: 1.OG | C145: Umkleideplätze | D145: VF | E145: beidseitig | F145: J2 | G145: 1.66 | H145: 1.37 | I145: 2.27 | J145: 2 | K145: =I145*J145 -> 4.54 | L145: 9.08
B146: 1.OG | C146: Nasszelle | I146: 0 | K146: 0 | L146: 0
A147: 1 33 | B147: 1.OG | C147: Umkleideplätze | D147: VF | E147: beidseitig | F147: J2 | G147: 1.66 | H147: 1.37 | I147: 2.27 | J147: 2 | K147: 4.54 | L147: 9.08
B148: 1.OG | C148: Nasszelle | I148: 0 | K148: 0 | L148: 0
A149: 1 34 | B149: 1.OG | C149: Umkleideplätze | D149: VF | E149: beidseitig | F149: J2 | G149: 1.66 | H149: 1.37 | I149: 2.27 | J149: 2 | K149: 4.54 | L149: 9.08
B150: 1.OG | C150: Nasszelle | I150: 0 | K150: 0 | L150: 0
A151: 1 35 | B151: 1.OG | C151: Umkleideplätze | D151: VF | E151: beidseitig | F151: J2 | G151: 1.66 | H151: 1.37 | I151: 2.27 | J151: 2 | K151: 4.54 | L151: 9.08
B152: 1.OG | C152: Nasszelle | I152: 0 | K152: 0 | L152: 0
A153: 1 36 | B153: 1.OG | C153: Unterkunft | D153: VF | E153: beidseitig | F153: J2 | G153: 1.66 | H153: 1.37 | I153: 2.27 | J153: 2 | K153: 4.54 | L153: 9.08
B154: 1.OG | C154: Nasszelle | I154: 0 | K154: 0 | L154: 0
A155: 1 37 | B155: 1.OG | C155: Trockenraum | D155: VF | E155: beidseitig | F155: J2 | G155: 1.66 | H155: 1.37 | I155: 2.27 | J155: 2 | K155: 4.54 | L155: 9.08
B156: 1.OG | C156: Nasszelle | I156: 0 | K156: 0 | L156: 0
A157: 1 38 | B157: 1.OG | C157: Flur | D157: VF | E157: beidseitig | F157: J2 | G157: 1.66 | H157: 1.37 | I157: 2.27 | J157: 1 | K157: 2.27 | L157: 4.54
A158: 2 01 | B158: 2.OG | C158: Treppenraum | D158: VF | E158: beidseitig | F158: J2 | G158: 2.2 | H158: 0.66 | I158: 1.45 | J158: 2 | K158: 2.9 | L158: 5.8
A159: 2 02 | B159: 2.OG | C159: Flur | I159: 0 | K159: 0 | L159: 0
A160: 2 03 | B160: 2.OG | C160: Waschraum | D160: VF | E160: beidseitig | F160: J2 | G160: 1.66 | H160: 1.37 | I160: 2.27 | J160: 1 | K160: 2.27 | L160: 4.54
A161: 2 04 | B161: 2.OG | C161: Dienstzimmer | D161: VF | E161: beidseitig | F161: J2 | G161: 1.66 | H161: 1.37 | I161: 2.27 | J161: 2 | K161: 4.54 | L161: 9.08
A162: 2 05 | B162: 2.OG | C162: Duschraum | D162: VF | E162: beidseitig | F162: J2 | G162: 1.66 | H162: 1.37 | I162: 2.27 | J162: 1 | K162: 2.27 | L162: 4.54
A163: 2 06 | B163: 2.OG | C163: Dienstzimmer | D163: VF | E163: beidseitig | F163: J2 | G163: 1.66 | H163: 1.37 | I163: 2.27 | J163: 2 | K163: 4.54 | L163: 9.08
A164: 2 07 | B164: 2.OG | C164: Teeküche | D164: VF | E164: beidseitig | F164: J2 | G164: 0.92 | H164: 1.37 | I164: 1.26 | J164: 1 | K164: 1.26 | L164: 2.52
A165: 2 08 | B165: 2.OG | C165: Besprechungsraum | D165: VF | E165: beidseitig | F165: J2 | G165: 1.66 | H165: 1.37 | I165: 2.27 | J165: 5 | K165: 11.35 | L165: 22.7
A166: 2 09 | B166: 2.OG | C166: Vorraum WC | I166: 0 | K166: 0 | L166: 0
A167: 2 10 | B167: 2.OG | C167: WC | D167: VF | E167: beidseitig | F167: J2 | G167: 0.92 | H167: 1.37 | I167: 1.26 | J167: 1 | K167: 1.26 | L167: 2.52
A168: 2 11 | B168: 2.OG | C168: Flur | I168: 0 | K168: 0 | L168: 0
A169: 2 12 | B169: 2.OG | C169: Dienstzimmer | D169: VF | E169: beidseitig | F169: J2 | G169: 1.66 | H169: 1.37 | I169: 2.27 | J169: 2 | K169: 4.54 | L169: 9.08
A170: 2 13 | B170: 2.OG | C170: Dienstzimmer | D170: VF | E170: beidseitig | F170: J2 | G170: 1.66 | H170: 1.37 | I170: 2.27 | J170: 2 | K170: 4.54 | L170: 9.08
A171: 2 14 | B171: 2.OG | C171: Dienstzimmer | D171: VF | E171: beidseitig | F171: J2 | G171: 1.66 | H171: 1.37 | I171: 2.27 | J171: 2 | K171: 4.54 | L171: 9.08
A172: 2 15 | B172: 2.OG | C172: Dienstzimmer | D172: VF | E172: beidseitig | F172: J2 | G172: 1.66 | H172: 1.37 | I172: 2.27 | J172: 2 | K172: 4.54 | L172: 9.08
A173: 2 16 | B173: 2.OG | C173: Dienstzimmer | D173: VF | E173: beidseitig | F173: J2 | G173: 1.66 | H173: 1.37 | I173: 2.27 | J173: 2 | K173: 4.54 | L173: 9.08
A174: 2 17 | B174: 2.OG | C174: Dienstzimmer | D174: VF | E174: beidseitig | F174: J2 | G174: 1.66 | H174: 1.37 | I174: 2.27 | J174: 2 | K174: 4.54 | L174: 9.08
A175: 2 18 | B175: 2.OG | C175: Dienstzimmer | D175: VF | E175: beidseitig | F175: J2 | G175: 1.66 | H175: 1.37 | I175: 2.27 | J175: 2 | K175: 4.54 | L175: 9.08
A176: 2 19 | B176: 2.OG | C176: Dienstzimmer | D176: VF | E176: beidseitig | F176: J2 | G176: 1.66 | H176: 1.37 | I176: 2.27 | J176: 2 | K176: 4.54 | L176: 9.08
A177: 2 20 | B177: 2.OG | C177: Dienstzimmer | D177: VF | E177: beidseitig | F177: J2 | G177: 1.66 | H177: 1.37 | I177: 2.27 | J177: 2 | K177: 4.54 | L177: 9.08
A178: 2 21 | B178: 2.OG | C178: Vorraum Dusche | D178: VF | E178: beidseitig | F178: J2 | G178: 1.66 | H178: 1.37 | I178: 2.27 | J178: 1 | K178: 2.27 | L178: 4.54
A179: 2 22 | B179: 2.OG | C179: Dienstzimmer | D179: VF | E179: beidseitig | F179: J2 | G179: 1.66 | H179: 1.37 | I179: 2.27 | J179: 2 | K179: 4.54 | L179: 9.08
A180: 2 23 | B180: 2.OG | C180: Duschraum | I180: 0 | K180: 0 | L180: 0
A181: 2 24 | B181: 2.OG | C181: Dienstzimmer | D181: VF | E181: beidseitig | F181: J2 | G181: 1.66 | H181: 1.37 | I181: 2.27 | J181: 2 | K181: 4.54 | L181: 9.08
A182: 2 25 | B182: 2.OG | C182: Waschraum | D182: VF | E182: beidseitig | F182: J2 | G182: 1.66 | H182: 1.37 | I182: 2.27 | J182: 1 | K182: 2.27 | L182: 4.54
A183: 2 26 | B183: 2.OG | C183: Vorraum WC | I183: 0 | K183: 0 | L183: 0
A184: 2 27 | B184: 2.OG | C184: WC | D184: VF | E184: beidseitig | F184: J2 | G184: 0.92 | H184: 1.37 | I184: 1.26 | J184: 1 | K184: 1.26 | L184: 2.52
A185: 2 28 | B185: 2.OG | C185: Abstellraum Reinig. | D185: VF | E185: beidseitig | F185: J2 | G185: 0.92 | H185: 1.37 | I185: 1.26 | J185: 1 | K185: 1.26 | L185: 2.52
A186: 2 29 | B186: 2.OG | C186: Dienstzimmer | D186: VF | E186: beidseitig | F186: J2 | G186: 1.66 | H186: 1.37 | I186: 2.27 | J186: 2 | K186: 4.54 | L186: 9.08
A187: 2 30 | B187: 2.OG | C187: Flur | I187: 0 | K187: 0 | L187: 0
A188: 2 31 | B188: 2.OG | C188: Treppenraum | D188: VF | E188: beidseitig | F188: J2 | G188: 2.2 | H188: 0.66 | I188: 1.45 | J188: 2 | K188: 2.9 | L188: 5.8
A189: 2 32 | B189: 2.OG | C189: Umkleideplätze | D189: VF | E189: beidseitig | F189: J2 | G189: 1.66 | H189: 1.37 | I189: 2.27 | J189: 2 | K189: 4.54 | L189: 9.08
B190: 2.OG | C190: Nasszelle | I190: 0 | K190: 0 | L190: 0
A191: 2 33 | B191: 2.OG | C191: Umkleideplätze | D191: VF | E191: beidseitig | F191: J2 | G191: 1.66 | H191: 1.37 | I191: 2.27 | J191: 2 | K191: 4.54 | L191: 9.08
B192: 2.OG | C192: Nasszelle | I192: 0 | K192: 0 | L192: 0
A193: 2 34 | B193: 2.OG | C193: Unterkunft | D193: VF | E193: beidseitig | F193: J2 | G193: 1.66 | H193: 1.37 | I193: 2.27 | J193: 2 | K193: 4.54 | L193: 9.08
B194: 2.OG | C194: Nasszelle | I194: 0 | K194: 0 | L194: 0
A195: 2 35 | B195: 2.OG | C195: Umkleideplätze | D195: VF | E195: beidseitig | F195: J2 | G195: 1.66 | H195: 1.37 | I195: 2.27 | J195: 2 | K195: 4.54 | L195: 9.08
B196: 2.OG | C196: Nasszelle | I196: 0 | K196: 0 | L196: 0
A197: 2 36 | B197: 2.OG | C197: Unterkunft | D197: VF | E197: beidseitig | F197: J2 | G197: 1.66 | H197: 1.37 | I197: 2.27 | J197: 2 | K197: 4.54 | L197: 9.08
B198: 2.OG | C198: Nasszelle | I198: 0 | K198: 0 | L198: 0
A199: 2 37 | B199: 2.OG | C199: Umkleideplätze | D199: VF | E199: beidseitig | F199: J2 | G199: 1.66 | H199: 1.37 | I199: 2.27 | J199: 2 | K199: 4.54 | L199: 9.08
B200: 2.OG | C200: Nasszelle | I200: 0 | K200: 0 | L200: 0
A201: 2 38 | B201: 2.OG | C201: Flur | D201: VF | E201: beidseitig | F201: J2 | G201: 1.66 | H201: 1.37 | I201: 2.27 | J201: 1 | K201: 2.27 | L201: 4.54
I202: 0 | K202: 0 | L202: 0
... 688 more rows

Sheet Anl C-03 Geb 8
A1: VOEK 573-25 Los 2 | L1: Anlage C-03
A3: Flächenaufmaß Glasreinigung
A5: Reinigungsobjekt: | C5: BPol Blumberg
A6: Straße: | C6: Bundespolizeiallee 1 | R6: einseitig
A7: PLZ und Ort: | C7: 16356 Ahrensfelde | R7: beidseitig
A8: WE - Nr.: | C8: 141115 | I8: Stand: | J8: 2018-09-17 | R8: raumseitig
A9: Gebäude Nr. | C9: 8 | R9: 2x raumseitig
A10: Anzahl Etagen | R10: 3x raumseitig
A11: Gebäudeart SAP | R11: witterungsseitig
A12: Kontrakt-Nr.: | I12: Druckdatum: | J12: 2025-02-05 | R12: außen
A13: Raum. Nr. | B13: Etage | C13: Raumart / Nutzung | D13: Glascode | E13: Reinigung einseitig beidseitig oder mehrseitig (Info) | F13: Turnus | G13: Breite, m | H13: Höhe, m | I13: Einzelmaß, m² | J13: Anzahl / Einzelmaß | K13: Reinigungs-fläche einseitig | L13: zu reinigende Gesamtfläche | R13: raum- & witterungsseitig
A14: K 01 | B14: KG | C14: Treppenraum | I14: 0 | K14: =I14*J14 -> 0 | L14: =IF(E14="einseitig",K14*1,IF(E14="beidseitig",K14*2,IF(E14="raumseitig",K14*1,IF(E14="2x raumseitig",K14*2,IF(E14="3x raumseitig",K14*3,IF(E14="witterungsseitig",K14*1,IF(E14="außen",K14*1,IF(E14="raum- & witterungsseitig",K14*2,IF(E14="vierseitig",K14*4,IF(E14="allseitig",K14*2,IF(E14="ganzflächig",K14*2,0))))))))))) -> 0 | R14: vierseitig
A15: K 02 | B15: KG | C15: Waffenkammer | I15: 0 | K15: =I15*J15 -> 0 | L15: =IF(E15="einseitig",K15*1,IF(E15="beidseitig",K15*2,IF(E15="raumseitig",K15*1,IF(E15="2x raumseitig",K15*2,IF(E15="3x raumseitig",K15*3,IF(E15="witterungsseitig",K15*1,IF(E15="außen",K15*1,IF(E15="raum- & witterungsseitig",K15*2,IF(E15="vierseitig",K15*4,IF(E15="allseitig",K15*2,IF(E15="ganzflächig",K15*2,0))))))))))) -> 0 | R15: allseitig
A16: K 03 | B16: KG | C16: Dienstzimmer | I16: 0 | K16: 0 | L16: 0 | R16: ganzflächig
A17: K 04 | B17: KG | C17: Schreibraum | I17: 0 | K17: 0 | L17: 0
A18: K 05 | B18: KG | C18: Waffenkammer | I18: 0 | K18: 0 | L18: 0
A19: K 06 | B19: KG | C19: Waffenkammer | I19: 0 | K19: 0 | L19: 0
A20: K 07 | B20: KG | C20: Waffenkammer | I20: 0 | K20: 0 | L20: 0
A21: K 08 | B21: KG | C21: Waffenkammer | I21: 0 | K21: 0 | L21: 0
A22: K 09 | B22: KG | C22: Waffenkammer | I22: 0 | K22: 0 | L22: 0
A23: K 10 | B23: KG | C23: HA Heizung | I23: 0 | K23: 0 | L23: 0
A24: K 11 | B24: KG | C24: Waffenkammer Flur | I24: 0 | K24: 0 | L24: 0
A25: K 12 | B25: KG | C25: Flur | I25: 0 | K25: 0 | L25: 0
A26: K 13 | B26: KG | C26: Lager | I26: 0 | K26: 0 | L26: 0
A27: K 14 | B27: KG | C27: Lager | I27: 0 | K27: 0 | L27: 0
A28: K 15 | B28: KG | C28: Lager | I28: 0 | K28: 0 | L28: 0
A29: K 16 | B29: KG | C29: Lager | I29: 0 | K29: 0 | L29: 0
A30: K 17 | B30: KG | C30: Lager | I30: 0 | K30: 0 | L30: 0
A31: K 18 | B31: KG | C31: Lager | I31: 0 | K31: 0 | L31: 0
A32: K 19 | B32: KG | C32: Lager | I32: 0 | K32: 0 | L32: 0
A33: K 20 | B33: KG | C33: Lager | D33: VF | E33: beidseitig | F33: J2 | G33: 1.06 | H33: 0.66 | I33: 0.7 | J33: 1 | K33: 0.7 | L33: 1.4
A34: K 21 | B34: KG | C34: Lager | D34: VF | E34: beidseitig | F34: J2 | G34: 1.06 | H34: 0.66 | I34: 0.7 | J34: 1 | K34: 0.7 | L34: 1.4
A35: K 22 | B35: KG | C35: Lager | I35: 0 | K35: 0 | L35: 0
A36: K 23 | B36: KG | C36: Lager | I36: 0 | K36: 0 | L36: 0
A37: K 24 | B37: KG | C37: Lager | I37: 0 | K37: 0 | L37: 0
A38: K 25 | B38: KG | C38: Lager | I38: 0 | K38: 0 | L38: 0
A39: K 26 | B39: KG | C39: Abstellraum Fahrräder | I39: 0 | K39: 0 | L39: 0
A40: K 27 | B40: KG | C40: HA I + K | D40: VF | E40: beidseitig | F40: J2 | G40: 1.06 | H40: 0.66 | I40: 0.7 | J40: 1 | K40: 0.7 | L40: 1.4
A41: K 28 | B41: KG | C41: Vorraum | I41: 0 | K41: 0 | L41: 0
A42: K 29 | B42: KG | C42: HA Elektro | I42: 0 | K42: 0 | L42: 0
A43: K 30 | B43: KG | C43: Waffenkammer | I43: 0 | K43: 0 | L43: 0
A44: K 31 | B44: KG | C44: Lager | D44: VF | E44: beidseitig | F44: J2 | G44: 1.66 | H44: 1.37 | I44: 2.27 | J44: 1 | K44: 2.27 | L44: 4.54
A45: K 32 | B45: KG | C45: Waffenkammer | I45: 0 | K45: 0 | L45: 0
A46: K 33 | B46: KG | C46: Aufenthaltsraum / Sportraum | D46: VF | E46: beidseitig | F46: J2 | G46: 0.92 | H46: 1.37 | I46: 1.26 | J46: 2 | K46: 2.52 | L46: 5.04
A47: K 34 | B47: KG | C47: Lager | D47: VF | E47: beidseitig | F47: J2 | G47: 1.66 | H47: 1.37 | I47: 2.27 | J47: 2 | K47: 4.54 | L47: 9.08
A48: K 35 | B48: KG | C48: Aufenthaltsraum / Sportraum | D48: VF | E48: beidseitig | F48: J2 | G48: 1.66 | H48: 1.37 | I48: 2.27 | J48: 2 | K48: 4.54 | L48: 9.08
A49: K 36 | B49: KG | C49: Flur | I49: 0 | K49: 0 | L49: 0
A50: K 37 | B50: KG | C50: Treppenraum | I50: 0 | K50: 0 | L50: 0
A51: K 38 | B51: KG | C51: Lager | D51: VF | E51: beidseitig | F51: J2 | G51: 1.66 | H51: 1.37 | I51: 2.27 | J51: 1 | K51: 2.27 | L51: 4.54
A52: K 39 | B52: KG | C52: Lager | D52: VF | E52: beidseitig | F52: J2 | G52: 0.92 | H52: 1.37 | I52: 1.26 | J52: 1 | K52: 1.26 | L52: 2.52
A53: K 40 | B53: KG | C53: Lager | D53: VF | E53: beidseitig | F53: J2 | G53: 1.66 | H53: 1.37 | I53: 2.27 | J53: 1 | K53: 2.27 | L53: 4.54
A54: K 41 | B54: KG | C54: Lager | D54: VF | E54: beidseitig | F54: J2 | G54: 0.92 | H54: 1.37 | I54: 1.26 | J54: 1 | K54: 1.26 | L54: 2.52
A55: K 42 | B55: KG | C55: Lager | D55: VF | E55: beidseitig | F55: J2 | G55: 1.66 | H55: 1.37 | I55: 2.27 | J55: 1 | K55: 2.27 | L55: 4.54
A56: K 43 | B56: KG | C56: Lager | D56: VF | E56: beidseitig | F56: J2 | G56: 1.66 | H56: 1.37 | I56: 2.27 | J56: 1 | K56: 2.27 | L56: 4.54
A57: K 44 | B57: KG | C57: Lager | D57: VF | E57: beidseitig | F57: J2 | G57: 1.66 | H57: 1.37 | I57: 2.27 | J57: 1 | K57: 2.27 | L57: 4.54
A58: K 45 | B58: KG | C58: Lager | D58: VF | E58: beidseitig | F58: J2 | G58: 1.66 | H58: 1.37 | I58: 2.27 | J58: 1 | K58: 2.27 | L58: 4.54
A59: K 46 | B59: KG | C59: Waffenreinigung | D59: VF | E59: beidseitig | F59: J2 | G59: 1.66 | H59: 1.37 | I59: 2.27 | J59: 2 | K59: 4.54 | L59: 9.08
A60: K 47 | B60: KG | C60: Lager | D60: VF | E60: beidseitig | F60: J2 | G60: 1.66 | H60: 1.37 | I60: 2.27 | J60: 2 | K60: 4.54 | L60: 9.08
A61: K 48 | B61: KG | C61: Flur | D61: VF | E61: beidseitig | F61: J2 | G61: 1.66 | H61: 0.8 | I61: 1.33 | J61: 1 | K61: 1.33 | L61: 2.66
A62: E 01 | B62: EG | C62: Treppenraum | D62: VF | E62: beidseitig | F62: J2 | G62: 2.2 | H62: 0.66 | I62: 1.45 | J62: 2 | K62: 2.9 | L62: 5.8
A63: E 02 | B63: EG | C63: Windfang | I63: 0 | K63: 0 | L63: 0
A64: E 03 | B64: EG | C64: Flur | I64: 0 | K64: 0 | L64: 0
A65: E 04 | B65: EG | C65: Dienstzimmer | D65: VF | E65: beidseitig | F65: J2 | G65: 1.66 | H65: 1.37 | I65: 2.27 | J65: 1 | K65: 2.27 | L65: 4.54
A66: E 05 | B66: EG | C66: Dienstzimmer | D66: VF | E66: beidseitig | F66: J2 | G66: 1.66 | H66: 1.37 | I66: 2.27 | J66: 2 | K66: 4.54 | L66: 9.08
A67: E 06 | B67: EG | C67: Dienstzimmer | D67: VF | E67: beidseitig | F67: J2 | G67: 1.66 | H67: 1.37 | I67: 2.27 | J67: 1 | K67: 2.27 | L67: 4.54
A68: E 07 | B68: EG | C68: Vorraum WC | I68: 0 | K68: 0 | L68: 0
A69: E 08 | B69: EG | C69: Dienstzimmer | D69: VF | E69: beidseitig | F69: J2 | G69: 1.66 | H69: 1.37 | I69: 2.27 | J69: 1 | K69: 2.27 | L69: 4.54
A70: E 09 | B70: EG | C70: Vorraum WC | I70: 0 | K70: 0 | L70: 0
A71: E 10 | B71: EG | C71: Dienstzimmer | D71: VF | E71: beidseitig | F71: J2 | G71: 1.66 | H71: 1.37 | I71: 2.27 | J71: 1 | K71: 2.27 | L71: 4.54
A72: E 11 | B72: EG | C72: WC | D72: VF | E72: beidseitig | F72: J2 | G72: 0.92 | H72: 1.37 | I72: 1.26 | J72: 1 | K72: 1.26 | L72: 2.52
A73: E 12 | B73: EG | C73: Aufenthaltsraum | D73: VF | E73: beidseitig | F73: J2 | G73: 1.66 | H73: 1.37 | I73: 2.27 | J73: 1 | K73: 2.27 | L73: 4.54
A74: E 13 | B74: EG | C74: WC | D74: VF | E74: beidseitig | F74: J2 | G74: 0.92 | H74: 1.37 | I74: 1.26 | J74: 1 | K74: 1.26 | L74: 2.52
A75: E 14 | B75: EG | C75: Dienstzimmer | D75: VF | E75: beidseitig | F75: J2 | G75: 1.66 | H75: 1.37 | I75: 2.27 | J75: 1 | K75: 2.27 | L75: 4.54
A76: E 15 | B76: EG | C76: Teeküche | D76: VF | E76: beidseitig | F76: J2 | G76: 1.66 | H76: 1.37 | I76: 2.27 | J76: 1 | K76: 2.27 | L76: 4.54
A77: E 16 | B77: EG | C77: Dienstzimmer | D77: VF | E77: beidseitig | F77: J2 | G77: 1.66 | H77: 1.37 | I77: 2.27 | J77: 1 | K77: 2.27 | L77: 4.54
A78: E 17 | B78: EG | C78: Dienstzimmer | D78: VF | E78: beidseitig | F78: J2 | G78: 1.66 | H78: 1.37 | I78: 2.27 | J78: 1 | K78: 2.27 | L78: 4.54
A79: E 18 | B79: EG | C79: Dienstzimmer | D79: VF | E79: beidseitig | F79: J2 | G79: 1.66 | H79: 1.37 | I79: 2.27 | J79: 1 | K79: =I79*J79 -> 2.27 | L79: =IF(E79="einseitig",K79*1,IF(E79="beidseitig",K79*2,IF(E79="raumseitig",K79*1,IF(E79="2x raumseitig",K79*2,IF(E79="3x raumseitig",K79*3,IF(E79="witterungsseitig",K79*1,IF(E79="außen",K79*1,IF(E79="raum- & witterungsseitig",K79*2,IF(E79="vierseitig",K79*4,IF(E79="allseitig",K79*2,IF(E79="ganzflächig",K79*2,0))))))))))) -> 4.54
A80: E 19 | B80: EG | C80: Dienstzimmer | D80: VF | E80: beidseitig | F80: J2 | G80: 1.66 | H80: 1.37 | I80: 2.27 | J80: 1 | K80: 2.27 | L80: 4.54
A81: E 20 | B81: EG | C81: Dienstzimmer | D81: VF | E81: beidseitig | F81: J2 | G81: 1.66 | H81: 1.37 | I81: 2.27 | J81: 1 | K81: 2.27 | L81: 4.54
A82: E 21 | B82: EG | C82: Dienstzimmer | D82: VF | E82: beidseitig | F82: J2 | G82: 1.66 | H82: 1.37 | I82: 2.27 | J82: 1 | K82: 2.27 | L82: 4.54
A83: E 22 | B83: EG | C83: Dienstzimmer | D83: VF | E83: beidseitig | F83: J2 | G83: 1.66 | H83: 1.37 | I83: 2.27 | J83: 1 | K83: 2.27 | L83: 4.54
A84: E 23 | B84: EG | C84: Dienstzimmer | D84: VF | E84: beidseitig | F84: J2 | G84: 1.66 | H84: 1.37 | I84: 2.27 | J84: 1 | K84: 2.27 | L84: 4.54
A85: E 24 | B85: EG | C85: Dienstzimmer | D85: VF | E85: beidseitig | F85: J2 | G85: 1.66 | H85: 1.37 | I85: 2.27 | J85: 1 | K85: 2.27 | L85: 4.54
A86: E 25 | B86: EG | C86: Flur (zusammengelegt) | I86: 0 | K86: 0 | L86: 0
A87: E 26 | B87: EG | C87: Flur (zusammengelegt) | I87: 0 | K87: 0 | L87: 0
A88: E 27 | B88: EG | C88: Waschraum/Dusche | D88: VF | E88: beidseitig | F88: J2 | G88: 1.66 | H88: 1.37 | I88: 2.27 | J88: 1 | K88: 2.27 | L88: 4.54
A89: E 28 | B89: EG | C89: Dienstzimmer (Umkleide?) | D89: VF | E89: beidseitig | F89: J2 | G89: 1.66 | H89: 1.37 | I89: 2.27 | J89: 1 | K89: 2.27 | L89: 4.54
A90: E 29 | B90: EG | C90: WC | D90: VF | E90: beidseitig | F90: J2 | G90: 1.66 | H90: 1.37 | I90: 2.27 | J90: 1 | K90: 2.27 | L90: 4.54
A91: E 30 | B91: EG | C91: Umkleideplätze | D91: VF | E91: beidseitig | F91: J2 | G91: 1.66 | H91: 1.37 | I91: 2.27 | J91: 1 | K91: 2.27 | L91: 4.54
A92: E 31 | B92: EG | C92: WC | D92: VF | E92: beidseitig | F92: J2 | G92: 0.92 | H92: 1.37 | I92: 1.26 | J92: 1 | K92: 1.26 | L92: 2.52
A93: E 32 | B93: EG | C93: Umkleideplätze | D93: VF | E93: beidseitig | F93: J2 | G93: 1.66 | H93: 1.37 | I93: 2.27 | J93: 1 | K93: 2.27 | L93: 4.54
A94: E 33 | B94: EG | C94: Waschraum | D94: VF | E94: beidseitig | F94: J2 | G94: 0.92 | H94: 1.37 | I94: 1.26 | J94: 1 | K94: 1.26 | L94: 2.52
A95: E 34 | B95: EG | C95: Umkleideplätze | D95: VF | E95: beidseitig | F95: J2 | G95: 1.66 | H95: 1.37 | I95: 2.27 | J95: 1 | K95: 2.27 | L95: 4.54
A96: E 35 | B96: EG | C96: Duschraum | D96: VF | E96: beidseitig | F96: J2 | G96: 1.66 | H96: 1.37 | I96: 2.27 | J96: 1 | K96: 2.27 | L96: 4.54
A97: E 36 | B97: EG | C97: Dienstzimmer | D97: VF | E97: beidseitig | F97: J2 | G97: 1.66 | H97: 1.37 | I97: 2.27 | J97: 1 | K97: 2.27 | L97: 4.54
A98: E 37 | B98: EG | C98: Abstellraum Reinig. | D98: VF | E98: beidseitig | F98: J2 | G98: 1.66 | H98: 1.37 | I98: 2.27 | J98: 1 | K98: 2.27 | L98: 4.54
A99: E 38 | B99: EG | C99: Windfang | I99: 0 | K99: 0 | L99: 0
A100: E 39 | B100: EG | C100: Treppenraum | D100: VF | E100: beidseitig | F100: J2 | G100: 2.2 | H100: 1.37 | I100: 3.01 | J100: 1 | K100: 3.01 | L100: 6.02
A101: E 40 | B101: EG | C101: Umkleideplätze | D101: VF | E101: beidseitig | F101: J2 | G101: 1.66 | H101: 1.37 | I101: 2.27 | J101: 1 | K101: 2.27 | L101: 4.54
B102: EG | C102: Nasszelle | I102: 0 | K102: 0 | L102: 0
A103: E 41 | B103: EG | C103: Umkleideplätze | D103: VF | E103: beidseitig | F103: J2 | G103: 1.66 | H103: 1.37 | I103: 2.27 | J103: 1 | K103: 2.27 | L103: 4.54
B104: EG | C104: Nasszelle | I104: 0 | K104: 0 | L104: 0
A105: E 42 | B105: EG | C105: Umkleideplätze | D105: VF | E105: beidseitig | F105: J2 | G105: 1.66 | H105: 1.37 | I105: 2.27 | J105: 1 | K105: 2.27 | L105: 4.54
B106: EG | C106: Nasszelle | I106: 0 | K106: 0 | L106: 0
A107: E 43 | B107: EG | C107: Umkleideplätze | D107: VF | E107: beidseitig | F107: J2 | G107: 1.66 | H107: 1.37 | I107: 2.27 | J107: 1 | K107: 2.27 | L107: 4.54
B108: EG | C108: Nasszelle | I108: 0 | K108: 0 | L108: 0
A109: E 44 | B109: EG | C109: Umkleideplätze | D109: VF | E109: beidseitig | F109: J2 | G109: 1.66 | H109: 1.37 | I109: 2.27 | J109: 1 | K109: 2.27 | L109: 4.54
B110: EG | C110: Nasszelle | I110: 0 | K110: 0 | L110: 0
A111: E 45 | B111: EG | C111: Eltern/Kind | D111: VF | E111: beidseitig | F111: J2 | G111: 1.66 | H111: 1.37 | I111: 2.27 | J111: 1 | K111: 2.27 | L111: 4.54
B112: EG | C112: Nasszelle | I112: 0 | K112: 0 | L112: 0
A113: E 46 | B113: EG | C113: Flur | D113: VF | E113: beidseitig | F113: J2 | G113: 1.66 | H113: 1.37 | I113: 2.27 | J113: 1 | K113: 2.27 | L113: 4.54
A114: 1 01 | B114: 1. OG | C114: Treppenraum | D114: VF | E114: beidseitig | F114: J2 | G114: 2.2 | H114: 0.66 | I114: 1.45 | J114: 1 | K114: 1.45 | L114: 2.9
A115: 1 02 | B115: 1. OG | C115: Flur | D115: VF | E115: beidseitig | F115: J2 | G115: 2.21 | H115: 1.53 | I115: 3.38 | J115: 1 | K115: 3.38 | L115: 6.76
A116: 1 03 | B116: 1. OG | C116: Waschraum | D116: VF | E116: beidseitig | F116: J2 | G116: 1.66 | H116: 1.37 | I116: 2.27 | J116: 1 | K116: 2.27 | L116: 4.54
A117: 1 04 | B117: 1. OG | C117: Umkleideplätze | D117: VF | E117: beidseitig | F117: J2 | G117: 1.66 | H117: 1.37 | I117: 2.27 | J117: 1 | K117: 2.27 | L117: 4.54
A118: 1 05 | B118: 1. OG | C118: Duschraum | D118: VF | E118: beidseitig | F118: J2 | G118: 1.66 | H118: 1.37 | I118: 2.27 | J118: 1 | K118: 2.27 | L118: 4.54
A119: 1 06 | B119: 1. OG | C119: Umkleideplätze | D119: VF | E119: beidseitig | F119: J2 | G119: 1.66 | H119: 1.37 | I119: 2.27 | J119: 1 | K119: 2.27 | L119: 4.54
A120: 1 07 | B120: 1. OG | C120: Teeküche | D120: VF | E120: beidseitig | F120: J2 | G120: 0.92 | H120: 1.37 | I120: 1.26 | J120: 1 | K120: 1.26 | L120: 2.52
A121: 1 08 | B121: 1. OG | C121: Unterrichtsraum | D121: VF | E121: beidseitig | F121: J2 | G121: 1.66 | H121: 1.37 | I121: 2.27 | J121: 1 | K121: 2.27 | L121: 4.54
A122: 1 09 | B122: 1. OG | C122: Vorraum WC | I122: 0 | K122: 0 | L122: 0
A123: 1 10 | B123: 1. OG | C123: WC | D123: VF | E123: beidseitig | F123: J2 | G123: 0.92 | H123: 1.37 | I123: 1.26 | J123: 1 | K123: 1.26 | L123: 2.52
A124: 1 11 | B124: 1. OG | C124: Flur | D124: VF | E124: beidseitig | F124: J2 | G124: 2.21 | H124: 1.53 | I124: 3.38 | J124: 1 | K124: 3.38 | L124: 6.76
A125: 1 12 | B125: 1. OG | C125: Umkleideplätze | D125: VF | E125: beidseitig | F125: J2 | G125: 1.66 | H125: 1.37 | I125: 2.27 | J125: 1 | K125: 2.27 | L125: 4.54
A126: 1 13 | B126: 1. OG | C126: Dienstzimmer | D126: VF | E126: beidseitig | F126: J2 | G126: 1.66 | H126: 1.37 | I126: 2.27 | J126: 1 | K126: 2.27 | L126: 4.54
A127: 1 14 | B127: 1. OG | C127: Umkleideplätze | D127: VF | E127: beidseitig | F127: J2 | G127: 1.66 | H127: 1.37 | I127: 2.27 | J127: 1 | K127: 2.27 | L127: 4.54
A128: 1 15 | B128: 1. OG | C128: Aufenthaltsraum | D128: VF | E128: beidseitig | F128: J2 | G128: 1.66 | H128: 1.37 | I128: 2.27 | J128: 1 | K128: 2.27 | L128: 4.54
A129: 1 16 | B129: 1. OG | C129: Umkleideplätze | D129: VF | E129: beidseitig | F129: J2 | G129: 1.66 | H129: 1.37 | I129: 2.27 | J129: 1 | K129: 2.27 | L129: 4.54
A130: 1 17 | B130: 1. OG | C130: Dienstzimmer | D130: VF | E130: beidseitig | F130: J2 | G130: 1.66 | H130: 1.37 | I130: 2.27 | J130: 1 | K130: 2.27 | L130: 4.54
A131: 1 18 | B131: 1. OG | C131: Umkleideplätze | D131: VF | E131: beidseitig | F131: J2 | G131: 1.66 | H131: 1.37 | I131: 2.27 | J131: 1 | K131: 2.27 | L131: 4.54
A132: 1 19 | B132: 1. OG | C132: Aufenthaltsraum | D132: VF | E132: beidseitig | F132: J2 | G132: 1.66 | H132: 1.37 | I132: 2.27 | J132: 1 | K132: 2.27 | L132: 4.54
A133: 1 20 | B133: 1. OG | C133: Umkleideplätze | D133: VF | E133: beidseitig | F133: J2 | G133: 1.66 | H133: 1.37 | I133: 2.27 | J133: 1 | K133: 2.27 | L133: 4.54
A134: 1 21 | B134: 1. OG | C134: Vorraum Dusche | D134: VF | E134: beidseitig | F134: J2 | G134: 1.66 | H134: 1.37 | I134: 2.27 | J134: 1 | K134: 2.27 | L134: 4.54
A135: 1 22 | B135: 1. OG | C135: Umkleideplätze | D135: VF | E135: beidseitig | F135: J2 | G135: 1.66 | H135: 1.37 | I135: 2.27 | J135: 1 | K135: 2.27 | L135: 4.54
A136: 1 23 | B136: 1. OG | C136: Duschraum | D136: VF | E136: beidseitig | F136: J2 | G136: 1.66 | H136: 1.37 | I136: 2.27 | J136: 1 | K136: 2.27 | L136: 4.54
A137: 1 24 | B137: 1. OG | C137: Aufenthaltsraum | D137: VF | E137: beidseitig | F137: J2 | G137: 1.66 | H137: 1.37 | I137: 2.27 | J137: 1 | K137: 2.27 | L137: 4.54
A138: 1 25 | B138: 1. OG | C138: Waschraum | D138: VF | E138: beidseitig | F138: J2 | G138: 1.66 | H138: 1.37 | I138: 2.27 | J138: 1 | K138: 2.27 | L138: 4.54
A139: 1 26 | B139: 1. OG | C139: Vorraum WC | I139: 0 | K139: 0 | L139: 0
A140: 1 27 | B140: 1. OG | C140: WC | D140: VF | E140: beidseitig | F140: J2 | G140: 0.92 | H140: 1.37 | I140: 1.26 | J140: 1 | K140: 1.26 | L140: 2.52
A141: 1 28 | B141: 1. OG | C141: Abstellraum Reinig. | D141: VF | E141: beidseitig | F141: J2 | G141: 0.92 | H141: 1.37 | I141: 1.26 | J141: 1 | K141: 1.26 | L141: 2.52
A142: 1 29 | B142: 1. OG | C142: Dienstzimmer | D142: VF | E142: beidseitig | F142: J2 | G142: 1.66 | H142: 1.37 | I142: 2.27 | J142: 1 | K142: 2.27 | L142: 4.54
A143: 1 30 | B143: 1. OG | C143: Flur | D143: VF | E143: beidseitig | F143: J2 | G143: 2.21 | H143: 1.53 | I143: 3.38 | J143: 1 | K143: 3.38 | L143: =IF(E143="einseitig",K143*1,IF(E143="beidseitig",K143*2,IF(E143="raumseitig",K143*1,IF(E143="2x raumseitig",K143*2,IF(E143="3x raumseitig",K143*3,IF(E143="witterungsseitig",K143*1,IF(E143="außen",K143*1,IF(E143="raum- & witterungsseitig",K143*2,IF(E143="vierseitig",K143*4,IF(E143="allseitig",K143*2,IF(E143="ganzflächig",K143*2,0))))))))))) -> 6.76
A144: 1 31 | B144: 1. OG | C144: Treppenraum | D144: VF | E144: beidseitig | F144: J2 | G144: 2.2 | H144: 0.66 | I144: 1.45 | J144: 1 | K144: 1.45 | L144: 2.9
A145: 1 32 | B145: 1. OG | C145: Umkleideplätze | D145: VF | E145: beidseitig | F145: J2 | G145: 1.66 | H145: 1.37 | I145: 2.27 | J145: 1 | K145: =I145*J145 -> 2.27 | L145: 4.54
B146: 1. OG | C146: Nasszelle | I146: 0 | K146: 0 | L146: 0
A147: 1 33 | B147: 1. OG | C147: Umkleideplätze | D147: VF | E147: beidseitig | F147: J2 | G147: 1.66 | H147: 1.37 | I147: 2.27 | J147: 1 | K147: 2.27 | L147: 4.54
B148: 1. OG | C148: Nasszelle | I148: 0 | K148: 0 | L148: 0
A149: 1 34 | B149: 1. OG | C149: Umkleideplätze | D149: VF | E149: beidseitig | F149: J2 | G149: 1.66 | H149: 1.37 | I149: 2.27 | J149: 1 | K149: 2.27 | L149: 4.54
B150: 1. OG | C150: Nasszelle | I150: 0 | K150: 0 | L150: 0
A151: 1 35 | B151: 1. OG | C151: Umkleideplätze | D151: VF | E151: beidseitig | F151: J2 | G151: 1.66 | H151: 1.37 | I151: 2.27 | J151: 1 | K151: 2.27 | L151: 4.54
B152: 1. OG | C152: Nasszelle | I152: 0 | K152: 0 | L152: 0
A153: 1 36 | B153: 1. OG | C153: Umkleideplätze | D153: VF | E153: beidseitig | F153: J2 | G153: 1.66 | H153: 1.37 | I153: 2.27 | J153: 1 | K153: 2.27 | L153: 4.54
B154: 1. OG | C154: Nasszelle | I154: 0 | K154: 0 | L154: 0
A155: 1 37 | B155: 1. OG | C155: Umkleideplätze | D155: VF | E155: beidseitig | F155: J2 | G155: 1.66 | H155: 1.37 | I155: 2.27 | J155: 1 | K155: 2.27 | L155: 4.54
B156: 1. OG | C156: Nasszelle | I156: 0 | K156: 0 | L156: 0
A157: 1 38 | B157: 1. OG | C157: Flur | D157: VF | E157: beidseitig | F157: J2 | G157: 1.66 | H157: 1.37 | I157: 2.27 | J157: 1 | K157: 2.27 | L157: 4.54
A158: 2 01 | B158: 2.OG | C158: Treppenraum | D158: VF | E158: beidseitig | F158: J2 | G158: 2.2 | H158: 0.66 | I158: 1.45 | J158: 1 | K158: 1.45 | L158: 2.9
A159: 2 02 | B159: 2.OG | C159: Flur | D159: VF | E159: beidseitig | F159: J2 | G159: 2.21 | H159: 1.53 | I159: 3.38 | J159: 1 | K159: 3.38 | L159: 6.76
A160: 2 03 | B160: 2.OG | C160: Waschraum | D160: VF | E160: beidseitig | F160: J2 | G160: 1.66 | H160: 1.37 | I160: 2.27 | J160: 1 | K160: 2.27 | L160: 4.54
A161: 2 04 | B161: 2.OG | C161: Dienstzimmer | D161: VF | E161: beidseitig | F161: J2 | G161: 1.66 | H161: 1.37 | I161: 2.27 | J161: 1 | K161: 2.27 | L161: 4.54
A162: 2 05 | B162: 2.OG | C162: Duschraum | D162: VF | E162: beidseitig | F162: J2 | G162: 1.66 | H162: 1.37 | I162: 2.27 | J162: 1 | K162: 2.27 | L162: 4.54
A163: 2 06 | B163: 2.OG | C163: Dienstzimmer | D163: VF | E163: beidseitig | F163: J2 | G163: 1.66 | H163: 1.37 | I163: 2.27 | J163: 1 | K163: 2.27 | L163: 4.54
A164: 2 07 | B164: 2.OG | C164: Teeküche | D164: VF | E164: beidseitig | F164: J2 | G164: 0.92 | H164: 1.37 | I164: 1.26 | J164: 1 | K164: 1.26 | L164: 2.52
A165: 2 08 | B165: 2.OG | C165: Unterrichtsraum | D165: VF | E165: beidseitig | F165: J2 | G165: 1.66 | H165: 1.37 | I165: 2.27 | J165: 1 | K165: 2.27 | L165: 4.54
A166: 2 09 | B166: 2.OG | C166: Vorraum WC | I166: 0 | K166: 0 | L166: 0
A167: 2 10 | B167: 2.OG | C167: WC | D167: VF | E167: beidseitig | F167: J2 | G167: 0.92 | H167: 1.37 | I167: 1.26 | J167: 1 | K167: 1.26 | L167: 2.52
A168: 2 11 | B168: 2.OG | C168: Flur | D168: VF | E168: beidseitig | F168: J2 | G168: 2.21 | H168: 1.53 | I168: 3.38 | J168: 1 | K168: 3.38 | L168: 6.76
A169: 2 12 | B169: 2.OG | C169: Dienstzimmer | D169: VF | E169: beidseitig | F169: J2 | G169: 1.66 | H169: 1.37 | I169: 2.27 | J169: 1 | K169: 2.27 | L169: 4.54
A170: 2 13 | B170: 2.OG | C170: Dienstzimmer | D170: VF | E170: beidseitig | F170: J2 | G170: 1.66 | H170: 1.37 | I170: 2.27 | J170: 1 | K170: 2.27 | L170: 4.54
A171: 2 14 | B171: 2.OG | C171: Dienstzimmer | D171: VF | E171: beidseitig | F171: J2 | G171: 1.66 | H171: 1.37 | I171: 2.27 | J171: 1 | K171: 2.27 | L171: 4.54
A172: 2 15 | B172: 2.OG | C172: Dienstzimmer | D172: VF | E172: beidseitig | F172: J2 | G172: 1.66 | H172: 1.37 | I172: 2.27 | J172: 1 | K172: 2.27 | L172: 4.54
A173: 2 16 | B173: 2.OG | C173: Dienstzimmer | D173: VF | E173: beidseitig | F173: J2 | G173: 1.66 | H173: 1.37 | I173: 2.27 | J173: 1 | K173: 2.27 | L173: 4.54
A174: 2 17 | B174: 2.OG | C174: Dienstzimmer | D174: VF | E174: beidseitig | F174: J2 | G174: 1.66 | H174: 1.37 | I174: 2.27 | J174: 1 | K174: 2.27 | L174: 4.54
A175: 2 18 | B175: 2.OG | C175: Dienstzimmer | D175: VF | E175: beidseitig | F175: J2 | G175: 1.66 | H175: 1.37 | I175: 2.27 | J175: 1 | K175: 2.27 | L175: 4.54
A176: 2 19 | B176: 2.OG | C176: Dienstzimmer | D176: VF | E176: beidseitig | F176: J2 | G176: 1.66 | H176: 1.37 | I176: 2.27 | J176: 1 | K176: 2.27 | L176: 4.54
A177: 2 20 | B177: 2.OG | C177: Dienstzimmer | D177: VF | E177: beidseitig | F177: J2 | G177: 1.66 | H177: 1.37 | I177: 2.27 | J177: 1 | K177: 2.27 | L177: 4.54
A178: 2 21 | B178: 2.OG | C178: Vorraum Dusche | D178: VF | E178: beidseitig | F178: J2 | G178: 1.66 | H178: 1.37 | I178: 2.27 | J178: 1 | K178: 2.27 | L178: 4.54
A179: 2 22 | B179: 2.OG | C179: Dienstzimmer | D179: VF | E179: beidseitig | F179: J2 | G179: 1.66 | H179: 1.37 | I179: 2.27 | J179: 1 | K179: 2.27 | L179: 4.54
A180: 2 23 | B180: 2.OG | C180: Duschraum | D180: VF | E180: beidseitig | F180: J2 | G180: 1.66 | H180: 1.37 | I180: 2.27 | J180: 1 | K180: 2.27 | L180: 4.54
A181: 2 24 | B181: 2.OG | C181: Dienstzimmer | D181: VF | E181: beidseitig | F181: J2 | G181: 1.66 | H181: 1.37 | I181: 2.27 | J181: 1 | K181: 2.27 | L181: 4.54
A182: 2 25 | B182: 2.OG | C182: Waschraum | D182: VF | E182: beidseitig | F182: J2 | G182: 1.66 | H182: 1.37 | I182: 2.27 | J182: 1 | K182: 2.27 | L182: 4.54
A183: 2 26 | B183: 2.OG | C183: Vorraum WC | I183: 0 | K183: 0 | L183: 0
A184: 2 27 | B184: 2.OG | C184: WC | D184: VF | E184: beidseitig | F184: J2 | G184: 0.92 | H184: 1.37 | I184: 1.26 | J184: 1 | K184: 1.26 | L184: 2.52
A185: 2 28 | B185: 2.OG | C185: Abstellraum Reinig. | D185: VF | E185: beidseitig | F185: J2 | G185: 0.92 | H185: 1.37 | I185: 1.26 | J185: 1 | K185: 1.26 | L185: 2.52
A186: 2 29 | B186: 2.OG | C186: Umkleideplätze | D186: VF | E186: beidseitig | F186: J2 | G186: 1.66 | H186: 1.37 | I186: 2.27 | J186: 1 | K186: 2.27 | L186: 4.54
A187: 2 30 | B187: 2.OG | C187: Flur | D187: VF | E187: beidseitig | F187: J2 | G187: 2.21 | H187: 1.53 | I187: 3.38 | J187: 1 | K187: 3.38 | L187: 6.76
A188: 2 31 | B188: 2.OG | C188: Treppenraum | D188: VF | E188: beidseitig | F188: J2 | G188: 2.2 | H188: 0.66 | I188: 1.45 | J188: 1 | K188: 1.45 | L188: 2.9
A189: 2 32 | B189: 2.OG | C189: Umkleideplätze | D189: VF | E189: beidseitig | F189: J2 | G189: 1.66 | H189: 1.37 | I189: 2.27 | J189: 1 | K189: 2.27 | L189: 4.54
B190: 2.OG | C190: Nasszelle | I190: 0 | K190: 0 | L190: 0
A191: 2 33 | B191: 2.OG | C191: Umkleideplätze | D191: VF | E191: beidseitig | F191: J2 | G191: 1.66 | H191: 1.37 | I191: 2.27 | J191: 1 | K191: 2.27 | L191: 4.54
B192: 2.OG | C192: Nasszelle | I192: 0 | K192: 0 | L192: 0
A193: 2 34 | B193: 2.OG | C193: Umkleideplätze | D193: VF | E193: beidseitig | F193: J2 | G193: 1.66 | H193: 1.37 | I193: 2.27 | J193: 1 | K193: 2.27 | L193: 4.54
B194: 2.OG | C194: Nasszelle | I194: 0 | K194: 0 | L194: 0
A195: 2 35 | B195: 2.OG | C195: Umkleideplätze | D195: VF | E195: beidseitig | F195: J2 | G195: 1.66 | H195: 1.37 | I195: 2.27 | J195: 1 | K195: 2.27 | L195: 4.54
B196: 2.OG | C196: Nasszelle | I196: 0 | K196: 0 | L196: 0
A197: 2 36 | B197: 2.OG | C197: Umkleideplätze | D197: VF | E197: beidseitig | F197: J2 | G197: 1.66 | H197: 1.37 | I197: 2.27 | J197: 1 | K197: 2.27 | L197: 4.54
B198: 2.OG | C198: Nasszelle | I198: 0 | K198: 0 | L198: 0
A199: 2 37 | B199: 2.OG | C199: Umkleideplätze | D199: VF | E199: beidseitig | F199: J2 | G199: 1.66 | H199: 1.37 | I199: 2.27 | J199: 1 | K199: 2.27 | L199: 4.54
B200: 2.OG | C200: Nasszelle | I200: 0 | K200: 0 | L200: 0
A201: 2 38 | B201: 2.OG | C201: Flur | D201: VF | E201: beidseitig | F201: J2 | G201: 1.66 | H201: 1.37 | I201: 2.27 | J201: 1 | K201: 2.27 | L201: 4.54
A202: 3 01 | B202: 3.OG | C202: Treppenraum | D202: VF | E202: beidseitig | F202: J2 | G202: 2.2 | H202: 0.66 | I202: 1.45 | J202: 1 | K202: 1.45 | L202: 2.9
... 687 more rows

Sheet Anl C-03 Geb 9
A1: VOEK 573-25 Los 2 | L1: Anlage C-03
A3: Flächenaufmaß Glasreinigung
A5: Reinigungsobjekt:
A6: Straße: | R6: einseitig
A7: PLZ und Ort: | R7: beidseitig
A8: WE - Nr.: | I8: Stand: | R8: raumseitig
A9: Gebäude Nr. | R9: 2x raumseitig
A10: Anzahl Etagen | R10: 3x raumseitig
A11: Gebäudeart SAP | R11: witterungsseitig
A12: Kontrakt-Nr.: | I12: Druckdatum: | J12: 2025-02-05 | R12: außen
A13: Raum. Nr. | B13: Etage | C13: Raumart / Nutzung | D13: Glascode | E13: Reinigung einseitig beidseitig oder mehrseitig (Info) | F13: Turnus | G13: Breite, m | H13: Höhe, m | I13: Einzelmaß, m² | J13: Anzahl / Einzelmaß | K13: Reinigungs-fläche einseitig | L13: zu reinigende Gesamtfläche | R13: raum- & witterungsseitig
A14: K 01 | B14: KG | C14: Treppenraum | I14: 0 | K14: =I14*J14 -> 0 | L14: =IF(E14="einseitig",K14*1,IF(E14="beidseitig",K14*2,IF(E14="raumseitig",K14*1,IF(E14="2x raumseitig",K14*2,IF(E14="3x raumseitig",K14*3,IF(E14="witterungsseitig",K14*1,IF(E14="außen",K14*1,IF(E14="raum- & witterungsseitig",K14*2,IF(E14="vierseitig",K14*4,IF(E14="allseitig",K14*2,IF(E14="ganzflächig",K14*2,0))))))))))) -> 0 | R14: vierseitig
A15: K 02 | B15: KG | C15: Lager | D15: VF | E15: beidseitig | F15: J2 | G15: 1.06 | H15: 0.66 | I15: 0.7 | J15: 1 | K15: =I15*J15 -> 0.7 | L15: =IF(E15="einseitig",K15*1,IF(E15="beidseitig",K15*2,IF(E15="raumseitig",K15*1,IF(E15="2x raumseitig",K15*2,IF(E15="3x raumseitig",K15*3,IF(E15="witterungsseitig",K15*1,IF(E15="außen",K15*1,IF(E15="raum- & witterungsseitig",K15*2,IF(E15="vierseitig",K15*4,IF(E15="allseitig",K15*2,IF(E15="ganzflächig",K15*2,0))))))))))) -> 1.4 | R15: allseitig
A16: K 03 | B16: KG | C16: Waffenkammer | D16: VF | E16: beidseitig | F16: J2 | G16: 1.27 | H16: 0.66 | I16: 0.84 | J16: 1 | K16: =I16*J16 -> 0.84 | L16: =IF(E16="einseitig",K16*1,IF(E16="beidseitig",K16*2,IF(E16="raumseitig",K16*1,IF(E16="2x raumseitig",K16*2,IF(E16="3x raumseitig",K16*3,IF(E16="witterungsseitig",K16*1,IF(E16="außen",K16*1,IF(E16="raum- & witterungsseitig",K16*2,IF(E16="vierseitig",K16*4,IF(E16="allseitig",K16*2,IF(E16="ganzflächig",K16*2,0))))))))))) -> 1.68
A17: K 04 | B17: KG | C17: Lager | D17: VF | E17: beidseitig | F17: J2 | G17: 1.06 | H17: 0.66 | I17: 0.7 | J17: 1 | K17: 0.7 | L17: 1.4
A18: K 05 | B18: KG | C18: Waffenkammer | I18: 0 | K18: 0 | L18: 0
A19: K 06 | B19: KG | C19: Lager | I19: 0 | K19: 0 | L19: 0
A20: K 07 | B20: KG | C20: Waffenkammer | I20: 0 | K20: 0 | L20: 0
A21: K 08 | B21: KG | C21: HA Server | D21: VF | E21: beidseitig | F21: J2 | G21: 1.06 | H21: 0.66 | I21: 0.7 | J21: 1 | K21: 0.7 | L21: 1.4
A22: K 09 | B22: KG | C22: Waffenkammer | I22: 0 | K22: 0 | L22: 0
A23: K 10 | B23: KG | C23: HA Heizung | D23: VF | E23: beidseitig | F23: J2 | G23: 1.06 | H23: 0.66 | I23: 0.7 | J23: 1 | K23: 0.7 | L23: 1.4
A24: K 11 | B24: KG | C24: Flur | I24: 0 | K24: 0 | L24: 0
A25: K 12 | B25: KG | C25: Flur | I25: 0 | K25: 0 | L25: 0
A26: K 13 | B26: KG | C26: Lager | I26: 0 | K26: 0 | L26: 0
A27: K 14 | B27: KG | C27: Lager | I27: 0 | K27: 0 | L27: 0
A28: K 15 | B28: KG | C28: Lager | I28: 0 | K28: 0 | L28: 0
A29: K 16 | B29: KG | C29: Lager | I29: 0 | K29: 0 | L29: 0
A30: K 17 | B30: KG | C30: Lager | I30: 0 | K30: 0 | L30: 0
A31: K 18 | B31: KG | C31: Lager | I31: 0 | K31: 0 | L31: 0
A32: K 19 | B32: KG | C32: Lager | D32: VF | E32: beidseitig | F32: J2 | G32: 1.27 | H32: 0.66 | I32: 0.84 | J32: 1 | K32: 0.84 | L32: 1.68
A33: K 20 | B33: KG | C33: Lager | D33: VF | E33: beidseitig | F33: J2 | G33: 1.06 | H33: 0.66 | I33: 0.7 | J33: 1 | K33: 0.7 | L33: 1.4
A34: K 21 | B34: KG | C34: Lager | I34: 0 | K34: 0 | L34: 0
A35: K 22 | B35: KG | C35: Lager | I35: 0 | K35: 0 | L35: 0
A36: K 23 | B36: KG | C36: Lager | I36: 0 | K36: 0 | L36: 0
A37: K 24 | B37: KG | C37: Lager | I37: 0 | K37: 0 | L37: 0
A38: K 25 | B38: KG | C38: Lager | I38: 0 | K38: 0 | L38: 0
A39: K 26 | B39: KG | C39: Lager | I39: 0 | K39: 0 | L39: 0
A40: K 27 | B40: KG | C40: HA Elektro | D40: VF | E40: beidseitig | F40: J2 | G40: 1.06 | H40: 0.66 | I40: 0.7 | J40: 1 | K40: 0.7 | L40: 1.4
A41: K 28 | B41: KG | C41: Eingangsbereich | I41: 0 | K41: 0 | L41: 0
A42: K 29 | B42: KG | C42: Lager | I42: 0 | K42: 0 | L42: 0
A43: K 30 | B43: KG | C43: Lager | D43: VF | E43: beidseitig | F43: J2 | G43: 1.06 | H43: 1.37 | I43: 1.45 | J43: 1 | K43: 1.45 | L43: 2.9
A44: K 31 | B44: KG | C44: Lager | D44: VF | E44: beidseitig | F44: J2 | G44: 1.66 | H44: 1.37 | I44: 2.27 | J44: 1 | K44: 2.27 | L44: 4.54
A45: K 32 | B45: KG | C45: Lager | D45: VF | E45: beidseitig | F45: J2 | G45: 1.66 | H45: 1.37 | I45: 2.27 | J45: 1 | K45: 2.27 | L45: 4.54 | R45: ganzflächig
A46: K 33 | B46: KG | C46: Umkleidezimmer | D46: VF | E46: beidseitig | F46: J2 | G46: 0.92 | H46: 1.37 | I46: 1.26 | J46: 1 | K46: 1.26 | L46: 2.52
A47: K 34 | B47: KG | C47: Lager | D47: VF | E47: beidseitig | F47: J2 | G47: 1.66 | H47: 1.37 | I47: 2.27 | J47: 1 | K47: 2.27 | L47: 4.54
A48: K 35 | B48: KG | C48: Besprechungsraum | D48: VF | E48: beidseitig | F48: J2 | G48: 1.66 | H48: 1.37 | I48: 2.27 | J48: 1 | K48: 2.27 | L48: 4.54
A49: K 36 | B49: KG | C49: Treppenraum | I49: 0 | K49: 0 | L49: 0
A50: K 37 | B50: KG | C50: Flur | I50: 0 | K50: 0 | L50: 0
A51: K 38 | B51: KG | C51: Flur | D51: VF | E51: beidseitig | F51: J2 | G51: 1.36 | H51: 0.66 | I51: 0.9 | J51: 1 | K51: 0.9 | L51: 1.8
A52: K 39 | B52: KG | C52: Umkleideraum | D52: VF | E52: beidseitig | F52: J2 | G52: 0.92 | H52: 1.37 | I52: 1.26 | J52: 1 | K52: 1.26 | L52: 2.52
A53: K 40 | B53: KG | C53: Lager | D53: VF | E53: beidseitig | F53: J2 | G53: 1.66 | H53: 1.37 | I53: 2.27 | J53: 1 | K53: 2.27 | L53: 4.54
A54: K 41 | B54: KG | C54: Lager | D54: VF | E54: beidseitig | F54: J2 | G54: 0.92 | H54: 1.37 | I54: 1.26 | J54: 1 | K54: 1.26 | L54: 2.52
A55: K 42 | B55: KG | C55: Lager | D55: VF | E55: beidseitig | F55: J2 | G55: 1.66 | H55: 1.37 | I55: 2.27 | J55: 1 | K55: 2.27 | L55: 4.54
A56: K 43 | B56: KG | C56: Schreibraum WK | D56: VF | E56: beidseitig | F56: J2 | G56: 1.66 | H56: 1.37 | I56: 2.27 | J56: 1 | K56: 2.27 | L56: 4.54
A57: K 44 | B57: KG | C57: Lager | D57: VF | E57: beidseitig | F57: J2 | G57: 1.66 | H57: 1.37 | I57: 2.27 | J57: 1 | K57: 2.27 | L57: 4.54
A58: K 45 | B58: KG | C58: Waffenkammer | D58: VF | E58: beidseitig | F58: J2 | G58: 1.66 | H58: 1.37 | I58: 2.27 | J58: 1 | K58: 2.27 | L58: 4.54
A59: K 46 | B59: KG | C59: Lager | D59: VF | E59: beidseitig | F59: J2 | G59: 1.66 | H59: 1.37 | I59: 2.27 | J59: 1 | K59: 2.27 | L59: 4.54
A60: K 47 | B60: KG | C60: Waffenkammer | D60: VF | E60: beidseitig | F60: J2 | G60: 1.66 | H60: 1.37 | I60: 2.27 | J60: 1 | K60: 2.27 | L60: 4.54
A61: K 48 | B61: KG | C61: Waffenreinigungsraum | D61: VF | E61: beidseitig | F61: J2 | G61: 1.66 | H61: 1.37 | I61: 2.27 | J61: 1 | K61: 2.27 | L61: 4.54
A62: E 01 | B62: EG | C62: Treppenraum | D62: VF | E62: beidseitig | F62: J2 | G62: 2.2 | H62: 0.66 | I62: 1.45 | J62: 1 | K62: 1.45 | L62: 2.9
A63: E 02 | B63: EG | C63: Windfang | I63: 0 | K63: 0 | L63: 0
A64: E 03 | B64: EG | C64: Flur 1 groß | I64: 0 | K64: 0 | L64: 0
A65: E 04 | B65: EG | C65: Dienstzimmer | D65: VF | E65: beidseitig | F65: J2 | G65: 1.66 | H65: 1.37 | I65: 2.27 | J65: 1 | K65: 2.27 | L65: 4.54
A66: E 05 | B66: EG | C66: Besprechungsraum | D66: VF | E66: beidseitig | F66: J2 | G66: 1.66 | H66: 1.37 | I66: 2.27 | J66: 1 | K66: 2.27 | L66: 4.54
A67: E 06 | B67: EG | C67: , | D67: VF | E67: beidseitig | F67: J2 | G67: 1.66 | H67: 1.37 | I67: 2.27 | J67: 1 | K67: 2.27 | L67: 4.54
A68: E 07 | B68: EG | C68: Vorraum und WC | D68: VF | E68: beidseitig | F68: J2 | G68: 0.92 | H68: 1.37 | I68: 1.26 | J68: 1 | K68: 1.26 | L68: 2.52
A69: E 08 | B69: EG | C69: Dienstzimmer | D69: VF | E69: beidseitig | F69: J2 | G69: 1.66 | H69: 1.37 | I69: 2.27 | J69: 1 | K69: 2.27 | L69: 4.54
A70: E 09 | B70: EG | C70: Vorraum WC | I70: 0 | K70: 0 | L70: 0
A71: E 10 | B71: EG | C71: Dienstzimmer | D71: VF | E71: beidseitig | F71: J2 | G71: 1.66 | H71: 1.37 | I71: 2.27 | J71: 1 | K71: 2.27 | L71: 4.54
A72: E 11 | B72: EG | C72: WC | D72: VF | E72: beidseitig | F72: J2 | G72: 0.92 | H72: 1.37 | I72: 1.26 | J72: 1 | K72: 1.26 | L72: 2.52
A73: E 12 | B73: EG | C73: HA Serverraum | D73: VF | E73: beidseitig | F73: J2 | G73: 1.66 | H73: 1.37 | I73: 2.27 | J73: 1 | K73: 2.27 | L73: 4.54
A74: E 13 | B74: EG | C74: Flur 2 | I74: 0 | K74: 0 | L74: 0
A75: E 14 | B75: EG | C75: Unterkunftswohnplatz | D75: VF | E75: beidseitig | F75: J2 | G75: 1.66 | H75: 1.37 | I75: 2.27 | J75: 1 | K75: 2.27 | L75: 4.54
A76: E 15 | B76: EG | C76: EKG-Raum | D76: VF | E76: beidseitig | F76: J2 | G76: 1.66 | H76: 1.37 | I76: 2.27 | J76: 1 | K76: 2.27 | L76: 4.54
A77: E 16 | B77: EG | C77: Lagerraum Einsatzausrüst. | D77: VF | E77: beidseitig | F77: J2 | G77: 1.66 | H77: 1.37 | I77: 2.27 | J77: 1 | K77: 2.27 | L77: 4.54
A78: E 17 | B78: EG | C78: Labor | D78: VF | E78: beidseitig | F78: J2 | G78: 1.66 | H78: 1.37 | I78: 2.27 | J78: 1 | K78: 2.27 | L78: 4.54
A79: E 18 | B79: EG | C79: Umkleideraum | D79: VF | E79: beidseitig | F79: J2 | G79: 1.66 | H79: 1.37 | I79: 2.27 | J79: 1 | K79: 2.27 | L79: 4.54
A80: E 19 | B80: EG | C80: Untersuchungszimmer | D80: VF | E80: beidseitig | F80: J2 | G80: 1.66 | H80: 1.37 | I80: 2.27 | J80: 1 | K80: 2.27 | L80: 4.54
A81: E 20 | B81: EG | C81: Notfallzimmer/Impfraum | D81: VF | E81: beidseitig | F81: J2 | G81: 1.66 | H81: 1.37 | I81: 2.27 | J81: 1 | K81: 2.27 | L81: 4.54
A82: E 21 | B82: EG | C82: Anmeldung/Geschäftszimmer | D82: VF | E82: beidseitig | F82: J2 | G82: 1.66 | H82: 1.37 | I82: 2.27 | J82: 1 | K82: 2.27 | L82: 4.54
A83: E 22 | B83: EG | C83: Dienstzimmer | D83: VF | E83: beidseitig | F83: J2 | G83: 1.66 | H83: 1.37 | I83: 2.27 | J83: 1 | K83: 2.27 | L83: 4.54
A84: E 23 | B84: EG | C84: Sprechstundenzimmer | D84: VF | E84: beidseitig | F84: J2 | G84: 1.66 | H84: 1.37 | I84: 2.27 | J84: 1 | K84: 2.27 | L84: 4.54
A85: E 24 | B85: EG | C85: Wartezimmer | D85: VF | E85: beidseitig | F85: J2 | G85: 1.66 | H85: 1.37 | I85: 2.27 | J85: 1 | K85: 2.27 | L85: 4.54
A86: E 25 | B86: EG | C86: WC | I86: 0 | K86: 0 | L86: 0
A87: E 26 | B87: EG | C87: Aktenraum | D87: VF | E87: beidseitig | F87: J2 | G87: 1.66 | H87: 1.37 | I87: 2.27 | J87: 1 | K87: 2.27 | L87: 4.54
A88: E 27 | B88: EG | C88: Waschraum/Vorraum | D88: VF | E88: beidseitig | F88: J2 | G88: 1.66 | H88: 1.37 | I88: 2.27 | J88: 1 | K88: 2.27 | L88: 4.54
A89: E 28 | B89: EG | C89: Behandlungszimmer | D89: VF | E89: beidseitig | F89: J2 | G89: 1.66 | H89: 1.37 | I89: 2.27 | J89: 1 | K89: 2.27 | L89: 4.54
A90: E 29 | B90: EG | C90: Dusche | I90: 0 | K90: 0 | L90: 0
A91: E 30 | B91: EG | C91: Dienstzimmer | D91: VF | E91: beidseitig | F91: J2 | G91: 1.66 | H91: 1.37 | I91: 2.27 | J91: 1 | K91: 2.27 | L91: 4.54
A92: E 31/ E 31a | B92: EG | C92: Vorraum / WC | D92: VF | E92: beidseitig | F92: J2 | G92: 0.92 | H92: 1.37 | I92: 1.26 | J92: 1 | K92: 1.26 | L92: 2.52
A93: E 32 | B93: EG | C93: Dienstzimmer | D93: VF | E93: beidseitig | F93: J2 | G93: 1.66 | H93: 1.37 | I93: 2.27 | J93: 1 | K93: 2.27 | L93: 4.54
A94: E 33 | B94: EG | C94: Waschraum | D94: VF | E94: beidseitig | F94: J2 | G94: 0.92 | H94: 1.37 | I94: 1.26 | J94: 1 | K94: 1.26 | L94: 2.52
A95: E 34 | B95: EG | C95: Untersuchungszimmer | D95: VF | E95: beidseitig | F95: J2 | G95: 1.66 | H95: 1.37 | I95: 2.27 | J95: 1 | K95: 2.27 | L95: 4.54
A96: E 35 | B96: EG | C96: Vorraum Dusche | D96: VF | E96: beidseitig | F96: J2 | G96: 1.66 | H96: 1.37 | I96: 2.27 | J96: 1 | K96: 2.27 | L96: 4.54
A97: E 36 | B97: EG | C97: Dienstzimmer | I97: 0 | K97: 0 | L97: 0
A98: E 37 | B98: EG | C98: Dusche | D98: VF | E98: beidseitig | F98: J2 | G98: 1.66 | H98: 1.37 | I98: 2.27 | J98: 1 | K98: 2.27 | L98: 4.54
A99: E 38 | B99: EG | C99: Lager | D99: VF | E99: beidseitig | F99: J2 | G99: 1.66 | H99: 1.37 | I99: 2.27 | J99: 1 | K99: 2.27 | L99: 4.54
A100: E 39 | B100: EG | C100: Dusche | D100: VF | E100: beidseitig | F100: J2 | G100: 1.66 | H100: 1.37 | I100: 2.27 | J100: 1 | K100: 2.27 | L100: 4.54
A101: E 40 | B101: EG | C101: Flur 3 | I101: 0 | K101: 0 | L101: 0
A102: E 41 | B102: EG | C102: Teeküche | D102: VF | E102: beidseitig | F102: J2 | G102: 2.2 | H102: 0.66 | I102: 1.45 | J102: 1 | K102: 1.45 | L102: 2.9
A103: E 42 | B103: EG | C103: Windfang | I103: 0 | K103: 0 | L103: 0
A104: E 44 | B104: EG | C104: Geschäftszimmer | D104: VF | E104: beidseitig | F104: J2 | G104: 1.66 | H104: 1.37 | I104: 2.27 | J104: 1 | K104: 2.27 | L104: 4.54
A105: E 45 | B105: EG | C105: Arztraum | D105: VF | E105: beidseitig | F105: J2 | G105: 1.66 | H105: 1.37 | I105: 2.27 | J105: 1 | K105: 2.27 | L105: 4.54
A106: E 46 | B106: EG | C106: Dienstzimmer | D106: VF | E106: beidseitig | F106: J2 | G106: 1.66 | H106: 1.37 | I106: 2.27 | J106: 1 | K106: 2.27 | L106: 4.54
A107: E 47 | B107: EG | C107: Dienstzimmer | D107: VF | E107: beidseitig | F107: J2 | G107: 1.66 | H107: 1.37 | I107: 2.27 | J107: 1 | K107: 2.27 | L107: 4.54
A108: E 48 | B108: EG | C108: Physiotherapie | D108: VF | E108: beidseitig | F108: J2 | G108: 1.66 | H108: 1.37 | I108: 2.27 | J108: 1 | K108: =I108*J108 -> 2.27 | L108: =IF(E108="einseitig",K108*1,IF(E108="beidseitig",K108*2,IF(E108="raumseitig",K108*1,IF(E108="2x raumseitig",K108*2,IF(E108="3x raumseitig",K108*3,IF(E108="witterungsseitig",K108*1,IF(E108="außen",K108*1,IF(E108="raum- & witterungsseitig",K108*2,IF(E108="vierseitig",K108*4,IF(E108="allseitig",K108*2,IF(E108="ganzflächig",K108*2,0))))))))))) -> 4.54
A109: E 49 | B109: EG | C109: Dienstzimmer | D109: VF | E109: beidseitig | F109: J2 | G109: 1.66 | H109: 1.37 | I109: 2.27 | J109: 1 | K109: 2.27 | L109: 4.54
A110: E 50 | B110: EG | C110: Physiotherapie | D110: VF | E110: beidseitig | F110: J2 | G110: 1.66 | H110: 1.37 | I110: 2.27 | J110: 1 | K110: 2.27 | L110: 4.54
A111: E 51 | B111: EG | C111: Dienstzimmer | D111: VF | E111: beidseitig | F111: J2 | G111: 1.66 | H111: 1.37 | I111: 2.27 | J111: 1 | K111: 2.27 | L111: 4.54
A112: E 53 | B112: EG | C112: Dienstzimmer | D112: VF | E112: beidseitig | F112: J2 | G112: 1.66 | H112: 1.37 | I112: 2.27 | J112: 1 | K112: 2.27 | L112: 4.54
A113: E 54 | B113: EG | C113: Dienstzimmer | D113: VF | E113: beidseitig | F113: J2 | G113: 1.66 | H113: 1.37 | I113: 2.27 | J113: 1 | K113: 2.27 | L113: 4.54
A114: E 55 | B114: EG | C114: Flur | D114: VF | E114: beidseitig | F114: J2 | G114: 1.66 | H114: 1.37 | I114: 2.27 | J114: 1 | K114: 2.27 | L114: 4.54
A115: 1 01 | B115: 1.OG | C115: Treppenraum | D115: VF | E115: beidseitig | F115: J2 | G115: 2.2 | H115: 0.66 | I115: 1.45 | J115: 1 | K115: 1.45 | L115: 2.9
A116: 1 02 | B116: 1.OG | C116: Flur | D116: VF | E116: beidseitig | F116: J2 | G116: 2.21 | H116: 1.53 | I116: 3.38 | J116: 1 | K116: 3.38 | L116: 6.76
A117: 1 03 | B117: 1.OG | C117: Umkleideplätze | D117: VF | E117: beidseitig | F117: J2 | G117: 1.66 | H117: 1.37 | I117: 2.27 | J117: 1 | K117: 2.27 | L117: 4.54
A118: 1 04 | B118: 1.OG | C118: Umkleideplätze | D118: VF | E118: beidseitig | F118: J2 | G118: 1.66 | H118: 1.37 | I118: 2.27 | J118: 1 | K118: 2.27 | L118: 4.54
A119: 1 05 | B119: 1.OG | C119: WC | D119: VF | E119: beidseitig | F119: J2 | G119: 0.92 | H119: 1.37 | I119: 1.26 | J119: 1 | K119: 1.26 | L119: 2.52
A120: 1 06 | B120: 1.OG | C120: Umkleideplätze | D120: VF | E120: beidseitig | F120: J2 | G120: 1.66 | H120: 1.37 | I120: 2.27 | J120: 1 | K120: 2.27 | L120: 4.54
A121: 1 07 | B121: 1.OG | C121: WC | D121: VF | E121: beidseitig | F121: J2 | G121: 0.92 | H121: 1.37 | I121: 1.26 | J121: 1 | K121: 1.26 | L121: 2.52
A122: 1 08 | B122: 1.OG | C122: Unterrichtsraum | D122: VF | E122: beidseitig | F122: J2 | G122: 1.66 | H122: 1.37 | I122: 2.27 | J122: 1 | K122: 2.27 | L122: 4.54
A123: 1 09 | B123: 1.OG | C123: Abstellraum Reinig. | I123: 0 | K123: 0 | L123: 0
A124: 110 | B124: 1.OG | C124: Flur | D124: VF | E124: beidseitig | F124: J2 | G124: 2.21 | H124: 1.53 | I124: 3.38 | J124: 1 | K124: 3.38 | L124: 6.76
A125: 111 | B125: 1.OG | C125: Umkleide | D125: VF | E125: beidseitig | F125: J2 | G125: 1.66 | H125: 1.37 | I125: 2.27 | J125: 1 | K125: 2.27 | L125: 4.54
B126: 1.OG | C126: Nasszelle | I126: 0 | K126: 0 | L126: 0
A127: 1 12 | B127: 1.OG | C127: Umkleideplätze | D127: VF | E127: beidseitig | F127: J2 | G127: 1.66 | H127: 1.37 | I127: 2.27 | J127: 1 | K127: 2.27 | L127: 4.54
A128: 1 13 | B128: 1.OG | C128: Dienstzimmer | D128: VF | E128: beidseitig | F128: J2 | G128: 1.66 | H128: 1.37 | I128: 2.27 | J128: 1 | K128: 2.27 | L128: 4.54
B129: 1.OG | C129: Nasszelle | I129: 0 | K129: 0 | L129: 0
A130: 114 | B130: 1.OG | C130: Dienstzimmer | D130: VF | E130: beidseitig | F130: J2 | G130: 1.66 | H130: 1.37 | I130: 2.27 | J130: 1 | K130: 2.27 | L130: 4.54
A131: 115 | B131: 1.OG | C131: Dienstzimmer | D131: VF | E131: beidseitig | F131: J2 | G131: 1.66 | H131: 1.37 | I131: 2.27 | J131: 1 | K131: 2.27 | L131: 4.54
B132: 1.OG | C132: Nasszelle | I132: 0 | K132: 0 | L132: 0
A133: 116 | B133: 1.OG | C133: Dienstzimmer | D133: VF | E133: beidseitig | F133: J2 | G133: 1.66 | H133: 1.37 | I133: 2.27 | J133: 1 | K133: 2.27 | L133: 4.54
A134: 117 | B134: 1.OG | C134: Aufenthaltsraum | D134: VF | E134: beidseitig | F134: J2 | G134: 1.66 | H134: 1.37 | I134: 2.27 | J134: 1 | K134: 2.27 | L134: 4.54
B135: 1.OG | C135: Nasszelle | I135: 0 | K135: 0 | L135: 0
A136: 118 | B136: 1.OG | C136: Dienstzimmer | D136: VF | E136: beidseitig | F136: J2 | G136: 1.66 | H136: 1.37 | I136: 2.27 | J136: 1 | K136: 2.27 | L136: 4.54
A137: 119 | B137: 1.OG | C137: Vorraum Dusche | D137: VF | E137: beidseitig | F137: J2 | G137: 1.66 | H137: 1.37 | I137: 2.27 | J137: 1 | K137: 2.27 | L137: 4.54
A138: 120 | B138: 1.OG | C138: Dienstzimmer | D138: VF | E138: beidseitig | F138: J2 | G138: 1.66 | H138: 1.37 | I138: 2.27 | J138: 1 | K138: 2.27 | L138: 4.54
A139: 121 | B139: 1.OG | C139: Waschraum / Dusche | D139: VF | E139: beidseitig | F139: J2 | G139: 1.66 | H139: 1.37 | I139: 2.27 | J139: 1 | K139: 2.27 | L139: 4.54
A140: 122 | B140: 1.OG | C140: Lager | D140: VF | E140: beidseitig | F140: J2 | G140: 1.66 | H140: 1.37 | I140: 2.27 | J140: 1 | K140: 2.27 | L140: 4.54
A141: 123 | B141: 1.OG | C141: Vorraum / WC | D141: VF | E141: beidseitig | F141: J2 | G141: 0.92 | H141: 1.37 | I141: 1.26 | J141: 1 | K141: 1.26 | L141: 2.52
A142: 124 | B142: 1.OG | C142: Dienstzimmer | D142: VF | E142: beidseitig | F142: J2 | G142: 1.66 | H142: 1.37 | I142: 2.27 | J142: 1 | K142: 2.27 | L142: 4.54
A143: 124a | B143: 1.OG | C143: Umkleideplätze Rein. | D143: VF | E143: beidseitig | F143: J2 | G143: 1.66 | H143: 1.37 | I143: 2.27 | J143: 1 | K143: 2.27 | L143: 4.54
A144: 125 | B144: 1.OG | C144: Waschraum | D144: VF | E144: beidseitig | F144: J2 | G144: 0.92 | H144: 1.37 | I144: 1.26 | J144: 1 | K144: 1.26 | L144: 2.52
A145: 126 | B145: 1.OG | C145: Umkleider. / Dusche | D145: VF | E145: beidseitig | F145: J2 | G145: 1.66 | H145: 1.37 | I145: 2.27 | J145: 1 | K145: 2.27 | L145: 4.54
A146: 127 | B146: 1.OG | C146: Teeküche | D146: VF | E146: beidseitig | F146: J2 | G146: 1.66 | H146: 1.37 | I146: 2.27 | J146: 1 | K146: 2.27 | L146: 4.54
A147: 128 | B147: 1.OG | C147: Flur | D147: VF | E147: beidseitig | F147: J2 | G147: 2.21 | H147: 1.53 | I147: 3.38 | J147: 1 | K147: 3.38 | L147: 6.76
A148: 129 | B148: 1.OG | C148: Treppenraum | D148: VF | E148: beidseitig | F148: J2 | G148: 2.2 | H148: 0.66 | I148: 1.45 | J148: 1 | K148: 1.45 | L148: 2.9
A149: 130 | B149: 1.OG | C149: Flur | D149: VF | E149: beidseitig | F149: J2 | G149: 1.66 | H149: 1.37 | I149: 2.27 | J149: 1 | K149: 2.27 | L149: 4.54
A150: 131 | B150: 1.OG | C150: Umkleide | D150: VF | E150: beidseitig | F150: J2 | G150: 1.66 | H150: 1.37 | I150: 2.27 | J150: 1 | K150: 2.27 | L150: 4.54
B151: 1.OG | C151: Nasszelle | I151: 0 | K151: 0 | L151: 0
A152: 132 | B152: 1.OG | C152: Umkleide | D152: VF | E152: beidseitig | F152: J2 | G152: 1.66 | H152: 1.37 | I152: 2.27 | J152: 1 | K152: 2.27 | L152: 4.54
B153: 1.OG | C153: Nasszelle | I153: 0 | K153: 0 | L153: 0
A154: 133 | B154: 1.OG | C154: Umkleide | D154: VF | E154: beidseitig | F154: J2 | G154: 1.66 | H154: 1.37 | I154: 2.27 | J154: 1 | K154: 2.27 | L154: 4.54
B155: 1.OG | C155: Nasszelle | I155: 0 | K155: 0 | L155: 0
A156: 134 | B156: 1.OG | C156: Umkleide | D156: VF | E156: beidseitig | F156: J2 | G156: 1.66 | H156: 1.37 | I156: 2.27 | J156: 1 | K156: 2.27 | L156: 4.54
B157: 1.OG | C157: Nasszelle | I157: 0 | K157: 0 | L157: 0
A158: 135 | B158: 1.OG | C158: Umkleide | D158: VF | E158: beidseitig | F158: J2 | G158: 1.66 | H158: 1.37 | I158: 2.27 | J158: 1 | K158: 2.27 | L158: 4.54
B159: 1.OG | C159: Nasszelle | I159: 0 | K159: 0 | L159: 0
A160: 136 | B160: 1.OG | C160: Umkleide | D160: VF | E160: beidseitig | F160: J2 | G160: 1.66 | H160: 1.37 | I160: 2.27 | J160: 1 | K160: 2.27 | L160: 4.54
B161: 1.OG | C161: Nasszelle | I161: 0 | K161: 0 | L161: 0
A162: 2 01 | B162: 2.OG | C162: Treppenraum | D162: VF | E162: beidseitig | F162: J2 | G162: 2.2 | H162: 0.66 | I162: 1.45 | J162: 1 | K162: 1.45 | L162: 2.9
A163: 2 02 | B163: 2.OG | C163: Flur | D163: VF | E163: beidseitig | F163: J2 | G163: 2.21 | H163: 1.53 | I163: 3.38 | J163: 1 | K163: 3.38 | L163: 6.76
A164: 2 03 | B164: 2.OG | C164: Umkleideplätze | D164: VF | E164: beidseitig | F164: J2 | G164: 1.66 | H164: 1.37 | I164: 2.27 | J164: 1 | K164: 2.27 | L164: 4.54
A165: 2 04 | B165: 2.OG | C165: Umkleideplätze | D165: VF | E165: beidseitig | F165: J2 | G165: 1.66 | H165: 1.37 | I165: 2.27 | J165: 1 | K165: 2.27 | L165: 4.54
A166: 2 05 | B166: 2.OG | C166: Vorraum / WC | D166: VF | E166: beidseitig | F166: J2 | G166: 0.92 | H166: 1.37 | I166: 1.26 | J166: 1 | K166: 1.26 | L166: 2.52
A167: 2 06 | B167: 2.OG | C167: Umkleideplätze | D167: VF | E167: beidseitig | F167: J2 | G167: 1.66 | H167: 1.37 | I167: 2.27 | J167: 1 | K167: 2.27 | L167: 4.54
A168: 2 07 | B168: 2.OG | C168: WC | D168: VF | E168: beidseitig | F168: J2 | G168: 0.92 | H168: 1.37 | I168: 1.26 | J168: 1 | K168: 1.26 | L168: 2.52
A169: 2 08 | B169: 2.OG | C169: Unterrichtsraum | D169: VF | E169: beidseitig | F169: J2 | G169: 1.66 | H169: 1.37 | I169: 2.27 | J169: 1 | K169: 2.27 | L169: 4.54
A170: 2 09 | B170: 2.OG | C170: Abstellraum Reinigung | I170: 0 | K170: 0 | L170: 0
A171: 2 10 | B171: 2.OG | C171: Flur | D171: VF | E171: beidseitig | F171: J2 | G171: 2.21 | H171: 1.53 | I171: 3.38 | J171: 1 | K171: 3.38 | L171: 6.76
A172: 2 11 | B172: 2.OG | C172: Umkleide | D172: VF | E172: beidseitig | F172: J2 | G172: 1.66 | H172: 1.37 | I172: 2.27 | J172: 1 | K172: 2.27 | L172: =IF(E172="einseitig",K172*1,IF(E172="beidseitig",K172*2,IF(E172="raumseitig",K172*1,IF(E172="2x raumseitig",K172*2,IF(E172="3x raumseitig",K172*3,IF(E172="witterungsseitig",K172*1,IF(E172="außen",K172*1,IF(E172="raum- & witterungsseitig",K172*2,IF(E172="vierseitig",K172*4,IF(E172="allseitig",K172*2,IF(E172="ganzflächig",K172*2,0))))))))))) -> 4.54
B173: 2.OG | C173: Nasszelle | I173: 0 | K173: 0 | L173: 0
A174: 212 | B174: 2.OG | C174: Dienstzimmer | D174: VF | E174: beidseitig | F174: J2 | G174: 1.66 | H174: 1.37 | I174: 2.27 | J174: 1 | K174: =I174*J174 -> 2.27 | L174: 4.54
A175: 213 | B175: 2.OG | C175: Umkleideraum | D175: VF | E175: beidseitig | F175: J2 | G175: 1.66 | H175: 1.37 | I175: 2.27 | J175: 1 | K175: 2.27 | L175: 4.54
B176: 2.OG | C176: Nasszelle | I176: 0 | K176: 0 | L176: 0
A177: 214 | B177: 2.OG | C177: Dienstzimmer | D177: VF | E177: beidseitig | F177: J2 | G177: 1.66 | H177: 1.37 | I177: 2.27 | J177: 1 | K177: 2.27 | L177: 4.54
A178: 215 | B178: 2.OG | C178: Umkleideraum | D178: VF | E178: beidseitig | F178: J2 | G178: 1.66 | H178: 1.37 | I178: 2.27 | J178: 1 | K178: 2.27 | L178: 4.54
B179: 2.OG | C179: Nasszelle | I179: 0 | K179: 0 | L179: 0
A180: 216 | B180: 2.OG | C180: Dienstzimmer | D180: VF | E180: beidseitig | F180: J2 | G180: 1.66 | H180: 1.37 | I180: 2.27 | J180: 1 | K180: 2.27 | L180: 4.54
A181: 217 | B181: 2.OG | C181: Besprechungsraum | D181: VF | E181: beidseitig | F181: J2 | G181: 1.66 | H181: 1.37 | I181: 2.27 | J181: 1 | K181: 2.27 | L181: 4.54
B182: 2.OG | C182: Nasszelle | I182: 0 | K182: 0 | L182: 0
A183: 218 | B183: 2.OG | C183: Dienstzimmer | D183: VF | E183: beidseitig | F183: J2 | G183: 1.66 | H183: 1.37 | I183: 2.27 | J183: 1 | K183: 2.27 | L183: 4.54
A184: 219 | B184: 2.OG | C184: Vorraum / WC | D184: VF | E184: beidseitig | F184: J2 | G184: 1.66 | H184: 1.37 | I184: 2.27 | J184: 1 | K184: 2.27 | L184: 4.54
A185: 220 | B185: 2.OG | C185: Dienstzimmer | D185: VF | E185: beidseitig | F185: J2 | G185: 1.66 | H185: 1.37 | I185: 2.27 | J185: 1 | K185: 2.27 | L185: 4.54
A186: 221 | B186: 2.OG | C186: Waschraum / Dusche | D186: VF | E186: beidseitig | F186: J2 | G186: 1.66 | H186: 1.37 | I186: 2.27 | J186: 1 | K186: 2.27 | L186: 4.54
A187: 222 | B187: 2.OG | C187: Dienstzimmer | D187: VF | E187: beidseitig | F187: J2 | G187: 1.66 | H187: 1.37 | I187: 2.27 | J187: 1 | K187: 2.27 | L187: 4.54
A188: 223 | B188: 2.OG | C188: Vorraum / WC | D188: VF | E188: beidseitig | F188: J2 | G188: 0.92 | H188: 1.37 | I188: 1.26 | J188: 1 | K188: 1.26 | L188: 2.52
A189: 224 | B189: 2.OG | C189: Dienstzimmer | D189: VF | E189: beidseitig | F189: J2 | G189: 1.66 | H189: 1.37 | I189: 2.27 | J189: 1 | K189: 2.27 | L189: 4.54
A190: 224a | B190: 2.OG | C190: Dienstzimmer | D190: VF | E190: beidseitig | F190: J2 | G190: 1.66 | H190: 1.37 | I190: 2.27 | J190: 1 | K190: 2.27 | L190: 4.54
A191: 225 | B191: 2.OG | C191: Waschraum | D191: VF | E191: beidseitig | F191: J2 | G191: 0.92 | H191: 1.37 | I191: 1.26 | J191: 1 | K191: 1.26 | L191: 2.52
A192: 226 | B192: 2.OG | C192: Umkleider. / Dusche | D192: VF | E192: beidseitig | F192: J2 | G192: 1.66 | H192: 1.37 | I192: 2.27 | J192: 1 | K192: 2.27 | L192: 4.54
I193: 0 | K193: 0 | L193: 0
A194: 228 | B194: 2.OG | C194: Flur | D194: VF | E194: beidseitig | F194: J2 | G194: 2.21 | H194: 1.53 | I194: 3.38 | J194: 1 | K194: 3.38 | L194: 6.76
A195: 229 | B195: 2.OG | C195: Teeküche | D195: VF | E195: beidseitig | F195: J2 | G195: 2.2 | H195: 0.66 | I195: 1.45 | J195: 1 | K195: 1.45 | L195: 2.9
A196: 230 | B196: 2.OG | C196: Flur | D196: VF | E196: beidseitig | F196: J2 | G196: 1.66 | H196: 1.37 | I196: 2.27 | J196: 1 | K196: 2.27 | L196: 4.54
A197: 231 | B197: 2.OG | C197: Wohnplatz | D197: VF | E197: beidseitig | F197: J2 | G197: 1.66 | H197: 1.37 | I197: 2.27 | J197: 1 | K197: 2.27 | L197: 4.54
B198: 2.OG | C198: Nasszelle | I198: 0 | K198: 0 | L198: 0
A199: 232 | B199: 2.OG | C199: Wohnplatz | D199: VF | E199: beidseitig | F199: J2 | G199: 1.66 | H199: 1.37 | I199: 2.27 | J199: 1 | K199: 2.27 | L199: 4.54
B200: 2.OG | C200: Nasszelle | I200: 0 | K200: 0 | L200: 0
A201: 233 | B201: 2.OG | C201: Wohnplatz | D201: VF | E201: beidseitig | F201: J2 | G201: 1.66 | H201: 1.37 | I201: 2.27 | J201: 1 | K201: 2.27 | L201: 4.54
B202: 2.OG | C202: Nasszelle | I202: 0 | K202: 0 | L202: 0
... 699 more rows

Sheet Anl C-03 Geb 10
A1: VOEK 573-25 Los 2 | L1: Anlage C-03
A3: Flächenaufmaß Glasreinigung
A5: Reinigungsobjekt: | C5: BPol Blumberg
A6: Straße: | C6: Bundespolizeiallee | R6: einseitig
A7: PLZ und Ort: | C7: 16356 Ahrensfelde | R7: beidseitig
A8: WE - Nr.: | C8: 141115 | I8: Stand: | J8: 2018-09-17 | R8: raumseitig
A9: Gebäude Nr. | C9: 10 | R9: 2x raumseitig
A10: Anzahl Etagen | R10: 3x raumseitig
A11: Gebäudeart SAP | R11: witterungsseitig
A12: Kontrakt-Nr.: | I12: Druckdatum: | J12: 2025-02-05 | R12: außen
A13: Raum. Nr. | B13: Etage | C13: Raumart / Nutzung | D13: Glascode | E13: Reinigung einseitig beidseitig oder mehrseitig (Info) | F13: Turnus | G13: Breite, m | H13: Höhe, m | I13: Einzelmaß, m² | J13: Anzahl / Einzelmaß | K13: Reinigungs-fläche einseitig | L13: zu reinigende Gesamtfläche | R13: raum- & witterungsseitig
A14: 1 | B14: KG | C14: Lager | D14: VF | E14: beidseitig | F14: J2 | G14: 1.06 | H14: 0.66 | I14: 0.7 | J14: 1 | K14: =I14*J14 -> 0.7 | L14: =IF(E14="einseitig",K14*1,IF(E14="beidseitig",K14*2,IF(E14="raumseitig",K14*1,IF(E14="2x raumseitig",K14*2,IF(E14="3x raumseitig",K14*3,IF(E14="witterungsseitig",K14*1,IF(E14="außen",K14*1,IF(E14="raum- & witterungsseitig",K14*2,IF(E14="vierseitig",K14*4,IF(E14="allseitig",K14*2,IF(E14="ganzflächig",K14*2,0))))))))))) -> 1.4 | R14: vierseitig
A15: 2 | B15: KG | C15: Lager | D15: VF | E15: beidseitig | F15: J2 | G15: 1.27 | H15: 0.66 | I15: 0.84 | J15: 1 | K15: =I15*J15 -> 0.84 | L15: =IF(E15="einseitig",K15*1,IF(E15="beidseitig",K15*2,IF(E15="raumseitig",K15*1,IF(E15="2x raumseitig",K15*2,IF(E15="3x raumseitig",K15*3,IF(E15="witterungsseitig",K15*1,IF(E15="außen",K15*1,IF(E15="raum- & witterungsseitig",K15*2,IF(E15="vierseitig",K15*4,IF(E15="allseitig",K15*2,IF(E15="ganzflächig",K15*2,0))))))))))) -> 1.68 | R15: allseitig
A16: 3 | B16: KG | C16: Lager | D16: VF | E16: beidseitig | F16: J2 | G16: 1.06 | H16: 0.66 | I16: 0.7 | J16: 1 | K16: 0.7 | L16: 1.4 | R16: ganzflächig
A17: 3./1 | B17: KG | C17: Lager | D17: VF | E17: beidseitig | F17: J2 | G17: 1.06 | H17: 0.66 | I17: 0.7 | J17: 1 | K17: 0.7 | L17: 1.4
A18: 4 | B18: KG | C18: Lager | D18: VF | E18: beidseitig | F18: J2 | G18: 1.27 | H18: 0.66 | I18: 0.84 | J18: 1 | K18: 0.84 | L18: 1.68
A19: 5 | B19: KG | C19: Lager | D19: VF | E19: beidseitig | F19: J2 | G19: 1.06 | H19: 0.66 | I19: 0.7 | J19: 1 | K19: 0.7 | L19: 1.4
A20: 6 | B20: KG | C20: Lager | D20: VF | E20: beidseitig | F20: J2 | G20: 1.13 | H20: 0.66 | I20: 0.75 | J20: 1 | K20: 0.75 | L20: 1.5
A21: 6./1 | B21: KG | C21: Waschraum | D21: VF | E21: beidseitig | F21: J2 | G21: 1.13 | H21: 0.66 | I21: 0.75 | J21: 1 | K21: 0.75 | L21: 1.5
A22: 7 | B22: KG | C22: Lager | D22: VF | E22: beidseitig | F22: J2 | G22: 1.13 | H22: 0.66 | I22: 0.75 | J22: 1 | K22: 0.75 | L22: 1.5
A23: 8 | B23: KG | C23: Lager | D23: VF | E23: beidseitig | F23: J2 | G23: 1.13 | H23: 0.66 | I23: 0.75 | J23: 1 | K23: 0.75 | L23: 1.5
A24: 9 | B24: KG | C24: Schreibraum WK | D24: VF | E24: beidseitig | F24: J2 | G24: 1.13 | H24: 0.66 | I24: 0.75 | J24: 1 | K24: 0.75 | L24: 1.5
A25: 10 | B25: KG | C25: Lager | D25: VF | E25: beidseitig | F25: J2 | G25: 1.13 | H25: 0.66 | I25: 0.75 | J25: 1 | K25: 0.75 | L25: 1.5
A26: 11 | B26: KG | C26: Lager | D26: VF | E26: beidseitig | F26: J2 | G26: 1.13 | H26: 0.66 | I26: 0.75 | J26: 1 | K26: 0.75 | L26: 1.5
A27: 12 | B27: KG | C27: Lager | D27: VF | E27: beidseitig | F27: J2 | G27: 1.13 | H27: 0.66 | I27: 0.75 | J27: 1 | K27: 0.75 | L27: 1.5
A28: 13 | B28: KG | C28: Waffenreinigungsraum | I28: 0 | J28: 1 | K28: 0 | L28: 0
A29: 14 | B29: KG | C29: WSFA | I29: 0 | J29: 1 | K29: 0 | L29: 0
A30: 15 | B30: KG | C30: Waffenreinigungsraum | I30: 0 | J30: 1 | K30: 0 | L30: 0
A31: 16 | B31: KG | C31: Waffenreinigungsraum | I31: 0 | J31: 1 | K31: 0 | L31: 0
A32: 17 | B32: KG | C32: Lager | I32: 0 | J32: 1 | K32: 0 | L32: 0
A33: 17./1 | B33: KG | C33: Lager | I33: 0 | J33: 1 | K33: 0 | L33: 0
A34: 18 | B34: KG | C34: Elektroraum | I34: 0 | J34: 1 | K34: 0 | L34: 0
A35: 18./1 | B35: KG | C35: Lager | D35: VF | E35: beidseitig | F35: J2 | G35: 1.13 | H35: 0.66 | I35: 0.75 | J35: 1 | K35: 0.75 | L35: 1.5
A36: 19 | B36: KG | C36: Lager | D36: VF | E36: beidseitig | F36: J2 | G36: 1.13 | H36: 0.66 | I36: 0.75 | J36: 1 | K36: 0.75 | L36: 1.5
A37: 20 | B37: KG | C37: Lager | D37: VF | E37: beidseitig | F37: J2 | G37: 1.13 | H37: 0.66 | I37: 0.75 | J37: 1 | K37: 0.75 | L37: 1.5
A38: 21 | B38: KG | C38: Lager | D38: VF | E38: beidseitig | F38: J2 | G38: 1.13 | H38: 0.66 | I38: 0.75 | J38: 1 | K38: 0.75 | L38: 1.5
A39: 22 | B39: KG | C39: Lager | I39: 0 | J39: 1 | K39: 0 | L39: 0
A40: 23 | B40: KG | C40: Lager | I40: 0 | J40: 1 | K40: 0 | L40: 0
A41: 33./1 | B41: KG | C41: Waffenreinigungsraum | I41: 0 | J41: 1 | K41: 0 | L41: 0
A42: 24 | B42: KG | C42: Flur | I42: 0 | J42: 1 | K42: 0 | L42: 0
A43: 35 | B43: KG | C43: Lager | I43: 0 | J43: 1 | K43: 0 | L43: 0
A44: 36./1 | B44: KG | C44: WSFA | I44: 0 | J44: 1 | K44: 0 | L44: 0
A45: 36./2 | B45: KG | C45: Lager | D45: VF | E45: beidseitig | F45: J2 | G45: 1.13 | H45: 0.66 | I45: 0.75 | J45: 1 | K45: 0.75 | L45: 1.5
A46: 37 | B46: KG | C46: Lager | D46: VF | E46: beidseitig | F46: J2 | G46: 1.13 | H46: 0.66 | I46: 0.75 | J46: 1 | K46: 0.75 | L46: 1.5
A47: 38 | B47: KG | C47: Lager | D47: VF | E47: beidseitig | F47: J2 | G47: 1.13 | H47: 0.66 | I47: 0.75 | J47: 1 | K47: 0.75 | L47: 1.5
A48: 39 | B48: KG | C48: Lager | D48: VF | E48: beidseitig | F48: J2 | G48: 1.13 | H48: 0.66 | I48: 0.75 | J48: 1 | K48: 0.75 | L48: 1.5
A49: 40./1 | B49: KG | C49: HA Elektro | I49: 0 | J49: 1 | K49: 0 | L49: 0
A50: 40./2 | B50: KG | C50: Lager | I50: 0 | J50: 1 | K50: 0 | L50: 0
A51: 41./1 | B51: KG | C51: Schreibraum WK | I51: 0 | J51: 1 | K51: 0 | L51: 0
A52: 41./2 | B52: KG | C52: HA Wasser | I52: 0 | J52: 1 | K52: 0 | L52: 0
A53: 42 | B53: KG | C53: HA Heizung | I53: 0 | J53: 1 | K53: 0 | L53: 0
A54: 43./1 | B54: KG | C54: Lager | D54: VF | E54: beidseitig | F54: J2 | G54: 1.13 | H54: 0.66 | I54: 0.75 | J54: 1 | K54: 0.75 | L54: 1.5
A55: 44./1 | B55: KG | C55: Lager | D55: VF | E55: beidseitig | F55: J2 | G55: 1.13 | H55: 0.66 | I55: 0.75 | J55: 1 | K55: 0.75 | L55: 1.5
A56: 44./2 | B56: KG | C56: HA IKT | I56: 0 | J56: 1 | K56: 0 | L56: 0
A57: 45 | B57: KG | C57: Waffenkammer | I57: 0 | J57: 1 | K57: 0 | L57: 0
A58: 46./1 | B58: KG | C58: Waffenreinigungsraum | I58: 0 | J58: 1 | K58: 0 | L58: 0
A59: 46./2 | B59: KG | C59: Lager | I59: 0 | J59: 1 | K59: 0 | L59: 0
A60: 47 | B60: KG | C60: Waffenkammer | I60: 0 | J60: 1 | K60: 0 | L60: 0
A61: 47./1 | B61: KG | C61: Waffenkammer | I61: 0 | J61: 1 | K61: 0 | L61: 0
A62: 47./2 | B62: KG | C62: Technik Lüftung | I62: 0 | J62: 1 | K62: 0 | L62: 0
C63: Flur | I63: 0 | J63: 1 | K63: 0 | L63: 0
C64: Treppenhaus A | I64: 0 | J64: 1 | K64: 0 | L64: 0
C65: Treppenhaus B | I65: 0 | J65: 1 | K65: 0 | L65: 0
A66: 101 | B66: EG | C66: Besprechungsraum | D66: VF | E66: beidseitig | F66: J2 | G66: 1.4 | H66: 1.2 | I66: 1.68 | J66: 1 | K66: 1.68 | L66: 3.36
A67: 102 | B67: EG | C67: Dienstzimmer | D67: VF | E67: beidseitig | F67: J2 | G67: 1.4 | H67: 1.2 | I67: 1.68 | J67: 1 | K67: 1.68 | L67: 3.36
A68: 103 | B68: EG | C68: Dienstzimmer | D68: VF | E68: beidseitig | F68: J2 | G68: 1.4 | H68: 1.2 | I68: 1.68 | J68: 1 | K68: 1.68 | L68: 3.36
A69: 104 | B69: EG | C69: Teeküche | D69: VF | E69: beidseitig | F69: J2 | G69: 1.4 | H69: 1.2 | I69: 1.68 | J69: 1 | K69: 1.68 | L69: 3.36
A70: 105.1 | B70: EG | C70: Vorraum WC | I70: 0 | K70: 0 | L70: 0
A71: 105.2 | B71: EG | C71: WC | D71: VF | E71: beidseitig | F71: J2 | G71: 1.4 | H71: 1.2 | I71: 1.68 | J71: 1 | K71: 1.68 | L71: 3.36
A72: 107 | B72: EG | C72: Kopierraum | D72: VF | E72: beidseitig | F72: J2 | G72: 1.4 | H72: 1.2 | I72: 1.68 | J72: 1 | K72: 1.68 | L72: 3.36
A73: 108 | B73: EG | C73: Dienstzimmer | D73: VF | E73: beidseitig | F73: J2 | G73: 1.4 | H73: 1.2 | I73: 1.68 | J73: 1 | K73: 1.68 | L73: 3.36
A74: 109 | B74: EG | C74: Dienstzimmer | D74: VF | E74: beidseitig | F74: J2 | G74: 1.4 | H74: 1.2 | I74: 1.68 | J74: 1 | K74: 1.68 | L74: 3.36
A75: 110 | B75: EG | C75: Dienstzimmer | D75: VF | E75: beidseitig | F75: J2 | G75: 1.4 | H75: 1.2 | I75: 1.68 | J75: 1 | K75: 1.68 | L75: 3.36
A76: 111 | B76: EG | C76: Dienstzimmer | D76: VF | E76: beidseitig | F76: J2 | G76: 1.4 | H76: 1.2 | I76: 1.68 | J76: 1 | K76: 1.68 | L76: 3.36
A77: 112 | B77: EG | C77: Dienstzimmer | D77: VF | E77: beidseitig | F77: J2 | G77: 1.4 | H77: 1.2 | I77: 1.68 | J77: 1 | K77: 1.68 | L77: 3.36
A78: 113 | B78: EG | C78: Dienstzimmer | D78: VF | E78: beidseitig | F78: J2 | G78: 1.4 | H78: 1.2 | I78: 1.68 | J78: 1 | K78: 1.68 | L78: 3.36
A79: 114 | B79: EG | C79: Dienstzimmer | D79: VF | E79: beidseitig | F79: J2 | G79: 1.4 | H79: 1.2 | I79: 1.68 | J79: 1 | K79: =I79*J79 -> 1.68 | L79: 3.36
A80: 115 | B80: EG | C80: Vorraum Dusche/WC | I80: 0 | K80: 0 | L80: 0
A81: 116.1 | B81: EG | C81: Vorraum WC | I81: 0 | K81: 0 | L81: 0
A82: 116.2 | B82: EG | C82: WC | D82: VF | E82: beidseitig | F82: J2 | G82: 1.4 | H82: 1.2 | I82: 1.68 | J82: 1 | K82: 1.68 | L82: 3.36
A83: 116.3 | B83: EG | C83: Dusch/Waschraum | D83: VF | E83: beidseitig | F83: J2 | G83: 1.4 | H83: 1.2 | I83: 1.68 | J83: 1 | K83: 1.68 | L83: 3.36
A84: 119 | B84: EG | C84: Kopierraum/BMA | D84: VF | E84: beidseitig | F84: J2 | G84: 1.4 | H84: 1.2 | I84: 1.68 | J84: 1 | K84: 1.68 | L84: 3.36
A85: 120 | B85: EG | C85: Dienstzimmer | D85: VF | E85: beidseitig | F85: J2 | G85: 1.4 | H85: 1.2 | I85: 1.68 | J85: 1 | K85: 1.68 | L85: 3.36
A86: 121 | B86: EG | C86: Dienstzimmer | D86: VF | E86: beidseitig | F86: J2 | G86: 1.4 | H86: 1.2 | I86: 1.68 | J86: 1 | K86: 1.68 | L86: 3.36
A87: 122 | B87: EG | C87: Dienstzimmer | D87: VF | E87: beidseitig | F87: J2 | G87: 1.4 | H87: 1.2 | I87: 1.68 | J87: 1 | K87: 1.68 | L87: 3.36
A88: 123 | B88: EG | C88: Dienstzimmer | D88: VF | E88: beidseitig | F88: J2 | G88: 1.4 | H88: 1.2 | I88: 1.68 | J88: 1 | K88: 1.68 | L88: 3.36
A89: 124.1 | B89: EG | C89: Besprechungsraum | D89: VF | E89: beidseitig | F89: J2 | G89: 1.4 | H89: 1.2 | I89: 1.68 | J89: 1 | K89: 1.68 | L89: 3.36
A90: 124.2 | B90: EG | C90: Dienstzimmer | D90: VF | E90: beidseitig | F90: J2 | G90: 1.4 | H90: 1.2 | I90: 1.68 | J90: 1 | K90: 1.68 | L90: 3.36
A91: 124.3 | B91: EG | C91: Dienstzimmer | D91: VF | E91: beidseitig | F91: J2 | G91: 1.4 | H91: 1.2 | I91: 1.68 | J91: 1 | K91: 1.68 | L91: 3.36
A92: 125 | B92: EG | C92: Dienstzimmer | D92: VF | E92: beidseitig | F92: J2 | G92: 1.4 | H92: 1.2 | I92: 1.68 | J92: 1 | K92: 1.68 | L92: 3.36
A93: 126 | B93: EG | C93: Dienstzimmer | D93: VF | E93: beidseitig | F93: J2 | G93: 1.4 | H93: 1.2 | I93: 1.68 | J93: 1 | K93: 1.68 | L93: 3.36
A94: 127 | B94: EG | C94: Dienstzimmer | D94: VF | E94: beidseitig | F94: J2 | G94: 1.4 | H94: 1.2 | I94: 1.68 | J94: 1 | K94: 1.68 | L94: 3.36
A95: 128 | B95: EG | C95: Dienstzimmer | D95: VF | E95: beidseitig | F95: J2 | G95: 1.4 | H95: 1.2 | I95: 1.68 | J95: 1 | K95: 1.68 | L95: 3.36
A96: 129 | B96: EG | C96: Dienstzimmer | D96: VF | E96: beidseitig | F96: J2 | G96: 1.4 | H96: 1.2 | I96: 1.68 | J96: 1 | K96: 1.68 | L96: 3.36
A97: 130 | B97: EG | C97: Dienstzimmer | D97: VF | E97: beidseitig | F97: J2 | G97: 1.4 | H97: 1.2 | I97: 1.68 | J97: 1 | K97: 1.68 | L97: 3.36
A98: 131 | B98: EG | C98: Dienstzimmer | D98: VF | E98: beidseitig | F98: J2 | G98: 1.4 | H98: 1.2 | I98: 1.68 | J98: 1 | K98: 1.68 | L98: 3.36
A99: 132 | B99: EG | C99: Dienstzimmer | D99: VF | E99: beidseitig | F99: J2 | G99: 1.4 | H99: 1.2 | I99: 1.68 | J99: 1 | K99: 1.68 | L99: 3.36
A100: 133 | B100: EG | C100: Dienstzimmer | D100: VF | E100: beidseitig | F100: J2 | G100: 1.4 | H100: 1.2 | I100: 1.68 | J100: 1 | K100: 1.68 | L100: 3.36
A101: 134 | B101: EG | C101: Dienstzimmer | D101: VF | E101: beidseitig | F101: J2 | G101: 1.4 | H101: 1.2 | I101: 1.68 | J101: 1 | K101: 1.68 | L101: 3.36
A102: 135 | B102: EG | C102: Dienstzimmer | D102: VF | E102: beidseitig | F102: J2 | G102: 1.4 | H102: 1.2 | I102: 1.68 | J102: 1 | K102: 1.68 | L102: 3.36
A103: 136 | B103: EG | C103: Dienstzimmer | D103: VF | E103: beidseitig | F103: J2 | G103: 1.4 | H103: 1.2 | I103: 1.68 | J103: 1 | K103: 1.68 | L103: 3.36
A104: 137 | B104: EG | C104: Dienstzimmer | D104: VF | E104: beidseitig | F104: J2 | G104: 1.4 | H104: 1.2 | I104: 1.68 | J104: 1 | K104: 1.68 | L104: 3.36
A105: 138 | B105: EG | C105: Dienstzimmer | D105: VF | E105: beidseitig | F105: J2 | G105: 1.4 | H105: 1.2 | I105: 1.68 | J105: 1 | K105: 1.68 | L105: 3.36
A106: 139 | B106: EG | C106: Dienstzimmer | D106: VF | E106: beidseitig | F106: J2 | G106: 1.4 | H106: 1.2 | I106: 1.68 | J106: 1 | K106: 1.68 | L106: 3.36
A107: 140 | B107: EG | C107: Schulungsraum | D107: VF | E107: beidseitig | F107: J2 | G107: 1.4 | H107: 1.2 | I107: 1.68 | J107: 1 | K107: 1.68 | L107: 3.36
C108: Flur | D108: VF | E108: beidseitig | F108: J2 | G108: 2.2 | H108: 0.66 | I108: 1.45 | J108: 1 | K108: 1.45 | L108: 2.9
C109: Treppenhaus A | D109: VF | E109: beidseitig | F109: J2 | G109: 2.21 | H109: 1.53 | I109: 3.38 | J109: 1 | K109: 3.38 | L109: 6.76
C110: Treppenhaus B | D110: VF | E110: beidseitig | F110: J2 | G110: 2.21 | H110: 1.53 | I110: 3.38 | J110: 1 | K110: 3.38 | L110: 6.76
I111: 0 | K111: 0 | L111: 0
A112: 201 | B112: 1.OG | C112: Dienstzimmer | D112: VF | E112: beidseitig | F112: J2 | G112: 1.4 | H112: 1.2 | I112: 1.68 | J112: 1 | K112: 1.68 | L112: 3.36
A113: 202 | B113: 1.OG | C113: Dienstzimmer | D113: VF | E113: beidseitig | F113: J2 | G113: 1.4 | H113: 1.2 | I113: 1.68 | J113: 1 | K113: 1.68 | L113: 3.36
A114: 203 | B114: 1.OG | C114: Dusche/Waschraum | D114: VF | E114: beidseitig | F114: J2 | G114: 1.4 | H114: 1.2 | I114: 1.68 | J114: 1 | K114: 1.68 | L114: 3.36
A115: 204.1 | B115: 1.OG | C115: Vorraum WC | I115: 0 | K115: 0 | L115: 0
A116: 204.2 | B116: 1.OG | C116: WC | D116: VF | E116: beidseitig | F116: J2 | G116: 1.4 | H116: 1.2 | I116: 1.68 | J116: 1 | K116: 1.68 | L116: =IF(E116="einseitig",K116*1,IF(E116="beidseitig",K116*2,IF(E116="raumseitig",K116*1,IF(E116="2x raumseitig",K116*2,IF(E116="3x raumseitig",K116*3,IF(E116="witterungsseitig",K116*1,IF(E116="außen",K116*1,IF(E116="raum- & witterungsseitig",K116*2,IF(E116="vierseitig",K116*4,IF(E116="allseitig",K116*2,IF(E116="ganzflächig",K116*2,0))))))))))) -> 3.36
A117: 206 | B117: 1.OG | C117: Schreibraum/Drucker | D117: VF | E117: beidseitig | F117: J2 | G117: 1.4 | H117: 1.2 | I117: 1.68 | J117: 1 | K117: 1.68 | L117: 3.36
A118: 207 | B118: 1.OG | C118: Dienstzimmer | D118: VF | E118: beidseitig | F118: J2 | G118: 1.4 | H118: 1.2 | I118: 1.68 | J118: 1 | K118: 1.68 | L118: 3.36
A119: 208 | B119: 1.OG | C119: Dienstzimmer | D119: VF | E119: beidseitig | F119: J2 | G119: 1.4 | H119: 1.2 | I119: 1.68 | J119: 1 | K119: 1.68 | L119: 3.36
A120: 209 | B120: 1.OG | C120: Dienstzimmer | D120: VF | E120: beidseitig | F120: J2 | G120: 1.4 | H120: 1.2 | I120: 1.68 | J120: 1 | K120: 1.68 | L120: 3.36
A121: 210 | B121: 1.OG | C121: Dienstzimmer | D121: VF | E121: beidseitig | F121: J2 | G121: 1.4 | H121: 1.2 | I121: 1.68 | J121: 1 | K121: 1.68 | L121: 3.36
A122: 211 | B122: 1.OG | C122: Teeküche | D122: VF | E122: beidseitig | F122: J2 | G122: 1.4 | H122: 1.2 | I122: 1.68 | J122: 1 | K122: 1.68 | L122: 3.36
A123: 212.1 | B123: 1.OG | C123: Vorraum WC | I123: 0 | K123: 0 | L123: 0
A124: 212.2 | B124: 1.OG | C124: WC | D124: VF | E124: beidseitig | F124: J2 | G124: 1.4 | H124: 1.2 | I124: 1.68 | J124: 1 | K124: 1.68 | L124: 3.36
A125: 212.3 | B125: 1.OG | C125: Waschraum | D125: VF | E125: beidseitig | F125: J2 | G125: 1.4 | H125: 1.2 | I125: 1.68 | J125: 1 | K125: 1.68 | L125: 3.36
A126: 215 | B126: 1.OG | C126: Bearbeitungsraum | D126: VF | E126: beidseitig | F126: J2 | G126: 1.4 | H126: 1.2 | I126: 1.68 | J126: 1 | K126: 1.68 | L126: 3.36
A127: 216 | B127: 1.OG | C127: Dienstzimmer | D127: VF | E127: beidseitig | F127: J2 | G127: 1.4 | H127: 1.2 | I127: 1.68 | J127: 1 | K127: 1.68 | L127: 3.36
A128: 217 | B128: 1.OG | C128: Dienstzimmer | D128: VF | E128: beidseitig | F128: J2 | G128: 1.4 | H128: 1.2 | I128: 1.68 | J128: 1 | K128: 1.68 | L128: 3.36
A129: 218 | B129: 1.OG | C129: Dienstzimmer | D129: VF | E129: beidseitig | F129: J2 | G129: 1.4 | H129: 1.2 | I129: 1.68 | J129: 1 | K129: 1.68 | L129: 3.36
A130: 219 | B130: 1.OG | C130: Dienstzimmer | D130: VF | E130: beidseitig | F130: J2 | G130: 1.4 | H130: 1.2 | I130: 1.68 | J130: 1 | K130: 1.68 | L130: 3.36
A131: 220.1 | B131: 1.OG | C131: Aufenthaltsraum | D131: VF | E131: beidseitig | F131: J2 | G131: 1.4 | H131: 1.2 | I131: 1.68 | J131: 1 | K131: 1.68 | L131: 3.36
A132: 220.2 | B132: 1.OG | C132: Dienstzimmer | D132: VF | E132: beidseitig | F132: J2 | G132: 1.4 | H132: 1.2 | I132: 1.68 | J132: 1 | K132: 1.68 | L132: 3.36
A133: 221 | B133: 1.OG | C133: Dienstzimmer | D133: VF | E133: beidseitig | F133: J2 | G133: 1.4 | H133: 1.2 | I133: 1.68 | J133: 1 | K133: 1.68 | L133: 3.36
A134: 222 | B134: 1.OG | C134: Dienstzimmer | D134: VF | E134: beidseitig | F134: J2 | G134: 1.4 | H134: 1.2 | I134: 1.68 | J134: 1 | K134: 1.68 | L134: 3.36
A135: 223 | B135: 1.OG | C135: Aufenthaltsraum | D135: VF | E135: beidseitig | F135: J2 | G135: 1.4 | H135: 1.2 | I135: 1.68 | J135: 1 | K135: 1.68 | L135: 3.36
A136: 224 | B136: 1.OG | C136: Dienstzimmer | D136: VF | E136: beidseitig | F136: J2 | G136: 1.4 | H136: 1.2 | I136: 1.68 | J136: 1 | K136: 1.68 | L136: 3.36
A137: 225 | B137: 1.OG | C137: Dienstzimmer | D137: VF | E137: beidseitig | F137: J2 | G137: 1.4 | H137: 1.2 | I137: 1.68 | J137: 1 | K137: 1.68 | L137: 3.36
A138: 226 | B138: 1.OG | C138: Dienstzimmer | D138: VF | E138: beidseitig | F138: J2 | G138: 1.4 | H138: 1.2 | I138: 1.68 | J138: 1 | K138: 1.68 | L138: 3.36
A139: 227 | B139: 1.OG | C139: Dienstzimmer | D139: VF | E139: beidseitig | F139: J2 | G139: 1.4 | H139: 1.2 | I139: 1.68 | J139: 1 | K139: 1.68 | L139: 3.36
A140: 228 | B140: 1.OG | C140: Dienstzimmer | D140: VF | E140: beidseitig | F140: J2 | G140: 1.4 | H140: 1.2 | I140: 1.68 | J140: 1 | K140: 1.68 | L140: 3.36
A141: 229.1 | B141: 1.OG | C141: Dienstzimmer | D141: VF | E141: beidseitig | F141: J2 | G141: 1.4 | H141: 1.2 | I141: 1.68 | J141: 1 | K141: 1.68 | L141: 3.36
A142: 229.2 | B142: 1.OG | C142: Dienstzimmer | D142: VF | E142: beidseitig | F142: J2 | G142: 1.4 | H142: 1.2 | I142: 1.68 | J142: 1 | K142: 1.68 | L142: 3.36
B143: 1.OG | C143: Flur | D143: VF | E143: beidseitig | F143: J2 | G143: 2.2 | H143: 0.66 | I143: 1.45 | J143: 1 | K143: 1.45 | L143: 2.9
B144: 1.OG | C144: Treppenhaus A | D144: VF | E144: beidseitig | F144: J2 | G144: 2.21 | H144: 1.53 | I144: 3.38 | J144: 1 | K144: 3.38 | L144: 6.76
B145: 1.OG | C145: Treppenhaus B | D145: VF | E145: beidseitig | F145: J2 | G145: 2.21 | H145: 1.53 | I145: 3.38 | J145: 1 | K145: 3.38 | L145: 6.76
I146: 0 | K146: 0 | L146: 0
A147: 301 | B147: 2.OG | C147: Dienstzimmer | D147: VF | E147: beidseitig | F147: J2 | G147: 1.4 | H147: 1.2 | I147: 1.68 | J147: 1 | K147: 1.68 | L147: 3.36
A148: 302 | B148: 2.OG | C148: Aufenthaltsraum | D148: VF | E148: beidseitig | F148: J2 | G148: 1.4 | H148: 1.2 | I148: 1.68 | J148: 1 | K148: 1.68 | L148: 3.36
A149: 302a | B149: 2.OG | C149: Vorraum Dusche | D149: VF | E149: beidseitig | F149: J2 | G149: 1.4 | H149: 1.2 | I149: 1.68 | J149: 1 | K149: 1.68 | L149: 3.36
A150: 303 | B150: 2.OG | C150: Waschraum/Dusche | D150: VF | E150: beidseitig | F150: J2 | G150: 1.4 | H150: 1.2 | I150: 1.68 | J150: 1 | K150: 1.68 | L150: 3.36
A151: 304.1 | B151: 2.OG | C151: Vorraum WC | I151: 0 | K151: 0 | L151: 0
A152: 304.2 | B152: 2.OG | C152: WC | D152: VF | E152: beidseitig | F152: J2 | G152: 1.4 | H152: 1.2 | I152: 1.68 | J152: 1 | K152: 1.68 | L152: 3.36
A153: 306.1 | B153: 2.OG | C153: Schreibraum | D153: VF | E153: beidseitig | F153: J2 | G153: 1.4 | H153: 1.2 | I153: 1.68 | J153: 1 | K153: 1.68 | L153: 3.36
A154: 306.2 | B154: 2.OG | C154: Schreibraum | D154: VF | E154: beidseitig | F154: J2 | G154: 1.4 | H154: 1.2 | I154: 1.68 | J154: 1 | K154: 1.68 | L154: 3.36
A155: 307.1 | B155: 2.OG | C155: Dienstzimmer | D155: VF | E155: beidseitig | F155: J2 | G155: 1.4 | H155: 1.2 | I155: 1.68 | J155: 1 | K155: 1.68 | L155: 3.36
A156: 307.2 | B156: 2.OG | C156: Dienstzimmer | D156: VF | E156: beidseitig | F156: J2 | G156: 1.4 | H156: 1.2 | I156: 1.68 | J156: 1 | K156: 1.68 | L156: 3.36
A157: 308.1 | B157: 2.OG | C157: Dienstzimmer | D157: VF | E157: beidseitig | F157: J2 | G157: 1.4 | H157: 1.2 | I157: 1.68 | J157: 1 | K157: 1.68 | L157: 3.36
A158: 308.2 | B158: 2.OG | C158: Umkleideraum | D158: VF | E158: beidseitig | F158: J2 | G158: 1.4 | H158: 1.2 | I158: 1.68 | J158: 1 | K158: 1.68 | L158: 3.36
A159: 309 | B159: 2.OG | C159: Umkleideraum | D159: VF | E159: beidseitig | F159: J2 | G159: 1.4 | H159: 1.2 | I159: 1.68 | J159: 1 | K159: 1.68 | L159: 3.36
A160: 310 | B160: 2.OG | C160: Dienstzimmer | D160: VF | E160: beidseitig | F160: J2 | G160: 1.4 | H160: 1.2 | I160: 1.68 | J160: 1 | K160: 1.68 | L160: 3.36
A161: 311 | B161: 2.OG | C161: Teeküche | D161: VF | E161: beidseitig | F161: J2 | G161: 1.4 | H161: 1.2 | I161: 1.68 | J161: 1 | K161: 1.68 | L161: 3.36
A162: 312.3 | B162: 2.OG | C162: Dienstzimmer | D162: VF | E162: beidseitig | F162: J2 | G162: 1.4 | H162: 1.2 | I162: 1.68 | J162: 1 | K162: 1.68 | L162: 3.36
A163: 312.1 | B163: 2.OG | C163: Vorraum WC | I163: 0 | K163: 0 | L163: 0
A164: 312.2 | B164: 2.OG | C164: WC | D164: VF | E164: beidseitig | F164: J2 | G164: 1.4 | H164: 1.2 | I164: 1.68 | J164: 1 | K164: 1.68 | L164: 3.36
A165: 315 | B165: 2.OG | C165: Bearbeitungsraum | D165: VF | E165: beidseitig | F165: J2 | G165: 1.4 | H165: 1.2 | I165: 1.68 | J165: 1 | K165: 1.68 | L165: 3.36
A166: 316 | B166: 2.OG | C166: Dienstzimmer | D166: VF | E166: beidseitig | F166: J2 | G166: 1.4 | H166: 1.2 | I166: 1.68 | J166: 1 | K166: 1.68 | L166: 3.36
A167: 317 | B167: 2.OG | C167: Dienstzimmer | D167: VF | E167: beidseitig | F167: J2 | G167: 1.4 | H167: 1.2 | I167: 1.68 | J167: 1 | K167: 1.68 | L167: 3.36
A168: 318 | B168: 2.OG | C168: Dienstzimmer | D168: VF | E168: beidseitig | F168: J2 | G168: 1.4 | H168: 1.2 | I168: 1.68 | J168: 1 | K168: 1.68 | L168: 3.36
A169: 319 | B169: 2.OG | C169: Dienstzimmer | D169: VF | E169: beidseitig | F169: J2 | G169: 1.4 | H169: 1.2 | I169: 1.68 | J169: 1 | K169: 1.68 | L169: 3.36
A170: 320.1 | B170: 2.OG | C170: Schulungsraum | D170: VF | E170: beidseitig | F170: J2 | G170: 1.4 | H170: 1.2 | I170: 1.68 | J170: 1 | K170: 1.68 | L170: 3.36
A171: 320.2 | B171: 2.OG | C171: Schulungsraum | D171: VF | E171: beidseitig | F171: J2 | G171: 1.4 | H171: 1.2 | I171: 1.68 | J171: 1 | K171: 1.68 | L171: 3.36
A172: 321 | B172: 2.OG | C172: Dienstzimmer | D172: VF | E172: beidseitig | F172: J2 | G172: 1.4 | H172: 1.2 | I172: 1.68 | J172: 1 | K172: 1.68 | L172: 3.36
A173: 322 | B173: 2.OG | C173: Aufenthaltsraum | D173: VF | E173: beidseitig | F173: J2 | G173: 1.4 | H173: 1.2 | I173: 1.68 | J173: 1 | K173: 1.68 | L173: 3.36
A174: 323 | B174: 2.OG | C174: Aufenthaltsraum | D174: VF | E174: beidseitig | F174: J2 | G174: 1.4 | H174: 1.2 | I174: 1.68 | J174: 1 | K174: 1.68 | L174: 3.36
A175: 324 | B175: 2.OG | C175: Umkleideraum | D175: VF | E175: beidseitig | F175: J2 | G175: 1.4 | H175: 1.2 | I175: 1.68 | J175: 1 | K175: 1.68 | L175: 3.36
A176: 325 | B176: 2.OG | C176: Umkleideraum | D176: VF | E176: beidseitig | F176: J2 | G176: 1.4 | H176: 1.2 | I176: 1.68 | J176: 1 | K176: 1.68 | L176: 3.36
A177: 326 | B177: 2.OG | C177: Umkleideraum | D177: VF | E177: beidseitig | F177: J2 | G177: 1.4 | H177: 1.2 | I177: 1.68 | J177: 1 | K177: 1.68 | L177: 3.36
A178: 327 | B178: 2.OG | C178: Umkleideraum | D178: VF | E178: beidseitig | F178: J2 | G178: 1.4 | H178: 1.2 | I178: 1.68 | J178: 1 | K178: 1.68 | L178: 3.36
A179: 328 | B179: 2.OG | C179: Umkleideraum | D179: VF | E179: beidseitig | F179: J2 | G179: 1.4 | H179: 1.2 | I179: 1.68 | J179: 1 | K179: 1.68 | L179: 3.36
A180: 329.1 | B180: 2.OG | C180: Umkleideraum | D180: VF | E180: beidseitig | F180: J2 | G180: 1.4 | H180: 1.2 | I180: 1.68 | J180: 1 | K180: 1.68 | L180: =IF(E180="einseitig",K180*1,IF(E180="beidseitig",K180*2,IF(E180="raumseitig",K180*1,IF(E180="2x raumseitig",K180*2,IF(E180="3x raumseitig",K180*3,IF(E180="witterungsseitig",K180*1,IF(E180="außen",K180*1,IF(E180="raum- & witterungsseitig",K180*2,IF(E180="vierseitig",K180*4,IF(E180="allseitig",K180*2,IF(E180="ganzflächig",K180*2,0))))))))))) -> 3.36
A181: 329.2 | B181: 2.OG | C181: Umkleideraum | D181: VF | E181: beidseitig | F181: J2 | G181: 1.4 | H181: 1.2 | I181: 1.68 | J181: 1 | K181: 1.68 | L181: 3.36
B182: 2.OG | C182: Flur | D182: VF | E182: beidseitig | F182: J2 | G182: 2.2 | H182: 0.66 | I182: 1.45 | J182: 1 | K182: =I182*J182 -> 1.45 | L182: 2.9
B183: 2.OG | C183: Treppenhaus A | D183: VF | E183: beidseitig | F183: J2 | G183: 2.21 | H183: 1.53 | I183: 3.38 | J183: 1 | K183: 3.38 | L183: 6.76
B184: 2.OG | C184: Treppenhaus B | D184: VF | E184: beidseitig | F184: J2 | G184: 2.21 | H184: 1.53 | I184: 3.38 | J184: 1 | K184: 3.38 | L184: 6.76
I185: 0 | K185: 0 | L185: 0
A186: 401 | B186: 3.OG | C186: Aufenthaltsraum | D186: VF | E186: beidseitig | F186: J2 | G186: 1.4 | H186: 1.2 | I186: 1.68 | J186: 1 | K186: 1.68 | L186: 3.36
A187: 402 | B187: 3.OG | C187: Teeküche | D187: VF | E187: beidseitig | F187: J2 | G187: 1.4 | H187: 1.2 | I187: 1.68 | J187: 1 | K187: 1.68 | L187: 3.36
A188: 402A | B188: 3.OG | C188: Vorraum Dusche | D188: VF | E188: beidseitig | F188: J2 | G188: 1.4 | H188: 1.2 | I188: 1.68 | J188: 1 | K188: 1.68 | L188: 3.36
A189: 403 | B189: 3.OG | C189: Waschraum/Dusche | D189: VF | E189: beidseitig | F189: J2 | G189: 1.4 | H189: 1.2 | I189: 1.68 | J189: 1 | K189: 1.68 | L189: 3.36
A190: 404.1 | B190: 3.OG | C190: Vorraum WC | D190: VF | E190: beidseitig | F190: J2 | G190: 1.4 | H190: 1.2 | I190: 1.68 | J190: 1 | K190: 1.68 | L190: 3.36
A191: 404.2 | B191: 3.OG | C191: WC | D191: VF | E191: beidseitig | F191: J2 | G191: 1.4 | H191: 1.2 | I191: 1.68 | J191: 1 | K191: 1.68 | L191: 3.36
A192: 406 | B192: 3.OG | C192: Lager Reinigung | D192: VF | E192: beidseitig | F192: J2 | G192: 1.4 | H192: 1.2 | I192: 1.68 | J192: 1 | K192: 1.68 | L192: 3.36
A193: 407 | B193: 3.OG | C193: Aufenthaltsraum | D193: VF | E193: beidseitig | F193: J2 | G193: 1.4 | H193: 1.2 | I193: 1.68 | J193: 1 | K193: 1.68 | L193: 3.36
A194: 408 | B194: 3.OG | C194: Umkleideraum | D194: VF | E194: beidseitig | F194: J2 | G194: 1.4 | H194: 1.2 | I194: 1.68 | J194: 1 | K194: 1.68 | L194: 3.36
A195: 409 | B195: 3.OG | C195: Umkleideraum | D195: VF | E195: beidseitig | F195: J2 | G195: 1.4 | H195: 1.2 | I195: 1.68 | J195: 1 | K195: 1.68 | L195: 3.36
A196: 410 | B196: 3.OG | C196: IKT LAN | D196: VF | E196: beidseitig | F196: J2 | G196: 1.4 | H196: 1.2 | I196: 1.68 | J196: 1 | K196: 1.68 | L196: 3.36
A197: 411 | B197: 3.OG | C197: Vorraum Dusche | D197: VF | E197: beidseitig | F197: J2 | G197: 1.4 | H197: 1.2 | I197: 1.68 | J197: 1 | K197: 1.68 | L197: 3.36
A198: 412.1 | B198: 3.OG | C198: Waschraum/Dusche | D198: VF | E198: beidseitig | F198: J2 | G198: 1.4 | H198: 1.2 | I198: 1.68 | J198: 1 | K198: 1.68 | L198: 3.36
A199: 412.2 | B199: 3.OG | C199: Vorraum WC | D199: VF | E199: beidseitig | F199: J2 | G199: 1.4 | H199: 1.2 | I199: 1.68 | J199: 1 | K199: 1.68 | L199: 3.36
A200: 412.3 | B200: 3.OG | C200: WC | D200: VF | E200: beidseitig | F200: J2 | G200: 1.4 | H200: 1.2 | I200: 1.68 | J200: 1 | K200: 1.68 | L200: 3.36
A201: 415 | B201: 3.OG | C201: Umkleideraum | D201: VF | E201: beidseitig | F201: J2 | G201: 1.4 | H201: 1.2 | I201: 1.68 | J201: 1 | K201: 1.68 | L201: 3.36
A202: 416 | B202: 3.OG | C202: Umkleideraum | D202: VF | E202: beidseitig | F202: J2 | G202: 1.4 | H202: 1.2 | I202: 1.68 | J202: 1 | K202: 1.68 | L202: 3.36
... 664 more rows

Sheet Anl C-03 Geb 12
A1: VOEK 573-25 Los 2 | L1: Anlage C-03
A3: Flächenaufmaß Glasreinigung
A5: Reinigungsobjekt: | C5: BPol Blumberg
A6: Straße: | C6: Bundespolizeiallee 1 | R6: einseitig
A7: PLZ und Ort: | C7: 16356 Ahrensfelde | R7: beidseitig
A8: WE - Nr.: | C8: 141115 | I8: Stand: | J8: 2018-09-17 | R8: raumseitig
A9: Gebäude Nr. | C9: 12 | R9: 2x raumseitig
A10: Anzahl Etagen | R10: 3x raumseitig
A11: Gebäudeart SAP | R11: witterungsseitig
A12: Kontrakt-Nr.: | I12: Druckdatum: | J12: 2025-02-05 | R12: außen
A13: Raum. Nr. | B13: Etage | C13: Raumart / Nutzung | D13: Glascode | E13: Reinigung einseitig beidseitig oder mehrseitig (Info) | F13: Turnus | G13: Breite, m | H13: Höhe, m | I13: Einzelmaß, m² | J13: Anzahl / Einzelmaß | K13: Reinigungs-fläche einseitig | L13: zu reinigende Gesamtfläche | R13: raum- & witterungsseitig
A14: 1 | B14: KG | C14: Lager (EBF ) | D14: VF | E14: beidseitig | F14: J2 | G14: 0.7 | H14: 0.5 | I14: 0.35 | J14: 1 | K14: =I14*J14 -> 0.35 | L14: =IF(E14="einseitig",K14*1,IF(E14="beidseitig",K14*2,IF(E14="raumseitig",K14*1,IF(E14="2x raumseitig",K14*2,IF(E14="3x raumseitig",K14*3,IF(E14="witterungsseitig",K14*1,IF(E14="außen",K14*1,IF(E14="raum- & witterungsseitig",K14*2,IF(E14="vierseitig",K14*4,IF(E14="allseitig",K14*2,IF(E14="ganzflächig",K14*2,0))))))))))) -> 0.7 | R14: vierseitig
A15: 2 | B15: KG | C15: Lager (EBF ) | D15: VF | E15: beidseitig | F15: J2 | G15: 0.7 | H15: 0.5 | I15: 0.35 | J15: 1 | K15: =I15*J15 -> 0.35 | L15: =IF(E15="einseitig",K15*1,IF(E15="beidseitig",K15*2,IF(E15="raumseitig",K15*1,IF(E15="2x raumseitig",K15*2,IF(E15="3x raumseitig",K15*3,IF(E15="witterungsseitig",K15*1,IF(E15="außen",K15*1,IF(E15="raum- & witterungsseitig",K15*2,IF(E15="vierseitig",K15*4,IF(E15="allseitig",K15*2,IF(E15="ganzflächig",K15*2,0))))))))))) -> 0.7 | R15: allseitig
A16: 3 | B16: KG | C16: Lager (EBF ) | D16: VF | E16: beidseitig | F16: J2 | G16: 0.7 | H16: 0.5 | I16: 0.35 | J16: 1 | K16: 0.35 | L16: 0.7 | R16: ganzflächig
A17: 003.1 | B17: KG | C17: Lager (EBF ) | D17: VF | E17: beidseitig | F17: J2 | G17: 0.7 | H17: 0.5 | I17: 0.35 | J17: 1 | K17: 0.35 | L17: 0.7
A18: 4 | B18: KG | C18: HA | D18: VF | E18: beidseitig | F18: J2 | G18: 0.7 | H18: 0.5 | I18: 0.35 | J18: 1 | K18: 0.35 | L18: 0.7
A19: 5 | B19: KG | C19: Maschinenraum | D19: VF | E19: beidseitig | F19: J2 | G19: 0.7 | H19: 0.5 | I19: 0.35 | J19: 1 | K19: 0.35 | L19: 0.7
A20: 6 | B20: KG | C20: Lager (EBF ) | D20: VF | E20: beidseitig | F20: J2 | G20: 0.7 | H20: 0.5 | I20: 0.35 | J20: 1 | K20: 0.35 | L20: 0.7
A21: 006.1 | B21: KG | C21: Lager (EBF ) | D21: VF | E21: beidseitig | F21: J2 | G21: 0.7 | H21: 0.5 | I21: 0.35 | J21: 1 | K21: 0.35 | L21: 0.7
A22: 7 | B22: KG | C22: Lager (EBF ) | D22: VF | E22: beidseitig | F22: J2 | G22: 0.7 | H22: 0.5 | I22: 0.35 | J22: 1 | K22: 0.35 | L22: 0.7
A23: 8 | B23: KG | C23: Lager (EBF ) | D23: VF | E23: beidseitig | F23: J2 | G23: 0.7 | H23: 0.5 | I23: 0.35 | J23: 1 | K23: 0.35 | L23: 0.7
A24: 9 | B24: KG | C24: Lager (EBF ) | D24: VF | E24: beidseitig | F24: J2 | G24: 0.7 | H24: 0.5 | I24: 0.35 | J24: 1 | K24: 0.35 | L24: 0.7
A25: 10 | B25: KG | C25: Lager (EBF ) | D25: VF | E25: beidseitig | F25: J2 | G25: 0.7 | H25: 0.5 | I25: 0.35 | J25: 1 | K25: 0.35 | L25: 0.7
A26: 11 | B26: KG | C26: Lager (EBF ) | D26: VF | E26: beidseitig | F26: J2 | G26: 0.7 | H26: 0.5 | I26: 0.35 | J26: 1 | K26: 0.35 | L26: 0.7
A27: 12 | B27: KG | C27: Lager (EBF ) | D27: VF | E27: beidseitig | F27: J2 | G27: 0.7 | H27: 0.5 | I27: 0.35 | J27: 1 | K27: 0.35 | L27: 0.7
A28: 012.1 | B28: KG | C28: Lager (EBF ) | D28: VF | E28: beidseitig | F28: J2 | G28: 0.7 | H28: 0.5 | I28: 0.35 | J28: 1 | K28: 0.35 | L28: 0.7
A29: 13 | B29: KG | C29: HA | D29: VF | E29: beidseitig | F29: J2 | G29: 0.7 | H29: 0.5 | I29: 0.35 | J29: 1 | K29: 0.35 | L29: 0.7
A30: 14 | B30: KG | C30: Lager (EBF ) | D30: VF | E30: beidseitig | F30: J2 | G30: 0.7 | H30: 0.5 | I30: 0.35 | J30: 1 | K30: 0.35 | L30: 0.7
A31: 15 | B31: KG | C31: Lager (EBF ) | D31: VF | E31: beidseitig | F31: J2 | G31: 0.7 | H31: 0.5 | I31: 0.35 | J31: 1 | K31: 0.35 | L31: 0.7
A32: 16 | B32: KG | C32: Lager (EBF ) | D32: VF | E32: beidseitig | F32: J2 | G32: 0.7 | H32: 0.5 | I32: 0.35 | J32: 1 | K32: 0.35 | L32: 0.7
A33: 016.1 | B33: KG | C33: Lager (EBF ) | D33: VF | E33: beidseitig | F33: J2 | G33: 0.7 | H33: 0.5 | I33: 0.35 | J33: 1 | K33: 0.35 | L33: 0.7
A34: 17 | B34: KG | C34: Lager (EBF ) | D34: VF | E34: beidseitig | F34: J2 | G34: 0.7 | H34: 0.5 | I34: 0.35 | J34: 1 | K34: 0.35 | L34: 0.7
A35: 017.1 | B35: KG | C35: Lager (EBF ) | D35: VF | E35: beidseitig | F35: J2 | G35: 0.7 | H35: 0.5 | I35: 0.35 | J35: 1 | K35: 0.35 | L35: 0.7
A36: 18 | B36: KG | C36: Lager (EBF ) | D36: VF | E36: beidseitig | F36: J2 | G36: 0.7 | H36: 0.5 | I36: 0.35 | J36: 1 | K36: 0.35 | L36: 0.7
A37: 018.1 | B37: KG | C37: Lager (EBF ) | D37: VF | E37: beidseitig | F37: J2 | G37: 0.7 | H37: 0.5 | I37: 0.35 | J37: 1 | K37: 0.35 | L37: 0.7
A38: 19 | B38: KG | C38: Lager (EBF ) | D38: VF | E38: beidseitig | F38: J2 | G38: 0.7 | H38: 0.5 | I38: 0.35 | J38: 1 | K38: 0.35 | L38: 0.7
A39: 20 | B39: KG | C39: Lager (EBF ) | D39: VF | E39: beidseitig | F39: J2 | G39: 0.7 | H39: 0.5 | I39: 0.35 | J39: 1 | K39: 0.35 | L39: 0.7
A40: 21 | B40: KG | C40: Lager (EBF ) | D40: VF | E40: beidseitig | F40: J2 | G40: 0.7 | H40: 0.5 | I40: 0.35 | J40: 1 | K40: 0.35 | L40: 0.7
A41: 22 | B41: KG | C41: Sportraum (EBF) | D41: VF | E41: beidseitig | F41: J2 | G41: 0.7 | H41: 0.5 | I41: 0.35 | J41: 1 | K41: 0.35 | L41: 0.7
A42: 23 | B42: KG | C42: Lager (EBF ) | D42: VF | E42: beidseitig | F42: J2 | G42: 0.7 | H42: 0.5 | I42: 0.35 | J42: 1 | K42: 0.35 | L42: 0.7
A43: 24 | B43: KG | C43: Flur | K43: 0 | L43: 0
A44: 25 | B44: KG | C44: Flur | K44: 0 | L44: 0
A45: 26 | B45: KG | C45: Flur | K45: 0 | L45: 0
A46: 27 | B46: KG | C46: Flur | K46: 0 | L46: 0
A47: 28 | B47: KG | C47: Flur | K47: 0 | L47: 0
A48: 35 | B48: KG | C48: Lager (Ref. 55) | D48: VF | E48: beidseitig | F48: J2 | G48: 0.7 | H48: 0.5 | I48: 0.35 | J48: 1 | K48: 0.35 | L48: 0.7
A49: 36 | B49: KG | C49: Lager (Ref. 55) | D49: VF | E49: beidseitig | F49: J2 | G49: 0.7 | H49: 0.5 | I49: 0.35 | J49: 1 | K49: 0.35 | L49: 0.7
A50: 37 | B50: KG | C50: Lager (Ref. 55) | D50: VF | E50: beidseitig | F50: J2 | G50: 0.7 | H50: 0.5 | I50: 0.35 | J50: 1 | K50: 0.35 | L50: 0.7
A51: 38 | B51: KG | C51: Lager (Ref. 55) | D51: VF | E51: beidseitig | F51: J2 | G51: 0.7 | H51: 0.5 | I51: 0.35 | J51: 1 | K51: 0.35 | L51: 0.7
A52: 39 | B52: KG | C52: HA FM | D52: VF | E52: beidseitig | F52: J2 | G52: 0.7 | H52: 0.5 | I52: 0.35 | J52: 1 | K52: 0.35 | L52: 0.7
A53: 040.1 | B53: KG | C53: Lager (Ref. 55) | D53: VF | E53: beidseitig | F53: J2 | G53: 0.7 | H53: 0.5 | I53: 0.35 | J53: 1 | K53: 0.35 | L53: 0.7
A54: 040.2 | B54: KG | C54: Werkstatt (Ref. 55) | D54: VF | E54: beidseitig | F54: J2 | G54: 0.7 | H54: 0.5 | I54: 0.35 | J54: 1 | K54: 0.35 | L54: 0.7
A55: 41 | B55: KG | C55: Werkstatt (Ref. 55) | D55: VF | E55: beidseitig | F55: J2 | G55: 0.7 | H55: 0.5 | I55: 0.35 | J55: 1 | K55: 0.35 | L55: 0.7
A56: 42 | B56: KG | C56: HA Heizung | D56: VF | E56: beidseitig | F56: J2 | G56: 0.7 | H56: 0.5 | I56: 0.35 | J56: 1 | K56: 0.35 | L56: 0.7
A57: 43 | B57: KG | C57: Lager (Ref. 55) | D57: VF | E57: beidseitig | F57: J2 | G57: 0.7 | H57: 0.5 | I57: 0.35 | J57: 1 | K57: 0.35 | L57: 0.7
A58: 44 | B58: KG | C58: Reserve | D58: VF | E58: beidseitig | F58: J2 | G58: 0.7 | H58: 0.5 | I58: 0.35 | J58: 1 | K58: 0.35 | L58: 0.7
A59: 45 | B59: KG | C59: Lager (Ref. 55) | D59: VF | E59: beidseitig | F59: J2 | G59: 0.7 | H59: 0.5 | I59: 0.35 | J59: 1 | K59: 0.35 | L59: 0.7
A60: 046.1 | B60: KG | C60: Lager (Ref. 55) | D60: VF | E60: beidseitig | F60: J2 | G60: 0.7 | H60: 0.5 | I60: 0.35 | J60: 1 | K60: 0.35 | L60: 0.7
A61: 046.2 | B61: KG | C61: HA | D61: VF | E61: beidseitig | F61: J2 | G61: 0.7 | H61: 0.5 | I61: 0.35 | J61: 1 | K61: 0.35 | L61: 0.7
A62: 47 | B62: KG | C62: Lager (Ref. 55) | D62: VF | E62: beidseitig | F62: J2 | G62: 0.7 | H62: 0.5 | I62: 0.35 | J62: 1 | K62: 0.35 | L62: 0.7
B63: KG | C63: Flur | D63: VF | E63: beidseitig | F63: J2 | G63: 1.3 | H63: 1 | I63: 1.3 | J63: 1 | K63: 1.3 | L63: 2.6
B64: KG | C64: Treppenraum A | D64: VF | E64: beidseitig | F64: J2 | G64: 1.4 | H64: 0.5 | I64: 0.7 | J64: 1 | K64: 0.7 | L64: 1.4
B65: KG | C65: Treppenraum B | D65: VF | E65: beidseitig | F65: J2 | G65: 1.4 | H65: 0.5 | I65: 0.7 | J65: 1 | K65: 0.7 | L65: 1.4
A66: 101 | B66: EG | C66: Lehrausbildung | D66: VF | E66: beidseitig | F66: J2 | G66: 1.5 | H66: 1.3 | I66: 1.95 | J66: 1 | K66: 1.95 | L66: 3.9
A67: 102 | B67: EG | C67: Lehrausbildung | D67: VF | E67: beidseitig | F67: J2 | G67: 1.5 | H67: 1.3 | I67: 1.95 | J67: 1 | K67: 1.95 | L67: 3.9
A68: 103 | B68: EG | C68: Dusch-/Waschraum | D68: VF | E68: beidseitig | F68: J2 | G68: 1.4 | H68: 0.5 | I68: 0.7 | J68: 1 | K68: 0.7 | L68: 1.4
A69: 104 | B69: EG | C69: WC | D69: VF | E69: beidseitig | F69: J2 | G69: 1.4 | H69: 0.5 | I69: 0.7 | J69: 1 | K69: 0.7 | L69: 1.4
A70: 105 | B70: EG | C70: Vorraum WC | D70: VF | E70: beidseitig | F70: J2 | G70: 1.4 | H70: 0.5 | I70: 0.7 | J70: 1 | K70: 0.7 | L70: 1.4
A71: 106 | B71: EG | C71: Umkleide | D71: VF | E71: beidseitig | F71: J2 | G71: 1.5 | H71: 1.3 | I71: 1.95 | J71: 1 | K71: 1.95 | L71: 3.9
A72: 107 | B72: EG | C72: Lehrausbildung | D72: VF | E72: beidseitig | F72: J2 | G72: 1.5 | H72: 1.3 | I72: 1.95 | J72: 1 | K72: 1.95 | L72: 3.9
A73: 108 | B73: EG | C73: Lehrausbildung | D73: VF | E73: beidseitig | F73: J2 | G73: 1.5 | H73: 1.3 | I73: 1.95 | J73: 1 | K73: 1.95 | L73: 3.9
A74: 109 | B74: EG | C74: Dienstzimmer RBW | D74: VF | E74: beidseitig | F74: J2 | G74: 1.5 | H74: 1.3 | I74: 1.95 | J74: 1 | K74: 1.95 | L74: 3.9
A75: 110 | B75: EG | C75: Dienstzimmer | D75: VF | E75: beidseitig | F75: J2 | G75: 1.5 | H75: 1.3 | I75: 1.95 | J75: 1 | K75: 1.95 | L75: 3.9
A76: 111 | B76: EG | C76: Teeküche | D76: VF | E76: beidseitig | F76: J2 | G76: 1.5 | H76: 1.3 | I76: 1.95 | J76: 1 | K76: 1.95 | L76: 3.9
A77: 112 | B77: EG | C77: Dusch-/Waschraum | D77: VF | E77: beidseitig | F77: J2 | G77: 1.4 | H77: 0.5 | I77: 0.7 | J77: 1 | K77: 0.7 | L77: 1.4
A78: 113 | B78: EG | C78: WC | D78: VF | E78: beidseitig | F78: J2 | G78: 1.4 | H78: 0.5 | I78: 0.7 | J78: 1 | K78: 0.7 | L78: 1.4
A79: 114 | B79: EG | C79: Vorraum WC | D79: VF | E79: beidseitig | F79: J2 | G79: 1.4 | H79: 0.5 | I79: 0.7 | J79: 1 | K79: =I79*J79 -> 0.7 | L79: 1.4
A80: 115 | B80: EG | C80: Archiv | D80: VF | E80: beidseitig | F80: J2 | G80: 1.5 | H80: 1.3 | I80: 1.95 | J80: 1 | K80: 1.95 | L80: 3.9
A81: 116 | B81: EG | C81: Dienstzimmer | D81: VF | E81: beidseitig | F81: J2 | G81: 1.5 | H81: 1.3 | I81: 1.95 | J81: 1 | K81: 1.95 | L81: 3.9
A82: 117 | B82: EG | C82: BIMA | D82: VF | E82: beidseitig | F82: J2 | G82: 1.5 | H82: 1.3 | I82: 1.95 | J82: 1 | K82: 1.95 | L82: 3.9
A83: 118 | B83: EG | C83: BIMA | D83: VF | E83: beidseitig | F83: J2 | G83: 1.5 | H83: 1.3 | I83: 1.95 | J83: 1 | K83: 1.95 | L83: 3.9
A84: 119 | B84: EG | C84: BIMA | D84: VF | E84: beidseitig | F84: J2 | G84: 1.5 | H84: 1.3 | I84: 1.95 | J84: 1 | K84: 1.95 | L84: 3.9
A85: 120 | B85: EG | C85: BIMA | D85: VF | E85: beidseitig | F85: J2 | G85: 1.5 | H85: 1.3 | I85: 1.95 | J85: 1 | K85: 1.95 | L85: 3.9
A86: 121 | B86: EG | C86: BIMA | D86: VF | E86: beidseitig | F86: J2 | G86: 1.5 | H86: 1.3 | I86: 1.95 | J86: 1 | K86: 1.95 | L86: 3.9
A87: 122 | B87: EG | C87: BIMA | D87: VF | E87: beidseitig | F87: J2 | G87: 1.5 | H87: 1.3 | I87: 1.95 | J87: 1 | K87: 1.95 | L87: 3.9
A88: 123 | B88: EG | C88: Dienstzimmer RBW | D88: VF | E88: beidseitig | F88: J2 | G88: 1.5 | H88: 1.3 | I88: 1.95 | J88: 1 | K88: 1.95 | L88: 3.9
A89: 124 | B89: EG | C89: Waffenkammer | D89: VF | E89: beidseitig | F89: J2 | G89: 1.5 | H89: 1.3 | I89: 1.95 | J89: 1 | K89: 1.95 | L89: 3.9
A90: 125 | B90: EG | C90: Dienstzimmer RBW | D90: VF | E90: beidseitig | F90: J2 | G90: 1.5 | H90: 1.3 | I90: 1.95 | J90: 1 | K90: 1.95 | L90: 3.9
A91: 126 | B91: EG | C91: Dienstzimmer RBW | D91: VF | E91: beidseitig | F91: J2 | G91: 1.5 | H91: 1.3 | I91: 1.95 | J91: 1 | K91: 1.95 | L91: 3.9
A92: 127 | B92: EG | C92: Dienstzimmer RBW | D92: VF | E92: beidseitig | F92: J2 | G92: 1.5 | H92: 1.3 | I92: 1.95 | J92: 1 | K92: 1.95 | L92: 3.9
A93: 128 | B93: EG | C93: Dienstzimmer RBW | D93: VF | E93: beidseitig | F93: J2 | G93: 1.5 | H93: 1.3 | I93: 1.95 | J93: 1 | K93: 1.95 | L93: 3.9
A94: 129 | B94: EG | C94: Dienstzimmer RBW | D94: VF | E94: beidseitig | F94: J2 | G94: 1.5 | H94: 1.3 | I94: 1.95 | J94: 1 | K94: 1.95 | L94: 3.9
A95: 130 | B95: EG | C95: Dienstzimmer RBW | D95: VF | E95: beidseitig | F95: J2 | G95: 1.5 | H95: 1.3 | I95: 1.95 | J95: 1 | K95: 1.95 | L95: 3.9
A96: 131 | B96: EG | C96: Aktenraum | D96: VF | E96: beidseitig | F96: J2 | G96: 1.5 | H96: 1.3 | I96: 1.95 | J96: 1 | K96: 1.95 | L96: 3.9
A97: 132 | B97: EG | C97: Besprechungsraum | D97: VF | E97: beidseitig | F97: J2 | G97: 1.5 | H97: 1.3 | I97: 1.95 | J97: 1 | K97: 1.95 | L97: 3.9
A98: 133 | B98: EG | C98: Lehrausbildung | D98: VF | E98: beidseitig | F98: J2 | G98: 1.5 | H98: 1.3 | I98: 1.95 | J98: 1 | K98: 1.95 | L98: 3.9
A99: 134 | B99: EG | C99: Lehrausbildung | D99: VF | E99: beidseitig | F99: J2 | G99: 1.5 | H99: 1.3 | I99: 1.95 | J99: 1 | K99: 1.95 | L99: 3.9
A100: 135 | B100: EG | C100: Lehrausbildung | D100: VF | E100: beidseitig | F100: J2 | G100: 1.5 | H100: 1.3 | I100: 1.95 | J100: 1 | K100: 1.95 | L100: 3.9
A101: 136 | B101: EG | C101: Umkleide | D101: VF | E101: beidseitig | F101: J2 | G101: 1.5 | H101: 1.3 | I101: 1.95 | J101: 1 | K101: 1.95 | L101: 3.9
B102: EG | C102: Flur | D102: VF | E102: beidseitig | F102: J2 | G102: 1.3 | H102: 1 | I102: 1.3 | J102: 1 | K102: 1.3 | L102: 2.6
B103: EG | C103: Treppenraum A | D103: VF | E103: beidseitig | F103: J2 | G103: 1.4 | H103: 0.5 | I103: 0.7 | J103: 1 | K103: 0.7 | L103: 1.4
B104: EG | C104: Treppenraum B | D104: VF | E104: beidseitig | F104: J2 | G104: 1.4 | H104: 0.5 | I104: 0.7 | J104: 1 | K104: 0.7 | L104: 1.4
A105: 201 | B105: 1.OG | C105: FM-Geräteraum | D105: VF | E105: beidseitig | F105: J2 | G105: 1.5 | H105: 1.3 | I105: 1.95 | J105: 1 | K105: 1.95 | L105: 3.9
A106: 202 | B106: 1.OG | C106: Unterrichtsraum | D106: VF | E106: beidseitig | F106: J2 | G106: 1.5 | H106: 1.3 | I106: 1.95 | J106: 1 | K106: 1.95 | L106: 3.9
A107: 203 | B107: 1.OG | C107: Dusch-/Waschraum | D107: VF | E107: beidseitig | F107: J2 | G107: 1.4 | H107: 0.5 | I107: 0.7 | J107: 1 | K107: 0.7 | L107: 1.4
A108: 204.1 | B108: 1.OG | C108: Vorraum WC | D108: VF | E108: beidseitig | F108: J2 | G108: 1.4 | H108: 0.5 | I108: 0.7 | J108: 1 | K108: 0.7 | L108: 1.4
A109: 204.2 | B109: 1.OG | C109: WC | D109: VF | E109: beidseitig | F109: J2 | G109: 1.4 | H109: 0.5 | I109: 0.7 | J109: 1 | K109: 0.7 | L109: 1.4
A110: 206 | B110: 1.OG | C110: Waffenkammer | D110: VF | E110: beidseitig | F110: J2 | G110: 1.5 | H110: 0.5 | I110: 0.75 | J110: 1 | K110: 0.75 | L110: 1.5
A111: 207 | B111: 1.OG | C111: Besprechungsraum | D111: VF | E111: beidseitig | F111: J2 | G111: 1.5 | H111: 1.3 | I111: 1.95 | J111: 1 | K111: 1.95 | L111: 3.9
A112: 208 | B112: 1.OG | C112: Lage-/Arbeitsraum | D112: VF | E112: beidseitig | F112: J2 | G112: 1.5 | H112: 1.3 | I112: 1.95 | J112: 1 | K112: 1.95 | L112: 3.9
A113: 209 | B113: 1.OG | C113: Unterrichtsraum | D113: VF | E113: beidseitig | F113: J2 | G113: 1.5 | H113: 1.3 | I113: 1.95 | J113: 1 | K113: 1.95 | L113: 3.9
A114: 210 | B114: 1.OG | C114: Serverraum | D114: VF | E114: beidseitig | F114: J2 | G114: 1.5 | H114: 1.3 | I114: 1.95 | J114: 1 | K114: 1.95 | L114: 3.9
A115: 211 | B115: 1.OG | C115: Teeküche | D115: VF | E115: beidseitig | F115: J2 | G115: 1.5 | H115: 1.3 | I115: 1.95 | J115: 1 | K115: 1.95 | L115: 3.9
A116: 212.1 | B116: 1.OG | C116: Vorraum WC | D116: VF | E116: beidseitig | F116: J2 | G116: 1.4 | H116: 0.5 | I116: 0.7 | J116: 1 | K116: 0.7 | L116: =IF(E116="einseitig",K116*1,IF(E116="beidseitig",K116*2,IF(E116="raumseitig",K116*1,IF(E116="2x raumseitig",K116*2,IF(E116="3x raumseitig",K116*3,IF(E116="witterungsseitig",K116*1,IF(E116="außen",K116*1,IF(E116="raum- & witterungsseitig",K116*2,IF(E116="vierseitig",K116*4,IF(E116="allseitig",K116*2,IF(E116="ganzflächig",K116*2,0))))))))))) -> 1.4
A117: 212.2 | B117: 1.OG | C117: WC | D117: VF | E117: beidseitig | F117: J2 | G117: 1.4 | H117: 0.5 | I117: 0.7 | J117: 1 | K117: 0.7 | L117: 1.4
A118: 212.3 | B118: 1.OG | C118: Dusch-/Waschraum | D118: VF | E118: beidseitig | F118: J2 | G118: 1.4 | H118: 0.5 | I118: 0.7 | J118: 1 | K118: 0.7 | L118: 1.4
A119: 215 | B119: 1.OG | C119: Archiv | D119: VF | E119: beidseitig | F119: J2 | G119: 1.5 | H119: 1.3 | I119: 1.95 | J119: 1 | K119: 1.95 | L119: 3.9
A120: 216 | B120: 1.OG | C120: Dienstzimmer | D120: VF | E120: beidseitig | F120: J2 | G120: 1.5 | H120: 1.3 | I120: 1.95 | J120: 1 | K120: 1.95 | L120: 3.9
A121: 217 | B121: 1.OG | C121: Dienstzimmer | D121: VF | E121: beidseitig | F121: J2 | G121: 1.5 | H121: 1.3 | I121: 1.95 | J121: 1 | K121: 1.95 | L121: 3.9
A122: 218 | B122: 1.OG | C122: Dienstzimmer | D122: VF | E122: beidseitig | F122: J2 | G122: 1.5 | H122: 1.3 | I122: 1.95 | J122: 1 | K122: 1.95 | L122: 3.9
A123: 219 | B123: 1.OG | C123: Dienstzimmer | D123: VF | E123: beidseitig | F123: J2 | G123: 1.5 | H123: 1.3 | I123: 1.95 | J123: 1 | K123: 1.95 | L123: 3.9
A124: 220 | B124: 1.OG | C124: Dienstzimmer | D124: VF | E124: beidseitig | F124: J2 | G124: 1.5 | H124: 1.3 | I124: 1.95 | J124: 1 | K124: 1.95 | L124: 3.9
A125: 221 | B125: 1.OG | C125: Dienstzimmer | D125: VF | E125: beidseitig | F125: J2 | G125: 1.5 | H125: 1.3 | I125: 1.95 | J125: 1 | K125: 1.95 | L125: 3.9
A126: 222 | B126: 1.OG | C126: Dienstzimmer | D126: VF | E126: beidseitig | F126: J2 | G126: 1.5 | H126: 1.3 | I126: 1.95 | J126: 1 | K126: 1.95 | L126: 3.9
A127: 223 | B127: 1.OG | C127: Dienstzimmer | D127: VF | E127: beidseitig | F127: J2 | G127: 1.5 | H127: 1.3 | I127: 1.95 | J127: 1 | K127: 1.95 | L127: 3.9
A128: 224 | B128: 1.OG | C128: Sportraum | D128: VF | E128: beidseitig | F128: J2 | G128: 1.5 | H128: 1.3 | I128: 1.95 | J128: 1 | K128: 1.95 | L128: 3.9
A129: 225 | B129: 1.OG | C129: Dienstzimmer | D129: VF | E129: beidseitig | F129: J2 | G129: 1.5 | H129: 1.3 | I129: 1.95 | J129: 1 | K129: 1.95 | L129: 3.9
A130: 226 | B130: 1.OG | C130: Aktenraum | D130: VF | E130: beidseitig | F130: J2 | G130: 1.5 | H130: 1.3 | I130: 1.95 | J130: 1 | K130: 1.95 | L130: 3.9
A131: 227 | B131: 1.OG | C131: Dienstzimmer | D131: VF | E131: beidseitig | F131: J2 | G131: 1.5 | H131: 1.3 | I131: 1.95 | J131: 1 | K131: 1.95 | L131: 3.9
A132: 228 | B132: 1.OG | C132: Dienstzimmer | D132: VF | E132: beidseitig | F132: J2 | G132: 1.5 | H132: 1.3 | I132: 1.95 | J132: 1 | K132: 1.95 | L132: 3.9
A133: 229 | B133: 1.OG | C133: Dienstzimmer | D133: VF | E133: beidseitig | F133: J2 | G133: 1.5 | H133: 1.3 | I133: 1.95 | J133: 1 | K133: 1.95 | L133: 3.9
A134: 230 | B134: 1.OG | C134: Dienstzimmer | D134: VF | E134: beidseitig | F134: J2 | G134: 1.5 | H134: 1.3 | I134: 1.95 | J134: 1 | K134: 1.95 | L134: 3.9
A135: 231 | B135: 1.OG | C135: Geschäftszimmer | D135: VF | E135: beidseitig | F135: J2 | G135: 1.5 | H135: 1.3 | I135: 1.95 | J135: 1 | K135: 1.95 | L135: 3.9
A136: 232 | B136: 1.OG | C136: Dienstzimmer | D136: VF | E136: beidseitig | F136: J2 | G136: 1.5 | H136: 1.3 | I136: 1.95 | J136: 1 | K136: 1.95 | L136: 3.9
A137: 233 | B137: 1.OG | C137: Dienstzimmer | D137: VF | E137: beidseitig | F137: J2 | G137: 1.5 | H137: 1.3 | I137: 1.95 | J137: 1 | K137: 1.95 | L137: 3.9
A138: 234 | B138: 1.OG | C138: Unterrichtsraum | D138: VF | E138: beidseitig | F138: J2 | G138: 1.5 | H138: 1.3 | I138: 1.95 | J138: 1 | K138: 1.95 | L138: 3.9
A139: 235/36 | B139: 1.OG | C139: Unterrichtsraum | D139: VF | E139: beidseitig | F139: J2 | G139: 1.5 | H139: 1.3 | I139: 1.95 | J139: 1 | K139: 1.95 | L139: 3.9
B140: 1.OG | C140: Flur | D140: VF | E140: beidseitig | F140: J2 | G140: 1.3 | H140: 1 | I140: 1.3 | J140: 1 | K140: 1.3 | L140: 2.6
B141: 1.OG | C141: Treppenraum A | D141: VF | E141: beidseitig | F141: J2 | G141: 1.4 | H141: 0.5 | I141: 0.7 | J141: 1 | K141: 0.7 | L141: 1.4
B142: 1.OG | C142: Treppenraum B | D142: VF | E142: beidseitig | F142: J2 | G142: 1.4 | H142: 0.5 | I142: 0.7 | J142: 1 | K142: 0.7 | L142: 1.4
A143: 301 | B143: 2.OG | C143: Umkleideraum Wache | D143: VF | E143: beidseitig | F143: J2 | G143: 1.5 | H143: 1.3 | I143: 1.95 | J143: 1 | K143: 1.95 | L143: 3.9
A144: 302 | B144: 2.OG | C144: Umkleideraum Wache | D144: VF | E144: beidseitig | F144: J2 | G144: 1.5 | H144: 1.3 | I144: 1.95 | J144: 1 | K144: 1.95 | L144: 3.9
A145: 303 | B145: 2.OG | C145: Dusch/Waschraum | D145: VF | E145: beidseitig | F145: J2 | G145: 1.4 | H145: 0.5 | I145: 0.7 | J145: 1 | K145: 0.7 | L145: 1.4
A146: 304 | B146: 2.OG | C146: WC | D146: VF | E146: beidseitig | F146: J2 | G146: 1.4 | H146: 0.5 | I146: 0.7 | J146: 1 | K146: 0.7 | L146: 1.4
A147: 305 | B147: 2.OG | C147: Vorraum WC | D147: VF | E147: beidseitig | F147: J2 | G147: 1.4 | H147: 0.5 | I147: 0.7 | J147: 1 | K147: 0.7 | L147: 1.4
A148: 306 | B148: 2.OG | C148: Reinigungsgerätelager | D148: VF | E148: beidseitig | F148: J2 | G148: 1.5 | H148: 1.3 | I148: 1.95 | J148: 1 | K148: 1.95 | L148: 3.9
A149: 307 | B149: 2.OG | C149: Schlafplätze | D149: VF | E149: beidseitig | F149: J2 | G149: 1.5 | H149: 1.3 | I149: 1.95 | J149: 1 | K149: 1.95 | L149: 3.9
A150: 308 | B150: 2.OG | C150: Schlafplätze | D150: VF | E150: beidseitig | F150: J2 | G150: 1.5 | H150: 1.3 | I150: 1.95 | J150: 1 | K150: 1.95 | L150: 3.9
A151: 309 | B151: 2.OG | C151: Schlafplätze | D151: VF | E151: beidseitig | F151: J2 | G151: 1.5 | H151: 1.3 | I151: 1.95 | J151: 1 | K151: 1.95 | L151: 3.9
A152: 310 | B152: 2.OG | C152: Schlafplätze | D152: VF | E152: beidseitig | F152: J2 | G152: 1.5 | H152: 1.3 | I152: 1.95 | J152: 1 | K152: 1.95 | L152: 3.9
A153: 311 | B153: 2.OG | C153: Teeküche | D153: VF | E153: beidseitig | F153: J2 | G153: 1.5 | H153: 1.3 | I153: 1.95 | J153: 1 | K153: 1.95 | L153: 3.9
A154: 312 | B154: 2.OG | C154: Dusch/Waschraum | D154: VF | E154: beidseitig | F154: J2 | G154: 1.4 | H154: 0.5 | I154: 0.7 | J154: 1 | K154: 0.7 | L154: 1.4
A155: 313 | B155: 2.OG | C155: WC | D155: VF | E155: beidseitig | F155: J2 | G155: 1.4 | H155: 0.5 | I155: 0.7 | J155: 1 | K155: 0.7 | L155: 1.4
A156: 314 | B156: 2.OG | C156: Vorraum WC | D156: VF | E156: beidseitig | F156: J2 | G156: 1.4 | H156: 0.5 | I156: 0.7 | J156: 1 | K156: 0.7 | L156: 1.4
A157: 315 | B157: 2.OG | C157: Aufenthaltsraum | D157: VF | E157: beidseitig | F157: J2 | G157: 1.5 | H157: 1.3 | I157: 1.95 | J157: 1 | K157: 1.95 | L157: 3.9
A158: 316 | B158: 2.OG | C158: Schlafplätze | D158: VF | E158: beidseitig | F158: J2 | G158: 1.5 | H158: 1.3 | I158: 1.95 | J158: 1 | K158: 1.95 | L158: 3.9
A159: 317 | B159: 2.OG | C159: Schlafplätze | D159: VF | E159: beidseitig | F159: J2 | G159: 1.5 | H159: 1.3 | I159: 1.95 | J159: 1 | K159: 1.95 | L159: 3.9
A160: 318 | B160: 2.OG | C160: Schlafplätze | D160: VF | E160: beidseitig | F160: J2 | G160: 1.5 | H160: 1.3 | I160: 1.95 | J160: 1 | K160: 1.95 | L160: 3.9
A161: 319 | B161: 2.OG | C161: Schlafplätze | D161: VF | E161: beidseitig | F161: J2 | G161: 1.5 | H161: 1.3 | I161: 1.95 | J161: 1 | K161: 1.95 | L161: 3.9
A162: 320 | B162: 2.OG | C162: Dienstzimmer Seels. | D162: VF | E162: beidseitig | F162: J2 | G162: 1.5 | H162: 1.3 | I162: 1.95 | J162: 1 | K162: 1.95 | L162: 3.9
A163: 321 | B163: 2.OG | C163: Dienstzimmer Seels. | D163: VF | E163: beidseitig | F163: J2 | G163: 1.5 | H163: 1.3 | I163: 1.95 | J163: 1 | K163: 1.95 | L163: 3.9
A164: 322 | B164: 2.OG | C164: Dienstzimmer Seels. | D164: VF | E164: beidseitig | F164: J2 | G164: 1.5 | H164: 1.3 | I164: 1.95 | J164: 1 | K164: 1.95 | L164: 3.9
A165: 323 | B165: 2.OG | C165: Schlafplätze Hu-St. | D165: VF | E165: beidseitig | F165: J2 | G165: 1.5 | H165: 1.3 | I165: 1.95 | J165: 1 | K165: 1.95 | L165: 3.9
A166: 324 | B166: 2.OG | C166: Lager Wäsche | D166: VF | E166: beidseitig | F166: J2 | G166: 1.5 | H166: 1.3 | I166: 1.95 | J166: 1 | K166: 1.95 | L166: 3.9
A167: 325 | B167: 2.OG | C167: Unterkunft | D167: VF | E167: beidseitig | F167: J2 | G167: 1.5 | H167: 1.3 | I167: 1.95 | J167: 1 | K167: 1.95 | L167: 3.9
A168: 326 | B168: 2.OG | C168: Unterkunft | D168: VF | E168: beidseitig | F168: J2 | G168: 1.5 | H168: 1.3 | I168: 1.95 | J168: 1 | K168: 1.95 | L168: 3.9
A169: 327 | B169: 2.OG | C169: Unterkunft | D169: VF | E169: beidseitig | F169: J2 | G169: 1.5 | H169: 1.3 | I169: 1.95 | J169: 1 | K169: 1.95 | L169: 3.9
A170: 328 | B170: 2.OG | C170: Unterkunft | D170: VF | E170: beidseitig | F170: J2 | G170: 1.5 | H170: 1.3 | I170: 1.95 | J170: 1 | K170: 1.95 | L170: 3.9
A171: 329 | B171: 2.OG | C171: Unterkunft | D171: VF | E171: beidseitig | F171: J2 | G171: 1.5 | H171: 1.3 | I171: 1.95 | J171: 1 | K171: 1.95 | L171: 3.9
A172: 330 | B172: 2.OG | C172: Unterkunft | D172: VF | E172: beidseitig | F172: J2 | G172: 1.5 | H172: 1.3 | I172: 1.95 | J172: 1 | K172: 1.95 | L172: 3.9
A173: 331 | B173: 2.OG | C173: Unterkunft | D173: VF | E173: beidseitig | F173: J2 | G173: 1.5 | H173: 1.3 | I173: 1.95 | J173: 1 | K173: 1.95 | L173: 3.9
A174: 332 | B174: 2.OG | C174: Unterkunft | D174: VF | E174: beidseitig | F174: J2 | G174: 1.5 | H174: 1.3 | I174: 1.95 | J174: 1 | K174: 1.95 | L174: 3.9
A175: 333 | B175: 2.OG | C175: Unterkunft | D175: VF | E175: beidseitig | F175: J2 | G175: 1.5 | H175: 1.3 | I175: 1.95 | J175: 1 | K175: 1.95 | L175: 3.9
A176: 334 | B176: 2.OG | C176: Unterkunft | D176: VF | E176: beidseitig | F176: J2 | G176: 1.5 | H176: 1.3 | I176: 1.95 | J176: 1 | K176: 1.95 | L176: 3.9
A177: 335/ 336 | B177: 2.OG | C177: Sportraum | D177: VF | E177: beidseitig | F177: J2 | G177: 1.5 | H177: 1.3 | I177: 1.95 | J177: 1 | K177: 1.95 | L177: 3.9
B178: 2.OG | C178: Flur | D178: VF | E178: beidseitig | F178: J2 | G178: 1.3 | H178: 1 | I178: 1.3 | J178: 1 | K178: 1.3 | L178: 2.6
B179: 2.OG | C179: Treppenraum A | D179: VF | E179: beidseitig | F179: J2 | G179: 1.4 | H179: 0.5 | I179: 0.7 | J179: 1 | K179: 0.7 | L179: 1.4
B180: 2.OG | C180: Treppenraum B | D180: VF | E180: beidseitig | F180: J2 | G180: 1.4 | H180: 0.5 | I180: 0.7 | J180: 1 | K180: 0.7 | L180: =IF(E180="einseitig",K180*1,IF(E180="beidseitig",K180*2,IF(E180="raumseitig",K180*1,IF(E180="2x raumseitig",K180*2,IF(E180="3x raumseitig",K180*3,IF(E180="witterungsseitig",K180*1,IF(E180="außen",K180*1,IF(E180="raum- & witterungsseitig",K180*2,IF(E180="vierseitig",K180*4,IF(E180="allseitig",K180*2,IF(E180="ganzflächig",K180*2,0))))))))))) -> 1.4
D181: VF | E181: beidseitig | F181: J2 | G181: 1.5 | H181: 1.3 | I181: 1.95 | J181: 1 | K181: 1.95 | L181: 3.9
A182: 401 | B182: 3.OG | C182: Unterrichtsraum | D182: VF | E182: beidseitig | F182: J2 | G182: 1.5 | H182: 1.3 | I182: 1.95 | J182: 1 | K182: =I182*J182 -> 1.95 | L182: 3.9
A183: 402 | B183: 3.OG | C183: Unterrichtsraum | D183: VF | E183: beidseitig | F183: J2 | G183: 1.5 | H183: 1.3 | I183: 1.95 | J183: 1 | K183: 1.95 | L183: 3.9
A184: 403 | B184: 3.OG | C184: Wachraum Herren | D184: VF | E184: beidseitig | F184: J2 | G184: 1.4 | H184: 0.5 | I184: 0.7 | J184: 1 | K184: 0.7 | L184: 1.4
A185: 404 | B185: 3.OG | C185: WC | D185: VF | E185: beidseitig | F185: J2 | G185: 1.4 | H185: 0.5 | I185: 0.7 | J185: 1 | K185: 0.7 | L185: 1.4
A186: 405 | B186: 3.OG | C186: Vorraum WC | D186: VF | E186: beidseitig | F186: J2 | G186: 1.4 | H186: 0.5 | I186: 0.7 | J186: 1 | K186: 0.7 | L186: 1.4
A187: 406 | B187: 3.OG | C187: Unterrichtsraum | D187: VF | E187: beidseitig | F187: J2 | G187: 1.5 | H187: 1.3 | I187: 1.95 | J187: 1 | K187: 1.95 | L187: 3.9
A188: 407 | B188: 3.OG | C188: Unterrichtsraum | D188: VF | E188: beidseitig | F188: J2 | G188: 1.5 | H188: 1.3 | I188: 1.95 | J188: 1 | K188: 1.95 | L188: 3.9
A189: 408 | B189: 3.OG | C189: Unterrichtsraum | D189: VF | E189: beidseitig | F189: J2 | G189: 1.5 | H189: 1.3 | I189: 1.95 | J189: 1 | K189: 1.95 | L189: 3.9
A190: 409 | B190: 3.OG | C190: Unterrichtsraum | D190: VF | E190: beidseitig | F190: J2 | G190: 1.5 | H190: 1.3 | I190: 1.95 | J190: 1 | K190: 1.95 | L190: 3.9
A191: 410 | B191: 3.OG | C191: Unterrichtsraum | D191: VF | E191: beidseitig | F191: J2 | G191: 1.5 | H191: 1.3 | I191: 1.95 | J191: 1 | K191: 1.95 | L191: 3.9
A192: 411 | B192: 3.OG | C192: Teeküche | D192: VF | E192: beidseitig | F192: J2 | G192: 1.5 | H192: 1.3 | I192: 1.95 | J192: 1 | K192: 1.95 | L192: 3.9
A193: 412 | B193: 3.OG | C193: Waschraum / Dusche D | D193: VF | E193: beidseitig | F193: J2 | G193: 1.4 | H193: 0.5 | I193: 0.7 | J193: 1 | K193: 0.7 | L193: 1.4
A194: 413 | B194: 3.OG | C194: WC | D194: VF | E194: beidseitig | F194: J2 | G194: 1.4 | H194: 0.5 | I194: 0.7 | J194: 1 | K194: 0.7 | L194: 1.4
A195: 414 | B195: 3.OG | C195: Vorraum WC | D195: VF | E195: beidseitig | F195: J2 | G195: 1.4 | H195: 0.5 | I195: 0.7 | J195: 1 | K195: 0.7 | L195: 1.4
A196: 415 | B196: 3.OG | C196: Unterrichtsraum | D196: VF | E196: beidseitig | F196: J2 | G196: 1.5 | H196: 1.3 | I196: 1.95 | J196: 1 | K196: 1.95 | L196: 3.9
A197: 416 | B197: 3.OG | C197: Unterrichtsraum | D197: VF | E197: beidseitig | F197: J2 | G197: 1.5 | H197: 1.3 | I197: 1.95 | J197: 1 | K197: 1.95 | L197: 3.9
A198: 417 | B198: 3.OG | C198: Unterrichtsraum | D198: VF | E198: beidseitig | F198: J2 | G198: 1.5 | H198: 1.3 | I198: 1.95 | J198: 1 | K198: 1.95 | L198: 3.9
A199: 418 | B199: 3.OG | C199: Unterrichtsraum | D199: VF | E199: beidseitig | F199: J2 | G199: 1.5 | H199: 1.3 | I199: 1.95 | J199: 1 | K199: 1.95 | L199: 3.9
A200: 419 | B200: 3.OG | C200: Unterrichtsraum | D200: VF | E200: beidseitig | F200: J2 | G200: 1.5 | H200: 1.3 | I200: 1.95 | J200: 1 | K200: 1.95 | L200: 3.9
A201: 420 | B201: 3.OG | C201: Unterrichtsraum | D201: VF | E201: beidseitig | F201: J2 | G201: 1.5 | H201: 1.3 | I201: 1.95 | J201: 1 | K201: 1.95 | L201: 3.9
A202: 421 | B202: 3.OG | C202: Unterrichtsraum | D202: VF | E202: beidseitig | F202: J2 | G202: 1.5 | H202: 1.3 | I202: 1.95 | J202: 1 | K202: 1.95 | L202: 3.9
... 653 more rows

Sheet Anl C-03 Geb 13
A1: VOEK 573-25 Los 2 | L1: Anlage C-03
A3: Flächenaufmaß Glasreinigung
A5: Reinigungsobjekt: | C5: BPol Blumberg
A6: Straße: | C6: Bundespolzeiallee 1 | R6: einseitig
A7: PLZ und Ort: | C7: 16356 Ahrensfelde | R7: beidseitig
A8: WE - Nr.: | C8: 141115 | I8: Stand: | J8: 2018-09-17 | R8: raumseitig
A9: Gebäude Nr. | C9: 13 | R9: 2x raumseitig
A10: Anzahl Etagen | R10: 3x raumseitig
A11: Gebäudeart SAP | R11: witterungsseitig
A12: Kontrakt-Nr.: | I12: Druckdatum: | J12: 2025-02-05 | R12: außen
A13: Raum. Nr. | B13: Etage | C13: Raumart / Nutzung | D13: Glascode | E13: Reinigung einseitig beidseitig oder mehrseitig (Info) | F13: Turnus | G13: Breite, m | H13: Höhe, m | I13: Einzelmaß, m² | J13: Anzahl / Einzelmaß | K13: Reinigungs-fläche einseitig | L13: zu reinigende Gesamtfläche | R13: raum- & witterungsseitig
A14: 0.18 | B14: KG | C14: Lager BMI | D14: VF | E14: beidseitig | F14: J2 | G14: 0.6 | H14: 0.37 | I14: 0.22 | J14: 2 | K14: =I14*J14 -> 0.44 | L14: =IF(E14="einseitig",K14*1,IF(E14="beidseitig",K14*2,IF(E14="raumseitig",K14*1,IF(E14="2x raumseitig",K14*2,IF(E14="3x raumseitig",K14*3,IF(E14="witterungsseitig",K14*1,IF(E14="außen",K14*1,IF(E14="raum- & witterungsseitig",K14*2,IF(E14="vierseitig",K14*4,IF(E14="allseitig",K14*2,IF(E14="ganzflächig",K14*2,0))))))))))) -> 0.88 | R14: vierseitig
A15: 0.19 | B15: KG | C15: Archiv | I15: 0 | K15: =I15*J15 -> 0 | L15: =IF(E15="einseitig",K15*1,IF(E15="beidseitig",K15*2,IF(E15="raumseitig",K15*1,IF(E15="2x raumseitig",K15*2,IF(E15="3x raumseitig",K15*3,IF(E15="witterungsseitig",K15*1,IF(E15="außen",K15*1,IF(E15="raum- & witterungsseitig",K15*2,IF(E15="vierseitig",K15*4,IF(E15="allseitig",K15*2,IF(E15="ganzflächig",K15*2,0))))))))))) -> 0 | R15: allseitig
A16: 0.20 | B16: KG | C16: Archiv | D16: VF | E16: beidseitig | F16: J2 | G16: 0.6 | H16: 0.37 | I16: 0.22 | J16: 2 | K16: 0.44 | L16: 0.88 | R16: ganzflächig
A17: 0.21 | B17: KG | C17: Lager Akten | I17: 0 | K17: 0 | L17: 0
A18: 0.22 | B18: KG | C18: Lager Akten | D18: VF | E18: beidseitig | F18: J2 | G18: 0.6 | H18: 0.37 | I18: 0.22 | J18: 2 | K18: 0.44 | L18: 0.88
A19: 0.23 | B19: KG | C19: HA Elektro | I19: 0 | K19: 0 | L19: 0
A20: 0.24 | B20: KG | C20: HA Elektro | D20: VF | E20: beidseitig | F20: J2 | G20: 0.6 | H20: 0.37 | I20: 0.22 | J20: 2 | K20: 0.44 | L20: 0.88
B21: KG | C21: Treppenraum | I21: 0 | K21: 0 | L21: 0
A22: 0.25 | B22: KG | C22: HA Bildfunk | I22: 0 | K22: 0 | L22: 0
A23: 0.26 | B23: KG | C23: HA Heizung / Wasser | I23: 0 | K23: 0 | L23: 0
A24: 0.27 | B24: KG | C24: HA Heizung / Wasser | D24: VF | E24: beidseitig | F24: J2 | G24: 0.6 | H24: 0.37 | I24: 0.22 | J24: 4 | K24: 0.88 | L24: 1.76
A25: 0.28 | B25: KG | C25: Abstellraum Reinigung | I25: 0 | K25: 0 | L25: 0
A26: 0.29 | B26: KG | C26: Lager Küchengerät | I26: 0 | K26: 0 | L26: 0
A27: 0.30 | B27: KG | C27: Lager Küchengerät | I27: 0 | K27: 0 | L27: 0
A28: 0.31 | B28: KG | C28: Lager Küchengerät | D28: VF | E28: beidseitig | F28: J2 | G28: 0.6 | H28: 0.37 | I28: 0.22 | J28: 4 | K28: 0.88 | L28: 1.76
A29: 0.32 | B29: KG | C29: Lager WiVw | I29: 0 | K29: 0 | L29: 0
A30: 0.33 | B30: KG | C30: Lager WiVw | I30: 0 | K30: 0 | L30: 0
A31: 0.34 | B31: KG | C31: Lager WiVw | D31: VF | E31: beidseitig | F31: J2 | G31: 0.6 | H31: 0.37 | I31: 0.22 | J31: 4 | K31: 0.88 | L31: 1.76
A32: 0.35 | B32: KG | C32: Lager WiVw | I32: 0 | K32: 0 | L32: 0
A33: 0.36 | B33: KG | C33: Lager WiVw | D33: VF | E33: beidseitig | F33: J2 | G33: 0.6 | H33: 0.37 | I33: 0.22 | J33: 2 | K33: 0.44 | L33: 0.88
A34: 0.39 | B34: KG | C34: FM - Technik | I34: 0 | K34: 0 | L34: 0
A35: 0.40 | B35: KG | C35: FM - Technik | D35: VF | E35: beidseitig | F35: J2 | G35: 0.6 | H35: 0.37 | I35: 0.22 | J35: 2 | K35: 0.44 | L35: 0.88
A36: 0.41 | B36: KG | C36: Lager WiVw | I36: 0 | K36: 0 | L36: 0
A37: 0.42 | B37: KG | C37: Lager WiVw | D37: VF | E37: beidseitig | F37: J2 | G37: 0.6 | H37: 0.37 | I37: 0.22 | J37: 2 | K37: 0.44 | L37: 0.88
A38: 0.43 | B38: KG | C38: Lager WiVw | I38: 0 | K38: 0 | L38: 0
A39: 0.44 | B39: KG | C39: Lager WiVw | D39: VF | E39: beidseitig | F39: J2 | G39: 0.6 | H39: 0.37 | I39: 0.22 | J39: 2 | K39: 0.44 | L39: 0.88
A40: 0.45 | B40: KG | C40: Lager UE | I40: 0 | K40: 0 | L40: 0
A41: 0.46 | B41: KG | C41: Lager UE | D41: VF | E41: beidseitig | F41: J2 | G41: 0.6 | H41: 0.37 | I41: 0.22 | J41: 2 | K41: 0.44 | L41: 0.88
A42: 0.47 | B42: KG | C42: Lager WiVw | I42: 0 | K42: 0 | L42: 0
A43: 0.48 | B43: KG | C43: Lager WiVw | D43: VF | E43: beidseitig | F43: J2 | G43: 0.6 | H43: 0.37 | I43: 0.22 | J43: 2 | K43: 0.44 | L43: 0.88
A44: 0.49 | B44: KG | C44: Lager WiVw | I44: 0 | K44: 0 | L44: 0
A45: 0.50 | B45: KG | C45: Lager WiVw | D45: VF | E45: beidseitig | F45: J2 | G45: 0.6 | H45: 0.37 | I45: 0.22 | J45: 2 | K45: 0.44 | L45: 0.88
A46: 0.51 | B46: KG | C46: Lager Sondermüll | I46: 0 | K46: 0 | L46: 0
A47: 0.52 | B47: KG | C47: Lager Sondermüll | D47: VF | E47: beidseitig | F47: J2 | G47: 0.6 | H47: 0.37 | I47: 0.22 | J47: 2 | K47: 0.44 | L47: 0.88
A48: 0.53 | B48: KG | C48: Trockenraum | I48: 0 | K48: 0 | L48: 0
A49: 0.54 | B49: KG | C49: Trockenraum | I49: 0 | K49: 0 | L49: 0
A50: 0.55 | B50: KG | C50: Trockenraum | D50: VF | E50: beidseitig | F50: J2 | G50: 0.6 | H50: 0.37 | I50: 0.22 | J50: 4 | K50: 0.88 | L50: 1.76
A51: 0.56 | B51: KG | C51: Archiv WiVw | I51: 0 | K51: 0 | L51: 0
A52: 0.57 | B52: KG | C52: Archiv WiVw | D52: VF | E52: beidseitig | F52: J2 | G52: 0.6 | H52: 0.37 | I52: 0.22 | J52: 2 | K52: 0.44 | L52: 0.88
A53: 0.58 | B53: KG | C53: Lager WiVw | I53: 0 | K53: 0 | L53: 0
A54: 0.59 | B54: KG | C54: Lager WiVw | D54: VF | E54: beidseitig | F54: J2 | G54: 0.6 | H54: 0.37 | I54: 0.22 | J54: 2 | K54: 0.44 | L54: 0.88
A55: 0.60 | B55: KG | C55: Lager Wäsche | I55: 0 | K55: 0 | L55: 0
A56: 0.61 | B56: KG | C56: Lager Wäsche | D56: VF | E56: beidseitig | F56: J2 | G56: 0.6 | H56: 0.37 | I56: 0.22 | J56: 2 | K56: 0.44 | L56: 0.88
A57: 0.62 | B57: KG | C57: Lager Wäsche | I57: 0 | K57: 0 | L57: 0
A58: 0.63 | B58: KG | C58: Lager Wäsche | D58: VF | E58: beidseitig | F58: J2 | G58: 0.6 | H58: 0.37 | I58: 0.22 | J58: 2 | K58: 0.44 | L58: 0.88
A59: 0.64 | B59: KG | C59: Lager Büromaterial | I59: 0 | K59: 0 | L59: 0
A60: 0.65 | B60: KG | C60: Lager Büromaterial | D60: VF | E60: beidseitig | F60: J2 | G60: 0.6 | H60: 0.37 | I60: 0.22 | J60: 2 | K60: 0.44 | L60: 0.88
A61: 0.66 | B61: KG | C61: Lager Möbel | I61: 0 | K61: 0 | L61: 0
A62: 0.67 | B62: KG | C62: Lager Möbel | D62: VF | E62: beidseitig | F62: J2 | G62: 0.6 | H62: 0.37 | I62: 0.22 | J62: 2 | K62: 0.44 | L62: 0.88
A63: 0.68 | B63: KG | C63: Lager Möbel | I63: 0 | K63: 0 | L63: 0
A64: 0.69 | B64: KG | C64: Lager Möbel | D64: VF | E64: beidseitig | F64: J2 | G64: 0.6 | H64: 0.37 | I64: 0.22 | J64: 2 | K64: 0.44 | L64: 0.88
C65: Flur | I65: 0 | K65: 0 | L65: 0
A66: 101 | B66: EG | C66: Unterkunftswohnplatz | D66: VF | E66: beidseitig | F66: J2 | G66: 2.11 | H66: 1.37 | I66: 2.89 | J66: 1 | K66: 2.89 | L66: 5.78
B67: EG | C67: Nasszelle | I67: 0 | K67: 0 | L67: 0
A68: 102 | B68: EG | C68: Unterkunftswohnplatz | D68: VF | E68: beidseitig | F68: J2 | G68: 2.11 | H68: 1.37 | I68: 2.89 | J68: 1 | K68: 2.89 | L68: 5.78
B69: EG | C69: Nasszelle | I69: 0 | K69: 0 | L69: 0
A70: 103 | B70: EG | C70: Unterkunftswohnplatz | D70: VF | E70: beidseitig | F70: J2 | G70: 2.11 | H70: 1.37 | I70: 2.89 | J70: 1 | K70: 2.89 | L70: 5.78
B71: EG | C71: Nasszelle | I71: 0 | K71: 0 | L71: 0
A72: 104 | B72: EG | C72: Unterkunftswohnplatz | D72: VF | E72: beidseitig | F72: J2 | G72: 2.11 | H72: 1.37 | I72: 2.89 | J72: 1 | K72: 2.89 | L72: 5.78
B73: EG | C73: Nasszelle | I73: 0 | K73: 0 | L73: 0
B74: EG | C74: Treppenraum | I74: 0 | K74: 0 | L74: 0
B75: EG | C75: Windfang | I75: 0 | K75: 0 | L75: 0
A76: 106 | B76: EG | C76: Aufenthaltsraum | D76: VF | E76: beidseitig | F76: J2 | G76: 2.11 | H76: 1.37 | I76: 2.89 | J76: 1 | K76: 2.89 | L76: 5.78
B77: EG | C77: Nasszelle | I77: 0 | K77: 0 | L77: 0
A78: 108 | B78: EG | C78: Teeküche | D78: VF | E78: beidseitig | F78: J2 | G78: 2.11 | H78: 1.37 | I78: 2.89 | J78: 1 | K78: 2.89 | L78: 5.78
A79: 109 | B79: EG | C79: Abstellraum | I79: 0 | K79: =I79*J79 -> 0 | L79: 0
A80: 110 | B80: EG | C80: Unterkunftswohnplatz | D80: VF | E80: beidseitig | F80: J2 | G80: 2.11 | H80: 1.37 | I80: 2.89 | J80: 1 | K80: 2.89 | L80: 5.78
B81: EG | C81: Nasszelle | I81: 0 | K81: 0 | L81: 0
A82: 111 | B82: EG | C82: Unterkunftswohnplatz | D82: VF | E82: beidseitig | F82: J2 | G82: 2.11 | H82: 1.37 | I82: 2.89 | J82: 1 | K82: 2.89 | L82: 5.78
B83: EG | C83: Nasszelle | I83: 0 | K83: 0 | L83: 0
A84: 112 | B84: EG | C84: Unterkunftswohnplatz | D84: VF | E84: beidseitig | F84: J2 | G84: 2.11 | H84: 1.37 | I84: 2.89 | J84: 1 | K84: 2.89 | L84: 5.78
B85: EG | C85: Nasszelle | I85: 0 | K85: 0 | L85: 0
A86: 113 | B86: EG | C86: Unterkunftswohnplatz | D86: VF | E86: beidseitig | F86: J2 | G86: 2.11 | H86: 1.37 | I86: 2.89 | J86: 1 | K86: 2.89 | L86: 5.78
B87: EG | C87: Nasszelle | I87: 0 | K87: 0 | L87: 0
A88: 114 | B88: EG | C88: Unterkunftswohnplatz | D88: VF | E88: beidseitig | F88: J2 | G88: 2.11 | H88: 1.37 | I88: 2.89 | J88: 1 | K88: 2.89 | L88: 5.78
B89: EG | C89: Nasszelle | I89: 0 | K89: 0 | L89: 0
A90: 115 | B90: EG | C90: Unterkunftswohnplatz | D90: VF | E90: beidseitig | F90: J2 | G90: 2.11 | H90: 1.37 | I90: 2.89 | J90: 1 | K90: 2.89 | L90: 5.78
B91: EG | C91: Nasszelle | I91: 0 | K91: 0 | L91: 0
B92: EG | C92: Treppenraum | I92: 0 | K92: 0 | L92: 0
B93: EG | C93: Windfang | I93: 0 | K93: 0 | L93: 0
A94: 117 | B94: EG | C94: Lager Wäsche | D94: VF | E94: beidseitig | F94: J2 | G94: 2.11 | H94: 1.37 | I94: 2.89 | J94: 1 | K94: 2.89 | L94: 5.78
B95: EG | C95: Nasszelle | I95: 0 | K95: 0 | L95: 0
A96: 118 | B96: EG | C96: Dienstzimmer | D96: VF | E96: beidseitig | F96: J2 | G96: 2.11 | H96: 1.37 | I96: 2.89 | J96: 1 | K96: 2.89 | L96: 5.78
B97: EG | C97: Nasszelle | I97: 0 | K97: 0 | L97: 0
A98: 119 | B98: EG | C98: Unterkunftswohnplatz | D98: VF | E98: beidseitig | F98: J2 | G98: 2.11 | H98: 1.37 | I98: 2.89 | J98: 1 | K98: 2.89 | L98: 5.78
B99: EG | C99: Nasszelle | I99: 0 | K99: 0 | L99: 0
A100: 120 | B100: EG | C100: Unterkunftswohnplatz | D100: VF | E100: beidseitig | F100: J2 | G100: 2.11 | H100: 1.37 | I100: 2.89 | J100: 1 | K100: 2.89 | L100: 5.78
B101: EG | C101: Nasszelle | I101: 0 | K101: 0 | L101: 0
A102: 121 | B102: EG | C102: Unterkunftswohnplatz | D102: VF | E102: beidseitig | F102: J2 | G102: 2.11 | H102: 1.37 | I102: 2.89 | J102: 1 | K102: 2.89 | L102: 5.78
B103: EG | C103: Nasszelle | I103: 0 | K103: 0 | L103: 0
A104: 122 | B104: EG | C104: Unterkunftswohnplatz | D104: VF | E104: beidseitig | F104: J2 | G104: 2.11 | H104: 1.37 | I104: 2.89 | J104: 1 | K104: 2.89 | L104: 5.78
B105: EG | C105: Nasszelle | I105: 0 | K105: 0 | L105: 0
A106: 123 | B106: EG | C106: Unterkunftswohnplatz | D106: VF | E106: beidseitig | F106: J2 | G106: 2.11 | H106: 1.37 | I106: 2.89 | J106: 1 | K106: 2.89 | L106: 5.78
B107: EG | C107: Nasszelle | I107: 0 | K107: 0 | L107: 0
A108: 124 | B108: EG | C108: Unterkunftswohnplatz | D108: VF | E108: beidseitig | F108: J2 | G108: 2.11 | H108: 1.37 | I108: 2.89 | J108: 1 | K108: 2.89 | L108: 5.78
B109: EG | C109: Nasszelle | I109: 0 | K109: 0 | L109: 0
A110: 125 | B110: EG | C110: Unterkunftswohnplatz | D110: VF | E110: beidseitig | F110: J2 | G110: 2.11 | H110: 1.37 | I110: 2.89 | J110: 1 | K110: 2.89 | L110: 5.78
B111: EG | C111: Nasszelle | I111: 0 | K111: 0 | L111: 0
A112: 126 | B112: EG | C112: Unterkunftswohnplatz | D112: VF | E112: beidseitig | F112: J2 | G112: 2.11 | H112: 1.37 | I112: 2.89 | J112: 1 | K112: 2.89 | L112: 5.78
B113: EG | C113: Nasszelle | I113: 0 | K113: 0 | L113: 0
A114: 127 | B114: EG | C114: Unterkunftswohnplatz | D114: VF | E114: beidseitig | F114: J2 | G114: 2.11 | H114: 1.37 | I114: 2.89 | J114: 1 | K114: 2.89 | L114: 5.78
B115: EG | C115: Nasszelle | I115: 0 | K115: 0 | L115: 0
A116: 128 | B116: EG | C116: Unterkunftswohnplatz | D116: VF | E116: beidseitig | F116: J2 | G116: 2.11 | H116: 1.37 | I116: 2.89 | J116: 1 | K116: 2.89 | L116: =IF(E116="einseitig",K116*1,IF(E116="beidseitig",K116*2,IF(E116="raumseitig",K116*1,IF(E116="2x raumseitig",K116*2,IF(E116="3x raumseitig",K116*3,IF(E116="witterungsseitig",K116*1,IF(E116="außen",K116*1,IF(E116="raum- & witterungsseitig",K116*2,IF(E116="vierseitig",K116*4,IF(E116="allseitig",K116*2,IF(E116="ganzflächig",K116*2,0))))))))))) -> 5.78
B117: EG | C117: Nasszelle | I117: 0 | K117: 0 | L117: 0
A118: 129 | B118: EG | C118: Unterkunftswohnplatz | D118: VF | E118: beidseitig | F118: J2 | G118: 2.11 | H118: 1.37 | I118: 2.89 | J118: 1 | K118: 2.89 | L118: 5.78
B119: EG | C119: Nasszelle | I119: 0 | K119: 0 | L119: 0
A120: 130 | B120: EG | C120: Unterkunftswohnplatz | D120: VF | E120: beidseitig | F120: J2 | G120: 2.11 | H120: 1.37 | I120: 2.89 | J120: 1 | K120: 2.89 | L120: 5.78
B121: EG | C121: Nasszelle | I121: 0 | K121: 0 | L121: 0
A122: 131 | B122: EG | C122: Unterkunftswohnplatz | D122: VF | E122: beidseitig | F122: J2 | G122: 2.11 | H122: 1.37 | I122: 2.89 | J122: 1 | K122: 2.89 | L122: 5.78
B123: EG | C123: Nasszelle | I123: 0 | K123: 0 | L123: 0
A124: 132 | B124: EG | C124: Unterkunftswohnplatz | D124: VF | E124: beidseitig | F124: J2 | G124: 2.11 | H124: 1.37 | I124: 2.89 | J124: 1 | K124: 2.89 | L124: 5.78
B125: EG | C125: Nasszelle | I125: 0 | K125: 0 | L125: 0
A126: 133 | B126: EG | C126: Unterkunftswohnplatz | D126: VF | E126: beidseitig | F126: J2 | G126: 2.11 | H126: 1.37 | I126: 2.89 | J126: 1 | K126: 2.89 | L126: 5.78
B127: EG | C127: Nasszelle | I127: 0 | K127: 0 | L127: 0
A128: 134 | B128: EG | C128: Unterkunftswohnplatz | D128: VF | E128: beidseitig | F128: J2 | G128: 2.11 | H128: 1.37 | I128: 2.89 | J128: 1 | K128: 2.89 | L128: 5.78
B129: EG | C129: Nasszelle | I129: 0 | K129: 0 | L129: 0
A130: 135 | B130: EG | C130: Unterkunftswohnplatz | D130: VF | E130: beidseitig | F130: J2 | G130: 2.11 | H130: 1.37 | I130: 2.89 | J130: 1 | K130: 2.89 | L130: 5.78
B131: EG | C131: Nasszelle | I131: 0 | K131: 0 | L131: 0
A132: 136 | B132: EG | C132: Unterkunftswohnplatz | D132: VF | E132: beidseitig | F132: J2 | G132: 2.11 | H132: 1.37 | I132: 2.89 | J132: 1 | K132: 2.89 | L132: 5.78
B133: EG | C133: Nasszelle | I133: 0 | K133: 0 | L133: 0
A134: 137 | B134: EG | C134: Unterkunftswohnplatz | D134: VF | E134: beidseitig | F134: J2 | G134: 2.11 | H134: 1.37 | I134: 2.89 | J134: 1 | K134: 2.89 | L134: 5.78
B135: EG | C135: Nasszelle | I135: 0 | K135: 0 | L135: 0
A136: 138 | B136: EG | C136: Unterkunftswohnplatz | D136: VF | E136: beidseitig | F136: J2 | G136: 2.11 | H136: 1.37 | I136: 2.89 | J136: 1 | K136: 2.89 | L136: 5.78
B137: EG | C137: Nasszelle | I137: 0 | K137: 0 | L137: 0
A138: 139 | B138: EG | C138: Unterkunftswohnplatz | D138: VF | E138: beidseitig | F138: J2 | G138: 2.11 | H138: 1.37 | I138: 2.89 | J138: 1 | K138: 2.89 | L138: 5.78
B139: EG | C139: Nasszelle | I139: 0 | K139: 0 | L139: 0
A140: 140 | B140: EG | C140: Unterkunftswohnplatz | D140: VF | E140: beidseitig | F140: J2 | G140: 2.11 | H140: 1.37 | I140: 2.89 | J140: 1 | K140: 2.89 | L140: 5.78
B141: EG | C141: Nasszelle | I141: 0 | K141: 0 | L141: 0
C142: Flur | D142: VF | E142: beidseitig | F142: J2 | G142: 2.21 | H142: 1.37 | I142: 3.03 | J142: 2 | K142: 6.06 | L142: 12.12
A143: 201 | B143: 1.OG | C143: Unterkunftswohnplatz | D143: VF | E143: beidseitig | F143: J2 | G143: 2.11 | H143: 1.37 | I143: 2.89 | J143: 1 | K143: 2.89 | L143: 5.78
B144: 1.OG | C144: Nasszelle | I144: 0 | K144: 0 | L144: 0
A145: 202 | B145: 1.OG | C145: Unterkunftswohnplatz | D145: VF | E145: beidseitig | F145: J2 | G145: 2.11 | H145: 1.37 | I145: 2.89 | J145: 1 | K145: 2.89 | L145: 5.78
B146: 1.OG | C146: Nasszelle | I146: 0 | K146: 0 | L146: 0
A147: 203 | B147: 1.OG | C147: Unterkunftswohnplatz | D147: VF | E147: beidseitig | F147: J2 | G147: 2.11 | H147: 1.37 | I147: 2.89 | J147: 1 | K147: 2.89 | L147: 5.78
B148: 1.OG | C148: Nasszelle | I148: 0 | K148: 0 | L148: 0
A149: 204 | B149: 1.OG | C149: Unterkunftswohnplatz | D149: VF | E149: beidseitig | F149: J2 | G149: 2.11 | H149: 1.37 | I149: 2.89 | J149: 1 | K149: 2.89 | L149: 5.78
B150: 1.OG | C150: Nasszelle | I150: 0 | K150: 0 | L150: 0
B151: 1.OG | C151: Treppenraum | I151: 0 | K151: 0 | L151: 0
A152: 205 | B152: 1.OG | C152: Gemeinschaftsraum | I152: 0 | K152: 0 | L152: 0
A153: 206 | B153: 1.OG | C153: Teeküche | D153: VF | E153: beidseitig | F153: J2 | G153: 2.11 | H153: 1.37 | I153: 2.89 | J153: 1 | K153: 2.89 | L153: 5.78
A154: 207 | B154: 1.OG | C154: Abstellraum | I154: 0 | K154: 0 | L154: 0
A155: 208 | B155: 1.OG | C155: Unterkunftswohnplatz | D155: VF | E155: beidseitig | F155: J2 | G155: 2.11 | H155: 1.37 | I155: 2.89 | J155: 1 | K155: 2.89 | L155: 5.78
B156: 1.OG | C156: Nasszelle | I156: 0 | K156: 0 | L156: 0
A157: 209 | B157: 1.OG | C157: Unterkunftswohnplatz | D157: VF | E157: beidseitig | F157: J2 | G157: 2.11 | H157: 1.37 | I157: 2.89 | J157: 1 | K157: 2.89 | L157: 5.78
B158: 1.OG | C158: Nasszelle | I158: 0 | K158: 0 | L158: 0
A159: 210 | B159: 1.OG | C159: Unterkunftswohnplatz | D159: VF | E159: beidseitig | F159: J2 | G159: 2.11 | H159: 1.37 | I159: 2.89 | J159: 1 | K159: 2.89 | L159: 5.78
B160: 1.OG | C160: Nasszelle | I160: 0 | K160: 0 | L160: 0
A161: 211 | B161: 1.OG | C161: Unterkunftswohnplatz | D161: VF | E161: beidseitig | F161: J2 | G161: 2.11 | H161: 1.37 | I161: 2.89 | J161: 1 | K161: 2.89 | L161: 5.78
B162: 1.OG | C162: Nasszelle | I162: 0 | K162: 0 | L162: 0
A163: 212 | B163: 1.OG | C163: Unterkunftswohnplatz | D163: VF | E163: beidseitig | F163: J2 | G163: 2.11 | H163: 1.37 | I163: 2.89 | J163: 1 | K163: 2.89 | L163: 5.78
B164: 1.OG | C164: Nasszelle | I164: 0 | K164: 0 | L164: 0
A165: 213 | B165: 1.OG | C165: Unterkunftswohnplatz | D165: VF | E165: beidseitig | F165: J2 | G165: 2.11 | H165: 1.37 | I165: 2.89 | J165: 1 | K165: 2.89 | L165: 5.78
B166: 1.OG | C166: Nasszelle | I166: 0 | K166: 0 | L166: 0
A167: 214 | B167: 1.OG | C167: Unterkunftswohnplatz | D167: VF | E167: beidseitig | F167: J2 | G167: 2.11 | H167: 1.37 | I167: 2.89 | J167: 1 | K167: 2.89 | L167: 5.78
B168: 1.OG | C168: Nasszelle | I168: 0 | K168: 0 | L168: 0
B169: 1.OG | C169: Treppenraum | I169: 0 | K169: 0 | L169: 0
A170: 215 | B170: 1.OG | C170: Gemeinschaftsraum | I170: 0 | K170: 0 | L170: 0
A171: 216 | B171: 1.OG | C171: Unterkunftswohnplatz | D171: VF | E171: beidseitig | F171: J2 | G171: 2.11 | H171: 1.37 | I171: 2.89 | J171: 1 | K171: 2.89 | L171: 5.78
B172: 1.OG | C172: Nasszelle | I172: 0 | K172: 0 | L172: 0
A173: 217 | B173: 1.OG | C173: Unterkunftswohnplatz | D173: VF | E173: beidseitig | F173: J2 | G173: 2.11 | H173: 1.37 | I173: 2.89 | J173: 1 | K173: 2.89 | L173: 5.78
B174: 1.OG | C174: Nasszelle | I174: 0 | K174: 0 | L174: 0
A175: 218 | B175: 1.OG | C175: Unterkunftswohnplatz | D175: VF | E175: beidseitig | F175: J2 | G175: 2.11 | H175: 1.37 | I175: 2.89 | J175: 1 | K175: 2.89 | L175: 5.78
B176: 1.OG | C176: Nasszelle | I176: 0 | K176: 0 | L176: 0
A177: 219 | B177: 1.OG | C177: Unterkunftswohnplatz | D177: VF | E177: beidseitig | F177: J2 | G177: 2.11 | H177: 1.37 | I177: 2.89 | J177: 1 | K177: 2.89 | L177: 5.78
B178: 1.OG | C178: Nasszelle | I178: 0 | K178: 0 | L178: 0
A179: 220 | B179: 1.OG | C179: Unterkunftswohnplatz | D179: VF | E179: beidseitig | F179: J2 | G179: 2.11 | H179: 1.37 | I179: 2.89 | J179: 1 | K179: 2.89 | L179: 5.78
B180: 1.OG | C180: Nasszelle | I180: 0 | K180: 0 | L180: =IF(E180="einseitig",K180*1,IF(E180="beidseitig",K180*2,IF(E180="raumseitig",K180*1,IF(E180="2x raumseitig",K180*2,IF(E180="3x raumseitig",K180*3,IF(E180="witterungsseitig",K180*1,IF(E180="außen",K180*1,IF(E180="raum- & witterungsseitig",K180*2,IF(E180="vierseitig",K180*4,IF(E180="allseitig",K180*2,IF(E180="ganzflächig",K180*2,0))))))))))) -> 0
A181: 221 | B181: 1.OG | C181: Unterkunftswohnplatz | D181: VF | E181: beidseitig | F181: J2 | G181: 2.11 | H181: 1.37 | I181: 2.89 | J181: 1 | K181: 2.89 | L181: 5.78
B182: 1.OG | C182: Nasszelle | I182: 0 | K182: =I182*J182 -> 0 | L182: 0
A183: 222 | B183: 1.OG | C183: Unterkunftswohnplatz | D183: VF | E183: beidseitig | F183: J2 | G183: 2.11 | H183: 1.37 | I183: 2.89 | J183: 1 | K183: 2.89 | L183: 5.78
B184: 1.OG | C184: Nasszelle | I184: 0 | K184: 0 | L184: 0
A185: 223 | B185: 1.OG | C185: Unterkunftswohnplatz | D185: VF | E185: beidseitig | F185: J2 | G185: 2.11 | H185: 1.37 | I185: 2.89 | J185: 1 | K185: 2.89 | L185: 5.78
B186: 1.OG | C186: Nasszelle | I186: 0 | K186: 0 | L186: 0
A187: 224 | B187: 1.OG | C187: Unterkunftswohnplatz | D187: VF | E187: beidseitig | F187: J2 | G187: 2.11 | H187: 1.37 | I187: 2.89 | J187: 1 | K187: 2.89 | L187: 5.78
B188: 1.OG | C188: Nasszelle | I188: 0 | K188: 0 | L188: 0
A189: 225 | B189: 1.OG | C189: Unterkunftswohnplatz | D189: VF | E189: beidseitig | F189: J2 | G189: 2.11 | H189: 1.37 | I189: 2.89 | J189: 1 | K189: 2.89 | L189: 5.78
B190: 1.OG | C190: Nasszelle | I190: 0 | K190: 0 | L190: 0
A191: 226 | B191: 1.OG | C191: Unterkunftswohnplatz | D191: VF | E191: beidseitig | F191: J2 | G191: 2.11 | H191: 1.37 | I191: 2.89 | J191: 1 | K191: 2.89 | L191: 5.78
B192: 1.OG | C192: Nasszelle | I192: 0 | K192: 0 | L192: 0
A193: 227 | B193: 1.OG | C193: Unterkunftswohnplatz | D193: VF | E193: beidseitig | F193: J2 | G193: 2.11 | H193: 1.37 | I193: 2.89 | J193: 1 | K193: 2.89 | L193: 5.78
B194: 1.OG | C194: Nasszelle | I194: 0 | K194: 0 | L194: 0
A195: 228 | B195: 1.OG | C195: Unterkunftswohnplatz | D195: VF | E195: beidseitig | F195: J2 | G195: 2.11 | H195: 1.37 | I195: 2.89 | J195: 1 | K195: 2.89 | L195: 5.78
B196: 1.OG | C196: Nasszelle | I196: 0 | K196: 0 | L196: 0
A197: 229 | B197: 1.OG | C197: Unterkunftswohnplatz | D197: VF | E197: beidseitig | F197: J2 | G197: 2.11 | H197: 1.37 | I197: 2.89 | J197: 1 | K197: 2.89 | L197: 5.78
B198: 1.OG | C198: Nasszelle | I198: 0 | K198: 0 | L198: 0
A199: 230 | B199: 1.OG | C199: Unterkunftswohnplatz | D199: VF | E199: beidseitig | F199: J2 | G199: 2.11 | H199: 1.37 | I199: 2.89 | J199: 1 | K199: 2.89 | L199: 5.78
B200: 1.OG | C200: Nasszelle | I200: 0 | K200: 0 | L200: 0
A201: 231 | B201: 1.OG | C201: Unterkunftswohnplatz | D201: VF | E201: beidseitig | F201: J2 | G201: 2.11 | H201: 1.37 | I201: 2.89 | J201: 1 | K201: 2.89 | L201: 5.78
B202: 1.OG | C202: Nasszelle | I202: 0 | K202: 0 | L202: 0
... 770 more rows

Sheet Anl C-03 Geb 14
A1: VOEK 573-25 Los 2 | L1: Anlage C-03
A3: Flächenaufmaß Glasreinigung
A5: Reinigungsobjekt: | C5: BPol Blumberg
A6: Straße: | C6: Bundespolizeiallee 1 | R6: einseitig
A7: PLZ und Ort: | C7: 16356 Ahrensfelde | R7: beidseitig
A8: WE - Nr.: | C8: 141115 | I8: Stand: | J8: 2018-09-17 | R8: raumseitig
A9: Gebäude Nr. | C9: 14 | R9: 2x raumseitig
A10: Anzahl Etagen | R10: 3x raumseitig
A11: Gebäudeart SAP | R11: witterungsseitig
A12: Kontrakt-Nr.: | I12: Druckdatum: | J12: 2025-02-05 | R12: außen
A13: Raum. Nr. | B13: Etage | C13: Raumart / Nutzung | D13: Glascode | E13: Reinigung einseitig beidseitig oder mehrseitig (Info) | F13: Turnus | G13: Breite, m | H13: Höhe, m | I13: Einzelmaß, m² | J13: Anzahl / Einzelmaß | K13: Reinigungs-fläche einseitig | L13: zu reinigende Gesamtfläche | R13: raum- & witterungsseitig
A14: 1./10 | C14: Besprechungsraum | D14: VF | E14: beidseitig | F14: J2 | G14: 2.05 | H14: 2.26 | I14: 9.04 | J14: 4 | K14: =I14*J14 -> 36.16 | L14: =IF(E14="einseitig",K14*1,IF(E14="beidseitig",K14*2,IF(E14="raumseitig",K14*1,IF(E14="2x raumseitig",K14*2,IF(E14="3x raumseitig",K14*3,IF(E14="witterungsseitig",K14*1,IF(E14="außen",K14*1,IF(E14="raum- & witterungsseitig",K14*2,IF(E14="vierseitig",K14*4,IF(E14="allseitig",K14*2,IF(E14="ganzflächig",K14*2,0))))))))))) -> 72.32 | R14: vierseitig
A15: 1./11 | C15: Mehrzwecksaal | D15: VF | E15: beidseitig | F15: J2 | G15: 6.69 | H15: 8.7 | I15: 26.1 | J15: 3 | K15: =I15*J15 -> 78.3 | L15: =IF(E15="einseitig",K15*1,IF(E15="beidseitig",K15*2,IF(E15="raumseitig",K15*1,IF(E15="2x raumseitig",K15*2,IF(E15="3x raumseitig",K15*3,IF(E15="witterungsseitig",K15*1,IF(E15="außen",K15*1,IF(E15="raum- & witterungsseitig",K15*2,IF(E15="vierseitig",K15*4,IF(E15="allseitig",K15*2,IF(E15="ganzflächig",K15*2,0))))))))))) -> 156.6 | R15: allseitig
C16: Bühne | I16: 0 | K16: 0 | L16: 0 | R16: ganzflächig
C17: Garderobe | I17: 0 | K17: 0 | L17: 0
A18: 1./6 | C18: WC | D18: VF | E18: beidseitig | F18: J2 | G18: 0.85 | H18: 1.15 | I18: 9.2 | J18: 8 | K18: 73.6 | L18: 147.2
A19: 1./8 | C19: WC | D19: VF | E19: beidseitig | F19: J2 | G19: 0.85 | H19: 1.15 | I19: 2.3 | J19: 2 | K19: 4.6 | L19: 9.2
C20: Windfang | I20: 0 | K20: 0 | L20: 0
C21: Flur | D21: VF | E21: beidseitig | F21: J2 | G21: 3.1 | H21: 1.9 | I21: 5.89 | J21: 3 | K21: 17.67 | L21: 35.34
C22: Flur | I22: 0 | K22: 0 | L22: 0
C23: Treppenhaus | I23: 0 | K23: 0 | L23: 0
C24: Speisesaal | D24: VF | E24: beidseitig | F24: J2 | G24: 1.2 | H24: 2 | I24: 2.4 | J24: 18 | K24: 43.2 | L24: 86.4
C26: Summe: | I26: =SUBTOTAL(9,I14:I24) -> 54.93 | J26: =SUBTOTAL(9,J14:J24) -> 38 | K26: =SUBTOTAL(9,K14:K24) -> 253.53 | L26: =SUBTOTAL(9,L14:L24) -> 507.06
C29: Bearbeitung durch VOEK 42 - Zusammenfassung der Aufmaßtabelle / Übertragung in das Preisblatt
F30: =SUM(F35:F628) -> 0 | G30: =SUM(G35:G628) -> 0
C34: Reinigungsbereich Glasreinigung | D34: Glascode | E34: Reinigung einseitig oder beidseitig | F34: Renigungsfläche einseitig | G34: zu reinigende Gesamtfläche | H34: Turnus | I34: Einsatztage pro Jahr
C35: Außenfenster bis 5,00 m² Fenstergröße | D35: F1 <5 | E35: einseitig | F35: =SUMPRODUCT((Reinigungsfläche)*(Glascode=D35)*(Turnus=H35)) -> 0 | G35: =SUMPRODUCT((Gesamtfläche)*(Glascode=D35)*(Turnus=H35)) -> 0 | H35: W1 | I35: =IF(H35="W1",52.14,IF(H35="M1",12,IF(H35="J0,5",0.5,IF(H35="J1",1,IF(H35="J2",2,IF(H35="J3",3,IF(H35="J4",4,IF(H35="J6",6,IF(H35="n.B.","n.B."))))))))) -> 52.14
C36: Außenfenster bis 5,00 m² Fenstergröße | D36: F1 <5 | E36: einseitig | F36: =SUMPRODUCT((Reinigungsfläche)*(Glascode=D36)*(Turnus=H36)) -> 0 | G36: 0 | H36: M1 | I36: =IF(H36="W1",52,IF(H36="M1",12,IF(H36="J0,5",0.5,IF(H36="J1",1,IF(H36="J2",2,IF(H36="J3",3,IF(H36="J4",4,IF(H36="J6",6,IF(H36="n.B.","n.B."))))))))) -> 12
C37: Außenfenster bis 5,00 m² Fenstergröße | D37: F1 <5 | E37: einseitig | F37: 0 | G37: 0 | H37: J0,5 | I37: 0.5
C38: Außenfenster bis 5,00 m² Fenstergröße | D38: F1 <5 | E38: einseitig | F38: =SUMPRODUCT((Reinigungsfläche)*(Glascode=D38)*(Turnus=H38)) -> 0 | G38: =SUMPRODUCT((Gesamtfläche)*(Glascode=D38)*(Turnus=H38)) -> 0 | H38: J1 | I38: 1
C39: Außenfenster bis 5,00 m² Fenstergröße | D39: F1 <5 | E39: einseitig | F39: 0 | G39: =SUMPRODUCT((Gesamtfläche)*(Glascode=D39)*(Turnus=H39)) -> 0 | H39: J2 | I39: 2
C40: Außenfenster bis 5,00 m² Fenstergröße | D40: F1 <5 | E40: einseitig | F40: 0 | G40: 0 | H40: J3 | I40: 3
C41: Außenfenster bis 5,00 m² Fenstergröße | D41: F1 <5 | E41: einseitig | F41: 0 | G41: 0 | H41: J4 | I41: 4
C42: Außenfenster bis 5,00 m² Fenstergröße | D42: F1 <5 | E42: einseitig | F42: 0 | G42: 0 | H42: J6 | I42: 6
C43: Außenfenster bis 5,00 m² Fenstergröße | D43: F1 <5 | E43: einseitig | F43: 0 | G43: 0 | H43: n.B. | I43: n.B.
C44: Außenfenster bis 5,00 m² Fenstergröße | D44: F2 <5 | E44: beidseitig | F44: =SUMPRODUCT((Reinigungsfläche)*(Glascode=D44)*(Turnus=H44)) -> 0 | G44: =SUMPRODUCT((Gesamtfläche)*(Glascode=D44)*(Turnus=H44)) -> 0 | H44: W1 | I44: =IF(H44="W1",52.14,IF(H44="M1",12,IF(H44="J0,5",0.5,IF(H44="J1",1,IF(H44="J2",2,IF(H44="J3",3,IF(H44="J4",4,IF(H44="J6",6,IF(H44="n.B.","n.B."))))))))) -> 52.14
C45: Außenfenster bis 5,00 m² Fenstergröße | D45: F2 <5 | E45: beidseitig | F45: 0 | G45: 0 | H45: M1 | I45: 12
C46: Außenfenster bis 5,00 m² Fenstergröße | D46: F2 <5 | E46: beidseitig | F46: 0 | G46: 0 | H46: J0,5 | I46: 0.5
C47: Außenfenster bis 5,00 m² Fenstergröße | D47: F2 <5 | E47: beidseitig | F47: 0 | G47: 0 | H47: J1 | I47: 1
C48: Außenfenster bis 5,00 m² Fenstergröße | D48: F2 <5 | E48: beidseitig | F48: 0 | G48: 0 | H48: J2 | I48: 2
C49: Außenfenster bis 5,00 m² Fenstergröße | D49: F2 <5 | E49: beidseitig | F49: 0 | G49: 0 | H49: J3 | I49: 3
C50: Außenfenster bis 5,00 m² Fenstergröße | D50: F2 <5 | E50: beidseitig | F50: 0 | G50: 0 | H50: J4 | I50: 4
C51: Außenfenster bis 5,00 m² Fenstergröße | D51: F2 <5 | E51: beidseitig | F51: 0 | G51: 0 | H51: J6 | I51: 6
C52: Außenfenster bis 5,00 m² Fenstergröße | D52: F2 <5 | E52: beidseitig | F52: 0 | G52: 0 | H52: n.B. | I52: n.B.
C53: Außenfenster bis 5,00-15,00 m² Fenstergröße | D53: F1 5-15 | E53: einseitig | F53: =SUMPRODUCT((Reinigungsfläche)*(Glascode=D53)*(Turnus=H53)) -> 0 | G53: =SUMPRODUCT((Gesamtfläche)*(Glascode=D53)*(Turnus=H53)) -> 0 | H53: W1 | I53: =IF(H53="W1",52.14,IF(H53="M1",12,IF(H53="J0,5",0.5,IF(H53="J1",1,IF(H53="J2",2,IF(H53="J3",3,IF(H53="J4",4,IF(H53="J6",6,IF(H53="n.B.","n.B."))))))))) -> 52.14
C54: Außenfenster bis 5,00-15,00 m² Fenstergröße | D54: F1 5-15 | E54: einseitig | F54: 0 | G54: 0 | H54: M1 | I54: 12
C55: Außenfenster bis 5,00-15,00 m² Fenstergröße | D55: F1 5-15 | E55: einseitig | F55: =SUMPRODUCT((Reinigungsfläche)*(Glascode=D55)*(Turnus=H55)) -> 0 | G55: =SUMPRODUCT((Gesamtfläche)*(Glascode=D55)*(Turnus=H55)) -> 0 | H55: J0,5 | I55: 0.5
C56: Außenfenster bis 5,00-15,00 m² Fenstergröße | D56: F1 5-15 | E56: einseitig | F56: 0 | G56: 0 | H56: J1 | I56: 1
C57: Außenfenster bis 5,00-15,00 m² Fenstergröße | D57: F1 5-15 | E57: einseitig | F57: 0 | G57: 0 | H57: J2 | I57: 2
C58: Außenfenster bis 5,00-15,00 m² Fenstergröße | D58: F1 5-15 | E58: einseitig | F58: 0 | G58: 0 | H58: J3 | I58: 3
C59: Außenfenster bis 5,00-15,00 m² Fenstergröße | D59: F1 5-15 | E59: einseitig | F59: 0 | G59: 0 | H59: J4 | I59: 4
C60: Außenfenster bis 5,00-15,00 m² Fenstergröße | D60: F1 5-15 | E60: einseitig | F60: 0 | G60: 0 | H60: J6 | I60: 6
C61: Außenfenster bis 5,00-15,00 m² Fenstergröße | D61: F1 5-15 | E61: einseitig | F61: 0 | G61: 0 | H61: n.B. | I61: n.B.
C62: Außenfenster bis 5,00-15,00 m² Fenstergröße | D62: F2 5-15 | E62: beidseitig | F62: =SUMPRODUCT((Reinigungsfläche)*(Glascode=D62)*(Turnus=H62)) -> 0 | G62: =SUMPRODUCT((Gesamtfläche)*(Glascode=D62)*(Turnus=H62)) -> 0 | H62: W1 | I62: =IF(H62="W1",52.14,IF(H62="M1",12,IF(H62="J0,5",0.5,IF(H62="J1",1,IF(H62="J2",2,IF(H62="J3",3,IF(H62="J4",4,IF(H62="J6",6,IF(H62="n.B.","n.B."))))))))) -> 52.14
C63: Außenfenster bis 5,00-15,00 m² Fenstergröße | D63: F2 5-15 | E63: beidseitig | F63: 0 | G63: 0 | H63: M1 | I63: 12
C64: Außenfenster bis 5,00-15,00 m² Fenstergröße | D64: F2 5-15 | E64: beidseitig | F64: 0 | G64: 0 | H64: J0,5 | I64: 0.5
C65: Außenfenster bis 5,00-15,00 m² Fenstergröße | D65: F2 5-15 | E65: beidseitig | F65: 0 | G65: 0 | H65: J1 | I65: 1
C66: Außenfenster bis 5,00-15,00 m² Fenstergröße | D66: F2 5-15 | E66: beidseitig | F66: 0 | G66: 0 | H66: J2 | I66: 2
C67: Außenfenster bis 5,00-15,00 m² Fenstergröße | D67: F2 5-15 | E67: beidseitig | F67: 0 | G67: 0 | H67: J3 | I67: 3
C68: Außenfenster bis 5,00-15,00 m² Fenstergröße | D68: F2 5-15 | E68: beidseitig | F68: 0 | G68: 0 | H68: J4 | I68: 4
C69: Außenfenster bis 5,00-15,00 m² Fenstergröße | D69: F2 5-15 | E69: beidseitig | F69: 0 | G69: 0 | H69: J6 | I69: 6
C70: Außenfenster bis 5,00-15,00 m² Fenstergröße | D70: F2 5-15 | E70: beidseitig | F70: 0 | G70: 0 | H70: n.B. | I70: n.B.
C71: Außenfenster ab 15,00 m² Fenstergröße | D71: F1 >15 | E71: einseitig | F71: =SUMPRODUCT((Reinigungsfläche)*(Glascode=D71)*(Turnus=H71)) -> 0 | G71: =SUMPRODUCT((Gesamtfläche)*(Glascode=D71)*(Turnus=H71)) -> 0 | H71: W1 | I71: =IF(H71="W1",52.14,IF(H71="M1",12,IF(H71="J0,5",0.5,IF(H71="J1",1,IF(H71="J2",2,IF(H71="J3",3,IF(H71="J4",4,IF(H71="J6",6,IF(H71="n.B.","n.B."))))))))) -> 52.14
C72: Außenfenster ab 15,00 m² Fenstergröße | D72: F1 >15 | E72: einseitig | F72: 0 | G72: 0 | H72: M1 | I72: 12
C73: Außenfenster ab 15,00 m² Fenstergröße | D73: F1 >15 | E73: einseitig | F73: 0 | G73: 0 | H73: J0,5 | I73: 0.5
C74: Außenfenster ab 15,00 m² Fenstergröße | D74: F1 >15 | E74: einseitig | F74: 0 | G74: 0 | H74: J1 | I74: 1
C75: Außenfenster ab 15,00 m² Fenstergröße | D75: F1 >15 | E75: einseitig | F75: 0 | G75: 0 | H75: J2 | I75: 2
C76: Außenfenster ab 15,00 m² Fenstergröße | D76: F1 >15 | E76: einseitig | F76: 0 | G76: 0 | H76: J3 | I76: 3
C77: Außenfenster ab 15,00 m² Fenstergröße | D77: F1 >15 | E77: einseitig | F77: 0 | G77: 0 | H77: J4 | I77: 4
C78: Außenfenster ab 15,00 m² Fenstergröße | D78: F1 >15 | E78: einseitig | F78: 0 | G78: 0 | H78: J6 | I78: 6
C79: Außenfenster ab 15,00 m² Fenstergröße | D79: F1 >15 | E79: einseitig | F79: 0 | G79: 0 | H79: n.B. | I79: n.B.
C80: Außenfenster ab 15,00 m² Fenstergröße | D80: F2 >15 | E80: beidseitig | F80: =SUMPRODUCT((Reinigungsfläche)*(Glascode=D80)*(Turnus=H80)) -> 0 | G80: =SUMPRODUCT((Gesamtfläche)*(Glascode=D80)*(Turnus=H80)) -> 0 | H80: W1 | I80: =IF(H80="W1",52.14,IF(H80="M1",12,IF(H80="J0,5",0.5,IF(H80="J1",1,IF(H80="J2",2,IF(H80="J3",3,IF(H80="J4",4,IF(H80="J6",6,IF(H80="n.B.","n.B."))))))))) -> 52.14
C81: Außenfenster ab 15,00 m² Fenstergröße | D81: F2 >15 | E81: beidseitig | F81: 0 | G81: 0 | H81: M1 | I81: 12
C82: Außenfenster ab 15,00 m² Fenstergröße | D82: F2 >15 | E82: beidseitig | F82: =SUMPRODUCT((Reinigungsfläche)*(Glascode=D82)*(Turnus=H82)) -> 0 | G82: =SUMPRODUCT((Gesamtfläche)*(Glascode=D82)*(Turnus=H82)) -> 0 | H82: J0,5 | I82: 0.5
C83: Außenfenster ab 15,00 m² Fenstergröße | D83: F2 >15 | E83: beidseitig | F83: 0 | G83: 0 | H83: J1 | I83: 1
C84: Außenfenster ab 15,00 m² Fenstergröße | D84: F2 >15 | E84: beidseitig | F84: 0 | G84: 0 | H84: J2 | I84: 2
C85: Außenfenster ab 15,00 m² Fenstergröße | D85: F2 >15 | E85: beidseitig | F85: 0 | G85: 0 | H85: J3 | I85: 3
C86: Außenfenster ab 15,00 m² Fenstergröße | D86: F2 >15 | E86: beidseitig | F86: 0 | G86: 0 | H86: J4 | I86: 4
C87: Außenfenster ab 15,00 m² Fenstergröße | D87: F2 >15 | E87: beidseitig | F87: 0 | G87: 0 | H87: J6 | I87: 6
C88: Außenfenster ab 15,00 m² Fenstergröße | D88: F2 >15 | E88: beidseitig | F88: 0 | G88: 0 | H88: n.B. | I88: n.B.
C89: Kastenfenster | D89: KF1 | E89: einseitig | F89: =SUMPRODUCT((Reinigungsfläche)*(Glascode=D89)*(Turnus=H89)) -> 0 | G89: =SUMPRODUCT((Gesamtfläche)*(Glascode=D89)*(Turnus=H89)) -> 0 | H89: W1 | I89: =IF(H89="W1",52.14,IF(H89="M1",12,IF(H89="J0,5",0.5,IF(H89="J1",1,IF(H89="J2",2,IF(H89="J3",3,IF(H89="J4",4,IF(H89="J6",6,IF(H89="n.B.","n.B."))))))))) -> 52.14
C90: Kastenfenster | D90: KF1 | E90: einseitig | F90: 0 | G90: 0 | H90: M1 | I90: 12
C91: Kastenfenster | D91: KF1 | E91: einseitig | F91: =SUMPRODUCT((Reinigungsfläche)*(Glascode=D91)*(Turnus=H91)) -> 0 | G91: =SUMPRODUCT((Gesamtfläche)*(Glascode=D91)*(Turnus=H91)) -> 0 | H91: J0,5 | I91: 0.5
C92: Kastenfenster | D92: KF1 | E92: einseitig | F92: 0 | G92: 0 | H92: J1 | I92: 1
C93: Kastenfenster | D93: KF1 | E93: einseitig | F93: 0 | G93: 0 | H93: J2 | I93: 2
C94: Kastenfenster | D94: KF1 | E94: einseitig | F94: 0 | G94: 0 | H94: J3 | I94: 3
C95: Kastenfenster | D95: KF1 | E95: einseitig | F95: 0 | G95: 0 | H95: J4 | I95: 4
C96: Kastenfenster | D96: KF1 | E96: einseitig | F96: 0 | G96: 0 | H96: J6 | I96: 6
C97: Kastenfenster | D97: KF1 | E97: einseitig | F97: 0 | G97: 0 | H97: n.B. | I97: n.B.
C98: Kastenfenster | D98: KF2a | E98: beidseitig | F98: =SUMPRODUCT((Reinigungsfläche)*(Glascode=D98)*(Turnus=H98)) -> 0 | G98: =SUMPRODUCT((Gesamtfläche)*(Glascode=D98)*(Turnus=H98)) -> 0 | H98: W1 | I98: =IF(H98="W1",52.14,IF(H98="M1",12,IF(H98="J0,5",0.5,IF(H98="J1",1,IF(H98="J2",2,IF(H98="J3",3,IF(H98="J4",4,IF(H98="J6",6,IF(H98="n.B.","n.B."))))))))) -> 52.14
C99: Kastenfenster | D99: KF2a | E99: beidseitig | F99: 0 | G99: 0 | H99: M1 | I99: 12
C100: Kastenfenster | D100: KF2a | E100: beidseitig | F100: 0 | G100: 0 | H100: J0,5 | I100: 0.5
C101: Kastenfenster | D101: KF2a | E101: beidseitig | F101: 0 | G101: 0 | H101: J1 | I101: 1
C102: Kastenfenster | D102: KF2a | E102: beidseitig | F102: 0 | G102: 0 | H102: J2 | I102: 2
C103: Kastenfenster | D103: KF2a | E103: beidseitig | F103: 0 | G103: 0 | H103: J3 | I103: 3
C104: Kastenfenster | D104: KF2a | E104: beidseitig | F104: 0 | G104: 0 | H104: J4 | I104: 4
C105: Kastenfenster | D105: KF2a | E105: beidseitig | F105: 0 | G105: 0 | H105: J6 | I105: 6
C106: Kastenfenster | D106: KF2a | E106: beidseitig | F106: 0 | G106: 0 | H106: n.B. | I106: n.B.
C107: Kastenfenster | D107: KF2b | E107: 2x raumseitig | F107: =SUMPRODUCT((Reinigungsfläche)*(Glascode=D107)*(Turnus=H107)) -> 0 | G107: =SUMPRODUCT((Gesamtfläche)*(Glascode=D107)*(Turnus=H107)) -> 0 | H107: W1 | I107: =IF(H107="W1",52.14,IF(H107="M1",12,IF(H107="J0,5",0.5,IF(H107="J1",1,IF(H107="J2",2,IF(H107="J3",3,IF(H107="J4",4,IF(H107="J6",6,IF(H107="n.B.","n.B."))))))))) -> 52.14
C108: Kastenfenster | D108: KF2b | E108: 2x raumseitig | F108: 0 | G108: 0 | H108: M1 | I108: =IF(H108="W1",52,IF(H108="M1",12,IF(H108="J0,5",0.5,IF(H108="J1",1,IF(H108="J2",2,IF(H108="J3",3,IF(H108="J4",4,IF(H108="J6",6,IF(H108="n.B.","n.B."))))))))) -> 12
C109: Kastenfenster | D109: KF2b | E109: 2x raumseitig | F109: 0 | G109: 0 | H109: J0,5 | I109: 0.5
C110: Kastenfenster | D110: KF2b | E110: 2x raumseitig | F110: 0 | G110: 0 | H110: J1 | I110: 1
C111: Kastenfenster | D111: KF2b | E111: 2x raumseitig | F111: 0 | G111: 0 | H111: J2 | I111: 2
C112: Kastenfenster | D112: KF2b | E112: 2x raumseitig | F112: 0 | G112: 0 | H112: J3 | I112: 3
C113: Kastenfenster | D113: KF2b | E113: 2x raumseitig | F113: 0 | G113: 0 | H113: J4 | I113: 4
C114: Kastenfenster | D114: KF2b | E114: 2x raumseitig | F114: 0 | G114: 0 | H114: J6 | I114: 6
C115: Kastenfenster | D115: KF2b | E115: 2x raumseitig | F115: 0 | G115: 0 | H115: n.B. | I115: n.B.
C116: Kastenfenster | D116: KF3 | E116: 3x raumseitig | F116: =SUMPRODUCT((Reinigungsfläche)*(Glascode=D116)*(Turnus=H116)) -> 0 | G116: =SUMPRODUCT((Gesamtfläche)*(Glascode=D116)*(Turnus=H116)) -> 0 | H116: W1 | I116: =IF(H116="W1",52.14,IF(H116="M1",12,IF(H116="J0,5",0.5,IF(H116="J1",1,IF(H116="J2",2,IF(H116="J3",3,IF(H116="J4",4,IF(H116="J6",6,IF(H116="n.B.","n.B."))))))))) -> 52.14
C117: Kastenfenster | D117: KF3 | E117: 3x raumseitig | F117: 0 | G117: 0 | H117: M1 | I117: 12
C118: Kastenfenster | D118: KF3 | E118: 3x raumseitig | F118: 0 | G118: 0 | H118: J0,5 | I118: 0.5
C119: Kastenfenster | D119: KF3 | E119: 3x raumseitig | F119: 0 | G119: 0 | H119: J1 | I119: 1
C120: Kastenfenster | D120: KF3 | E120: 3x raumseitig | F120: 0 | G120: 0 | H120: J2 | I120: 2
C121: Kastenfenster | D121: KF3 | E121: 3x raumseitig | F121: 0 | G121: 0 | H121: J3 | I121: 3
C122: Kastenfenster | D122: KF3 | E122: 3x raumseitig | F122: 0 | G122: 0 | H122: J4 | I122: 4
C123: Kastenfenster | D123: KF3 | E123: 3x raumseitig | F123: 0 | G123: 0 | H123: J6 | I123: 6
C124: Kastenfenster | D124: KF3 | E124: 3x raumseitig | F124: 0 | G124: 0 | H124: n.B. | I124: n.B.
C125: Kastenfenster | D125: KF4 | E125: vierseitig | F125: =SUMPRODUCT((Reinigungsfläche)*(Glascode=D125)*(Turnus=H125)) -> 0 | G125: =SUMPRODUCT((Gesamtfläche)*(Glascode=D125)*(Turnus=H125)) -> 0 | H125: W1 | I125: =IF(H125="W1",52.14,IF(H125="M1",12,IF(H125="J0,5",0.5,IF(H125="J1",1,IF(H125="J2",2,IF(H125="J3",3,IF(H125="J4",4,IF(H125="J6",6,IF(H125="n.B.","n.B."))))))))) -> 52.14
C126: Kastenfenster | D126: KF4 | E126: vierseitig | F126: 0 | G126: 0 | H126: M1 | I126: 12
C127: Kastenfenster | D127: KF4 | E127: vierseitig | F127: 0 | G127: 0 | H127: J0,5 | I127: 0.5
C128: Kastenfenster | D128: KF4 | E128: vierseitig | F128: 0 | G128: 0 | H128: J1 | I128: 1
C129: Kastenfenster | D129: KF4 | E129: vierseitig | F129: 0 | G129: 0 | H129: J2 | I129: 2
C130: Kastenfenster | D130: KF4 | E130: vierseitig | F130: 0 | G130: 0 | H130: J3 | I130: 3
C131: Kastenfenster | D131: KF4 | E131: vierseitig | F131: 0 | G131: 0 | H131: J4 | I131: 4
C132: Kastenfenster | D132: KF4 | E132: vierseitig | F132: =SUMPRODUCT((Reinigungsfläche)*(Glascode=D132)*(Turnus=H132)) -> 0 | G132: 0 | H132: J6 | I132: 6
C133: Kastenfenster | D133: KF4 | E133: vierseitig | F133: 0 | G133: =SUMPRODUCT((Gesamtfläche)*(Glascode=D133)*(Turnus=H133)) -> 0 | H133: n.B. | I133: n.B.
C134: Verbundfenster | D134: VF1 | E134: raumseitig | F134: =SUMPRODUCT((Reinigungsfläche)*(Glascode=D134)*(Turnus=H134)) -> 0 | G134: =SUMPRODUCT((Gesamtfläche)*(Glascode=D134)*(Turnus=H134)) -> 0 | H134: W1 | I134: =IF(H134="W1",52.14,IF(H134="M1",12,IF(H134="J0,5",0.5,IF(H134="J1",1,IF(H134="J2",2,IF(H134="J3",3,IF(H134="J4",4,IF(H134="J6",6,IF(H134="n.B.","n.B."))))))))) -> 52.14
C135: Verbundfenster | D135: VF1 | E135: raumseitig | F135: 0 | G135: 0 | H135: M1 | I135: 12
C136: Verbundfenster | D136: VF1 | E136: raumseitig | F136: 0 | G136: 0 | H136: J0,5 | I136: 0.5
C137: Verbundfenster | D137: VF1 | E137: raumseitig | F137: 0 | G137: 0 | H137: J1 | I137: 1
C138: Verbundfenster | D138: VF1 | E138: raumseitig | F138: 0 | G138: 0 | H138: J2 | I138: 2
C139: Verbundfenster | D139: VF1 | E139: raumseitig | F139: 0 | G139: 0 | H139: J3 | I139: 3
C140: Verbundfenster | D140: VF1 | E140: raumseitig | F140: 0 | G140: 0 | H140: J4 | I140: 4
C141: Verbundfenster | D141: VF1 | E141: raumseitig | F141: 0 | G141: 0 | H141: J6 | I141: 6
C142: Verbundfenster | D142: VF1 | E142: raumseitig | F142: 0 | G142: 0 | H142: n.B. | I142: n.B.
C143: Verbundfenster | D143: VF3 | E143: 3x raumseitig | F143: =SUMPRODUCT((Reinigungsfläche)*(Glascode=D143)*(Turnus=H143)) -> 0 | G143: =SUMPRODUCT((Gesamtfläche)*(Glascode=D143)*(Turnus=H143)) -> 0 | H143: W1 | I143: =IF(H143="W1",52.14,IF(H143="M1",12,IF(H143="J0,5",0.5,IF(H143="J1",1,IF(H143="J2",2,IF(H143="J3",3,IF(H143="J4",4,IF(H143="J6",6,IF(H143="n.B.","n.B."))))))))) -> 52.14
C144: Verbundfenster | D144: VF3 | E144: 3x raumseitig | F144: 0 | G144: 0 | H144: M1 | I144: 12
C145: Verbundfenster | D145: VF3 | E145: 3x raumseitig | F145: 0 | G145: 0 | H145: J0,5 | I145: 0.5
C146: Verbundfenster | D146: VF3 | E146: 3x raumseitig | F146: 0 | G146: 0 | H146: J1 | I146: 1
C147: Verbundfenster | D147: VF3 | E147: 3x raumseitig | F147: 0 | G147: 0 | H147: J2 | I147: 2
C148: Verbundfenster | D148: VF3 | E148: 3x raumseitig | F148: 0 | G148: 0 | H148: J3 | I148: 3
C149: Verbundfenster | D149: VF3 | E149: 3x raumseitig | F149: 0 | G149: 0 | H149: J4 | I149: 4
C150: Verbundfenster | D150: VF3 | E150: 3x raumseitig | F150: 0 | G150: 0 | H150: J6 | I150: 6
C151: Verbundfenster | D151: VF3 | E151: 3x raumseitig | F151: 0 | G151: 0 | H151: n.B. | I151: n.B.
C152: Verbundfenster | D152: VF4 | E152: beidseitig | F152: =SUMPRODUCT((Reinigungsfläche)*(Glascode=D152)*(Turnus=H152)) -> 0 | G152: =SUMPRODUCT((Gesamtfläche)*(Glascode=D152)*(Turnus=H152)) -> 0 | H152: W1 | I152: =IF(H152="W1",52.14,IF(H152="M1",12,IF(H152="J0,5",0.5,IF(H152="J1",1,IF(H152="J2",2,IF(H152="J3",3,IF(H152="J4",4,IF(H152="J6",6,IF(H152="n.B.","n.B."))))))))) -> 52.14
C153: Verbundfenster | D153: VF4 | E153: beidseitig | F153: 0 | G153: 0 | H153: M1 | I153: 12
C154: Verbundfenster | D154: VF4 | E154: beidseitig | F154: 0 | G154: 0 | H154: J0,5 | I154: 0.5
C155: Verbundfenster | D155: VF4 | E155: beidseitig | F155: 0 | G155: 0 | H155: J1 | I155: 1
C156: Verbundfenster | D156: VF4 | E156: beidseitig | F156: 0 | G156: 0 | H156: J2 | I156: 2
C157: Verbundfenster | D157: VF4 | E157: beidseitig | F157: 0 | G157: 0 | H157: J3 | I157: 3
C158: Verbundfenster | D158: VF4 | E158: beidseitig | F158: 0 | G158: 0 | H158: J4 | I158: 4
C159: Verbundfenster | D159: VF4 | E159: beidseitig | F159: 0 | G159: 0 | H159: J6 | I159: 6
C160: Verbundfenster | D160: VF4 | E160: beidseitig | F160: 0 | G160: 0 | H160: n.B. | I160: n.B.
C161: Verbundsprossenfenster | D161: VSP1 | E161: raumseitig | F161: =SUMPRODUCT((Reinigungsfläche)*(Glascode=D161)*(Turnus=H161)) -> 0 | G161: =SUMPRODUCT((Gesamtfläche)*(Glascode=D161)*(Turnus=H161)) -> 0 | H161: W1 | I161: =IF(H161="W1",52.14,IF(H161="M1",12,IF(H161="J0,5",0.5,IF(H161="J1",1,IF(H161="J2",2,IF(H161="J3",3,IF(H161="J4",4,IF(H161="J6",6,IF(H161="n.B.","n.B."))))))))) -> 52.14
C162: Verbundsprossenfenster | D162: VSP1 | E162: raumseitig | F162: 0 | G162: 0 | H162: M1 | I162: 12
C163: Verbundsprossenfenster | D163: VSP1 | E163: raumseitig | F163: 0 | G163: 0 | H163: J0,5 | I163: 0.5
C164: Verbundsprossenfenster | D164: VSP1 | E164: raumseitig | F164: 0 | G164: 0 | H164: J1 | I164: 1
C165: Verbundsprossenfenster | D165: VSP1 | E165: raumseitig | F165: 0 | G165: 0 | H165: J2 | I165: 2
C166: Verbundsprossenfenster | D166: VSP1 | E166: raumseitig | F166: 0 | G166: 0 | H166: J3 | I166: 3
C167: Verbundsprossenfenster | D167: VSP1 | E167: raumseitig | F167: 0 | G167: 0 | H167: J4 | I167: 4
C168: Verbundsprossenfenster | D168: VSP1 | E168: raumseitig | F168: 0 | G168: 0 | H168: J6 | I168: 6
C169: Verbundsprossenfenster | D169: VSP1 | E169: raumseitig | F169: 0 | G169: 0 | H169: n.B. | I169: n.B.
C170: Verbundsprossenfenster | D170: VSP2a | E170: beidseitig | F170: =SUMPRODUCT((Reinigungsfläche)*(Glascode=D170)*(Turnus=H170)) -> 0 | G170: =SUMPRODUCT((Gesamtfläche)*(Glascode=D170)*(Turnus=H170)) -> 0 | H170: W1 | I170: =IF(H170="W1",52.14,IF(H170="M1",12,IF(H170="J0,5",0.5,IF(H170="J1",1,IF(H170="J2",2,IF(H170="J3",3,IF(H170="J4",4,IF(H170="J6",6,IF(H170="n.B.","n.B."))))))))) -> 52.14
C171: Verbundsprossenfenster | D171: VSP2a | E171: beidseitig | F171: 0 | G171: 0 | H171: M1 | I171: 12
C172: Verbundsprossenfenster | D172: VSP2a | E172: beidseitig | F172: 0 | G172: 0 | H172: J0,5 | I172: 0.5
C173: Verbundsprossenfenster | D173: VSP2a | E173: beidseitig | F173: 0 | G173: 0 | H173: J1 | I173: 1
C174: Verbundsprossenfenster | D174: VSP2a | E174: beidseitig | F174: 0 | G174: 0 | H174: J2 | I174: 2
C175: Verbundsprossenfenster | D175: VSP2a | E175: beidseitig | F175: 0 | G175: 0 | H175: J3 | I175: 3
C176: Verbundsprossenfenster | D176: VSP2a | E176: beidseitig | F176: 0 | G176: 0 | H176: J4 | I176: 4
C177: Verbundsprossenfenster | D177: VSP2a | E177: beidseitig | F177: 0 | G177: 0 | H177: J6 | I177: 6
C178: Verbundsprossenfenster | D178: VSP2a | E178: beidseitig | F178: 0 | G178: 0 | H178: n.B. | I178: n.B.
C179: Verbundsprossenfenster | D179: VSP2b | E179: 2x raumseitig | F179: =SUMPRODUCT((Reinigungsfläche)*(Glascode=D179)*(Turnus=H179)) -> 0 | G179: =SUMPRODUCT((Gesamtfläche)*(Glascode=D179)*(Turnus=H179)) -> 0 | H179: W1 | I179: =IF(H179="W1",52.14,IF(H179="M1",12,IF(H179="J0,5",0.5,IF(H179="J1",1,IF(H179="J2",2,IF(H179="J3",3,IF(H179="J4",4,IF(H179="J6",6,IF(H179="n.B.","n.B."))))))))) -> 52.14
C180: Verbundsprossenfenster | D180: VSP2b | E180: 2x raumseitig | F180: 0 | G180: 0 | H180: M1 | I180: =IF(H180="W1",52,IF(H180="M1",12,IF(H180="J0,5",0.5,IF(H180="J1",1,IF(H180="J2",2,IF(H180="J3",3,IF(H180="J4",4,IF(H180="J6",6,IF(H180="n.B.","n.B."))))))))) -> 12
C181: Verbundsprossenfenster | D181: VSP2b | E181: 2x raumseitig | F181: 0 | G181: 0 | H181: J0,5 | I181: 0.5
C182: Verbundsprossenfenster | D182: VSP2b | E182: 2x raumseitig | F182: 0 | G182: 0 | H182: J1 | I182: 1
C183: Verbundsprossenfenster | D183: VSP2b | E183: 2x raumseitig | F183: 0 | G183: 0 | H183: J2 | I183: 2
C184: Verbundsprossenfenster | D184: VSP2b | E184: 2x raumseitig | F184: 0 | G184: 0 | H184: J3 | I184: 3
C185: Verbundsprossenfenster | D185: VSP2b | E185: 2x raumseitig | F185: 0 | G185: 0 | H185: J4 | I185: 4
C186: Verbundsprossenfenster | D186: VSP2b | E186: 2x raumseitig | F186: 0 | G186: 0 | H186: J6 | I186: 6
C187: Verbundsprossenfenster | D187: VSP2b | E187: 2x raumseitig | F187: 0 | G187: 0 | H187: n.B. | I187: n.B.
C188: Verbundsprossenfenster | D188: VSP3 | E188: 3x raumseitig | F188: =SUMPRODUCT((Reinigungsfläche)*(Glascode=D188)*(Turnus=H188)) -> 0 | G188: =SUMPRODUCT((Gesamtfläche)*(Glascode=D188)*(Turnus=H188)) -> 0 | H188: W1 | I188: =IF(H188="W1",52.14,IF(H188="M1",12,IF(H188="J0,5",0.5,IF(H188="J1",1,IF(H188="J2",2,IF(H188="J3",3,IF(H188="J4",4,IF(H188="J6",6,IF(H188="n.B.","n.B."))))))))) -> 52.14
C189: Verbundsprossenfenster | D189: VSP3 | E189: 3x raumseitig | F189: 0 | G189: 0 | H189: M1 | I189: 12
C190: Verbundsprossenfenster | D190: VSP3 | E190: 3x raumseitig | F190: 0 | G190: 0 | H190: J0,5 | I190: 0.5
C191: Verbundsprossenfenster | D191: VSP3 | E191: 3x raumseitig | F191: 0 | G191: 0 | H191: J1 | I191: 1
C192: Verbundsprossenfenster | D192: VSP3 | E192: 3x raumseitig | F192: 0 | G192: 0 | H192: J2 | I192: 2
C193: Verbundsprossenfenster | D193: VSP3 | E193: 3x raumseitig | F193: 0 | G193: 0 | H193: J3 | I193: 3
C194: Verbundsprossenfenster | D194: VSP3 | E194: 3x raumseitig | F194: 0 | G194: 0 | H194: J4 | I194: 4
C195: Verbundsprossenfenster | D195: VSP3 | E195: 3x raumseitig | F195: 0 | G195: 0 | H195: J6 | I195: 6
C196: Verbundsprossenfenster | D196: VSP3 | E196: 3x raumseitig | F196: 0 | G196: 0 | H196: n.B. | I196: n.B.
C197: Verbundsprossenfenster | D197: VSP4 | E197: vierseitig | F197: =SUMPRODUCT((Reinigungsfläche)*(Glascode=D197)*(Turnus=H197)) -> 0 | G197: =SUMPRODUCT((Gesamtfläche)*(Glascode=D197)*(Turnus=H197)) -> 0 | H197: W1 | I197: =IF(H197="W1",52.14,IF(H197="M1",12,IF(H197="J0,5",0.5,IF(H197="J1",1,IF(H197="J2",2,IF(H197="J3",3,IF(H197="J4",4,IF(H197="J6",6,IF(H197="n.B.","n.B."))))))))) -> 52.14
C198: Verbundsprossenfenster | D198: VSP4 | E198: vierseitig | F198: 0 | G198: 0 | H198: M1 | I198: 12
C199: Verbundsprossenfenster | D199: VSP4 | E199: vierseitig | F199: 0 | G199: 0 | H199: J0,5 | I199: 0.5
C200: Verbundsprossenfenster | D200: VSP4 | E200: vierseitig | F200: 0 | G200: 0 | H200: J1 | I200: 1
C201: Verbundsprossenfenster | D201: VSP4 | E201: vierseitig | F201: 0 | G201: 0 | H201: J2 | I201: 2
C202: Verbundsprossenfenster | D202: VSP4 | E202: vierseitig | F202: 0 | G202: 0 | H202: J3 | I202: 3
C203: Verbundsprossenfenster | D203: VSP4 | E203: vierseitig | F203: 0 | G203: 0 | H203: J4 | I203: 4
C204: Verbundsprossenfenster | D204: VSP4 | E204: vierseitig | F204: 0 | G204: 0 | H204: J6 | I204: 6
C205: Verbundsprossenfenster | D205: VSP4 | E205: vierseitig | F205: 0 | G205: 0 | H205: n.B. | I205: n.B.
C206: Panoramafenster und Fensterwände 10-20m² | D206: P1 10-20 | E206: raumseitig | F206: =SUMPRODUCT((Reinigungsfläche)*(Glascode=D206)*(Turnus=H206)) -> 0 | G206: =SUMPRODUCT((Gesamtfläche)*(Glascode=D206)*(Turnus=H206)) -> 0 | H206: W1 | I206: =IF(H206="W1",52.14,IF(H206="M1",12,IF(H206="J0,5",0.5,IF(H206="J1",1,IF(H206="J2",2,IF(H206="J3",3,IF(H206="J4",4,IF(H206="J6",6,IF(H206="n.B.","n.B."))))))))) -> 52.14
C207: Panoramafenster und Fensterwände 10-20m² | D207: P1 10-20 | E207: raumseitig | F207: 0 | G207: 0 | H207: M1 | I207: 12
C208: Panoramafenster und Fensterwände 10-20m² | D208: P1 10-20 | E208: raumseitig | F208: 0 | G208: 0 | H208: J0,5 | I208: 0.5
... 420 more rows

Sheet Anl C-03 Geb 15
A1: VOEK 573-25 Los 2 | L1: Anlage C-03
A3: Flächenaufmaß Glasreinigung
A5: Reinigungsobjekt: | C5: Bpol Blumberg
A6: Straße: | C6: Bundespolizeiallee 1 | R6: einseitig
A7: PLZ und Ort: | C7: 16356 Ahrensfelde | R7: beidseitig
A8: WE - Nr.: | C8: 141115 | I8: Stand: | J8: 2018-09-17 | R8: raumseitig
A9: Gebäude Nr. | C9: 15 | R9: 2x raumseitig
A10: Anzahl Etagen | R10: 3x raumseitig
A11: Gebäudeart SAP | R11: witterungsseitig
A12: Kontrakt-Nr.: | I12: Druckdatum: | J12: 2025-02-05 | R12: außen
A13: Raum. Nr. | B13: Etage | C13: Raumart / Nutzung | D13: Glascode | E13: Reinigung einseitig beidseitig oder mehrseitig (Info) | F13: Turnus | G13: Breite, m | H13: Höhe, m | I13: Einzelmaß, m² | J13: Anzahl / Einzelmaß | K13: Reinigungs-fläche einseitig | L13: zu reinigende Gesamtfläche | R13: raum- & witterungsseitig
A14: 1 01 | B14: EG | C14: Maschinenlager | D14: VF | E14: beidseitig | F14: J2 | G14: 1.65 | H14: 0.73 | I14: 1.2 | J14: 1 | K14: =I14*J14 -> 1.2 | L14: =IF(E14="einseitig",K14*1,IF(E14="beidseitig",K14*2,IF(E14="raumseitig",K14*1,IF(E14="2x raumseitig",K14*2,IF(E14="3x raumseitig",K14*3,IF(E14="witterungsseitig",K14*1,IF(E14="außen",K14*1,IF(E14="raum- & witterungsseitig",K14*2,IF(E14="vierseitig",K14*4,IF(E14="allseitig",K14*2,IF(E14="ganzflächig",K14*2,0))))))))))) -> 2.4 | R14: vierseitig
B15: EG | C15: Flur | I15: 0 | K15: =I15*J15 -> 0 | L15: =IF(E15="einseitig",K15*1,IF(E15="beidseitig",K15*2,IF(E15="raumseitig",K15*1,IF(E15="2x raumseitig",K15*2,IF(E15="3x raumseitig",K15*3,IF(E15="witterungsseitig",K15*1,IF(E15="außen",K15*1,IF(E15="raum- & witterungsseitig",K15*2,IF(E15="vierseitig",K15*4,IF(E15="allseitig",K15*2,IF(E15="ganzflächig",K15*2,0))))))))))) -> 0 | R15: allseitig
A16: 1 04 | B16: EG | C16: Lager | D16: VF | E16: beidseitig | F16: J2 | G16: 1.65 | H16: 0.73 | I16: 1.2 | J16: 1 | K16: 1.2 | L16: 2.4 | R16: ganzflächig
A17: 1 05 | B17: EG | C17: Werkstatt (Elektriker) | D17: VF | E17: beidseitig | F17: J2 | G17: 1.65 | H17: 0.73 | I17: 1.2 | J17: 2 | K17: 2.4 | L17: 4.8
A18: 1 06 | B18: EG | C18: Lager | D18: VF | E18: beidseitig | F18: J2 | G18: 1.65 | H18: 0.73 | I18: 1.2 | J18: 2 | K18: 2.4 | L18: 4.8
A19: 1 07 | B19: EG | C19: Werkstatt (Schlosser) | D19: VF | E19: beidseitig | F19: J2 | G19: 1.65 | H19: 0.73 | I19: 1.2 | J19: 1 | K19: 1.2 | L19: 2.4
B20: EG | C20: Flur 2 | I20: 0 | K20: 0 | L20: 0
A21: 1 08 | B21: EG | C21: Lager | D21: VF | E21: beidseitig | F21: J2 | G21: 1.65 | H21: 0.73 | I21: 1.2 | J21: 1 | K21: 1.2 | L21: 2.4
A22: 1 09 | B22: EG | C22: HA Heizg. + WW | D22: VF | E22: beidseitig | F22: J2 | G22: 1.65 | H22: 0.73 | I22: 1.2 | J22: 1 | K22: 1.2 | L22: 2.4
A23: 1 10 | B23: EG | C23: HA Elektro | I23: 0 | K23: 0 | L23: 0
A24: 1 11 | B24: EG | C24: HA Elektro + Server | I24: 0 | K24: 0 | L24: 0
A25: 1 12 | B25: EG | C25: Lager | D25: VF | E25: beidseitig | F25: J2 | G25: 1.65 | H25: 0.73 | I25: 1.2 | J25: 1 | K25: 1.2 | L25: 2.4
A26: 1 13 | B26: EG | C26: Lager | I26: 0 | K26: 0 | L26: 0
A27: 1 14 | B27: EG | C27: Windfang | D27: VF | E27: beidseitig | F27: J2 | G27: 1.65 | H27: 0.73 | I27: 1.2 | J27: 1 | K27: 1.2 | L27: 2.4
A28: 1 15 | B28: EG | C28: Lager | D28: VF | E28: beidseitig | F28: J2 | G28: 1.65 | H28: 0.73 | I28: 1.2 | J28: 2 | K28: 2.4 | L28: 4.8
A29: 1 16 | B29: EG | C29: Werkstatt | I29: 0 | K29: 0 | L29: 0
A30: 1 17 | B30: EG | C30: Lager | D30: VF | E30: beidseitig | F30: J2 | G30: 1.65 | H30: 0.73 | I30: 1.2 | J30: 1 | K30: 1.2 | L30: 2.4
A31: 1 18 | B31: EG | C31: Eingang | D31: VF | E31: beidseitig | F31: J2 | G31: 1.65 | H31: 0.73 | I31: 1.2 | J31: 1 | K31: 1.2 | L31: 2.4
A32: 1 19 | B32: EG | C32: Flur 3 | I32: 0 | K32: 0 | L32: 0
B33: EG | C33: Treppenpodest A | I33: 0 | K33: 0 | L33: 0
A34: 1 20a | B34: EG | C34: Proberaum Musiker | D34: VF | E34: beidseitig | F34: J2 | G34: 1.65 | H34: 0.73 | I34: 1.2 | J34: 2 | K34: 2.4 | L34: 4.8
A35: 1 20b | B35: EG | C35: Lager (Möbel) | D35: VF | E35: beidseitig | F35: J2 | G35: 1.65 | H35: 0.73 | I35: 1.2 | J35: 7 | K35: 8.4 | L35: 16.8
A36: 1 21 | B36: EG | C36: Windfang | D36: VF | E36: beidseitig | F36: J2 | G36: 1.22 | H36: 2.04 | I36: 2.49 | J36: 1 | K36: 2.49 | L36: 4.98
A37: 1 22 | B37: EG | C37: Windfang | D37: VF | E37: beidseitig | F37: J2 | G37: 1.22 | H37: 2.04 | I37: 2.49 | J37: 1 | K37: 2.49 | L37: 4.98
B38: EG | C38: Flur 4 | D38: VF | E38: beidseitig | F38: J2 | G38: 1.94 | H38: 2.09 | I38: 4.05 | K38: 0 | L38: 0
A39: 100 | B39: EG | C39: Treppenpodest B | I39: 0 | K39: 0 | L39: 0
I40: 0 | K40: 0 | L40: 0
A41: 2 01 | B41: 1. OG | C41: Lager (genutzt als Dienstzimmer) | D41: VF | E41: beidseitig | F41: J2 | G41: 1.65 | H41: 1.47 | I41: 2.43 | J41: 1 | K41: 2.43 | L41: 4.86
A42: 2 02a | B42: 1. OG | C42: Umkleide | D42: VF | E42: beidseitig | F42: J2 | G42: 1.65 | H42: 1.47 | I42: 2.43 | J42: 1 | K42: 2.43 | L42: 4.86
A43: 2 02b | B43: 1. OG | C43: Übungsraum | D43: VF | E43: beidseitig | F43: J2 | G43: 1.65 | H43: 1.47 | I43: 2.43 | J43: 1 | K43: 2.43 | L43: 4.86
A44: 2 03 | B44: 1. OG | C44: Umkleide | D44: VF | E44: beidseitig | F44: J2 | G44: 1.65 | H44: 1.47 | I44: 2.43 | J44: 1 | K44: 2.43 | L44: 4.86
A45: 2 04 | B45: 1. OG | C45: Dienstzimmer | D45: VF | E45: beidseitig | F45: J2 | G45: 1.65 | H45: 1.47 | I45: 2.43 | J45: 1 | K45: 2.43 | L45: 4.86
A46: 205 / 206 | B46: 1. OG | C46: Duschraum + Vorraum | D46: VF | E46: beidseitig | F46: J2 | G46: 1.65 | H46: 1.47 | I46: 2.43 | J46: 1 | K46: 2.43 | L46: 4.86
I47: 0 | K47: 0 | L47: 0
A48: 207 / 208 | B48: 1. OG | C48: WC + Vorraum | D48: VF | E48: beidseitig | F48: J2 | G48: 1.65 | H48: 1.47 | I48: 2.43 | J48: 1 | K48: 2.43 | L48: 4.86
I49: 0 | K49: 0 | L49: 0
A50: 2 09 | B50: 1. OG | C50: Dienstzimmer | D50: VF | E50: beidseitig | F50: J2 | G50: 1.65 | H50: 1.47 | I50: 2.43 | J50: 1 | K50: 2.43 | L50: 4.86
A51: 210 / 211 | B51: 1. OG | C51: Duschraum + Vorraum | D51: VF | E51: beidseitig | F51: J2 | G51: 1.65 | H51: 1.47 | I51: 2.43 | J51: 1 | K51: 2.43 | L51: 4.86
I52: 0 | K52: 0 | L52: 0
A53: 212 / 213 | B53: 1. OG | C53: WC + Vorraum | D53: VF | E53: beidseitig | F53: J2 | G53: 1.65 | H53: 1.47 | I53: 2.43 | J53: 1 | K53: 2.43 | L53: 4.86
I54: 0 | K54: 0 | L54: 0
A55: 214 / 215 | B55: 1. OG | C55: WC + Vorraum | D55: VF | E55: beidseitig | F55: J2 | G55: 1.65 | H55: 1.47 | I55: 2.43 | J55: 1 | K55: 2.43 | L55: 4.86
A56: 216 / 217 | B56: 1. OG | C56: Duschraum + Vorraum | D56: VF | E56: beidseitig | F56: J2 | G56: 1.65 | H56: 1.47 | I56: 2.43 | J56: 1 | K56: 2.43 | L56: 4.86
A57: 2 18 | B57: 1. OG | C57: Umkleide | D57: VF | E57: beidseitig | F57: J2 | G57: 1.65 | H57: 1.47 | I57: 2.43 | J57: 1 | K57: 2.43 | L57: 4.86
A58: 2 20 | B58: 1. OG | C58: Aufenthaltsraum | D58: VF | E58: beidseitig | F58: J2 | G58: 1.65 | H58: 1.47 | I58: 2.43 | J58: 1 | K58: 2.43 | L58: 4.86
A59: 2 21 | B59: 1. OG | C59: Übungsraum | D59: VF | E59: beidseitig | F59: J2 | G59: 1.65 | H59: 1.47 | I59: 2.43 | J59: 1 | K59: 2.43 | L59: 4.86
A60: 2 22 | B60: 1. OG | C60: Dienstzimmer | D60: VF | E60: beidseitig | F60: J2 | G60: 1.65 | H60: 1.47 | I60: 2.43 | J60: 1 | K60: 2.43 | L60: 4.86
A61: 2 24 | B61: 1. OG | C61: Umkleide | D61: VF | E61: beidseitig | F61: J2 | G61: 1.65 | H61: 1.47 | I61: 2.43 | J61: 1 | K61: 2.43 | L61: 4.86
A62: 2 25 | B62: 1. OG | C62: Dienstzimmer | D62: VF | E62: beidseitig | F62: J2 | G62: 1.65 | H62: 1.47 | I62: 2.43 | J62: 1 | K62: 2.43 | L62: 4.86
A63: 2 26 | B63: 1. OG | C63: Dienstzimmer | D63: VF | E63: beidseitig | F63: J2 | G63: 1.65 | H63: 1.47 | I63: 2.43 | J63: 1 | K63: 2.43 | L63: 4.86
A64: 2 26 A | B64: 1. OG | C64: Umkleide | D64: VF | E64: beidseitig | F64: J2 | G64: 1.65 | H64: 1.47 | I64: 2.43 | J64: 1 | K64: 2.43 | L64: 4.86
A65: 2 27 | B65: 1. OG | C65: Umkleide | D65: VF | E65: beidseitig | F65: J2 | G65: 1.65 | H65: 1.47 | I65: 2.43 | J65: 1 | K65: 2.43 | L65: 4.86
A66: 2 28 | B66: 1. OG | C66: Umkleide | D66: VF | E66: beidseitig | F66: J2 | G66: 1.65 | H66: 1.47 | I66: 2.43 | J66: 1 | K66: 2.43 | L66: 4.86
A67: 2 29.1 | B67: 1. OG | C67: Umkleide | D67: VF | E67: beidseitig | F67: J2 | G67: 1.65 | H67: 1.47 | I67: 2.43 | J67: 1 | K67: 2.43 | L67: 4.86
A68: 2 29.2 | B68: 1. OG | C68: Umkleide | D68: VF | E68: beidseitig | F68: J2 | G68: 1.65 | H68: 1.47 | I68: 2.43 | J68: 1 | K68: 2.43 | L68: 4.86
C69: Flur | I69: 0 | K69: 0 | L69: 0
C70: Treppenpodest A | I70: 0 | K70: 0 | L70: 0
C71: Treppenpodest B | I71: 0 | K71: 0 | L71: 0
C73: Summe: | I73: =SUBTOTAL(9,I14:I71) -> 84.15 | J73: =SUBTOTAL(9,J14:J71) -> 50 | K73: =SUBTOTAL(9,K14:K71) -> 92.1 | L73: =SUBTOTAL(9,L14:L71) -> 184.2
C76: Bearbeitung durch VOEK 42 - Zusammenfassung der Aufmaßtabelle / Übertragung in das Preisblatt
F77: =SUM(F82:F675) -> 0 | G77: =SUM(G82:G675) -> 0
C81: Reinigungsbereich Glasreinigung | D81: Glascode | E81: Reinigung einseitig oder beidseitig | F81: Renigungsfläche einseitig | G81: zu reinigende Gesamtfläche | H81: Turnus | I81: Einsatztage pro Jahr
C82: Außenfenster bis 5,00 m² Fenstergröße | D82: F1 <5 | E82: einseitig | F82: =SUMPRODUCT((Reinigungsfläche)*(Glascode=D82)*(Turnus=H82)) -> 0 | G82: =SUMPRODUCT((Gesamtfläche)*(Glascode=D82)*(Turnus=H82)) -> 0 | H82: W1 | I82: =IF(H82="W1",52.14,IF(H82="M1",12,IF(H82="J0,5",0.5,IF(H82="J1",1,IF(H82="J2",2,IF(H82="J3",3,IF(H82="J4",4,IF(H82="J6",6,IF(H82="n.B.","n.B."))))))))) -> 52.14
